Workbook

Sheet Title
F2: CENTERS FOR DISEASE CONTROL & PREVENTION (CDC)
E6: EbolaResponse
E8: Modeling the spread of disease impact & intervention
F9: Version 2.6 (specially built to allow user to enter supplied number of available ECU and ECC beds)
F10: Contributors: Michael Washington, Charisma Atkins, Manoj Gambhir, Martin Meltzer
F14: Division of Preparedness & Emerging Infections
F15: Health Economics & Modeling Unit (HEMU)
A100: 2014-08-14 | B100: First draft sent out
A101: 2014-08-15 | B101: Further description added to each white cell explaining what type of data should be entered
B102: Text box added on each page informing user that any data presented in white cell can be altered
A103: 8/20/2014 Added more description and more pop up boxes.
B104: Checked out more bugs and made updates as necessary
A105: 2014-09-11 | B105: Replaced all "quarantine" with "isolatioin" as requested by DGMQ
A106: 2014-09-15 | B106: Added the definition of correction factor to be submitted to MMWR.
B107: Also, clarified wording as requested by CDC leadership
A108: 2014-10-15 | B108: Added additional page for the entry of bed data
A109: 2014-10-22 | B109: Updated links to ensure proper navigaion

Sheet Intro
D1: INFORMATION & NAVIGATION
D5: Model Overview: We built a spreadsheet-based model that (1) allows user to estimate the number of Ebola cases in a community, (2) tracks patients susceptibility to disease through infectivity,
F6: incubation, recovery, and death, and (3) calculates the spread of Ebola and its impact for 300 days. The timeline of 300 days is longer than most of the previously recorded outbreaks of Ebola or Marburg.
F7: The latter is caused by Marburg virus, which is very similar to Ebola; Allaranga et al., 2010; Borchet et al, 2011).
F8: (Sources: Allaranga Y, Kone ML, Formenty P, Libama F, Boumandouki P, Woodfill CJ, Sow I, Duale S, Alemu W, Yada A. Lessons learned during active epidemiological surveillance of Ebola and Marburg viral hemorrhagic
F9: fever epidemics in Africa. East Afr J Public Health. 2010 Mar;7(1):30-6. Borchert M, Mutyaba I, Van Kerkhove MD, Lutwama J, Luwaga H, Bisoborwa G, Turyagaruka J, Pirard P, Ndayimirije N, Roddy P, Van Der Stuyft P.
F10: Ebola haemorrhagic fever outbreak in Masindi District, Uganda: outbreak description and lessons learned. BMC Infect Dis. 2011 Dec 28;11:357. doi: 10.1186/1471-2334-11-357.)
D12: Model Description: Estimate the daily movement of patients using disease probabilities for three (3) different categories of isolation: Hospitalization, Eff Home Isolation (i.e., at home or in a cmmunity setting such that there
F13: is a reduced risk of disease transmission including safe burial when needed), and No Home Isolation. We used probabilities, drawn from reports of previous Ebola outbreaks, to model the daily movement of
F14: patients between and within the various disease categories (i.e., susceptible, incubation, infectious, revocery/death).
D16: Type of Model: | F16: Susceptibile, Incubation, Infectious, Recovery (SIIR) Model, similar in concept to to that built by Chowell et al
F17: (Source: Chowell G, Hengartner NW, Castillo-Chavez C, Fenimore PW, Hyman JM. The basic reproductive number of Ebola and the effects of public health measures: the cases of Congo and Uganda.
F18: J Theor Biol. 2004 Jul 7;229(1):119-26).
D20: Other data sources: We used historical data from earlier outbreaks of EVD in Africa. The model can be updated, and estimates re-calculated, as more data from the current outbreak become available.
L22: NAVIGATION COMMANDS:
M24: Select to begin using model or to return to start page
M27: Select to advance to next worksheet
M30: Select to return to previous worksheet
M33: User may enter any data in white cells
M36: User CANNOT alter any data presented in gray cells
M39: Information presented in yellow text boxes contains helpful information
M42: Command boxes that contain detail information about a topic on the worksheet

Sheet Population
E1: POPULATION & INCUBATION
AG4: 1
I5: Human Population | K5: 6092000 | AG5: 2 | AJ5: Legrand
AG6: 3 | AJ6: Elchner
AG7: 6
H8: Number of Initially Infected | K8: 30 | M8: (NOTE: For this specially adapted version, not recommended that user change this "number initially infected value") | AG8: 7
AG9: 8
F10: Select from drop down menu, the number of days people are expected to be infectious (1-15): | AG10: 9
I11: Days People are Infectious | K11: 6 | AG11: 10
AG12: 11
AG13: 12
G14: Select from dop down menu, one of the three incubation distribution references*: | AG14: 13
M15: Log Normal Distribution | AG15: 14
M16: Mean | N16: Standard Deviation | AG16: 15
G17: Incubation Distribution by Day | K17: =Incubation!K14 -> Default | M17: =VLOOKUP(Incubation!$K$14,Incubation!$A$52:$AC$54,28,FALSE) -> 6.3 | N17: =VLOOKUP(Incubation!$K$14,Incubation!$A$52:$AC$54,29,FALSE) -> 3.31
N20: INCUBATION DISTRIBUTION
H21: To alter the incubation distribution, please click here
F23: The incubation distribution by day can be changed, but we recommend you leave it fixed using the default settings.

Sheet Incubation
E1: ADDITIONAL INFORMATION: INCUBATION
AG4: 1
AG5: 2 | AJ5: Legrand
AG6: 3 | AJ6: Elchner
AG7: 4 | AJ7: Default
AG8: 5
AG9: 6
AG10: 7
G11: Select from dop down menu, one of the three distribution references*: | AG11: 9
M12: Log Normal Distribution | AG12: 10
M13: Mean | N13: Standard Deviation | AG13: 11
G14: Incubation Distribution by Day | K14: Default | M14: =VLOOKUP($K$14,$A$52:$AC$54,28,FALSE) -> 6.3 | N14: =VLOOKUP($K$14,$A$52:$AC$54,29,FALSE) -> 3.31 | AG14: 12
AG15: 13
A16: 1 | B16: 2 | C16: 3 | D16: 4 | E16: 5 | F16: 6 | G16: 7 | H16: 8 | I16: 9 | J16: 10 | K16: 11 | L16: 12 | M16: 13 | N16: 14 | O16: 15 | P16: 16 | Q16: 17 | R16: 18 | S16: 19 | T16: 20 | U16: 21 | V16: 22 | W16: 23 | X16: 24 | Y16: 25 | AG16: 14
A17: =HLOOKUP(A16,Incubation!$A$51:$Z$54,MATCH(Incubation!$K$14,Incubation!$A$51:$A$54,0),FALSE) -> 0 | B17: =HLOOKUP(B16,Incubation!$A$51:$Z$54,MATCH(Incubation!$K$14,Incubation!$A$51:$A$54,0),FALSE) -> 0.0196 | C17: =HLOOKUP(C16,Incubation!$A$51:$Z$54,MATCH(Incubation!$K$14,Incubation!$A$51:$A$54,0),FALSE) -> 0.086 | D17: =HLOOKUP(D16,Incubation!$A$51:$Z$54,MATCH(Incubation!$K$14,Incubation!$A$51:$A$54,0),FALSE) -> 0.153 | E17: =HLOOKUP(E16,Incubation!$A$51:$Z$54,MATCH(Incubation!$K$14,Incubation!$A$51:$A$54,0),FALSE) -> 0.1606 | F17: =HLOOKUP(F16,Incubation!$A$51:$Z$54,MATCH(Incubation!$K$14,Incubation!$A$51:$A$54,0),FALSE) -> 0.1404 | G17: =HLOOKUP(G16,Incubation!$A$51:$Z$54,MATCH(Incubation!$K$14,Incubation!$A$51:$A$54,0),FALSE) -> 0.122 | H17: =HLOOKUP(H16,Incubation!$A$51:$Z$54,MATCH(Incubation!$K$14,Incubation!$A$51:$A$54,0),FALSE) -> 0.0858 | I17: =HLOOKUP(I16,Incubation!$A$51:$Z$54,MATCH(Incubation!$K$14,Incubation!$A$51:$A$54,0),FALSE) -> 0.0646 | J17: =HLOOKUP(J16,Incubation!$A$51:$Z$54,MATCH(Incubation!$K$14,Incubation!$A$51:$A$54,0),FALSE) -> 0.0524 | K17: =HLOOKUP(K16,Incubation!$A$51:$Z$54,MATCH(Incubation!$K$14,Incubation!$A$51:$A$54,0),FALSE) -> 0.0336 | L17: =HLOOKUP(L16,Incubation!$A$51:$Z$54,MATCH(Incubation!$K$14,Incubation!$A$51:$A$54,0),FALSE) -> 0.0246 | M17: =HLOOKUP(M16,Incubation!$A$51:$Z$54,MATCH(Incubation!$K$14,Incubation!$A$51:$A$54,0),FALSE) -> 0.015 | N17: =HLOOKUP(N16,Incubation!$A$51:$Z$54,MATCH(Incubation!$K$14,Incubation!$A$51:$A$54,0),FALSE) -> 0.0132 | O17: =HLOOKUP(O16,Incubation!$A$51:$Z$54,MATCH(Incubation!$K$14,Incubation!$A$51:$A$54,0),FALSE) -> 0.007 | P17: =HLOOKUP(P16,Incubation!$A$51:$Z$54,MATCH(Incubation!$K$14,Incubation!$A$51:$A$54,0),FALSE) -> 0.0054 | Q17: =HLOOKUP(Q16,Incubation!$A$51:$Z$54,MATCH(Incubation!$K$14,Incubation!$A$51:$A$54,0),FALSE) -> 0.003 | R17: =HLOOKUP(R16,Incubation!$A$51:$Z$54,MATCH(Incubation!$K$14,Incubation!$A$51:$A$54,0),FALSE) -> 0.0036 | S17: =HLOOKUP(S16,Incubation!$A$51:$Z$54,MATCH(Incubation!$K$14,Incubation!$A$51:$A$54,0),FALSE) -> 0.003 | T17: =HLOOKUP(T16,Incubation!$A$51:$Z$54,MATCH(Incubation!$K$14,Incubation!$A$51:$A$54,0),FALSE) -> 0.0016 | U17: =HLOOKUP(U16,Incubation!$A$51:$Z$54,MATCH(Incubation!$K$14,Incubation!$A$51:$A$54,0),FALSE) -> 0.0018 | V17: =HLOOKUP(V16,Incubation!$A$51:$Z$54,MATCH(Incubation!$K$14,Incubation!$A$51:$A$54,0),FALSE) -> 0.0016 | W17: =HLOOKUP(W16,Incubation!$A$51:$Z$54,MATCH(Incubation!$K$14,Incubation!$A$51:$A$54,0),FALSE) -> 0.0012 | X17: =HLOOKUP(X16,Incubation!$A$51:$Z$54,MATCH(Incubation!$K$14,Incubation!$A$51:$A$54,0),FALSE) -> 0.0006 | Y17: =HLOOKUP(Y16,Incubation!$A$51:$Z$54,MATCH(Incubation!$K$14,Incubation!$A$51:$A$54,0),FALSE) -> 0.0004 | AG17: 15
B51: 1 | C51: 2 | D51: 3 | E51: 4 | F51: 5 | G51: 6 | H51: 7 | I51: 8 | J51: 9 | K51: 10 | L51: 11 | M51: 12 | N51: 13 | O51: 14 | P51: 15 | Q51: 16 | R51: 17 | S51: 18 | T51: 19 | U51: 20 | V51: 21 | W51: 22 | X51: 23 | Y51: 24 | Z51: 25 | AB51: Mean | AC51: StD
A52: Legrand | B52: 0.0036 | C52: 0.057 | D52: 0.1338 | E52: 0.151 | F52: 0.132 | G52: 0.1162 | H52: 0.0942 | I52: 0.0684 | J52: 0.0552 | K52: 0.042 | L52: 0.0374 | M52: 0.024 | N52: 0.018 | O52: 0.0138 | P52: 0.0102 | Q52: 0.0102 | R52: 0.006 | S52: 0.0048 | T52: 0.0032 | U52: 0.0038 | V52: 0.00244 | W52: 0.00344 | X52: 0.00324 | Y52: 0.00304 | Z52: 0.00304 | AA52: =SUM(B52:Z52) -> 1 | AB52: 6.3 | AC52: 4.31
A53: Elchner | B53: 0 | C53: 0 | D53: 0 | E53: 0 | F53: 0.0036 | G53: 0.0144 | H53: 0.0302 | I53: 0.0604 | J53: 0.0904 | K53: 0.1 | L53: 0.1034 | M53: 0.0966 | N53: 0.0958 | O53: 0.0868 | P53: 0.0686 | Q53: 0.0538 | R53: 0.047 | S53: 0.0422 | T53: 0.0266 | U53: 0.021 | V53: 0.01648 | W53: 0.01668 | X53: 0.01048 | Y53: 0.00828 | Z53: 0.00728 | AA53: =SUM(B53:Z53) -> 1 | AB53: 12.7 | AC53: 3.31
A54: Default | B54: 0 | C54: 0.0196 | D54: 0.086 | E54: 0.153 | F54: 0.1606 | G54: 0.1404 | H54: 0.122 | I54: 0.0858 | J54: 0.0646 | K54: 0.0524 | L54: 0.0336 | M54: 0.0246 | N54: 0.015 | O54: 0.0132 | P54: 0.007 | Q54: 0.0054 | R54: 0.003 | S54: 0.0036 | T54: 0.003 | U54: 0.0016 | V54: 0.0018 | W54: 0.0016 | X54: 0.0012 | Y54: 0.0006 | Z54: 0.0004 | AA54: =SUM(B54:Z54) -> 1 | AB54: 6.3 | AC54: 3.31

Sheet Entry cases beds
D2: DATA ENTRY: Reported Cumulative Cases, Scheule to ETU and ECC beds*
E4: ENTER DATA BELOW
G5: (Demonstration/ illustrative data shown: User enters relevant data) | M5: * Ebola treatment units (ETUs) and Ebola Community Centers (ECCs)
I6: Schedule of Supplied
G7: Surveillance Data: | I7: ETU* | K7: ECC* | M7: Correction factor to
F8: Report Date | G8: Reported Total Cases | I8: BEDs | K8: BEDs | M8: adjust for underreporting**
F9: 2014-05-27 | G9: 16 | I9: 5 | K9: 0
F10: 2014-05-28 | G10: 32 | I10: 5 | K10: 0 | M10: 2.5
F11: 2014-05-29 | G11: 50 | I11: 5 | K11: 0
F12: 2014-05-30 | G12: 50 | I12: 5 | K12: 0 | M12: ** To adjust for any underreproting of cases that may occur
F13: 2014-05-31 | G13: 50 | I13: 10 | K13: 0
F14: 2014-06-01 | G14: 79 | I14: 10 | K14: 0
F15: 2014-06-02 | G15: 79 | I15: 10 | K15: 0
F16: 2014-06-03 | G16: 79 | I16: 15 | K16: 0
F17: 2014-06-04 | G17: 98 | I17: 15 | K17: 0
F18: 2014-06-05 | G18: 112 | I18: 15 | K18: 0
F19: 2014-06-06 | G19: 112 | I19: 35 | K19: 0
F20: 2014-06-07 | G20: 112 | I20: 45 | K20: 0
F21: 2014-06-08 | G21: 112 | I21: 60 | K21: 0
F22: 2014-06-09 | G22: 112 | I22: 65 | K22: 0
F23: 2014-06-10 | G23: 160 | I23: 70 | K23: 0
F24: 2014-06-11 | G24: 50 | I24: 82 | K24: 0
F25: 2014-06-12 | G25: 50 | I25: 89 | K25: 0
F26: 2014-06-13 | G26: 50 | I26: 94 | K26: 0
F27: 2014-06-14 | G27: 50 | I27: 94 | K27: 0
F28: 2014-06-15 | G28: 50 | I28: 94 | K28: 0
F29: 2014-06-16 | G29: 95 | I29: 94 | K29: 0
F30: 2014-06-17 | G30: 136 | I30: 100 | K30: 0
F31: 2014-06-18 | G31: 136 | I31: 100 | K31: 0
F32: 2014-06-19 | G32: 151 | I32: 113 | K32: 0
F33: 2014-06-20 | G33: 158 | I33: 115 | K33: 0
F34: 2014-06-21 | G34: 158 | I34: 115 | K34: 0
F35: 2014-06-22 | G35: 158 | I35: 115 | K35: 0
F36: 2014-06-23 | G36: 166 | I36: 125 | K36: 0
F37: 2014-06-24 | G37: 166 | I37: 125 | K37: 0
F38: 2014-06-25 | G38: 188 | I38: 136 | K38: 0
F39: 2014-06-26 | G39: 188 | I39: 136 | K39: 0
F40: 2014-06-27 | G40: 194 | I40: 155 | K40: 0
F41: 2014-06-28 | G41: 210 | I41: 175 | K41: 0
F42: 2014-06-29 | G42: 210 | I42: 175 | K42: 0
F43: 2014-06-30 | G43: 239 | I43: 178 | K43: 0
F44: 2014-07-01 | G44: 239 | I44: 178 | K44: 0
F45: 2014-07-02 | G45: 252 | I45: 184 | K45: 0
F46: 2014-07-03 | G46: 252 | I46: 184 | K46: 0
F47: 2014-07-04 | G47: 282 | I47: 183 | K47: 0
F48: 2014-07-05 | G48: 282 | I48: 183 | K48: 0
F49: 2014-07-06 | G49: 305 | I49: 186 | K49: 0
F50: 2014-07-07 | G50: 305 | I50: 186 | K50: 0
F51: 2014-07-08 | G51: 318 | I51: 189 | K51: 0
F52: 2014-07-09 | G52: 318 | I52: 189 | K52: 0
F53: 2014-07-10 | G53: 337 | I53: 192 | K53: 0
F54: 2014-07-11 | G54: 337 | I54: 192 | K54: 0
F55: 2014-07-12 | G55: 386 | I55: 194 | K55: 0
F56: 2014-07-13 | G56: 386 | I56: 194 | K56: 0
F57: 2014-07-14 | G57: 397 | I57: 196 | K57: 0
F58: 2014-07-15 | G58: 397 | I58: 196 | K58: 0
F59: 2014-07-16 | G59: 441 | I59: 196 | K59: 0
F60: 2014-07-17 | G60: 442 | I60: 196 | K60: 0
F61: 2014-07-18 | G61: 442 | I61: 196 | K61: 0
F62: 2014-07-19 | G62: 442 | I62: 196 | K62: 0
F63: 2014-07-20 | G63: 454 | I63: 200 | K63: 0
F64: 2014-07-21 | G64: 454 | I64: 200 | K64: 0
F65: 2014-07-22 | G65: 454 | I65: 200 | K65: 0
F66: 2014-07-23 | G66: 525 | I66: 205 | K66: 0
F67: 2014-07-24 | G67: 525 | I67: 205 | K67: 0
F68: 2014-07-25 | G68: 525 | I68: 204 | K68: 0
F69: 2014-07-26 | G69: 525 | I69: 204 | K69: 0
F70: 2014-07-27 | G70: 533 | I70: 206 | K70: 0
F71: 2014-07-28 | G71: 533 | I71: 206 | K71: 0
F72: 2014-07-29 | G72: 557 | I72: 206 | K72: 0
F73: 2014-07-30 | G73: 557 | I73: 206 | K73: 0
F74: 2014-07-31 | G74: 593 | I74: 208 | K74: 0
F75: 2014-08-01 | G75: 593 | I75: 208 | K75: 0
F76: 2014-08-02 | G76: 646 | I76: 210 | K76: 0
F77: 2014-08-03 | G77: 646 | I77: 210 | K77: 0
F78: 2014-08-04 | G78: 691 | I78: 194 | K78: 0
F79: 2014-08-05 | G79: 691 | I79: 194 | K79: 0
F80: 2014-08-06 | G80: 691 | I80: 196 | K80: 0
F81: 2014-08-07 | G81: 717 | I81: 196 | K81: 0
F82: 2014-08-08 | G82: 717 | I82: 196 | K82: 0
F83: 2014-08-09 | G83: 717 | I83: 196 | K83: 0
F84: 2014-08-10 | G84: 717 | I84: 196 | K84: 0
F85: 2014-08-11 | G85: 759 | I85: 196 | K85: 0
F86: 2014-08-12 | G86: 759 | I86: 200 | K86: 0
F87: 2014-08-13 | G87: 812 | I87: 200 | K87: 0
F88: 2014-08-14 | G88: 810 | I88: 200 | K88: 0
F89: 2014-08-15 | G89: 810 | I89: 205 | K89: 0
F90: 2014-08-16 | G90: 849 | I90: 205 | K90: 0
F91: 2014-08-17 | G91: 848 | I91: 204 | K91: 0
F92: 2014-08-18 | G92: 848 | I92: 204 | K92: 0
F93: 2014-08-19 | G93: 848 | I93: 194 | K93: 0
F94: 2014-08-20 | G94: 910 | I94: 194 | K94: 0
F95: 2014-08-21 | G95: 913 | I95: 196 | K95: 0
F96: 2014-08-22 | G96: 913 | I96: 196 | K96: 0
F97: 2014-08-23 | G97: 913 | I97: 196 | K97: 0
F98: 2014-08-24 | G98: 1025 | I98: 196 | K98: 0
F99: 2014-08-25 | G99: 1025 | I99: 196 | K99: 0
F100: 2014-08-26 | G100: 1057 | I100: 196 | K100: 0
F101: 2014-08-27 | G101: 1057 | I101: 200 | K101: 0
F102: 2014-08-28 | G102: 1117 | I102: 200 | K102: 0
F103: 2014-08-29 | I103: 200 | K103: 0
F104: 2014-08-30 | I104: 205 | K104: 0
F105: 2014-08-31 | I105: 205 | K105: 0
F106: 2014-09-01 | I106: 204 | K106: 0
F107: 2014-09-02 | I107: 204 | K107: 0
F108: 2014-09-03 | I108: 194 | K108: 0
F109: 2014-09-04 | I109: 194 | K109: 0
F110: 2014-09-05 | I110: 196 | K110: 0
F111: 2014-09-06 | G111: 1424 | I111: 196 | K111: 0
F112: 2014-09-07 | I112: 196 | K112: 0
F113: 2014-09-08 | I113: 196 | K113: 0
F114: 2014-09-09 | I114: 196 | K114: 0
F115: 2014-09-10 | I115: 196 | K115: 0
F116: 2014-09-11 | I116: 200 | K116: 0
F117: 2014-09-12 | I117: 200 | K117: 0
F118: 2014-09-13 | G118: 1603 | I118: 200 | K118: 0
F119: 2014-09-14 | I119: 205 | K119: 0
F120: 2014-09-15 | G120: 1603 | I120: 205 | K120: 0
F121: 2014-09-16 | G121: 1603 | I121: 204 | K121: 0
F122: 2014-09-17 | G122: 1735 | I122: 204 | K122: 0
F123: 2014-09-18 | G123: 1753 | I123: 204 | K123: 0
F124: 2014-09-19 | G124: 1791 | I124: 201 | K124: 0
F125: 2014-09-20 | G125: 1813 | I125: 201 | K125: 0
F126: 2014-09-21 | G126: 1876 | I126: 201 | K126: 0
F127: 2014-09-22 | G127: 1940 | I127: 218 | K127: 0
F128: 2014-09-23 | G128: 1967 | I128: 218 | K128: 0
F129: 2014-09-24 | G129: 2021 | I129: 218 | K129: 0
F130: 2014-09-25 | G130: 2092 | I130: 218 | K130: 0
F131: 2014-09-26 | G131: 2120 | I131: 218 | K131: 0
F132: 2014-09-27 | G132: 2149 | I132: 218 | K132: 0
F133: 2014-09-28 | G133: 2208 | I133: 218 | K133: 0
F134: 2014-09-29 | G134: 2317 | I134: 218 | K134: 0
F135: 2014-09-30 | G135: 2317 | I135: 218 | K135: 0
F136: 2014-10-01 | G136: 2437 | I136: 218 | K136: 0
F137: 2014-10-02 | G137: 2480 | I137: 218 | K137: 0
F138: 2014-10-03 | G138: 2480 | I138: 218 | K138: 0
F139: 2014-10-04 | G139: 2480 | I139: 218 | K139: 0
F140: 2014-10-05 | G140: 2727 | I140: 218 | K140: 0
F141: 2014-10-06 | G141: 2784 | I141: 218 | K141: 0
F142: 2014-10-07 | G142: 2823 | I142: 218 | K142: 0
F143: 2014-10-08 | G143: 2937 | I143: 346 | K143: 0
F144: 2014-10-09 | I144: 346 | K144: 0
F145: 2014-10-10 | I145: 346 | K145: 0
F146: 2014-10-11 | I146: 346 | K146: 0
F147: 2014-10-12 | I147: 346 | K147: 0
F148: 2014-10-13 | I148: 346 | K148: 0
F149: 2014-10-14 | I149: 346 | K149: 0
F150: 2014-10-15 | I150: 346 | K150: 0
F151: 2014-10-16 | I151: 346 | K151: 0
F152: 2014-10-17 | I152: 346 | K152: 0
F153: 2014-10-18 | I153: 346 | K153: 0
F154: 2014-10-19 | I154: 346 | K154: 0
F155: 2014-10-20 | I155: 346 | K155: 0
F156: 2014-10-21 | I156: 346 | K156: 0
F157: 2014-10-22 | I157: 346 | K157: 0
F158: 2014-10-23 | I158: 346 | K158: 60
F159: 2014-10-24 | I159: 346 | K159: 60
F160: 2014-10-25 | I160: 346 | K160: 60
F161: 2014-10-26 | I161: 346 | K161: 60
F162: 2014-10-27 | I162: 444 | K162: 60
F163: 2014-10-28 | I163: 444 | K163: 60
F164: 2014-10-29 | I164: 444 | K164: 60
F165: 2014-10-30 | I165: 444 | K165: 60
F166: 2014-10-31 | I166: 444 | K166: 60
F167: 2014-11-01 | I167: 444 | K167: 60
F168: 2014-11-02 | I168: 444 | K168: 60
F169: 2014-11-03 | I169: 444 | K169: 60
F170: 2014-11-04 | I170: 444 | K170: 60
F171: 2014-11-05 | I171: 444 | K171: 60
F172: 2014-11-06 | I172: 444 | K172: 60
F173: 2014-11-07 | I173: 444 | K173: 60
F174: 2014-11-08 | I174: 444 | K174: 60
F175: 2014-11-09 | I175: 444 | K175: 60
F176: 2014-11-10 | I176: 444 | K176: 60
F177: 2014-11-11 | I177: 444 | K177: 60
F178: 2014-11-12 | I178: 444 | K178: 60
F179: 2014-11-13 | I179: 444 | K179: 60
F180: 2014-11-14 | I180: 444 | K180: 60
F181: 2014-11-15 | I181: 444 | K181: 60
F182: 2014-11-16 | I182: 444 | K182: 60
F183: 2014-11-17 | I183: 444 | K183: 60
F184: 2014-11-18 | I184: 444 | K184: 60
F185: 2014-11-19 | I185: 444 | K185: 60
F186: 2014-11-20 | I186: 444 | K186: 60
F187: 2014-11-21 | I187: 444 | K187: 60
F188: 2014-11-22 | I188: 444 | K188: 60
F189: 2014-11-23 | I189: 444 | K189: 60
F190: 2014-11-24 | I190: 444 | K190: 60
F191: 2014-11-25 | I191: 444 | K191: 60
F192: 2014-11-26 | I192: 444 | K192: 60
F193: 2014-11-27 | I193: 444 | K193: 300
F194: 2014-11-28 | I194: 444 | K194: 300
F195: 2014-11-29 | I195: 444 | K195: 300
F196: 2014-11-30 | I196: 944 | K196: 300
F197: 2014-12-01 | I197: 944 | K197: 300
F198: 2014-12-02 | I198: 944 | K198: 300
F199: 2014-12-03 | I199: 944 | K199: 300
F200: 2014-12-04 | I200: 944 | K200: 300
F201: 2014-12-05 | I201: 944 | K201: 300
F202: 2014-12-06 | I202: 944 | K202: 300
... 107 more rows

Sheet Transmission
E1: TRANSMISSION SCENARIO
F6: Transmission data is based on a fit to the curves over time from country using the following assumptions:
G7: i) No additional imports of infection
G8: ii) Patients maintain the pattern of either going to a hospital early in infectious period, or at home or in a community setting such that there is a reduced
G9: risk of disease transmission (includes safe burial when needed)
G10: iii) Maintenance of effective isolation and barriers-to-infection at hospitals and at home or in a community setting such that there is a reduced risk of disease transmission
G11: (includes safe burial when needed)
K14: COUNTRY SCENARIO
F18: For the data entered on the selected transmission scenario entry worksheets, the user will be able to enter the following information:
G19: (1) Percent of patients distributed within each category of isolation
G20: (2) Daily risk of onward transmission
G21: (3) Number of imported new cases or cases with no known contacts

Sheet Country_uncorrected
D1: TRANSMISSION DATA INPUT - UNCORRECTED
B6: Lower estimates (uncorrected)*
B8: Days | C8: Category | D8: %Patient | F8: Transmission Risk: Daily | P8: Imported cases (arrive newly infected - start incubating)
B9: 0-30 end 06/26 | C9: Hospitalized | D9: 0.2 | F9: 0.02 | Q9: Day Arrive | R9: # arrive
C10: Eff Home Iso | D10: 0.1 | F10: 0.03 | Q10: 10 | R10: 25
C11: No Eff Home Iso | D11: 0.7 | F11: 0.3 | Q11: 20 | R11: 0
D12: =SUM(D9:D11) -> 1 | Q12: 30 | R12: 0
Q13: 40 | R13: 0
B14: 31-60 end 7/26 | C14: Hospitalized | D14: 0.15 | Q14: 50 | R14: 0
C15: Eff Home Iso | D15: 0.25 | Q15: 60 | R15: 0
C16: No Eff Home Iso | D16: 0.6 | Q16: 70 | R16: 0
B17: This should sum up to 1 | D17: =SUM(D14:D16) -> 1 | Q17: 80 | R17: 0
Q18: 90 | R18: 0
B19: 61-90 end 8/25 | C19: Hospitalized | D19: 0.15 | Q19: 100 | R19: 150
C20: Eff Home Iso | D20: 0.25 | Q20: 110 | R20: 0
C21: No Eff Home Iso | D21: 0.6 | Q21: 120 | R21: 0
B22: This should sum up to 1 | D22: =SUM(D19:D21) -> 1 | Q22: 130 | R22: 0
Q23: 140 | R23: 0
B24: 91-120 end 9/24 | C24: Hospitalized | D24: 0.15 | Q24: 150 | R24: 0
C25: Eff Home Iso | D25: 0.25 | Q25: 160 | R25: 0
C26: No Eff Home Iso | D26: 0.6 | Q26: 170 | R26: 0
B27: This should sum up to 1 | D27: =SUM(D24:D26) -> 1 | Q27: 180 | R27: 0
Q28: 190 | R28: 0
B29: 121-150 end 10/24 | C29: Hospitalized | D29: 0.2 | H29: *Eff Home Isolation is the at home or community setting such that there is a reduced risk of disease transmission. | Q29: 200 | R29: 0
C30: Eff Home Iso | D30: 0.1 | Q30: 210 | R30: 0
C31: No Eff Home Iso | D31: 0.7 | Q31: 220 | R31: 0
B32: This should sum up to 1 | D32: =SUM(D29:D31) -> 1 | Q32: 230 | R32: 0 | BT32: Lower Estimates
H33: Click buttons below to view the hospital bed needs or to go to results | Q33: 240 | R33: 0 | BT33: Days | BU33: Hospital | BV33: Isolation | BW33: No Isolation
B34: 151-180 end 11/23 | C34: Hospitalized | D34: 0.25 | H34: HOSPITAL BED NEEDS | L34: GO TO FINAL RESULTS | Q34: 250 | R34: 0 | BT34: 0-30 | BU34: =D9 -> 0.2 | BV34: =Country_uncorrected!$D$10 -> 0.1 | BW34: =Country_uncorrected!$D$11 -> 0.7
C35: Eff Home Iso | D35: 0.1 | K35: or | Q35: 260 | R35: 0 | BT35: 31-60 | BU35: =Country_uncorrected!$D$14 -> 0.15 | BV35: =Country_uncorrected!$D$15 -> 0.25 | BW35: =Country_uncorrected!$D$16 -> 0.6
C36: No Eff Home Iso | D36: 0.65 | Q36: 270 | R36: 0 | BT36: 61-90 | BU36: =Country_uncorrected!$D$19 -> 0.15 | BV36: =Country_uncorrected!$D$20 -> 0.25 | BW36: =Country_uncorrected!$D$21 -> 0.6
B37: This should sum up to 1 | D37: =SUM(D34:D36) -> 1 | Q37: 280 | R37: 0 | BT37: 91-120 | BU37: =Country_uncorrected!$D$24 -> 0.15 | BV37: =Country_uncorrected!$D$25 -> 0.25 | BW37: =Country_uncorrected!$D$26 -> 0.6
Q38: 290 | R38: 0 | BT38: 121-150 | BU38: =Country_uncorrected!$D$29 -> 0.2 | BV38: =Country_uncorrected!$D$30 -> 0.1 | BW38: =Country_uncorrected!$D$31 -> 0.7
B39: 181-210 end 12/23 | C39: Hospitalized | D39: 0.35 | Q39: 300 | R39: 0 | BT39: 151-180 | BU39: =Country_uncorrected!$D$34 -> 0.25 | BV39: =Country_uncorrected!$D$35 -> 0.1 | BW39: =Country_uncorrected!$D$36 -> 0.65
C40: Eff Home Iso | D40: 0.1 | BT40: 181-210 | BU40: =Country_uncorrected!$D$39 -> 0.35 | BV40: =Country_uncorrected!$D$40 -> 0.1 | BW40: =Country_uncorrected!$D$41 -> 0.55
C41: No Eff Home Iso | D41: 0.55 | BT41: 211-240 | BU41: =Country_uncorrected!$D$44 -> 0.45 | BV41: =Country_uncorrected!$D$45 -> 0.1 | BW41: =Country_uncorrected!$D$46 -> 0.45
B42: This should sum up to 1 | D42: =SUM(D39:D41) -> 1 | BT42: 241-270 | BU42: =Country_uncorrected!$D$49 -> 0.55 | BV42: =Country_uncorrected!$D$50 -> 0.1 | BW42: =Country_uncorrected!$D$51 -> 0.35
BT43: 271-300 | BU43: =Country_uncorrected!$D$54 -> 0.65 | BV43: =Country_uncorrected!$D$55 -> 0.1 | BW43: =Country_uncorrected!$D$56 -> 0.25
B44: 211-240 end 1/22 | C44: Hospitalized | D44: 0.45
C45: Eff Home Iso | D45: 0.1
C46: No Eff Home Iso | D46: 0.45
B47: This should sum up to 1 | D47: =SUM(D44:D46) -> 1
B49: 241-270 end 2/21 | C49: Hospitalized | D49: 0.55
C50: Eff Home Iso | D50: 0.1
C51: No Eff Home Iso | D51: 0.35
B52: This should sum up to 1 | D52: =SUM(D49:D51) -> 1
B54: 271-300 end 3/23 | C54: Hospitalized | D54: 0.65
C55: Eff Home Iso | D55: 0.1
C56: No Eff Home Iso | D56: 0.25
B57: This should sum up to 1 | D57: =SUM(D54:D56) -> 1
AO60: Taken from DI: 7 day stays
AI62: Surveillance Data | AK62: Model Days | AL62: Cum Cases | AM62: Cum Hosp Admit | AN62: At that day Beds in use | AO62: Scenario beds | AQ62: Current cases as of given day | AR62: New ETU patients | AS62: Current ECC beds in use
AH63: Report Date | AI63: Total Cases
AH64: 2014-05-27 | AI64: ='Entry cases beds'!G9 -> 16 | AJ64: =AH64 -> 2014-05-27 | AK64: =calc2_updated_uncorrected!CB33 -> 0 | AL64: =calc2_updated_uncorrected!CF33 -> 0 | AM64: =calc2_updated_uncorrected!CR33 -> 0 | AN64: =calc2_updated_uncorrected!DH33 -> 0 | AO64: =calc2_updated_uncorrected!DI33 -> 0 | AS64: =calc2_updated_uncorrected!DP33 -> 0
AH65: 2014-05-28 | AI65: ='Entry cases beds'!G10 -> 32 | AJ65: =AJ64+1 -> 2014-05-28 | AK65: =calc2_updated_uncorrected!CB34 -> 1 | AL65: =calc2_updated_uncorrected!CF34 -> 0 | AM65: =calc2_updated_uncorrected!CR35 -> 0 | AN65: =calc2_updated_uncorrected!DH34 -> 0 | AO65: =calc2_updated_uncorrected!DI34 -> 0 | AS65: =calc2_updated_uncorrected!DP34 -> 0
AH66: 2014-05-29 | AI66: ='Entry cases beds'!G11 -> 50 | AJ66: =AJ65+1 -> 2014-05-29 | AK66: =calc2_updated_uncorrected!CB35 -> 2 | AL66: =calc2_updated_uncorrected!CF35 -> 0 | AM66: =calc2_updated_uncorrected!CR36 -> 0.14112 | AN66: =calc2_updated_uncorrected!DH35 -> 0 | AO66: =calc2_updated_uncorrected!DI35 -> 0 | AS66: =calc2_updated_uncorrected!DP35 -> 0
AH67: 2014-05-30 | AI67: ='Entry cases beds'!G12 -> 50 | AJ67: =AJ66+1 -> 2014-05-30 | AK67: =calc2_updated_uncorrected!CB36 -> 3 | AL67: =calc2_updated_uncorrected!CF36 -> 0.588 | AM67: =calc2_updated_uncorrected!CR37 -> 0.76032 | AN67: =calc2_updated_uncorrected!DH36 -> 0.14112 | AO67: =calc2_updated_uncorrected!DI36 -> 0.14112 | AS67: =calc2_updated_uncorrected!DP36 -> 0.0588
AH68: 2014-05-31 | AI68: ='Entry cases beds'!G13 -> 50 | AJ68: 2014-05-31 | AK68: =calc2_updated_uncorrected!CB37 -> 4 | AL68: =calc2_updated_uncorrected!CF37 -> 3.168 | AM68: =calc2_updated_uncorrected!CR38 -> 1.86192 | AN68: =calc2_updated_uncorrected!DH37 -> 0.76032 | AO68: =calc2_updated_uncorrected!DI37 -> 0.76032 | AS68: =calc2_updated_uncorrected!DP37 -> 0.3168
AH69: 2014-06-01 | AI69: ='Entry cases beds'!G14 -> 79 | AJ69: 2014-06-01 | AK69: =calc2_updated_uncorrected!CB38 -> 5 | AL69: =calc2_updated_uncorrected!CF38 -> 7.758 | AM69: =calc2_updated_uncorrected!CR39 -> 3.018840209 | AN69: =calc2_updated_uncorrected!DH38 -> 1.86192 | AO69: =calc2_updated_uncorrected!DI38 -> 1.86192 | AS69: =calc2_updated_uncorrected!DP38 -> 0.7758
AH70: 2014-06-02 | AI70: ='Entry cases beds'!G15 -> 79 | AJ70: 2014-06-02 | AK70: =calc2_updated_uncorrected!CB39 -> 6 | AL70: =calc2_updated_uncorrected!CF39 -> 12.57850087 | AM70: =calc2_updated_uncorrected!CR40 -> 4.035587554 | AN70: =calc2_updated_uncorrected!DH39 -> 3.018840209 | AO70: =calc2_updated_uncorrected!DI39 -> 3.018840209 | AS70: =calc2_updated_uncorrected!DP39 -> 1.257850087
AH71: 2014-06-03 | AI71: ='Entry cases beds'!G16 -> 79 | AJ71: 2014-06-03 | AK71: =calc2_updated_uncorrected!CB40 -> 7 | AL71: =calc2_updated_uncorrected!CF40 -> 16.81494814 | AM71: =calc2_updated_uncorrected!CR41 -> 4.940780956 | AN71: =calc2_updated_uncorrected!DH40 -> 4.015007554 | AO71: =calc2_updated_uncorrected!DI40 -> 4.035587554 | AS71: =calc2_updated_uncorrected!DP40 -> 1.681494814
AH72: 2014-06-04 | AI72: ='Entry cases beds'!G17 -> 98 | AJ72: 2014-06-04 | AK72: =calc2_updated_uncorrected!CB41 -> 8 | AL72: =calc2_updated_uncorrected!CF41 -> 20.58658732 | AM72: =calc2_updated_uncorrected!CR42 -> 5.636288894 | AN72: =calc2_updated_uncorrected!DH41 -> 4.829900956 | AO72: =calc2_updated_uncorrected!DI41 -> 4.940780956 | AS72: =calc2_updated_uncorrected!DP41 -> 2.058658732
AH73: 2014-06-05 | AI73: ='Entry cases beds'!G18 -> 112 | AJ73: 2014-06-05 | AK73: =calc2_updated_uncorrected!CB42 -> 9 | AL73: =calc2_updated_uncorrected!CF42 -> 23.48453706 | AM73: =calc2_updated_uncorrected!CR43 -> 6.267524194 | AN73: =calc2_updated_uncorrected!DH42 -> 5.364758894 | AO73: =calc2_updated_uncorrected!DI42 -> 5.636288894 | AS73: =calc2_updated_uncorrected!DP42 -> 2.348453706
AH74: 2014-06-06 | AI74: ='Entry cases beds'!G19 -> 112 | AJ74: 2014-06-06 | AK74: =calc2_updated_uncorrected!CB43 -> 10 | AL74: =calc2_updated_uncorrected!CF43 -> 26.11468414 | AM74: =calc2_updated_uncorrected!CR44 -> 6.933146298 | AN74: =calc2_updated_uncorrected!DH43 -> 5.824336663 | AO74: =calc2_updated_uncorrected!DI43 -> 6.126404194 | AS74: =calc2_updated_uncorrected!DP43 -> 2.552668414
AH75: 2014-06-07 | AI75: ='Entry cases beds'!G20 -> 112 | AJ75: 2014-06-07 | AK75: =calc2_updated_uncorrected!CB44 -> 11 | AL75: =calc2_updated_uncorrected!CF44 -> 28.88810957 | AM75: =calc2_updated_uncorrected!CR45 -> 7.726916557 | AN75: =calc2_updated_uncorrected!DH44 -> 6.328783113 | AO75: =calc2_updated_uncorrected!DI44 -> 6.172826298 | AS75: =calc2_updated_uncorrected!DP44 -> 2.572010957
AH76: 2014-06-08 | AI76: ='Entry cases beds'!G21 -> 112 | AJ76: 2014-06-08 | AK76: =calc2_updated_uncorrected!CB45 -> 12 | AL76: =calc2_updated_uncorrected!CF45 -> 32.19548565 | AM76: =calc2_updated_uncorrected!CR46 -> 9.00808857 | AN76: =calc2_updated_uncorrected!DH45 -> 6.967596001 | AO76: =calc2_updated_uncorrected!DI45 -> 5.864996557 | AS76: =calc2_updated_uncorrected!DP45 -> 2.443748565
AH77: 2014-06-09 | AI77: ='Entry cases beds'!G22 -> 112 | AJ77: 2014-06-09 | AK77: =calc2_updated_uncorrected!CB46 -> 13 | AL77: =calc2_updated_uncorrected!CF46 -> 37.53370238 | AM77: =calc2_updated_uncorrected!CR47 -> 10.76286266 | AN77: =calc2_updated_uncorrected!DH46 -> 8.123237269 | AO77: =calc2_updated_uncorrected!DI46 -> 5.989248362 | AS77: =calc2_updated_uncorrected!DP46 -> 2.495520151
AH78: 2014-06-10 | AI78: ='Entry cases beds'!G23 -> 160 | AJ78: 2014-06-10 | AK78: =calc2_updated_uncorrected!CB47 -> 14 | AL78: =calc2_updated_uncorrected!CF47 -> 44.8452611 | AM78: =calc2_updated_uncorrected!CR48 -> 12.6598633 | AN78: =calc2_updated_uncorrected!DH47 -> 9.764773978 | AO78: =calc2_updated_uncorrected!DI47 -> 6.727275109 | AS78: =calc2_updated_uncorrected!DP47 -> 2.803031296
AH79: 2014-06-11 | AI79: ='Entry cases beds'!G24 -> 50 | AJ79: 2014-06-11 | AK79: =calc2_updated_uncorrected!CB48 -> 15 | AL79: =calc2_updated_uncorrected!CF48 -> 52.7494304 | AM79: =calc2_updated_uncorrected!CR49 -> 14.46511202 | AN79: =calc2_updated_uncorrected!DH48 -> 11.42824652 | AO79: =calc2_updated_uncorrected!DI48 -> 7.71908234 | AS79: =calc2_updated_uncorrected!DP48 -> 3.216284308
AH80: 2014-06-12 | AI80: ='Entry cases beds'!G25 -> 50 | AJ80: 2014-06-12 | AK80: =calc2_updated_uncorrected!CB49 -> 16 | AL80: =calc2_updated_uncorrected!CF49 -> 60.27130009 | AM80: =calc2_updated_uncorrected!CR50 -> 16.20083867 | AN80: =calc2_updated_uncorrected!DH49 -> 12.58724734 | AO80: =calc2_updated_uncorrected!DI49 -> 8.828823126 | AS80: =calc2_updated_uncorrected!DP49 -> 3.678676303
AH81: 2014-06-13 | AI81: ='Entry cases beds'!G26 -> 50 | AJ81: 2014-06-13 | AK81: =calc2_updated_uncorrected!CB50 -> 17 | AL81: =calc2_updated_uncorrected!CF50 -> 67.50349444 | AM81: =calc2_updated_uncorrected!CR51 -> 17.75751583 | AN81: =calc2_updated_uncorrected!DH50 -> 13.20498566 | AO81: =calc2_updated_uncorrected!DI50 -> 9.933314473 | AS81: =calc2_updated_uncorrected!DP50 -> 4.13888103
AH82: 2014-06-14 | AI82: ='Entry cases beds'!G27 -> 50 | AJ82: 2014-06-14 | AK82: =calc2_updated_uncorrected!CB51 -> 18 | AL82: =calc2_updated_uncorrected!CF51 -> 73.98964929 | AM82: =calc2_updated_uncorrected!CR52 -> 19.27099369 | AN82: =calc2_updated_uncorrected!DH51 -> 13.52779097 | AO82: =calc2_updated_uncorrected!DI51 -> 10.82436953 | AS82: =calc2_updated_uncorrected!DP51 -> 4.510153972
AH83: 2014-06-15 | AI83: ='Entry cases beds'!G28 -> 50 | AJ83: 2014-06-15 | AK83: =calc2_updated_uncorrected!CB52 -> 19 | AL83: =calc2_updated_uncorrected!CF52 -> 80.29580703 | AM83: =calc2_updated_uncorrected!CR53 -> 20.81976037 | AN83: =calc2_updated_uncorrected!DH52 -> 13.90079657 | AO83: =calc2_updated_uncorrected!DI52 -> 11.54407713 | AS83: =calc2_updated_uncorrected!DP52 -> 4.810032138
AH84: 2014-06-16 | AI84: ='Entry cases beds'!G29 -> 95 | AJ84: 2014-06-16 | AK84: =calc2_updated_uncorrected!CB53 -> 20 | AL84: =calc2_updated_uncorrected!CF53 -> 86.74900154 | AM84: =calc2_updated_uncorrected!CR54 -> 22.38784611 | AN84: =calc2_updated_uncorrected!DH53 -> 14.40527889 | AO84: =calc2_updated_uncorrected!DI53 -> 11.8116718 | AS84: =calc2_updated_uncorrected!DP53 -> 4.921529916
AH85: 2014-06-17 | AI85: ='Entry cases beds'!G30 -> 136 | AJ85: 2014-06-17 | AK85: =calc2_updated_uncorrected!CB54 -> 21 | AL85: =calc2_updated_uncorrected!CF54 -> 93.28269212 | AM85: =calc2_updated_uncorrected!CR55 -> 24.06147671 | AN85: =calc2_updated_uncorrected!DH54 -> 15.10409009 | AO85: =calc2_updated_uncorrected!DI54 -> 11.62498344 | AS85: =calc2_updated_uncorrected!DP54 -> 4.843743102
AH86: 2014-06-18 | AI86: ='Entry cases beds'!G31 -> 136 | AJ86: 2014-06-18 | AK86: =calc2_updated_uncorrected!CB55 -> 22 | AL86: =calc2_updated_uncorrected!CF55 -> 100.256153 | AM86: =calc2_updated_uncorrected!CR56 -> 25.83059309 | AN86: =calc2_updated_uncorrected!DH55 -> 15.985155 | AO86: =calc2_updated_uncorrected!DI55 -> 11.40161341 | AS86: =calc2_updated_uncorrected!DP55 -> 4.750672255
AH87: 2014-06-19 | AI87: ='Entry cases beds'!G32 -> 151 | AJ87: 2014-06-19 | AK87: =calc2_updated_uncorrected!CB56 -> 23 | AL87: =calc2_updated_uncorrected!CF56 -> 107.6274712 | AM87: =calc2_updated_uncorrected!CR57 -> 27.7173368 | AN87: =calc2_updated_uncorrected!DH56 -> 16.94126143 | AO87: =calc2_updated_uncorrected!DI56 -> 11.36548107 | AS87: =calc2_updated_uncorrected!DP56 -> 4.735617111
AH88: 2014-06-20 | AI88: ='Entry cases beds'!G33 -> 158 | AJ88: 2014-06-20 | AK88: =calc2_updated_uncorrected!CB57 -> 24 | AL88: =calc2_updated_uncorrected!CF57 -> 115.4889033 | AM88: =calc2_updated_uncorrected!CR58 -> 29.66011091 | AN88: =calc2_updated_uncorrected!DH57 -> 17.90450715 | AO88: =calc2_updated_uncorrected!DI57 -> 11.51649814 | AS88: =calc2_updated_uncorrected!DP57 -> 4.79854089
AH89: 2014-06-21 | AI89: ='Entry cases beds'!G34 -> 158 | AJ89: 2014-06-21 | AK89: =calc2_updated_uncorrected!CB58 -> 25 | AL89: =calc2_updated_uncorrected!CF58 -> 123.5837954 | AM89: =calc2_updated_uncorrected!CR59 -> 31.65739924 | AN89: =calc2_updated_uncorrected!DH58 -> 18.51852796 | AO89: =calc2_updated_uncorrected!DI58 -> 11.90259508 | AS89: =calc2_updated_uncorrected!DP58 -> 4.959414615
AH90: 2014-06-22 | AI90: ='Entry cases beds'!G35 -> 158 | AJ90: 2014-06-22 | AK90: =calc2_updated_uncorrected!CB59 -> 26 | AL90: =calc2_updated_uncorrected!CF59 -> 131.9058302 | AM90: =calc2_updated_uncorrected!CR60 -> 33.68130884 | AN90: =calc2_updated_uncorrected!DH59 -> 18.77790264 | AO90: =calc2_updated_uncorrected!DI59 -> 12.38640556 | AS90: =calc2_updated_uncorrected!DP59 -> 5.161002315
AH91: 2014-06-23 | AI91: ='Entry cases beds'!G36 -> 166 | AJ91: 2014-06-23 | AK91: =calc2_updated_uncorrected!CB60 -> 27 | AL91: =calc2_updated_uncorrected!CF60 -> 140.3387868 | AM91: =calc2_updated_uncorrected!CR61 -> 35.74486668 | AN91: =calc2_updated_uncorrected!DH60 -> 18.93071626 | AO91: =calc2_updated_uncorrected!DI60 -> 12.86154847 | AS91: =calc2_updated_uncorrected!DP60 -> 5.358978528
AH92: 2014-06-24 | AI92: ='Entry cases beds'!G37 -> 166 | AJ92: 2014-06-24 | AK92: =calc2_updated_uncorrected!CB61 -> 28 | AL92: =calc2_updated_uncorrected!CF61 -> 148.9369445 | AM92: =calc2_updated_uncorrected!CR62 -> 37.84420977 | AN92: =calc2_updated_uncorrected!DH61 -> 19.18208159 | AO92: =calc2_updated_uncorrected!DI61 -> 13.35702057 | AS92: =calc2_updated_uncorrected!DP61 -> 5.565425239
AH93: 2014-06-25 | AI93: ='Entry cases beds'!G38 -> 188 | AJ93: 2014-06-25 | AK93: =calc2_updated_uncorrected!CB62 -> 29 | AL93: =calc2_updated_uncorrected!CF62 -> 157.6842074 | AM93: =calc2_updated_uncorrected!CR63 -> 39.98334298 | AN93: =calc2_updated_uncorrected!DH62 -> 19.51679728 | AO93: =calc2_updated_uncorrected!DI62 -> 13.78273306 | AS93: =calc2_updated_uncorrected!DP62 -> 5.742805443
AH94: 2014-06-26 | AI94: ='Entry cases beds'!G39 -> 188 | AJ94: 2014-06-26 | AK94: =calc2_updated_uncorrected!CB63 -> 30 | AL94: =calc2_updated_uncorrected!CF63 -> 166.5972624 | AM94: =calc2_updated_uncorrected!CR64 -> 41.74629489 | AN94: =calc2_updated_uncorrected!DH63 -> 20.03057171 | AO94: =calc2_updated_uncorrected!DI63 -> 14.15274989 | AS94: =calc2_updated_uncorrected!DP63 -> 5.896979121
AH95: 2014-06-27 | AI95: ='Entry cases beds'!G40 -> 194 | AJ95: 2014-06-27 | AK95: =calc2_updated_uncorrected!CB64 -> 31 | AL95: =calc2_updated_uncorrected!CF64 -> 175.7554542 | AM95: =calc2_updated_uncorrected!CR65 -> 43.56106996 | AN95: =calc2_updated_uncorrected!DH64 -> 20.19783143 | AO95: =calc2_updated_uncorrected!DI64 -> 14.02895809 | AS95: =calc2_updated_uncorrected!DP64 -> 7.400383845
AH96: 2014-06-28 | AI96: ='Entry cases beds'!G41 -> 210 | AJ96: 2014-06-28 | AK96: =calc2_updated_uncorrected!CB65 -> 32 | AL96: =calc2_updated_uncorrected!CF65 -> 185.1828571 | AM96: =calc2_updated_uncorrected!CR66 -> 45.43033093 | AN96: =calc2_updated_uncorrected!DH65 -> 20.38055762 | AO96: =calc2_updated_uncorrected!DI65 -> 13.90095906 | AS96: =calc2_updated_uncorrected!DP65 -> 8.947745377
AH97: 2014-06-29 | AI97: ='Entry cases beds'!G42 -> 210 | AJ97: 2014-06-29 | AK97: =calc2_updated_uncorrected!CB66 -> 33 | AL97: =calc2_updated_uncorrected!CF66 -> 194.8933037 | AM97: =calc2_updated_uncorrected!CR67 -> 47.3527404 | AN97: =calc2_updated_uncorrected!DH66 -> 20.5953161 | AO97: =calc2_updated_uncorrected!DI66 -> 13.77293169 | AS97: =calc2_updated_uncorrected!DP66 -> 10.54315355
AH98: 2014-06-30 | AI98: ='Entry cases beds'!G43 -> 239 | AJ98: 2014-06-30 | AK98: =calc2_updated_uncorrected!CB67 -> 34 | AL98: =calc2_updated_uncorrected!CF67 -> 204.8798464 | AM98: =calc2_updated_uncorrected!CR68 -> 49.32503097 | AN98: =calc2_updated_uncorrected!DH67 -> 20.76891169 | AO98: =calc2_updated_uncorrected!DI67 -> 13.67143156 | AS98: =calc2_updated_uncorrected!DP67 -> 12.19649356
AH99: 2014-07-01 | AI99: ='Entry cases beds'!G44 -> 239 | AJ99: 2014-07-01 | AK99: =calc2_updated_uncorrected!CB68 -> 35 | AL99: =calc2_updated_uncorrected!CF68 -> 215.1255117 | AM99: =calc2_updated_uncorrected!CR69 -> 51.33729733 | AN99: =calc2_updated_uncorrected!DH68 -> 20.94920207 | AO99: =calc2_updated_uncorrected!DI68 -> 13.58016429 | AS99: =calc2_updated_uncorrected!DP68 -> 13.89809411
AH100: 2014-07-02 | AI100: ='Entry cases beds'!G45 -> 252 | AJ100: 2014-07-02 | AK100: =calc2_updated_uncorrected!CB69 -> 36 | AL100: =calc2_updated_uncorrected!CF69 -> 225.5788435 | AM100: =calc2_updated_uncorrected!CR70 -> 53.38278187 | AN100: =calc2_updated_uncorrected!DH69 -> 21.0626236 | AO100: =calc2_updated_uncorrected!DI69 -> 13.49308756 | AS100: =calc2_updated_uncorrected!DP69 -> 15.63670077
AH101: 2014-07-03 | AI101: ='Entry cases beds'!G46 -> 252 | AJ101: 2014-07-03 | AK101: =calc2_updated_uncorrected!CB70 -> 37 | AL101: =calc2_updated_uncorrected!CF70 -> 236.2047372 | AM101: =calc2_updated_uncorrected!CR71 -> 55.45440479 | AN101: =calc2_updated_uncorrected!DH70 -> 21.15325105 | AO101: =calc2_updated_uncorrected!DI70 -> 13.39943889 | AS101: =calc2_updated_uncorrected!DP70 -> 17.40186869
AH102: 2014-07-04 | AI102: ='Entry cases beds'!G47 -> 282 | AJ102: 2014-07-04 | AK102: =calc2_updated_uncorrected!CB71 -> 38 | AL102: =calc2_updated_uncorrected!CF71 -> 246.9664147 | AM102: =calc2_updated_uncorrected!CR72 -> 57.54674525 | AN102: =calc2_updated_uncorrected!DH71 -> 21.14639334 | AO102: =calc2_updated_uncorrected!DI71 -> 13.7081099 | AS102: =calc2_updated_uncorrected!DP71 -> 17.80274013
AH103: 2014-07-05 | AI103: ='Entry cases beds'!G48 -> 282 | AJ103: 2014-07-05 | AK103: =calc2_updated_uncorrected!CB72 -> 39 | AL103: =calc2_updated_uncorrected!CF72 -> 257.8357158 | AM103: =calc2_updated_uncorrected!CR73 -> 59.65722404 | AN103: =calc2_updated_uncorrected!DH72 -> 21.12692997 | AO103: =calc2_updated_uncorrected!DI72 -> 13.98567529 | AS103: =calc2_updated_uncorrected!DP72 -> 18.16321466
AH104: 2014-07-06 | AI104: ='Entry cases beds'!G49 -> 305 | AJ104: 2014-07-06 | AK104: =calc2_updated_uncorrected!CB73 -> 40 | AL104: =calc2_updated_uncorrected!CF73 -> 268.799242 | AM104: =calc2_updated_uncorrected!CR74 -> 61.78715131 | AN104: =calc2_updated_uncorrected!DH73 -> 21.0827967 | AO104: =calc2_updated_uncorrected!DI73 -> 14.22689311 | AS104: =calc2_updated_uncorrected!DP73 -> 18.47648456
AH105: 2014-07-07 | AI105: ='Entry cases beds'!G50 -> 305 | AJ105: 2014-07-07 | AK105: =calc2_updated_uncorrected!CB74 -> 41 | AL105: =calc2_updated_uncorrected!CF74 -> 279.8637992 | AM105: =calc2_updated_uncorrected!CR75 -> 63.94080397 | AN105: =calc2_updated_uncorrected!DH74 -> 21.01966279 | AO105: =calc2_updated_uncorrected!DI74 -> 14.43441091 | AS105: =calc2_updated_uncorrected!DP74 -> 18.74598819
AH106: 2014-07-08 | AI106: ='Entry cases beds'!G51 -> 318 | AJ106: 2014-07-08 | AK106: =calc2_updated_uncorrected!CB75 -> 42 | AL106: =calc2_updated_uncorrected!CF75 -> 291.0516052 | AM106: =calc2_updated_uncorrected!CR76 -> 66.12268921 | AN106: =calc2_updated_uncorrected!DH75 -> 20.93978331 | AO106: =calc2_updated_uncorrected!DI75 -> 14.61577301 | AS106: =calc2_updated_uncorrected!DP75 -> 18.98152338
AH107: 2014-07-09 | AI107: ='Entry cases beds'!G52 -> 318 | AJ107: 2014-07-09 | AK107: =calc2_updated_uncorrected!CB76 -> 43 | AL107: =calc2_updated_uncorrected!CF76 -> 302.386074 | AM107: =calc2_updated_uncorrected!CR77 -> 68.33582808 | AN107: =calc2_updated_uncorrected!DH76 -> 21.29119411 | AO107: =calc2_updated_uncorrected!DI76 -> 14.78539188 | AS107: =calc2_updated_uncorrected!DP76 -> 19.20180764
AH108: 2014-07-10 | AI108: ='Entry cases beds'!G53 -> 337 | AJ108: 2014-07-10 | AK108: =calc2_updated_uncorrected!CB77 -> 44 | AL108: =calc2_updated_uncorrected!CF77 -> 313.8828993 | AM108: =calc2_updated_uncorrected!CR78 -> 70.58192668 | AN108: =calc2_updated_uncorrected!DH77 -> 21.62849307 | AO108: =calc2_updated_uncorrected!DI77 -> 14.95304621 | AS108: =calc2_updated_uncorrected!DP77 -> 19.41954053
AH109: 2014-07-11 | AI109: ='Entry cases beds'!G54 -> 337 | AJ109: 2014-07-11 | AK109: =calc2_updated_uncorrected!CB78 -> 45 | AL109: =calc2_updated_uncorrected!CF78 -> 325.550944 | AM109: =calc2_updated_uncorrected!CR79 -> 72.86076955 | AN109: =calc2_updated_uncorrected!DH78 -> 21.951567 | AO109: =calc2_updated_uncorrected!DI78 -> 15.12752189 | AS109: =calc2_updated_uncorrected!DP78 -> 19.64613233
AH110: 2014-07-12 | AI110: ='Entry cases beds'!G55 -> 386 | AJ110: 2014-07-12 | AK110: =calc2_updated_uncorrected!CB79 -> 46 | AL110: =calc2_updated_uncorrected!CF79 -> 337.3890887 | AM110: =calc2_updated_uncorrected!CR80 -> 75.1715304 | AN110: =calc2_updated_uncorrected!DH79 -> 22.26092801 | AO110: =calc2_updated_uncorrected!DI79 -> 15.3140243 | AS110: =calc2_updated_uncorrected!DP79 -> 19.88834325
AH111: 2014-07-13 | AI111: ='Entry cases beds'!G56 -> 386 | AJ111: 2014-07-13 | AK111: =calc2_updated_uncorrected!CB80 -> 47 | AL111: =calc2_updated_uncorrected!CF80 -> 349.3930412 | AM111: =calc2_updated_uncorrected!CR81 -> 77.51344069 | AN111: =calc2_updated_uncorrected!DH80 -> 22.55776094 | AO111: =calc2_updated_uncorrected!DI80 -> 15.51430636 | AS111: =calc2_updated_uncorrected!DP80 -> 20.14844982
AH112: 2014-07-14 | AI112: ='Entry cases beds'!G57 -> 397 | AJ112: 2014-07-14 | AK112: =calc2_updated_uncorrected!CB81 -> 48 | AL112: =calc2_updated_uncorrected!CF81 -> 361.558809 | AM112: =calc2_updated_uncorrected!CR82 -> 79.88578888 | AN112: =calc2_updated_uncorrected!DH81 -> 22.84845974 | AO112: =calc2_updated_uncorrected!DI81 -> 15.72628938 | AS112: =calc2_updated_uncorrected!DP81 -> 20.42375245
AH113: 2014-07-15 | AI113: ='Entry cases beds'!G58 -> 397 | AJ113: 2014-07-15 | AK113: =calc2_updated_uncorrected!CB82 -> 49 | AL113: =calc2_updated_uncorrected!CF82 -> 373.8826956 | AM113: =calc2_updated_uncorrected!CR83 -> 82.28838725 | AN113: =calc2_updated_uncorrected!DH82 -> 23.13703495 | AO113: =calc2_updated_uncorrected!DI82 -> 15.9449849 | AS113: =calc2_updated_uncorrected!DP82 -> 20.7077726
AH114: 2014-07-16 | AI114: ='Entry cases beds'!G59 -> 441 | AJ114: 2014-07-16 | AK114: =calc2_updated_uncorrected!CB83 -> 50 | AL114: =calc2_updated_uncorrected!CF83 -> 386.3637261 | AM114: =calc2_updated_uncorrected!CR84 -> 84.72148585 | AN114: =calc2_updated_uncorrected!DH83 -> 23.42855649 | AO114: =calc2_updated_uncorrected!DI83 -> 16.16569804 | AS114: =calc2_updated_uncorrected!DP83 -> 20.99441303
AH115: 2014-07-17 | AI115: ='Entry cases beds'!G60 -> 442 | AJ115: 2014-07-17 | AK115: =calc2_updated_uncorrected!CB84 -> 51 | AL115: =calc2_updated_uncorrected!CF84 -> 399.0031994 | AM115: =calc2_updated_uncorrected!CR85 -> 87.18592234 | AN115: =calc2_updated_uncorrected!DH84 -> 23.72743104 | AO115: =calc2_updated_uncorrected!DI84 -> 16.38565777 | AS115: =calc2_updated_uncorrected!DP84 -> 21.28007502
AH116: 2014-07-18 | AI116: ='Entry cases beds'!G61 -> 442 | AJ116: 2014-07-18 | AK116: =calc2_updated_uncorrected!CB85 -> 52 | AL116: =calc2_updated_uncorrected!CF85 -> 411.8054669 | AM116: =calc2_updated_uncorrected!CR86 -> 89.68256092 | AN116: =calc2_updated_uncorrected!DH85 -> 24.03651501 | AO116: =calc2_updated_uncorrected!DI85 -> 16.60399565 | AS116: =calc2_updated_uncorrected!DP85 -> 21.56363072
AH117: 2014-07-19 | AI117: ='Entry cases beds'!G62 -> 442 | AJ117: 2014-07-19 | AK117: =calc2_updated_uncorrected!CB86 -> 53 | AL117: =calc2_updated_uncorrected!CF86 -> 424.7750179 | AM117: =calc2_updated_uncorrected!CR87 -> 92.21225105 | AN117: =calc2_updated_uncorrected!DH86 -> 24.3557766 | AO117: =calc2_updated_uncorrected!DI86 -> 16.82179137 | AS117: =calc2_updated_uncorrected!DP86 -> 21.8464823
AH118: 2014-07-20 | AI118: ='Entry cases beds'!G63 -> 454 | AJ118: 2014-07-20 | AK118: =calc2_updated_uncorrected!CB87 -> 54 | AL118: =calc2_updated_uncorrected!CF87 -> 437.9162654 | AM118: =calc2_updated_uncorrected!CR88 -> 94.77564853 | AN118: =calc2_updated_uncorrected!DH87 -> 24.6828155 | AO118: =calc2_updated_uncorrected!DI87 -> 17.04072064 | AS118: =calc2_updated_uncorrected!DP87 -> 22.13080603
AH119: 2014-07-21 | AI119: ='Entry cases beds'!G64 -> 454 | AJ119: 2014-07-21 | AK119: =calc2_updated_uncorrected!CB88 -> 55 | AL119: =calc2_updated_uncorrected!CF88 -> 451.2326159 | AM119: =calc2_updated_uncorrected!CR89 -> 97.37330008 | AN119: =calc2_updated_uncorrected!DH88 -> 25.01478637 | AO119: =calc2_updated_uncorrected!DI88 -> 17.26220784 | AS119: =calc2_updated_uncorrected!DP88 -> 22.41845175
AH120: 2014-07-22 | AI120: ='Entry cases beds'!G65 -> 454 | AJ120: 2014-07-22 | AK120: =calc2_updated_uncorrected!CB89 -> 56 | AL120: =calc2_updated_uncorrected!CF89 -> 464.7269097 | AM120: =calc2_updated_uncorrected!CR90 -> 100.0056089 | AN120: =calc2_updated_uncorrected!DH89 -> 25.34979752 | AO120: =calc2_updated_uncorrected!DI89 -> 17.4875112 | AS120: =calc2_updated_uncorrected!DP89 -> 22.71105351
AH121: 2014-07-23 | AI121: ='Entry cases beds'!G66 -> 525 | AJ121: 2014-07-23 | AK121: =calc2_updated_uncorrected!CB90 -> 57 | AL121: =calc2_updated_uncorrected!CF90 -> 478.4012412 | AM121: =calc2_updated_uncorrected!CR91 -> 102.6728707 | AN121: =calc2_updated_uncorrected!DH90 -> 25.68680021 | AO121: =calc2_updated_uncorrected!DI90 -> 17.71722165 | AS121: =calc2_updated_uncorrected!DP90 -> 23.00937876
AH122: 2014-07-24 | AI122: ='Entry cases beds'!G67 -> 525 | AJ122: 2014-07-24 | AK122: =calc2_updated_uncorrected!CB91 -> 58 | AL122: =calc2_updated_uncorrected!CF91 -> 492.2571466 | AM122: =calc2_updated_uncorrected!CR92 -> 105.3753985 | AN122: =calc2_updated_uncorrected!DH91 -> 26.02610946 | AO122: =calc2_updated_uncorrected!DI91 -> 17.95138484 | AS122: =calc2_updated_uncorrected!DP91 -> 23.31348681
AH123: 2014-07-25 | AI123: ='Entry cases beds'!G68 -> 525 | AJ123: 2014-07-25 | AK123: =calc2_updated_uncorrected!CB92 -> 59 | AL123: =calc2_updated_uncorrected!CF92 -> 506.296252 | AM123: =calc2_updated_uncorrected!CR93 -> 108.1135544 | AN123: =calc2_updated_uncorrected!DH92 -> 26.3685255 | AO123: =calc2_updated_uncorrected!DI92 -> 18.18947613 | AS123: =calc2_updated_uncorrected!DP92 -> 23.62269627
AH124: 2014-07-26 | AI124: ='Entry cases beds'!G69 -> 525 | AJ124: 2014-07-26 | AK124: =calc2_updated_uncorrected!CB93 -> 60 | AL124: =calc2_updated_uncorrected!CF93 -> 520.5204387 | AM124: =calc2_updated_uncorrected!CR94 -> 110.8877653 | AN124: =calc2_updated_uncorrected!DH93 -> 26.71486809 | AO124: =calc2_updated_uncorrected!DI93 -> 18.4309935 | AS124: =calc2_updated_uncorrected!DP93 -> 23.93635519
AH125: 2014-07-27 | AI125: ='Entry cases beds'!G70 -> 533 | AJ125: 2014-07-27 | AK125: =calc2_updated_uncorrected!CB94 -> 61 | AL125: =calc2_updated_uncorrected!CF94 -> 534.9319237 | AM125: =calc2_updated_uncorrected!CR95 -> 113.6985068 | AN125: =calc2_updated_uncorrected!DH94 -> 27.06600041 | AO125: =calc2_updated_uncorrected!DI94 -> 18.67551422 | AS125: =calc2_updated_uncorrected!DP94 -> 24.25391458
AH126: 2014-07-28 | AI126: ='Entry cases beds'!G71 -> 533 | AJ126: 2014-07-28 | AK126: =calc2_updated_uncorrected!CB95 -> 62 | AL126: =calc2_updated_uncorrected!CF95 -> 549.5331783 | AM126: =calc2_updated_uncorrected!CR96 -> 116.5462989 | AN126: =calc2_updated_uncorrected!DH95 -> 27.42245581 | AO126: =calc2_updated_uncorrected!DI95 -> 18.92285826 | AS126: =calc2_updated_uncorrected!DP95 -> 24.5751406
AH127: 2014-07-29 | AI127: ='Entry cases beds'!G72 -> 557 | AJ127: 2014-07-29 | AK127: =calc2_updated_uncorrected!CB96 -> 63 | AL127: =calc2_updated_uncorrected!CF96 -> 564.3269036 | AM127: =calc2_updated_uncorrected!CR97 -> 119.4316705 | AN127: =calc2_updated_uncorrected!DH96 -> 27.78447511 | AO127: =calc2_updated_uncorrected!DI96 -> 19.17299883 | AS127: =calc2_updated_uncorrected!DP96 -> 24.89999848
AH128: 2014-07-30 | AI128: ='Entry cases beds'!G73 -> 557 | AJ128: 2014-07-30 | AK128: =calc2_updated_uncorrected!CB97 -> 64 | AL128: =calc2_updated_uncorrected!CF97 -> 579.3158468 | AM128: =calc2_updated_uncorrected!CR98 -> 122.3551567 | AN128: =calc2_updated_uncorrected!DH97 -> 28.1518518 | AO128: =calc2_updated_uncorrected!DI97 -> 19.42606158 | AS128: =calc2_updated_uncorrected!DP97 -> 25.22865141
AH129: 2014-07-31 | AI129: ='Entry cases beds'!G74 -> 593 | AJ129: 2014-07-31 | AK129: =calc2_updated_uncorrected!CB98 -> 65 | AL129: =calc2_updated_uncorrected!CF98 -> 594.5027882 | AM129: =calc2_updated_uncorrected!CR99 -> 125.317286 | AN129: =calc2_updated_uncorrected!DH98 -> 28.524362 | AO129: =calc2_updated_uncorrected!DI98 -> 19.682286 | AS129: =calc2_updated_uncorrected!DP98 -> 25.56141039
AH130: 2014-08-01 | AI130: ='Entry cases beds'!G75 -> 593 | AJ130: =AJ129+1 -> 2014-08-01 | AK130: =calc2_updated_uncorrected!CB99 -> 66 | AL130: =calc2_updated_uncorrected!CF99 -> 609.8904731 | AM130: =calc2_updated_uncorrected!CR100 -> 128.3185769 | AN130: =calc2_updated_uncorrected!DH99 -> 28.90177777 | AO130: =calc2_updated_uncorrected!DI99 -> 19.94188757 | AS130: =calc2_updated_uncorrected!DP99 -> 25.89855528
AH131: 2014-08-02 | AI131: ='Entry cases beds'!G76 -> 646 | AJ131: 2014-08-02 | AK131: =calc2_updated_uncorrected!CB100 -> 67 | AL131: =calc2_updated_uncorrected!CF100 -> 625.4815943 | AM131: =calc2_updated_uncorrected!CR101 -> 131.3595404 | AN131: =calc2_updated_uncorrected!DH100 -> 29.28400192 | AO131: =calc2_updated_uncorrected!DI100 -> 20.20502245 | AS131: =calc2_updated_uncorrected!DP100 -> 26.2402889
AH132: 2014-08-03 | AI132: ='Entry cases beds'!G77 -> 646 | AJ132: 2014-08-03 | AK132: =calc2_updated_uncorrected!CB101 -> 68 | AL132: =calc2_updated_uncorrected!CF101 -> 641.2788077 | AM132: =calc2_updated_uncorrected!CR102 -> 134.440687 | AN132: =calc2_updated_uncorrected!DH101 -> 29.67100957 | AO132: =calc2_updated_uncorrected!DI101 -> 20.47177517 | AS132: =calc2_updated_uncorrected!DP101 -> 26.586721
AH133: 2014-08-04 | AI133: ='Entry cases beds'!G78 -> 691 | AJ133: 2014-08-04 | AK133: =calc2_updated_uncorrected!CB102 -> 69 | AL133: =calc2_updated_uncorrected!CF102 -> 657.2847641 | AM133: =calc2_updated_uncorrected!CR103 -> 137.5625325 | AN133: =calc2_updated_uncorrected!DH102 -> 30.06288253 | AO133: =calc2_updated_uncorrected!DI102 -> 20.74218026 | AS133: =calc2_updated_uncorrected!DP102 -> 26.93789644
AH134: 2014-08-05 | AI134: ='Entry cases beds'!G79 -> 691 | AJ134: 2014-08-05 | AK134: =calc2_updated_uncorrected!CB103 -> 70 | AL134: =calc2_updated_uncorrected!CF103 -> 673.502143 | AM134: =calc2_updated_uncorrected!CR104 -> 140.7256025 | AN134: =calc2_updated_uncorrected!DH103 -> 30.45979005 | AO134: =calc2_updated_uncorrected!DI103 -> 21.01623359 | AS134: =calc2_updated_uncorrected!DP103 -> 27.29380986
AH135: 2014-08-06 | AI135: ='Entry cases beds'!G80 -> 691 | AJ135: 2014-08-06 | AK135: =calc2_updated_uncorrected!CB104 -> 71 | AL135: =calc2_updated_uncorrected!CF104 -> 689.9336757 | AM135: =calc2_updated_uncorrected!CR105 -> 143.9304352 | AN135: =calc2_updated_uncorrected!DH104 -> 30.86189887 | AO135: =calc2_updated_uncorrected!DI104 -> 21.29393207 | AS135: =calc2_updated_uncorrected!DP104 -> 27.65445723
AH136: 2014-08-07 | AI136: ='Entry cases beds'!G81 -> 717 | AJ136: 2014-08-07 | AK136: =calc2_updated_uncorrected!CB105 -> 72 | AL136: =calc2_updated_uncorrected!CF105 -> 706.582157 | AM136: =calc2_updated_uncorrected!CR106 -> 147.1775803 | AN136: =calc2_updated_uncorrected!DH105 -> 31.26935034 | AO136: =calc2_updated_uncorrected!DI105 -> 21.5752785 | AS136: =calc2_updated_uncorrected!DP105 -> 28.0198422
AH137: 2014-08-08 | AI137: ='Entry cases beds'!G82 -> 717 | AJ137: 2014-08-08 | AK137: =calc2_updated_uncorrected!CB106 -> 73 | AL137: =calc2_updated_uncorrected!CF106 -> 723.4504431 | AM137: =calc2_updated_uncorrected!CR107 -> 150.4675982 | AN137: =calc2_updated_uncorrected!DH106 -> 31.68224791 | AO137: =calc2_updated_uncorrected!DI106 -> 21.86029422 | AS137: =calc2_updated_uncorrected!DP106 -> 28.3899925
AH138: 2014-08-09 | AI138: ='Entry cases beds'!G83 -> 717 | AJ138: 2014-08-09 | AK138: =calc2_updated_uncorrected!CB107 -> 74 | AL138: =calc2_updated_uncorrected!CF107 -> 740.5414455 | AM138: =calc2_updated_uncorrected!CR108 -> 153.8010585 | AN138: =calc2_updated_uncorrected!DH107 -> 32.10066729 | AO138: =calc2_updated_uncorrected!DI107 -> 22.14902136 | AS138: =calc2_updated_uncorrected!DP107 -> 28.7649628
AH139: 2014-08-10 | AI139: ='Entry cases beds'!G84 -> 717 | AJ139: 2014-08-10 | AK139: =calc2_updated_uncorrected!CB108 -> 75 | AL139: =calc2_updated_uncorrected!CF108 -> 757.8581224 | AM139: =calc2_updated_uncorrected!CR109 -> 157.1785381 | AN139: =calc2_updated_uncorrected!DH108 -> 32.52465765 | AO139: =calc2_updated_uncorrected!DI108 -> 22.44151809 | AS139: =calc2_updated_uncorrected!DP108 -> 29.14482868
AH140: 2014-08-11 | AI140: ='Entry cases beds'!G85 -> 759 | AJ140: 2014-08-11 | AK140: =calc2_updated_uncorrected!CB109 -> 76 | AL140: =calc2_updated_uncorrected!CF109 -> 775.4034708 | AM140: =calc2_updated_uncorrected!CR110 -> 160.6006202 | AN140: =calc2_updated_uncorrected!DH109 -> 32.95426685 | AO140: =calc2_updated_uncorrected!DI109 -> 22.73785104 | AS140: =calc2_updated_uncorrected!DP109 -> 29.52967668
AH141: 2014-08-12 | AI141: ='Entry cases beds'!G86 -> 759 | AJ141: 2014-08-12 | AK141: =calc2_updated_uncorrected!CB110 -> 77 | AL141: =calc2_updated_uncorrected!CF110 -> 793.1805206 | AM141: =calc2_updated_uncorrected!CR111 -> 164.067894 | AN141: =calc2_updated_uncorrected!DH110 -> 33.3895419 | AO141: =calc2_updated_uncorrected!DI110 -> 23.03808768 | AS141: =calc2_updated_uncorrected!DP110 -> 29.91959439
AH142: 2014-08-13 | AI142: ='Entry cases beds'!G87 -> 812 | AJ142: 2014-08-13 | AK142: =calc2_updated_uncorrected!CB111 -> 78 | AL142: =calc2_updated_uncorrected!CF111 -> 811.1923328 | AM142: =calc2_updated_uncorrected!CR112 -> 167.5809551 | AN142: =calc2_updated_uncorrected!DH111 -> 33.83053878 | AO142: =calc2_updated_uncorrected!DI111 -> 23.34229148 | AS142: =calc2_updated_uncorrected!DP111 -> 30.31466425
AH143: 2014-08-14 | AI143: ='Entry cases beds'!G88 -> 810 | AJ143: 2014-08-14 | AK143: =calc2_updated_uncorrected!CB112 -> 79 | AL143: =calc2_updated_uncorrected!CF112 -> 829.4420008 | AM143: =calc2_updated_uncorrected!CR113 -> 171.1404058 | AN143: =calc2_updated_uncorrected!DH112 -> 34.27732538 | AO143: =calc2_updated_uncorrected!DI112 -> 23.65051993 | AS143: =calc2_updated_uncorrected!DP112 -> 30.71496094
AH144: 2014-08-15 | AI144: ='Entry cases beds'!G89 -> 810 | AJ144: 2014-08-15 | AK144: =calc2_updated_uncorrected!CB113 -> 80 | AL144: =calc2_updated_uncorrected!CF113 -> 847.9326539 | AM144: =calc2_updated_uncorrected!CR114 -> 174.7468562 | AN144: =calc2_updated_uncorrected!DH113 -> 34.72998007 | AO144: =calc2_updated_uncorrected!DI113 -> 23.96282559 | AS144: =calc2_updated_uncorrected!DP113 -> 31.12055271
AH145: 2014-08-16 | AI145: ='Entry cases beds'!G90 -> 849 | AJ145: 2014-08-16 | AK145: =calc2_updated_uncorrected!CB114 -> 81 | AL145: =calc2_updated_uncorrected!CF114 -> 866.6674608 | AM145: =calc2_updated_uncorrected!CR115 -> 178.4009243 | AN145: =calc2_updated_uncorrected!DH114 -> 35.18858791 | AO145: =calc2_updated_uncorrected!DI114 -> 24.27925795 | AS145: =calc2_updated_uncorrected!DP114 -> 31.53150384
AH146: 2014-08-17 | AI146: ='Entry cases beds'!G91 -> 848 | AJ146: 2014-08-17 | AK146: =calc2_updated_uncorrected!CB115 -> 82 | AL146: =calc2_updated_uncorrected!CF115 -> 885.6496327 | AM146: =calc2_updated_uncorrected!CR116 -> 182.1032368 | AN146: =calc2_updated_uncorrected!DH115 -> 35.65323632 | AO146: =calc2_updated_uncorrected!DI115 -> 24.59986573 | AS146: =calc2_updated_uncorrected!DP115 -> 31.94787757
AH147: 2014-08-18 | AI147: ='Entry cases beds'!G92 -> 848 | AJ147: 2014-08-18 | AK147: =calc2_updated_uncorrected!CB116 -> 83 | AL147: =calc2_updated_uncorrected!CF116 -> 904.8824253 | AM147: =calc2_updated_uncorrected!CR117 -> 185.8544294 | AN147: =calc2_updated_uncorrected!DH116 -> 36.1240121 | AO147: =calc2_updated_uncorrected!DI116 -> 24.92469874 | AS147: =calc2_updated_uncorrected!DP116 -> 32.36973862
AH148: 2014-08-19 | AI148: ='Entry cases beds'!G93 -> 848 | AJ148: 2014-08-19 | AK148: =calc2_updated_uncorrected!CB117 -> 84 | AL148: =calc2_updated_uncorrected!CF117 -> 924.36914 | AM148: =calc2_updated_uncorrected!CR118 -> 189.6551463 | AN148: =calc2_updated_uncorrected!DH117 -> 36.60099978 | AO148: =calc2_updated_uncorrected!DI117 -> 25.25380924 | AS148: =calc2_updated_uncorrected!DP117 -> 32.79715485
AH149: 2014-08-20 | AI149: ='Entry cases beds'!G94 -> 910 | AJ149: 2014-08-20 | AK149: =calc2_updated_uncorrected!CB118 -> 85 | AL149: =calc2_updated_uncorrected!CF118 -> 944.113124 | AM149: =calc2_updated_uncorrected!CR119 -> 193.5060406 | AN149: =calc2_updated_uncorrected!DH118 -> 37.08428192 | AO149: =calc2_updated_uncorrected!DI118 -> 25.58725231 | AS149: =calc2_updated_uncorrected!DP118 -> 33.2301978
AH150: 2014-08-21 | AI150: ='Entry cases beds'!G95 -> 913 | AJ150: 2014-08-21 | AK150: =calc2_updated_uncorrected!CB119 -> 86 | AL150: =calc2_updated_uncorrected!CF119 -> 964.1177693 | AM150: =calc2_updated_uncorrected!CR120 -> 197.4077738 | AN150: =calc2_updated_uncorrected!DH119 -> 37.57393978 | AO150: =calc2_updated_uncorrected!DI119 -> 25.92508545 | AS150: =calc2_updated_uncorrected!DP119 -> 33.66894214
AH151: 2014-08-22 | AI151: ='Entry cases beds'!G96 -> 913 | AJ151: 2014-08-22 | AK151: =calc2_updated_uncorrected!CB120 -> 87 | AL151: =calc2_updated_uncorrected!CF120 -> 984.3865132 | AM151: =calc2_updated_uncorrected!CR121 -> 201.3610161 | AN151: =calc2_updated_uncorrected!DH120 -> 38.07005449 | AO151: =calc2_updated_uncorrected!DI120 -> 26.2673679 | AS151: =calc2_updated_uncorrected!DP120 -> 34.11346481
AH152: 2014-08-23 | AI152: ='Entry cases beds'!G97 -> 913 | AJ152: 2014-08-23 | AK152: =calc2_updated_uncorrected!CB121 -> 88 | AL152: =calc2_updated_uncorrected!CF121 -> 1004.922837 | AM152: =calc2_updated_uncorrected!CR122 -> 205.3664464 | AN152: =calc2_updated_uncorrected!DH121 -> 38.57270804 | AO152: =calc2_updated_uncorrected!DI121 -> 26.61415991 | AS152: =calc2_updated_uncorrected!DP121 -> 34.56384404
AH153: 2014-08-24 | AI153: ='Entry cases beds'!G98 -> 1025 | AJ153: 2014-08-24 | AK153: =calc2_updated_uncorrected!CB122 -> 89 | AL153: =calc2_updated_uncorrected!CF122 -> 1025.730267 | AM153: =calc2_updated_uncorrected!CR123 -> 209.4247522 | AN153: =calc2_updated_uncorrected!DH122 -> 39.0819842 | AO153: =calc2_updated_uncorrected!DI122 -> 26.96552212 | AS153: =calc2_updated_uncorrected!DP122 -> 35.0201586
AH154: 2014-08-25 | AI154: ='Entry cases beds'!G99 -> 1025 | AJ154: 2014-08-25 | AK154: =calc2_updated_uncorrected!CB123 -> 90 | AL154: =calc2_updated_uncorrected!CF123 -> 1046.812375 | AM154: =calc2_updated_uncorrected!CR124 -> 213.5366299 | AN154: =calc2_updated_uncorrected!DH123 -> 39.59796889 | AO154: =calc2_updated_uncorrected!DI123 -> 27.32151533 | AS154: =calc2_updated_uncorrected!DP123 -> 35.48248745
AH155: 2014-08-26 | AI155: ='Entry cases beds'!G100 -> 1057 | AJ155: 2014-08-26 | AK155: =calc2_updated_uncorrected!CB124 -> 91 | AL155: =calc2_updated_uncorrected!CF124 -> 1068.172779 | AM155: =calc2_updated_uncorrected!CR125 -> 217.702785 | AN155: =calc2_updated_uncorrected!DH124 -> 40.12075015 | AO155: =calc2_updated_uncorrected!DI124 -> 27.68220046 | AS155: =calc2_updated_uncorrected!DP124 -> 35.95090969
AH156: 2014-08-27 | AI156: ='Entry cases beds'!G101 -> 1057 | AJ156: 2014-08-27 | AK156: =calc2_updated_uncorrected!CB125 -> 92 | AL156: =calc2_updated_uncorrected!CF125 -> 1089.815143 | AM156: =calc2_updated_uncorrected!CR126 -> 221.9239324 | AN156: =calc2_updated_uncorrected!DH125 -> 40.65041781 | AO156: =calc2_updated_uncorrected!DI125 -> 28.04763869 | AS156: =calc2_updated_uncorrected!DP125 -> 36.4255048
AH157: 2014-08-28 | AI157: ='Entry cases beds'!G102 -> 1117 | AJ157: 2014-08-28 | AK157: =calc2_updated_uncorrected!CB126 -> 93 | AL157: =calc2_updated_uncorrected!CF126 -> 1111.743181 | AM157: =calc2_updated_uncorrected!CR127 -> 226.2007961 | AN157: =calc2_updated_uncorrected!DH126 -> 41.18706314 | AO157: =calc2_updated_uncorrected!DI126 -> 28.4178918 | AS157: =calc2_updated_uncorrected!DP126 -> 36.90635299
AH158: 2014-08-29 | AJ158: 2014-08-29 | AK158: =calc2_updated_uncorrected!CB127 -> 94 | AL158: =calc2_updated_uncorrected!CF127 -> 1133.960655 | AM158: =calc2_updated_uncorrected!CR128 -> 230.53411 | AN158: =calc2_updated_uncorrected!DH127 -> 41.73077857 | AO158: =calc2_updated_uncorrected!DI127 -> 28.79302235 | AS158: =calc2_updated_uncorrected!DP127 -> 37.39353552
AH159: 2014-08-30 | AJ159: 2014-08-30 | AK159: =calc2_updated_uncorrected!CB128 -> 95 | AL159: =calc2_updated_uncorrected!CF128 -> 1156.471377 | AM159: =calc2_updated_uncorrected!CR129 -> 234.9246175 | AN159: =calc2_updated_uncorrected!DH128 -> 42.28165741 | AO159: =calc2_updated_uncorrected!DI128 -> 29.17309391 | AS159: =calc2_updated_uncorrected!DP128 -> 37.88713495
AH160: 2014-08-31 | AJ160: 2014-08-31 | AK160: =calc2_updated_uncorrected!CB129 -> 96 | AL160: =calc2_updated_uncorrected!CF129 -> 1179.279208 | AM160: =calc2_updated_uncorrected!CR130 -> 239.3730718 | AN160: =calc2_updated_uncorrected!DH129 -> 42.83979387 | AO160: =calc2_updated_uncorrected!DI129 -> 29.5581711 | AS160: =calc2_updated_uncorrected!DP129 -> 38.38723519
AH161: 2014-09-01 | AJ161: 2014-09-01 | AK161: =calc2_updated_uncorrected!CB130 -> 97 | AL161: =calc2_updated_uncorrected!CF130 -> 1202.388061 | AM161: =calc2_updated_uncorrected!CR131 -> 243.8802359 | AN161: =calc2_updated_uncorrected!DH130 -> 43.40528307 | AO161: =calc2_updated_uncorrected!DI130 -> 29.94831959 | AQ161: =calc2_updated_uncorrected!DN130 -> 134.2152825 | AR161: =calc2_updated_uncorrected!CI130 -> 3.466328011 | AS161: =calc2_updated_uncorrected!DP130 -> 38.89392154
AH162: 2014-09-02 | AJ162: 2014-09-02 | AK162: =calc2_updated_uncorrected!CB131 -> 98 | AL162: =calc2_updated_uncorrected!CF131 -> 1225.801901 | AM162: =calc2_updated_uncorrected!CR132 -> 248.4468831 | AN162: =calc2_updated_uncorrected!DH131 -> 43.97822117 | AO162: =calc2_updated_uncorrected!DI131 -> 30.34360605 | AQ162: =calc2_updated_uncorrected!DN131 -> 135.986758 | AR162: =calc2_updated_uncorrected!CI131 -> 3.512075981 | AS162: =calc2_updated_uncorrected!DP131 -> 39.40728059
AH163: 2014-09-03 | AJ163: 2014-09-03 | AK163: =calc2_updated_uncorrected!CB132 -> 99 | AL163: =calc2_updated_uncorrected!CF132 -> 1249.524744 | AM163: =calc2_updated_uncorrected!CR133 -> 253.0737964 | AN163: =calc2_updated_uncorrected!DH132 -> 44.55870556 | AO163: =calc2_updated_uncorrected!DI132 -> 30.74409807 | AQ163: =calc2_updated_uncorrected!DN132 -> 137.7815622 | AR163: =calc2_updated_uncorrected!CI132 -> 3.558426357 | AS163: =calc2_updated_uncorrected!DP132 -> 39.92740009
AH164: 2014-09-04 | AJ164: 2014-09-04 | AK164: =calc2_updated_uncorrected!CB133 -> 100 | AL164: =calc2_updated_uncorrected!CF133 -> 1273.560657 | AM164: =calc2_updated_uncorrected!CR134 -> 257.7617694 | AN164: =calc2_updated_uncorrected!DH133 -> 45.14683491 | AO164: =calc2_updated_uncorrected!DI133 -> 31.14986406 | AQ164: =calc2_updated_uncorrected!DN133 -> 139.6000017 | AR164: =calc2_updated_uncorrected!CI133 -> 3.605387015 | AS164: =calc2_updated_uncorrected!DP133 -> 40.45436891
AH165: 2014-09-05 | AJ165: 2014-09-05 | AK165: =calc2_updated_uncorrected!CB134 -> 101 | AL165: =calc2_updated_uncorrected!CF134 -> 1297.913763 | AM165: =calc2_updated_uncorrected!CR135 -> 263.0775558 | AN165: =calc2_updated_uncorrected!DH134 -> 45.74270932 | AO165: =calc2_updated_uncorrected!DI134 -> 31.56097327 | AQ165: =calc2_updated_uncorrected!DN134 -> 141.4423864 | AR165: =calc2_updated_uncorrected!CI134 -> 3.652965936 | AS165: =calc2_updated_uncorrected!DP134 -> 40.98827698
AH166: 2014-09-06 | AI166: ='Entry cases beds'!G111 -> 1424 | AJ166: 2014-09-06 | AK166: =calc2_updated_uncorrected!CB135 -> 102 | AL166: =calc2_updated_uncorrected!CF135 -> 1325.528238 | AM166: =calc2_updated_uncorrected!CR136 -> 270.3733195 | AN166: =calc2_updated_uncorrected!DH135 -> 46.91238029 | AO166: =calc2_updated_uncorrected!DI135 -> 32.54344576 | AQ166: =calc2_updated_uncorrected!DN135 -> 146.24903 | AR166: =calc2_updated_uncorrected!CI135 -> 4.142171207 | AS166: =calc2_updated_uncorrected!DP135 -> 42.26421528
AH167: 2014-09-07 | AJ167: 2014-09-07 | AK167: =calc2_updated_uncorrected!CB136 -> 103 | AL167: =calc2_updated_uncorrected!CF136 -> 1363.428309 | AM167: =calc2_updated_uncorrected!CR137 -> 279.6672087 | AN167: =calc2_updated_uncorrected!DH136 -> 50.0073003 | AO167: =calc2_updated_uncorrected!DI136 -> 35.44870201 | AQ167: =calc2_updated_uncorrected!DN136 -> 161.0402479 | AR167: =calc2_updated_uncorrected!CI136 -> 5.685010696 | AS167: =calc2_updated_uncorrected!DP136 -> 46.03727534
AH168: 2014-09-08 | AJ168: 2014-09-08 | AK168: =calc2_updated_uncorrected!CB137 -> 104 | AL168: =calc2_updated_uncorrected!CF137 -> 1411.708253 | AM168: =calc2_updated_uncorrected!CR138 -> 289.2469934 | AN168: =calc2_updated_uncorrected!DH137 -> 55.04489678 | AO168: =calc2_updated_uncorrected!DI137 -> 40.29413694 | AQ168: =calc2_updated_uncorrected!DN137 -> 185.906352 | AR168: =calc2_updated_uncorrected!CI137 -> 7.241991589 | AS168: =calc2_updated_uncorrected!DP137 -> 52.33004797
AH169: 2014-09-09 | AJ169: 2014-09-09 | AK169: =calc2_updated_uncorrected!CB138 -> 105 | AL169: =calc2_updated_uncorrected!CF138 -> 1461.473369 | AM169: =calc2_updated_uncorrected!CR139 -> 298.3272181 | AN169: =calc2_updated_uncorrected!DH138 -> 60.3122096 | AO169: =calc2_updated_uncorrected!DI138 -> 45.36675748 | AQ169: =calc2_updated_uncorrected!DN138 -> 211.9486251 | AR169: =calc2_updated_uncorrected!CI138 -> 7.464767316 | AS169: =calc2_updated_uncorrected!DP138 -> 58.91786686
AH170: 2014-09-10 | AJ170: 2014-09-10 | AK170: =calc2_updated_uncorrected!CB139 -> 106 | AL170: =calc2_updated_uncorrected!CF139 -> 1508.643367 | AM170: =calc2_updated_uncorrected!CR140 -> 307.0158274 | AN170: =calc2_updated_uncorrected!DH139 -> 64.93484346 | AO170: =calc2_updated_uncorrected!DI139 -> 49.88033506 | AQ170: =calc2_updated_uncorrected!DN139 -> 235.0827103 | AR170: =calc2_updated_uncorrected!CI139 -> 7.075499794 | AS170: =calc2_updated_uncorrected!DP139 -> 64.77965592
AH171: 2014-09-11 | AJ171: 2014-09-11 | AK171: =calc2_updated_uncorrected!CB140 -> 107 | AL171: =calc2_updated_uncorrected!CF140 -> 1553.779 | AM171: =calc2_updated_uncorrected!CR141 -> 314.9054026 | AN171: =calc2_updated_uncorrected!DH140 -> 68.80939348 | AO171: =calc2_updated_uncorrected!DI140 -> 53.94203102 | AQ171: =calc2_updated_uncorrected!DN140 -> 255.8652367 | AR171: =calc2_updated_uncorrected!CI140 -> 6.770344909 | AS171: =calc2_updated_uncorrected!DP140 -> 70.05458575
AH172: 2014-09-12 | AJ172: 2014-09-12 | AK172: =calc2_updated_uncorrected!CB141 -> 108 | AL172: =calc2_updated_uncorrected!CF141 -> 1594.763806 | AM172: =calc2_updated_uncorrected!CR142 -> 322.5616139 | AN172: =calc2_updated_uncorrected!DH141 -> 71.52498182 | AO172: =calc2_updated_uncorrected!DI141 -> 57.14363322 | AQ172: =calc2_updated_uncorrected!DN141 -> 269.235568 | AR172: =calc2_updated_uncorrected!CI141 -> 6.147720891 | AS172: =calc2_updated_uncorrected!DP141 -> 74.21251067
AH173: 2014-09-13 | AI173: ='Entry cases beds'!G118 -> 1603 | AJ173: 2014-09-13 | AK173: =calc2_updated_uncorrected!CB142 -> 109 | AL173: =calc2_updated_uncorrected!CF142 -> 1634.536332 | AM173: =calc2_updated_uncorrected!CR143 -> 330.3643121 | AN173: =calc2_updated_uncorrected!DH142 -> 73.87673067 | AO173: =calc2_updated_uncorrected!DI142 -> 59.4840581 | AQ173: =calc2_updated_uncorrected!DN142 -> 271.1080227 | AR173: =calc2_updated_uncorrected!CI142 -> 5.965878906 | AS173: =calc2_updated_uncorrected!DP142 -> 77.2520235
AH174: 2014-09-14 | AJ174: 2014-09-14 | AK174: =calc2_updated_uncorrected!CB143 -> 110 | AL174: =calc2_updated_uncorrected!CF143 -> 1675.069829 | AM174: =calc2_updated_uncorrected!CR144 -> 338.2068298 | AN174: =calc2_updated_uncorrected!DH143 -> 76.27850206 | AO174: =calc2_updated_uncorrected!DI143 -> 59.99099259 | AQ174: =calc2_updated_uncorrected!DN143 -> 263.361576 | AR174: =calc2_updated_uncorrected!CI143 -> 6.080024585 | AS174: =calc2_updated_uncorrected!DP143 -> 77.91037998
AH175: 2014-09-15 | AI175: ='Entry cases beds'!G120 -> 1603 | AJ175: 2014-09-15 | AK175: =calc2_updated_uncorrected!CB144 -> 111 | AL175: =calc2_updated_uncorrected!CF144 -> 1715.810181 | AM175: =calc2_updated_uncorrected!CR145 -> 346.3998809 | AN175: =calc2_updated_uncorrected!DH144 -> 78.60502513 | AO175: =calc2_updated_uncorrected!DI144 -> 58.53962109 | AQ175: =calc2_updated_uncorrected!DN144 -> 254.3368123 | AR175: =calc2_updated_uncorrected!CI144 -> 6.111052759 | AS175: =calc2_updated_uncorrected!DP144 -> 76.02548193
AH176: 2014-09-16 | AI176: ='Entry cases beds'!G121 -> 1603 | AJ176: 2014-09-16 | AK176: =calc2_updated_uncorrected!CB145 -> 112 | AL176: =calc2_updated_uncorrected!CF145 -> 1758.371485 | AM176: =calc2_updated_uncorrected!CR146 -> 354.8789747 | AN176: =calc2_updated_uncorrected!DH145 -> 81.34108108 | AO176: =calc2_updated_uncorrected!DI145 -> 57.15288745 | AQ176: =calc2_updated_uncorrected!DN145 -> 249.728118 | AR176: =calc2_updated_uncorrected!CI145 -> 6.38419565 | AS176: =calc2_updated_uncorrected!DP145 -> 74.22452916
AH177: 2014-09-17 | AI177: ='Entry cases beds'!G122 -> 1735 | AJ177: 2014-09-17 | AK177: =calc2_updated_uncorrected!CB146 -> 113 | AL177: =calc2_updated_uncorrected!CF146 -> 1802.418726 | AM177: =calc2_updated_uncorrected!CR147 -> 363.7553035 | AN177: =calc2_updated_uncorrected!DH146 -> 84.38440819 | AO177: =calc2_updated_uncorrected!DI146 -> 56.55175653 | AQ177: =calc2_updated_uncorrected!DN146 -> 248.6397259 | AR177: =calc2_updated_uncorrected!CI146 -> 6.607086092 | AS177: =calc2_updated_uncorrected!DP146 -> 73.44383965
AH178: 2014-09-18 | AI178: ='Entry cases beds'!G123 -> 1753 | AJ178: 2014-09-18 | AK178: =calc2_updated_uncorrected!CB147 -> 114 | AL178: =calc2_updated_uncorrected!CF147 -> 1848.529525 | AM178: =calc2_updated_uncorrected!CR148 -> 372.7586491 | AN178: =calc2_updated_uncorrected!DH147 -> 87.33836552 | AO178: =calc2_updated_uncorrected!DI147 -> 56.73947609 | AQ178: =calc2_updated_uncorrected!DN147 -> 253.7657192 | AR178: =calc2_updated_uncorrected!CI147 -> 6.916619891 | AS178: =calc2_updated_uncorrected!DP147 -> 73.68763129
AH179: 2014-09-19 | AI179: ='Entry cases beds'!G124 -> 1791 | AJ179: 2014-09-19 | AK179: =calc2_updated_uncorrected!CB148 -> 115 | AL179: =calc2_updated_uncorrected!CF148 -> 1895.300151 | AM179: =calc2_updated_uncorrected!CR149 -> 381.893203 | AN179: =calc2_updated_uncorrected!DH148 -> 88.92217974 | AO179: =calc2_updated_uncorrected!DI148 -> 57.85324649 | AQ179: =calc2_updated_uncorrected!DN148 -> 260.7638194 | AR179: =calc2_updated_uncorrected!CI148 -> 7.015593928 | AS179: =calc2_updated_uncorrected!DP148 -> 75.13408635
AH180: 2014-09-20 | AI180: ='Entry cases beds'!G125 -> 1813 | AJ180: 2014-09-20 | AK180: =calc2_updated_uncorrected!CB149 -> 116 | AL180: =calc2_updated_uncorrected!CF149 -> 1942.75238 | AM180: =calc2_updated_uncorrected!CR150 -> 391.0507466 | AN180: =calc2_updated_uncorrected!DH149 -> 89.04074639 | AO180: =calc2_updated_uncorrected!DI149 -> 59.33158917 | AQ180: =calc2_updated_uncorrected!DN149 -> 267.6825504 | AR180: =calc2_updated_uncorrected!CI149 -> 7.117834241 | AS180: =calc2_updated_uncorrected!DP149 -> 77.05401191
AH181: 2014-09-21 | AI181: ='Entry cases beds'!G126 -> 1876 | AJ181: 2014-09-21 | AK181: =calc2_updated_uncorrected!CB150 -> 117 | AL181: =calc2_updated_uncorrected!CF150 -> 1990.324035 | AM181: =calc2_updated_uncorrected!CR151 -> 400.2853748 | AN181: =calc2_updated_uncorrected!DH150 -> 88.90543675 | AO181: =calc2_updated_uncorrected!DI150 -> 60.68643457 | AQ181: =calc2_updated_uncorrected!DN150 -> 274.5138538 | AR181: =calc2_updated_uncorrected!CI150 -> 7.135748272 | AS181: =calc2_updated_uncorrected!DP150 -> 78.81355139
AH182: 2014-09-22 | AI182: ='Entry cases beds'!G127 -> 1940 | AJ182: 2014-09-22 | AK182: =calc2_updated_uncorrected!CB151 -> 118 | AL182: =calc2_updated_uncorrected!CF151 -> 2038.296129 | AM182: =calc2_updated_uncorrected!CR152 -> 409.572315 | AN182: =calc2_updated_uncorrected!DH151 -> 89.17198673 | AO182: =calc2_updated_uncorrected!DI151 -> 62.07854501 | AQ182: =calc2_updated_uncorrected!DN151 -> 279.9246438 | AR182: =calc2_updated_uncorrected!CI151 -> 7.195814139 | AS182: =calc2_updated_uncorrected!DP151 -> 80.62148702
AH183: 2014-09-23 | AI183: ='Entry cases beds'!G128 -> 1967 | AJ183: 2014-09-23 | AK183: =calc2_updated_uncorrected!CB152 -> 119 | AL183: =calc2_updated_uncorrected!CF152 -> 2086.539974 | AM183: =calc2_updated_uncorrected!CR153 -> 418.9168394 | AN183: =calc2_updated_uncorrected!DH152 -> 89.75344695 | AO183: =calc2_updated_uncorrected!DI152 -> 63.17243414 | AQ183: =calc2_updated_uncorrected!DN152 -> 284.1212484 | AR183: =calc2_updated_uncorrected!CI152 -> 7.236576793 | AS183: =calc2_updated_uncorrected!DP152 -> 82.04212226
AH184: 2014-09-24 | AI184: ='Entry cases beds'!G129 -> 2021 | AJ184: 2014-09-24 | AK184: =calc2_updated_uncorrected!CB153 -> 120 | AL184: =calc2_updated_uncorrected!CF153 -> 2135.082958 | AM184: =calc2_updated_uncorrected!CR154 -> 430.7335014 | AN184: =calc2_updated_uncorrected!DH153 -> 90.97609307 | AO184: =calc2_updated_uncorrected!DI153 -> 64.03786469 | AQ184: =calc2_updated_uncorrected!DN153 -> 286.5534329 | AR184: =calc2_updated_uncorrected!CI153 -> 7.281447559 | AS184: =calc2_updated_uncorrected!DP153 -> 83.16605804
AH185: 2014-09-25 | AI185: ='Entry cases beds'!G130 -> 2092 | AJ185: 2014-09-25 | AK185: =calc2_updated_uncorrected!CB154 -> 121 | AL185: =calc2_updated_uncorrected!CF154 -> 2184.31905 | AM185: =calc2_updated_uncorrected!CR155 -> 442.7332862 | AN185: =calc2_updated_uncorrected!DH154 -> 94.82334159 | AO185: =calc2_updated_uncorrected!DI154 -> 66.9781979 | AQ185: =calc2_updated_uncorrected!DN154 -> 289.0188987 | AR185: =calc2_updated_uncorrected!CI154 -> 9.847218393 | AS185: =calc2_updated_uncorrected!DP154 -> 76.56196742
AH186: 2014-09-26 | AI186: ='Entry cases beds'!G131 -> 2120 | AJ186: 2014-09-26 | AK186: =calc2_updated_uncorrected!CB155 -> 122 | AL186: =calc2_updated_uncorrected!CF155 -> 2234.318153 | AM186: =calc2_updated_uncorrected!CR156 -> 454.9241395 | AN186: =calc2_updated_uncorrected!DH155 -> 98.71930613 | AO186: =calc2_updated_uncorrected!DI155 -> 69.97463714 | AQ186: =calc2_updated_uncorrected!DN155 -> 291.5657736 | AR186: =calc2_updated_uncorrected!CI155 -> 9.99982065 | AS186: =calc2_updated_uncorrected!DP155 -> 69.8692212
AH187: 2014-09-27 | AI187: ='Entry cases beds'!G132 -> 2149 | AJ187: 2014-09-27 | AK187: =calc2_updated_uncorrected!CB156 -> 123 | AL187: =calc2_updated_uncorrected!CF156 -> 2285.113375 | AM187: =calc2_updated_uncorrected!CR157 -> 467.3033028 | AN187: =calc2_updated_uncorrected!DH156 -> 102.7586384 | AO187: =calc2_updated_uncorrected!DI156 -> 73.03093649 | AQ187: =calc2_updated_uncorrected!DN156 -> 294.7893405 | AR187: =calc2_updated_uncorrected!CI156 -> 10.15904441 | AS187: =calc2_updated_uncorrected!DP156 -> 63.08568633
AH188: 2014-09-28 | AI188: ='Entry cases beds'!G133 -> 2208 | AJ188: 2014-09-28 | AK188: =calc2_updated_uncorrected!CB157 -> 124 | AL188: =calc2_updated_uncorrected!CF157 -> 2336.693222 | AM188: =calc2_updated_uncorrected!CR158 -> 479.9009575 | AN188: =calc2_updated_uncorrected!DH157 -> 106.7026709 | AO188: =calc2_updated_uncorrected!DI157 -> 76.25255614 | AQ188: =calc2_updated_uncorrected!DN157 -> 298.3970932 | AR188: =calc2_updated_uncorrected!CI157 -> 10.31596939 | AS188: =calc2_updated_uncorrected!DP157 -> 56.35075724
AH189: 2014-09-29 | AI189: ='Entry cases beds'!G134 -> 2317 | AJ189: 2014-09-29 | AK189: =calc2_updated_uncorrected!CB158 -> 125 | AL189: =calc2_updated_uncorrected!CF158 -> 2389.18345 | AM189: =calc2_updated_uncorrected!CR159 -> 492.7445581 | AN189: =calc2_updated_uncorrected!DH158 -> 110.3703251 | AO189: =calc2_updated_uncorrected!DI158 -> 79.61558276 | AQ189: =calc2_updated_uncorrected!DN158 -> 302.6434761 | AR189: =calc2_updated_uncorrected!CI158 -> 10.49804564 | AS189: =calc2_updated_uncorrected!DP158 -> 49.60675649
AH190: 2014-09-30 | AI190: ='Entry cases beds'!G135 -> 2317 | AJ190: 2014-09-30 | AK190: =calc2_updated_uncorrected!CB159 -> 126 | AL190: =calc2_updated_uncorrected!CF159 -> 2442.698453 | AM190: =calc2_updated_uncorrected!CR160 -> 505.8900389 | AN190: =calc2_updated_uncorrected!DH159 -> 113.9442891 | AO190: =calc2_updated_uncorrected!DI159 -> 83.17224309 | AQ190: =calc2_updated_uncorrected!DN159 -> 307.6154947 | AR190: =calc2_updated_uncorrected!CI159 -> 10.70300045 | AS190: =calc2_updated_uncorrected!DP159 -> 42.8972954
AH191: 2014-10-01 | AI191: ='Entry cases beds'!G136 -> 2437 | AJ191: 2014-10-01 | AK191: =calc2_updated_uncorrected!CB160 -> 127 | AL191: =calc2_updated_uncorrected!CF160 -> 2497.471289 | AM191: =calc2_updated_uncorrected!CR161 -> 519.3778514 | AN191: =calc2_updated_uncorrected!DH160 -> 117.689556 | AO191: =calc2_updated_uncorrected!DI160 -> 86.97319956 | AQ191: =calc2_updated_uncorrected!DN160 -> 313.1522395 | AR191: =calc2_updated_uncorrected!CI160 -> 10.95456737 | AS191: =calc2_updated_uncorrected!DP160 -> 36.23883315
AH192: 2014-10-02 | AI192: ='Entry cases beds'!G137 -> 2480 | AJ192: 2014-10-02 | AK192: =calc2_updated_uncorrected!CB161 -> 128 | AL192: =calc2_updated_uncorrected!CF161 -> 2553.670508 | AM192: =calc2_updated_uncorrected!CR162 -> 533.2499396 | AN192: =calc2_updated_uncorrected!DH161 -> 122.0080591 | AO192: =calc2_updated_uncorrected!DI161 -> 88.64434996 | AQ192: =calc2_updated_uncorrected!DN161 -> 319.3523549 | AR192: =calc2_updated_uncorrected!CI161 -> 11.23984373 | AS192: =calc2_updated_uncorrected!DP161 -> 36.93514582
AH193: 2014-10-03 | AI193: ='Entry cases beds'!G138 -> 2480 | AJ193: 2014-10-03 | AK193: =calc2_updated_uncorrected!CB162 -> 129 | AL193: =calc2_updated_uncorrected!CF162 -> 2611.470876 | AM193: =calc2_updated_uncorrected!CR163 -> 547.5373382 | AN193: =calc2_updated_uncorrected!DH162 -> 126.6572455 | AO193: =calc2_updated_uncorrected!DI162 -> 90.51665339 | AQ193: =calc2_updated_uncorrected!DN162 -> 326.3575004 | AR193: =calc2_updated_uncorrected!CI162 -> 11.56007351 | AS193: =calc2_updated_uncorrected!DP162 -> 37.71527225
AH194: 2014-10-04 | AI194: ='Entry cases beds'!G139 -> 2480 | AJ194: =AJ193+1 -> 2014-10-04 | AK194: =calc2_updated_uncorrected!CB163 -> 130 | AL194: =calc2_updated_uncorrected!CF163 -> 2671.001703 | AM194: =calc2_updated_uncorrected!CR164 -> 562.2499937 | AN194: =calc2_updated_uncorrected!DH163 -> 131.6218288 | AO194: =calc2_updated_uncorrected!DI163 -> 92.61319866 | AQ194: =calc2_updated_uncorrected!DN163 -> 334.3084808 | AR194: =calc2_updated_uncorrected!CI163 -> 11.90616547 | AS194: =calc2_updated_uncorrected!DP163 -> 38.58883278
AH195: 2014-10-05 | AI195: ='Entry cases beds'!G140 -> 2727 | AJ195: 2014-10-05 | AK195: =calc2_updated_uncorrected!CB164 -> 131 | AL195: =calc2_updated_uncorrected!CF164 -> 2732.304434 | AM195: =calc2_updated_uncorrected!CR165 -> 577.378247 | AN195: =calc2_updated_uncorrected!DH164 -> 136.9229589 | AO195: =calc2_updated_uncorrected!DI164 -> 94.94669088 | AQ195: =calc2_updated_uncorrected!DN164 -> 343.1209838 | AR195: =calc2_updated_uncorrected!CI164 -> 12.26054624 | AS195: =calc2_updated_uncorrected!DP164 -> 39.5611212
AH196: 2014-10-06 | AI196: ='Entry cases beds'!G141 -> 2784 | AJ196: 2014-10-06 | AK196: =calc2_updated_uncorrected!CB165 -> 132 | AL196: =calc2_updated_uncorrected!CF165 -> 2795.338823 | AM196: =calc2_updated_uncorrected!CR166 -> 592.9088923 | AN196: =calc2_updated_uncorrected!DH165 -> 142.5403409 | AO196: =calc2_updated_uncorrected!DI165 -> 97.47728948 | AQ196: =calc2_updated_uncorrected!DN165 -> 352.6403706 | AR196: =calc2_updated_uncorrected!CI165 -> 12.60687781 | AS196: =calc2_updated_uncorrected!DP165 -> 40.61553728
AH197: 2014-10-07 | AI197: ='Entry cases beds'!G142 -> 2823 | AJ197: 2014-10-07 | AK197: =calc2_updated_uncorrected!CB166 -> 133 | AL197: =calc2_updated_uncorrected!CF166 -> 2860.049845 | AM197: =calc2_updated_uncorrected!CR167 -> 608.8372774 | AN197: =calc2_updated_uncorrected!DH166 -> 145.9331799 | AO197: =calc2_updated_uncorrected!DI166 -> 100.1643342 | AQ197: =calc2_updated_uncorrected!DN166 -> 362.5785556 | AR197: =calc2_updated_uncorrected!CI166 -> 12.94220437 | AS197: =calc2_updated_uncorrected!DP166 -> 41.73513924
AH198: 2014-10-08 | AI198: ='Entry cases beds'!G143 -> 2937 | AJ198: 2014-10-08 | AK198: =calc2_updated_uncorrected!CB167 -> 134 | AL198: =calc2_updated_uncorrected!CF167 -> 2926.418116 | AM198: =calc2_updated_uncorrected!CR168 -> 625.1649511 | AN198: =calc2_updated_uncorrected!DH167 -> 149.5043013 | AO198: =calc2_updated_uncorrected!DI167 -> 102.9472385 | AQ198: =calc2_updated_uncorrected!DN167 -> 372.7476084 | AR198: =calc2_updated_uncorrected!CI167 -> 13.27365429 | AS198: =calc2_updated_uncorrected!DP167 -> 42.8946827
AH199: 2014-10-09 | AJ199: 2014-10-09 | AK199: =calc2_updated_uncorrected!CB168 -> 135 | AL199: =calc2_updated_uncorrected!CF168 -> 2994.45009 | AM199: =calc2_updated_uncorrected!CR169 -> 641.9065737 | AN199: =calc2_updated_uncorrected!DH168 -> 153.2463388 | AO199: =calc2_updated_uncorrected!DI168 -> 105.7870997 | AQ199: =calc2_updated_uncorrected!DN168 -> 382.9792144 | AR199: =calc2_updated_uncorrected!CI168 -> 13.60639472 | AS199: =calc2_updated_uncorrected!DP168 -> 44.0779582
AH200: 2014-10-10 | AJ200: 2014-10-10 | AK200: =calc2_updated_uncorrected!CB169 -> 136 | AL200: =calc2_updated_uncorrected!CF169 -> 3064.206851 | AM200: =calc2_updated_uncorrected!CR170 -> 659.0807352 | AN200: =calc2_updated_uncorrected!DH169 -> 157.1767866 | AO200: =calc2_updated_uncorrected!DI169 -> 108.6566341 | AQ200: =calc2_updated_uncorrected!DN169 -> 393.2051479 | AR200: =calc2_updated_uncorrected!CI169 -> 13.95135216 | AS200: =calc2_updated_uncorrected!DP169 -> 45.27359752
AH201: 2014-10-11 | AJ201: 2014-10-11 | AK201: =calc2_updated_uncorrected!CB170 -> 137 | AL201: =calc2_updated_uncorrected!CF170 -> 3135.765857 | AM201: =calc2_updated_uncorrected!CR171 -> 676.7060337 | AN201: =calc2_updated_uncorrected!DH170 -> 161.2903626 | AO201: =calc2_updated_uncorrected!DI170 -> 111.543397 | AQ201: =calc2_updated_uncorrected!DN170 -> 403.4614231 | AR201: =calc2_updated_uncorrected!CI170 -> 14.31180127 | AS201: =calc2_updated_uncorrected!DP170 -> 46.47641542
AH202: 2014-10-12 | AJ202: 2014-10-12 | AK202: =calc2_updated_uncorrected!CB171 -> 138 | AL202: =calc2_updated_uncorrected!CF171 -> 3209.204601 | AM202: =calc2_updated_uncorrected!CR172 -> 694.8008693 | AN202: =calc2_updated_uncorrected!DH171 -> 165.5832575 | AO202: =calc2_updated_uncorrected!DI171 -> 114.4560401 | AQ202: =calc2_updated_uncorrected!DN171 -> 413.8657779 | AR202: =calc2_updated_uncorrected!CI171 -> 14.68774877 | AS202: =calc2_updated_uncorrected!DP171 -> 47.69001669
AH203: 2014-10-13 | AJ203: 2014-10-13 | AK203: =calc2_updated_uncorrected!CB172 -> 139 | AL203: =calc2_updated_uncorrected!CF172 -> 3284.599749 | AM203: =calc2_updated_uncorrected!CR173 -> 713.3809992 | AN203: =calc2_updated_uncorrected!DH172 -> 170.0272346 | AO203: =calc2_updated_uncorrected!DI172 -> 117.4226222 | AQ203: =calc2_updated_uncorrected!DN172 -> 424.5499041 | AR203: =calc2_updated_uncorrected!CI172 -> 15.07902962 | AS203: =calc2_updated_uncorrected!DP172 -> 48.9260926
AH204: 2014-10-14 | AJ204: 2014-10-14 | AK204: =calc2_updated_uncorrected!CB173 -> 140 | AL204: =calc2_updated_uncorrected!CF173 -> 3362.016957 | AM204: =calc2_updated_uncorrected!CR174 -> 732.4598886 | AN204: =calc2_updated_uncorrected!DH173 -> 174.6024791 | AO204: =calc2_updated_uncorrected!DI173 -> 120.4721069 | AQ204: =calc2_updated_uncorrected!DN173 -> 435.5988406 | AR204: =calc2_updated_uncorrected!CI173 -> 15.48344159 | AS204: =calc2_updated_uncorrected!DP173 -> 50.19671121
AH205: 2014-10-15 | AJ205: 2014-10-15 | AK205: =calc2_updated_uncorrected!CB174 -> 141 | AL205: =calc2_updated_uncorrected!CF174 -> 3441.51233 | AM205: =calc2_updated_uncorrected!CR175 -> 752.0475773 | AN205: =calc2_updated_uncorrected!DH174 -> 179.2848884 | AO205: =calc2_updated_uncorrected!DI174 -> 123.6226112 | AQ205: =calc2_updated_uncorrected!DN174 -> 447.0622397 | AR205: =calc2_updated_uncorrected!CI174 -> 15.89907453 | AS205: =calc2_updated_uncorrected!DP174 -> 51.50942133
AH206: 2014-10-16 | AJ206: 2014-10-16 | AK206: =calc2_updated_uncorrected!CB175 -> 142 | AL206: =calc2_updated_uncorrected!CF175 -> 3523.127699 | AM206: =calc2_updated_uncorrected!CR176 -> 772.1545268 | AN206: =calc2_updated_uncorrected!DH175 -> 184.0558958 | AO206: =calc2_updated_uncorrected!DI175 -> 126.8826263 | AQ206: =calc2_updated_uncorrected!DN175 -> 458.9208486 | AR206: =calc2_updated_uncorrected!CI175 -> 16.32307394 | AS206: =calc2_updated_uncorrected!DP175 -> 52.86776094
AH207: 2014-10-17 | AJ207: 2014-10-17 | AK207: =calc2_updated_uncorrected!CB176 -> 143 | AL207: =calc2_updated_uncorrected!CF176 -> 3606.906656 | AM207: =calc2_updated_uncorrected!CR177 -> 792.7917202 | AN207: =calc2_updated_uncorrected!DH176 -> 188.914685 | AO207: =calc2_updated_uncorrected!DI176 -> 130.2479531 | AQ207: =calc2_updated_uncorrected!DN176 -> 471.1407984 | AR207: =calc2_updated_uncorrected!CI176 -> 16.75579124 | AS207: =calc2_updated_uncorrected!DP176 -> 54.26998048
AH208: 2014-10-18 | AJ208: 2014-10-18 | AK208: =calc2_updated_uncorrected!CB177 -> 144 | AL208: =calc2_updated_uncorrected!CF177 -> 3692.894962 | AM208: =calc2_updated_uncorrected!CR178 -> 813.9719996 | AN208: =calc2_updated_uncorrected!DH177 -> 193.8776033 | AO208: =calc2_updated_uncorrected!DI177 -> 133.710985 | AQ208: =calc2_updated_uncorrected!DN177 -> 483.6903604 | AR208: =calc2_updated_uncorrected!CI177 -> 17.19766117 | AS208: =calc2_updated_uncorrected!DP177 -> 55.71291043
AH209: 2014-10-19 | AJ209: 2014-10-19 | AK209: =calc2_updated_uncorrected!CB178 -> 145 | AL209: =calc2_updated_uncorrected!CF178 -> 3781.146126 | AM209: =calc2_updated_uncorrected!CR179 -> 835.7092953 | AN209: =calc2_updated_uncorrected!DH178 -> 198.9661466 | AO209: =calc2_updated_uncorrected!DI178 -> 137.2659659 | AQ209: =calc2_updated_uncorrected!DN178 -> 496.5463765 | AR209: =calc2_updated_uncorrected!CI178 -> 17.65023283 | AS209: =calc2_updated_uncorrected!DP178 -> 57.19415246
AH210: 2014-10-20 | AJ210: 2014-10-20 | AK210: =calc2_updated_uncorrected!CB179 -> 146 | AL210: =calc2_updated_uncorrected!CF179 -> 3871.718191 | AM210: =calc2_updated_uncorrected!CR180 -> 858.018886 | AN210: =calc2_updated_uncorrected!DH179 -> 204.1962744 | AO210: =calc2_updated_uncorrected!DI179 -> 140.9084261 | AQ210: =calc2_updated_uncorrected!DN179 -> 509.701234 | AR210: =calc2_updated_uncorrected!CI179 -> 18.1144131 | AS210: =calc2_updated_uncorrected!DP179 -> 58.7118442
... 154 more rows

Sheet calc1_updated_uncorrected
B1: CALCULATION SHEET _ DO NOT ALTER/ ENTER DATA HERE
A2: Note: Data for case reports and new intervention cols hot-linked to generic_uncorrected. Data for old NOT hot-linked!
F4: incident=cum(t)-cum(t-1)
C5: Date | D5: day | E5: Cases Reported | F5: incident old | G5: incident new | H5: incident new ETU | I5: Cumulative Cases Original | J5: Cumulative Cases New | K5: beds old | L5: ETU beds in Use | M5: ETU beds schedule | N5: ECCs schedule | P5: Current ECC beds in use
C6: =Country_uncorrected!AH64 -> 2014-05-27 | D6: =Country_uncorrected!AK64 -> 0 | E6: =Country_uncorrected!AI64 -> 16 | F6: 0 | G6: 0 | H6: =G6*Country_uncorrected!$D9 -> 0 | I6: 0 | J6: =Country_uncorrected!AL64 -> 0 | K6: 0 | L6: =Country_uncorrected!AO64 -> 0 | M6: ='Entry cases beds'!I9 -> 5 | N6: ='Entry cases beds'!K9 -> 0 | P6: =calc2_updated_uncorrected!DP33 -> 0
C7: =Country_uncorrected!AH65 -> 2014-05-28 | D7: =Country_uncorrected!AK65 -> 1 | E7: =Country_uncorrected!AI65 -> 32 | F7: =I7-I6 -> 0 | G7: =J7-J6 -> 0 | H7: =G7*Country_uncorrected!$D10 -> 0 | I7: 0 | J7: =Country_uncorrected!AL65 -> 0 | K7: 0 | L7: =Country_uncorrected!AO65 -> 0 | M7: ='Entry cases beds'!I10 -> 5 | N7: ='Entry cases beds'!K10 -> 0 | P7: =calc2_updated_uncorrected!DP34 -> 0
C8: =Country_uncorrected!AH66 -> 2014-05-29 | D8: =Country_uncorrected!AK66 -> 2 | E8: =Country_uncorrected!AI66 -> 50 | F8: =I8-I7 -> 0 | G8: =J8-J7 -> 0 | H8: =G8*Country_uncorrected!$D11 -> 0 | I8: 0 | J8: =Country_uncorrected!AL66 -> 0 | K8: 0 | L8: =Country_uncorrected!AO66 -> 0 | M8: ='Entry cases beds'!I11 -> 5 | N8: ='Entry cases beds'!K11 -> 0 | P8: =calc2_updated_uncorrected!DP35 -> 0
C9: =Country_uncorrected!AH67 -> 2014-05-30 | D9: =Country_uncorrected!AK67 -> 3 | E9: =Country_uncorrected!AI67 -> 50 | F9: 0.588 | G9: 0.588 | H9: =G9*Country_uncorrected!$D12 -> 0.588 | I9: 0.588 | J9: =Country_uncorrected!AL67 -> 0.588 | K9: 0.24108 | L9: =Country_uncorrected!AO67 -> 0.14112 | M9: ='Entry cases beds'!I12 -> 5 | N9: ='Entry cases beds'!K12 -> 0 | P9: =calc2_updated_uncorrected!DP36 -> 0.0588
C10: =Country_uncorrected!AH68 -> 2014-05-31 | D10: =Country_uncorrected!AK68 -> 4 | E10: =Country_uncorrected!AI68 -> 50 | F10: 2.58 | G10: 2.58 | H10: =G10*Country_uncorrected!$D13 -> 0 | I10: 3.168 | J10: =Country_uncorrected!AL68 -> 3.168 | K10: 1.29888 | L10: =Country_uncorrected!AO68 -> 0.76032 | M10: ='Entry cases beds'!I13 -> 10 | N10: ='Entry cases beds'!K13 -> 0 | P10: =calc2_updated_uncorrected!DP37 -> 0.3168
C11: =Country_uncorrected!AH69 -> 2014-06-01 | D11: =Country_uncorrected!AK69 -> 5 | E11: =Country_uncorrected!AI69 -> 79 | F11: 4.59 | G11: 4.59 | H11: =G11*Country_uncorrected!$D14 -> 0.6885 | I11: 7.758 | J11: =Country_uncorrected!AL69 -> 7.758 | K11: 3.18078 | L11: =Country_uncorrected!AO69 -> 1.86192 | M11: ='Entry cases beds'!I14 -> 10 | N11: ='Entry cases beds'!K14 -> 0 | P11: =calc2_updated_uncorrected!DP38 -> 0.7758
C12: =Country_uncorrected!AH70 -> 2014-06-02 | D12: =Country_uncorrected!AK70 -> 6 | E12: =Country_uncorrected!AI70 -> 79 | F12: 4.82050087 | G12: 4.820500869 | H12: =G12*Country_uncorrected!D$9 -> 0.9641001739 | I12: 12.57850087 | J12: =Country_uncorrected!AL70 -> 12.57850087 | K12: 5.157185357 | L12: =Country_uncorrected!AO70 -> 3.018840209 | M12: ='Entry cases beds'!I15 -> 10 | N12: ='Entry cases beds'!K15 -> 0 | P12: =calc2_updated_uncorrected!DP39 -> 1.257850087
C13: =Country_uncorrected!AH71 -> 2014-06-03 | D13: =Country_uncorrected!AK71 -> 7 | E13: =Country_uncorrected!AI71 -> 79 | F13: 4.236447277 | G13: 4.236447273 | H13: =G13*Country_uncorrected!D$9 -> 0.8472894546 | I13: 16.81494815 | J13: =Country_uncorrected!AL71 -> 16.81494814 | K13: 6.89412874 | L13: =Country_uncorrected!AO71 -> 4.035587554 | M13: ='Entry cases beds'!I16 -> 15 | N13: ='Entry cases beds'!K16 -> 0 | P13: =calc2_updated_uncorrected!DP40 -> 1.681494814
C14: =Country_uncorrected!AH72 -> 2014-06-04 | D14: =Country_uncorrected!AK72 -> 8 | E14: =Country_uncorrected!AI72 -> 98 | F14: 3.771639194 | G14: 3.771639176 | H14: =G14*Country_uncorrected!D$9 -> 0.7543278352 | I14: 20.58658734 | J14: =Country_uncorrected!AL72 -> 20.58658732 | K14: 8.44050081 | L14: =Country_uncorrected!AO72 -> 4.940780956 | M14: ='Entry cases beds'!I17 -> 15 | N14: ='Entry cases beds'!K17 -> 0 | P14: =calc2_updated_uncorrected!DP41 -> 2.058658732
C15: =Country_uncorrected!AH73 -> 2014-06-05 | D15: =Country_uncorrected!AK73 -> 9 | E15: =Country_uncorrected!AI73 -> 112 | F15: 2.897949794 | G15: 2.897949741 | H15: =G15*Country_uncorrected!D$9 -> 0.5795899481 | I15: 23.48453714 | J15: =Country_uncorrected!AL73 -> 23.48453706 | K15: 9.628660225 | L15: =Country_uncorrected!AO73 -> 5.636288894 | M15: ='Entry cases beds'!I18 -> 15 | N15: ='Entry cases beds'!K18 -> 0 | P15: =calc2_updated_uncorrected!DP42 -> 2.348453706
C16: =Country_uncorrected!AH74 -> 2014-06-06 | D16: =Country_uncorrected!AK74 -> 10 | E16: =Country_uncorrected!AI74 -> 112 | F16: 2.630147198 | G16: 2.630147082 | H16: =G16*Country_uncorrected!D$9 -> 0.5260294164 | I16: 26.11468433 | J16: =Country_uncorrected!AL74 -> 26.11468414 | K16: 10.46594058 | L16: =Country_uncorrected!AO74 -> 6.126404194 | M16: ='Entry cases beds'!I19 -> 35 | N16: ='Entry cases beds'!K19 -> 0 | P16: =calc2_updated_uncorrected!DP43 -> 2.552668414
C17: =Country_uncorrected!AH75 -> 2014-06-07 | D17: =Country_uncorrected!AK75 -> 11 | E17: =Country_uncorrected!AI75 -> 112 | F17: 2.773425637 | G17: 2.773425432 | H17: =G17*Country_uncorrected!D$9 -> 0.5546850865 | I17: 28.88810997 | J17: =Country_uncorrected!AL75 -> 28.88810957 | K17: 10.54524509 | L17: =Country_uncorrected!AO75 -> 6.172826298 | M17: ='Entry cases beds'!I20 -> 45 | N17: ='Entry cases beds'!K20 -> 0 | P17: =calc2_updated_uncorrected!DP44 -> 2.572010957
C18: =Country_uncorrected!AH76 -> 2014-06-08 | D18: =Country_uncorrected!AK76 -> 12 | E18: =Country_uncorrected!AI76 -> 112 | F18: 3.307376397 | G18: 3.307376082 | H18: =G18*Country_uncorrected!D$9 -> 0.6614752164 | I18: 32.19548637 | J18: =Country_uncorrected!AL76 -> 32.19548565 | K18: 10.01936941 | L18: =Country_uncorrected!AO76 -> 5.864996557 | M18: ='Entry cases beds'!I21 -> 60 | N18: ='Entry cases beds'!K21 -> 0 | P18: =calc2_updated_uncorrected!DP45 -> 2.443748565
C19: =Country_uncorrected!AH77 -> 2014-06-09 | D19: =Country_uncorrected!AK77 -> 13 | E19: =Country_uncorrected!AI77 -> 112 | F19: 5.338217163 | G19: 5.338216722 | H19: =G19*Country_uncorrected!D$9 -> 1.067643344 | I19: 37.53370353 | J19: =Country_uncorrected!AL77 -> 37.53370238 | K19: 10.23163309 | L19: =Country_uncorrected!AO77 -> 5.989248362 | M19: ='Entry cases beds'!I22 -> 65 | N19: ='Entry cases beds'!K22 -> 0 | P19: =calc2_updated_uncorrected!DP46 -> 2.495520151
C20: =Country_uncorrected!AH78 -> 2014-06-10 | D20: =Country_uncorrected!AK78 -> 14 | E20: =Country_uncorrected!AI78 -> 160 | F20: 7.311559297 | G20: 7.311558721 | H20: =G20*Country_uncorrected!D$9 -> 1.462311744 | I20: 44.84526283 | J20: =Country_uncorrected!AL78 -> 44.8452611 | K20: 11.49242902 | L20: =Country_uncorrected!AO78 -> 6.727275109 | M20: ='Entry cases beds'!I23 -> 70 | N20: ='Entry cases beds'!K23 -> 0 | P20: =calc2_updated_uncorrected!DP47 -> 2.803031296
C21: =Country_uncorrected!AH79 -> 2014-06-11 | D21: =Country_uncorrected!AK79 -> 15 | E21: =Country_uncorrected!AI79 -> 50 | F21: 7.90417002 | G21: 7.904169303 | H21: =G21*Country_uncorrected!D$9 -> 1.580833861 | I21: 52.74943285 | J21: =Country_uncorrected!AL79 -> 52.7494304 | K21: 13.18676666 | L21: =Country_uncorrected!AO79 -> 7.71908234 | M21: ='Entry cases beds'!I24 -> 82 | N21: ='Entry cases beds'!K24 -> 0 | P21: =calc2_updated_uncorrected!DP48 -> 3.216284308
C22: =Country_uncorrected!AH80 -> 2014-06-12 | D22: =Country_uncorrected!AK80 -> 16 | E22: =Country_uncorrected!AI80 -> 50 | F22: 7.521870554 | G22: 7.521869685 | H22: =G22*Country_uncorrected!D$9 -> 1.504373937 | I22: 60.2713034 | J22: =Country_uncorrected!AL80 -> 60.27130009 | K22: 15.08257417 | L22: =Country_uncorrected!AO80 -> 8.828823126 | M22: ='Entry cases beds'!I25 -> 89 | N22: ='Entry cases beds'!K25 -> 0 | P22: =calc2_updated_uncorrected!DP49 -> 3.678676303
C23: =Country_uncorrected!AH81 -> 2014-06-13 | D23: =Country_uncorrected!AK81 -> 17 | E23: =Country_uncorrected!AI81 -> 50 | F23: 7.23219542 | G23: 7.232194359 | H23: =G23*Country_uncorrected!D$9 -> 1.446438872 | I23: 67.50349882 | J23: =Country_uncorrected!AL81 -> 67.50349444 | K23: 16.96941394 | L23: =Country_uncorrected!AO81 -> 9.933314473 | M23: ='Entry cases beds'!I26 -> 94 | N23: ='Entry cases beds'!K26 -> 0 | P23: =calc2_updated_uncorrected!DP50 -> 4.13888103
C24: =Country_uncorrected!AH82 -> 2014-06-14 | D24: =Country_uncorrected!AK82 -> 18 | E24: =Country_uncorrected!AI82 -> 50 | F24: 6.486156175 | G24: 6.486154845 | H24: =G24*Country_uncorrected!D$9 -> 1.297230969 | I24: 73.989655 | J24: =Country_uncorrected!AL82 -> 73.98964929 | K24: 18.49163346 | L24: =Country_uncorrected!AO82 -> 10.82436953 | M24: ='Entry cases beds'!I27 -> 94 | N24: ='Entry cases beds'!K27 -> 0 | P24: =calc2_updated_uncorrected!DP51 -> 4.510153972
C25: =Country_uncorrected!AH83 -> 2014-06-15 | D25: =Country_uncorrected!AK83 -> 19 | E25: =Country_uncorrected!AI83 -> 50 | F25: 6.306159447 | G25: 6.306157744 | H25: =G25*Country_uncorrected!D$9 -> 1.261231549 | I25: 80.29581444 | J25: =Country_uncorrected!AL83 -> 80.29580703 | K25: 19.72113451 | L25: =Country_uncorrected!AO83 -> 11.54407713 | M25: ='Entry cases beds'!I28 -> 94 | N25: ='Entry cases beds'!K28 -> 0 | P25: =calc2_updated_uncorrected!DP52 -> 4.810032138
C26: =Country_uncorrected!AH84 -> 2014-06-16 | D26: =Country_uncorrected!AK84 -> 20 | E26: =Country_uncorrected!AI84 -> 95 | F26: 6.453196685 | G26: 6.453194502 | H26: =G26*Country_uncorrected!D$9 -> 1.2906389 | I26: 86.74901113 | J26: =Country_uncorrected!AL84 -> 86.74900154 | K26: 20.17827611 | L26: =Country_uncorrected!AO84 -> 11.8116718 | M26: ='Entry cases beds'!I29 -> 94 | N26: ='Entry cases beds'!K29 -> 0 | P26: =calc2_updated_uncorrected!DP53 -> 4.921529916
C27: =Country_uncorrected!AH85 -> 2014-06-17 | D27: =Country_uncorrected!AK85 -> 21 | E27: =Country_uncorrected!AI85 -> 136 | F27: 6.533693341 | G27: 6.533690582 | H27: =G27*Country_uncorrected!D$9 -> 1.306738116 | I27: 93.28270447 | J27: =Country_uncorrected!AL85 -> 93.28269212 | K27: 19.85935107 | L27: =Country_uncorrected!AO85 -> 11.62498344 | M27: ='Entry cases beds'!I30 -> 100 | N27: ='Entry cases beds'!K30 -> 0 | P27: =calc2_updated_uncorrected!DP54 -> 4.843743102
C28: =Country_uncorrected!AH86 -> 2014-06-18 | D28: =Country_uncorrected!AK86 -> 22 | E28: =Country_uncorrected!AI86 -> 136 | F28: 6.97346424 | G28: 6.973460835 | H28: =G28*Country_uncorrected!D$9 -> 1.394692167 | I28: 100.2561687 | J28: =Country_uncorrected!AL86 -> 100.256153 | K28: 19.4777617 | L28: =Country_uncorrected!AO86 -> 11.40161341 | M28: ='Entry cases beds'!I31 -> 100 | N28: ='Entry cases beds'!K31 -> 0 | P28: =calc2_updated_uncorrected!DP55 -> 4.750672255
C29: =Country_uncorrected!AH87 -> 2014-06-19 | D29: =Country_uncorrected!AK87 -> 23 | E29: =Country_uncorrected!AI87 -> 151 | F29: 7.371322333 | G29: 7.371318247 | H29: =G29*Country_uncorrected!D$9 -> 1.474263649 | I29: 107.627491 | J29: =Country_uncorrected!AL87 -> 107.6274712 | K29: 19.41603693 | L29: =Country_uncorrected!AO87 -> 11.36548107 | M29: ='Entry cases beds'!I32 -> 113 | N29: ='Entry cases beds'!K32 -> 0 | P29: =calc2_updated_uncorrected!DP56 -> 4.735617111
C30: =Country_uncorrected!AH88 -> 2014-06-20 | D30: =Country_uncorrected!AK88 -> 24 | E30: =Country_uncorrected!AI88 -> 158 | F30: 7.861436927 | G30: 7.861432149 | H30: =G30*Country_uncorrected!D$9 -> 1.57228643 | I30: 115.488928 | J30: =Country_uncorrected!AL88 -> 115.4889033 | K30: 19.67402595 | L30: =Country_uncorrected!AO88 -> 11.51649814 | M30: ='Entry cases beds'!I33 -> 115 | N30: ='Entry cases beds'!K33 -> 0 | P30: =calc2_updated_uncorrected!DP57 -> 4.79854089
C31: =Country_uncorrected!AH89 -> 2014-06-21 | D31: =Country_uncorrected!AK89 -> 25 | E31: =Country_uncorrected!AI89 -> 158 | F31: 8.094897563 | G31: 8.094892092 | H31: =G31*Country_uncorrected!D$9 -> 1.618978418 | I31: 123.5838255 | J31: =Country_uncorrected!AL89 -> 123.5837954 | K31: 20.33360992 | L31: =Country_uncorrected!AO89 -> 11.90259508 | M31: ='Entry cases beds'!I34 -> 115 | N31: ='Entry cases beds'!K34 -> 0 | P31: =calc2_updated_uncorrected!DP58 -> 4.959414615
C32: =Country_uncorrected!AH90 -> 2014-06-22 | D32: =Country_uncorrected!AK90 -> 26 | E32: =Country_uncorrected!AI90 -> 158 | F32: 8.32204093 | G32: 8.322034744 | H32: =G32*Country_uncorrected!D$9 -> 1.664406949 | I32: 131.9058665 | J32: =Country_uncorrected!AL90 -> 131.9058302 | K32: 21.16012133 | L32: =Country_uncorrected!AO90 -> 12.38640556 | M32: ='Entry cases beds'!I35 -> 115 | N32: ='Entry cases beds'!K35 -> 0 | P32: =calc2_updated_uncorrected!DP59 -> 5.161002315
C33: =Country_uncorrected!AH91 -> 2014-06-23 | D33: =Country_uncorrected!AK91 -> 27 | E33: =Country_uncorrected!AI91 -> 166 | F33: 8.432963588 | G33: 8.43295663 | H33: =G33*Country_uncorrected!D$9 -> 1.686591326 | I33: 140.3388301 | J33: =Country_uncorrected!AL91 -> 140.3387868 | K33: 21.97182576 | L33: =Country_uncorrected!AO91 -> 12.86154847 | M33: ='Entry cases beds'!I36 -> 125 | N33: ='Entry cases beds'!K36 -> 0 | P33: =calc2_updated_uncorrected!DP60 -> 5.358978528
C34: =Country_uncorrected!AH92 -> 2014-06-24 | D34: =Country_uncorrected!AK92 -> 28 | E34: =Country_uncorrected!AI92 -> 166 | F34: 8.598165518 | G34: 8.598157689 | H34: =G34*Country_uncorrected!D$9 -> 1.719631538 | I34: 148.9369956 | J34: =Country_uncorrected!AL92 -> 148.9369445 | K34: 22.81825935 | L34: =Country_uncorrected!AO92 -> 13.35702057 | M34: ='Entry cases beds'!I37 -> 125 | N34: ='Entry cases beds'!K37 -> 0 | P34: =calc2_updated_uncorrected!DP61 -> 5.565425239
C35: =Country_uncorrected!AH93 -> 2014-06-25 | D35: =Country_uncorrected!AK93 -> 29 | E35: =Country_uncorrected!AI93 -> 188 | F35: 8.74727171 | G35: 8.747262881 | H35: =G35*Country_uncorrected!D$9 -> 1.749452576 | I35: 157.6842673 | J35: =Country_uncorrected!AL93 -> 157.6842074 | K35: 23.54552041 | L35: =Country_uncorrected!AO93 -> 13.78273306 | M35: ='Entry cases beds'!I38 -> 136 | N35: ='Entry cases beds'!K38 -> 0 | P35: =calc2_updated_uncorrected!DP62 -> 5.742805443
C36: =Country_uncorrected!AH94 -> 2014-06-26 | D36: =Country_uncorrected!AK94 -> 30 | E36: =Country_uncorrected!AI94 -> 188 | F36: 8.913064993 | G36: 8.913055022 | H36: =G36*Country_uncorrected!D$9 -> 1.782611004 | I36: 166.5973323 | J36: =Country_uncorrected!AL94 -> 166.5972624 | K36: 24.1776349 | L36: =Country_uncorrected!AO94 -> 14.15274989 | M36: ='Entry cases beds'!I39 -> 136 | N36: ='Entry cases beds'!K39 -> 0 | P36: =calc2_updated_uncorrected!DP63 -> 5.896979121
C37: =Country_uncorrected!AH95 -> 2014-06-27 | D37: =Country_uncorrected!AK95 -> 31 | E37: =Country_uncorrected!AI95 -> 194 | F37: 9.158203008 | G37: 9.158191759 | H37: =G37*Country_uncorrected!D$14 -> 1.373728764 | I37: 175.7555353 | J37: =Country_uncorrected!AL95 -> 175.7554542 | K37: 23.97665276 | L37: =Country_uncorrected!AO95 -> 14.02895809 | M37: ='Entry cases beds'!I40 -> 155 | N37: ='Entry cases beds'!K40 -> 0 | P37: =calc2_updated_uncorrected!DP64 -> 7.400383845
C38: =Country_uncorrected!AH96 -> 2014-06-28 | D38: =Country_uncorrected!AK96 -> 32 | E38: =Country_uncorrected!AI96 -> 210 | F38: 9.427415616 | G38: 9.427402961 | H38: =G38*Country_uncorrected!D$14 -> 1.414110444 | I38: 185.1829509 | J38: =Country_uncorrected!AL96 -> 185.1828571 | K38: 23.76879191 | L38: =Country_uncorrected!AO96 -> 13.90095906 | M38: ='Entry cases beds'!I41 -> 175 | N38: ='Entry cases beds'!K41 -> 0 | P38: =calc2_updated_uncorrected!DP65 -> 8.947745377
C39: =Country_uncorrected!AH97 -> 2014-06-29 | D39: =Country_uncorrected!AK97 -> 33 | E39: =Country_uncorrected!AI97 -> 210 | F39: 9.710460769 | G39: 9.710446595 | H39: =G39*Country_uncorrected!D$14 -> 1.456566989 | I39: 194.8934117 | J39: =Country_uncorrected!AL97 -> 194.8933037 | K39: 23.56120718 | L39: =Country_uncorrected!AO97 -> 13.77293169 | M39: ='Entry cases beds'!I42 -> 175 | N39: ='Entry cases beds'!K42 -> 0 | P39: =calc2_updated_uncorrected!DP66 -> 10.54315355
C40: =Country_uncorrected!AH98 -> 2014-06-30 | D40: =Country_uncorrected!AK98 -> 34 | E40: =Country_uncorrected!AI98 -> 239 | F40: 9.986558483 | G40: 9.986542698 | H40: =G40*Country_uncorrected!D$14 -> 1.497981405 | I40: 204.8799701 | J40: =Country_uncorrected!AL98 -> 204.8798464 | K40: 23.39925641 | L40: =Country_uncorrected!AO98 -> 13.67143156 | M40: ='Entry cases beds'!I43 -> 178 | N40: ='Entry cases beds'!K43 -> 0 | P40: =calc2_updated_uncorrected!DP67 -> 12.19649356
C41: =Country_uncorrected!AH99 -> 2014-07-01 | D41: =Country_uncorrected!AK99 -> 35 | E41: =Country_uncorrected!AI99 -> 239 | F41: 10.24568273 | G41: 10.24566528 | H41: =G41*Country_uncorrected!D$14 -> 1.536849792 | I41: 215.1256529 | J41: =Country_uncorrected!AL99 -> 215.1255117 | K41: 23.25508385 | L41: =Country_uncorrected!AO99 -> 13.58016429 | M41: ='Entry cases beds'!I44 -> 178 | N41: ='Entry cases beds'!K44 -> 0 | P41: =calc2_updated_uncorrected!DP68 -> 13.89809411
C42: =Country_uncorrected!AH100 -> 2014-07-02 | D42: =Country_uncorrected!AK100 -> 36 | E42: =Country_uncorrected!AI100 -> 252 | F42: 10.45335089 | G42: 10.45333176 | H42: =G42*Country_uncorrected!D$14 -> 1.567999764 | I42: 225.5790038 | J42: =Country_uncorrected!AL100 -> 225.5788435 | K42: 23.11830824 | L42: =Country_uncorrected!AO100 -> 13.49308756 | M42: ='Entry cases beds'!I45 -> 184 | N42: ='Entry cases beds'!K45 -> 0 | P42: =calc2_updated_uncorrected!DP69 -> 15.63670077
C43: =Country_uncorrected!AH101 -> 2014-07-03 | D43: =Country_uncorrected!AK101 -> 37 | E43: =Country_uncorrected!AI101 -> 252 | F43: 10.62591454 | G43: 10.6258937 | H43: =G43*Country_uncorrected!D$14 -> 1.593884056 | I43: 236.2049183 | J43: =Country_uncorrected!AL101 -> 236.2047372 | K43: 22.97050339 | L43: =Country_uncorrected!AO101 -> 13.39943889 | M43: ='Entry cases beds'!I46 -> 184 | N43: ='Entry cases beds'!K46 -> 0 | P43: =calc2_updated_uncorrected!DP70 -> 17.40186869
C44: =Country_uncorrected!AH102 -> 2014-07-04 | D44: =Country_uncorrected!AK102 -> 38 | E44: =Country_uncorrected!AI102 -> 282 | F44: 10.76170011 | G44: 10.76167752 | H44: =G44*Country_uncorrected!D$14 -> 1.614251628 | I44: 246.9666184 | J44: =Country_uncorrected!AL102 -> 246.9664147 | K44: 23.49965744 | L44: =Country_uncorrected!AO102 -> 13.7081099 | M44: ='Entry cases beds'!I47 -> 183 | N44: ='Entry cases beds'!K47 -> 0 | P44: =calc2_updated_uncorrected!DP71 -> 17.80274013
C45: =Country_uncorrected!AH103 -> 2014-07-05 | D45: =Country_uncorrected!AK103 -> 39 | E45: =Country_uncorrected!AI103 -> 282 | F45: 10.86932547 | G45: 10.86930106 | H45: =G45*Country_uncorrected!D$14 -> 1.630395159 | I45: 257.8359439 | J45: =Country_uncorrected!AL103 -> 257.8357158 | K45: 23.97548769 | L45: =Country_uncorrected!AO103 -> 13.98567529 | M45: ='Entry cases beds'!I48 -> 183 | N45: ='Entry cases beds'!K48 -> 0 | P45: =calc2_updated_uncorrected!DP72 -> 18.16321466
C46: =Country_uncorrected!AH104 -> 2014-07-06 | D46: =Country_uncorrected!AK104 -> 40 | E46: =Country_uncorrected!AI104 -> 305 | F46: 10.96355253 | G46: 10.96352621 | H46: =G46*Country_uncorrected!D$14 -> 1.644528931 | I46: 268.7994964 | J46: =Country_uncorrected!AL104 -> 268.799242 | K46: 24.38900797 | L46: =Country_uncorrected!AO104 -> 14.22689311 | M46: ='Entry cases beds'!I49 -> 186 | N46: ='Entry cases beds'!K49 -> 0 | P46: =calc2_updated_uncorrected!DP73 -> 18.47648456
C47: =Country_uncorrected!AH105 -> 2014-07-07 | D47: =Country_uncorrected!AK105 -> 41 | E47: =Country_uncorrected!AI105 -> 305 | F47: 11.0645856 | G47: 11.06455722 | H47: =G47*Country_uncorrected!D$14 -> 1.659683582 | I47: 279.864082 | J47: =Country_uncorrected!AL105 -> 279.8637992 | K47: 24.74475692 | L47: =Country_uncorrected!AO105 -> 14.43441091 | M47: ='Entry cases beds'!I50 -> 186 | N47: ='Entry cases beds'!K50 -> 0 | P47: =calc2_updated_uncorrected!DP74 -> 18.74598819
C48: =Country_uncorrected!AH106 -> 2014-07-08 | D48: =Country_uncorrected!AK106 -> 42 | E48: =Country_uncorrected!AI106 -> 318 | F48: 11.18783667 | G48: 11.18780606 | H48: =G48*Country_uncorrected!D$14 -> 1.678170909 | I48: 291.0519187 | J48: =Country_uncorrected!AL106 -> 291.0516052 | K48: 25.05566772 | L48: =Country_uncorrected!AO106 -> 14.61577301 | M48: ='Entry cases beds'!I51 -> 189 | N48: ='Entry cases beds'!K51 -> 0 | P48: =calc2_updated_uncorrected!DP75 -> 18.98152338
C49: =Country_uncorrected!AH107 -> 2014-07-09 | D49: =Country_uncorrected!AK107 -> 43 | E49: =Country_uncorrected!AI107 -> 318 | F49: 11.33450179 | G49: 11.33446877 | H49: =G49*Country_uncorrected!D$14 -> 1.700170316 | I49: 302.3864205 | J49: =Country_uncorrected!AL107 -> 302.386074 | K49: 25.34644752 | L49: =Country_uncorrected!AO107 -> 14.78539188 | M49: ='Entry cases beds'!I52 -> 189 | N49: ='Entry cases beds'!K52 -> 0 | P49: =calc2_updated_uncorrected!DP76 -> 19.20180764
C50: =Country_uncorrected!AH108 -> 2014-07-10 | D50: =Country_uncorrected!AK108 -> 44 | E50: =Country_uncorrected!AI108 -> 337 | F50: 11.49686088 | G50: 11.4968253 | H50: =G50*Country_uncorrected!D$14 -> 1.724523795 | I50: 313.8832814 | J50: =Country_uncorrected!AL108 -> 313.8828993 | K50: 25.63385981 | L50: =Country_uncorrected!AO108 -> 14.95304621 | M50: ='Entry cases beds'!I53 -> 192 | N50: ='Entry cases beds'!K53 -> 0 | P50: =calc2_updated_uncorrected!DP77 -> 19.41954053
C51: =Country_uncorrected!AH109 -> 2014-07-11 | D51: =Country_uncorrected!AK109 -> 45 | E51: =Country_uncorrected!AI109 -> 337 | F51: 11.66808298 | G51: 11.66804469 | H51: =G51*Country_uncorrected!D$14 -> 1.750206704 | I51: 325.5513643 | J51: =Country_uncorrected!AL109 -> 325.550944 | K51: 25.93296615 | L51: =Country_uncorrected!AO109 -> 15.12752189 | M51: ='Entry cases beds'!I54 -> 192 | N51: ='Entry cases beds'!K54 -> 0 | P51: =calc2_updated_uncorrected!DP78 -> 19.64613233
C52: =Country_uncorrected!AH110 -> 2014-07-12 | D52: =Country_uncorrected!AK110 -> 46 | E52: =Country_uncorrected!AI110 -> 386 | F52: 11.83818585 | G52: 11.83814473 | H52: =G52*Country_uncorrected!D$14 -> 1.77572171 | I52: 337.3895502 | J52: =Country_uncorrected!AL110 -> 337.3890887 | K52: 26.25269008 | L52: =Country_uncorrected!AO110 -> 15.3140243 | M52: ='Entry cases beds'!I55 -> 194 | N52: ='Entry cases beds'!K55 -> 0 | P52: =calc2_updated_uncorrected!DP79 -> 19.88834325
C53: =Country_uncorrected!AH111 -> 2014-07-13 | D53: =Country_uncorrected!AK111 -> 47 | E53: =Country_uncorrected!AI111 -> 386 | F53: 12.00399657 | G53: 12.00395251 | H53: =G53*Country_uncorrected!D$14 -> 1.800592876 | I53: 349.3935468 | J53: =Country_uncorrected!AL111 -> 349.3930412 | K53: 26.59603661 | L53: =Country_uncorrected!AO111 -> 15.51430636 | M53: ='Entry cases beds'!I56 -> 194 | N53: ='Entry cases beds'!K56 -> 0 | P53: =calc2_updated_uncorrected!DP80 -> 20.14844982
C54: =Country_uncorrected!AH112 -> 2014-07-14 | D54: =Country_uncorrected!AK112 -> 48 | E54: =Country_uncorrected!AI112 -> 397 | F54: 12.16581485 | G54: 12.16576771 | H54: =G54*Country_uncorrected!D$14 -> 1.824865157 | I54: 361.5593616 | J54: =Country_uncorrected!AL112 -> 361.558809 | K54: 26.95944226 | L54: =Country_uncorrected!AO112 -> 15.72628938 | M54: ='Entry cases beds'!I57 -> 196 | N54: ='Entry cases beds'!K57 -> 0 | P54: =calc2_updated_uncorrected!DP81 -> 20.42375245
C55: =Country_uncorrected!AH113 -> 2014-07-15 | D55: =Country_uncorrected!AK113 -> 49 | E55: =Country_uncorrected!AI113 -> 397 | F55: 12.32393704 | G55: 12.32388669 | H55: =G55*Country_uncorrected!D$14 -> 1.848583003 | I55: 373.8832986 | J55: =Country_uncorrected!AL113 -> 373.8826956 | K55: 27.33435538 | L55: =Country_uncorrected!AO113 -> 15.9449849 | M55: ='Entry cases beds'!I58 -> 196 | N55: ='Entry cases beds'!K58 -> 0 | P55: =calc2_updated_uncorrected!DP82 -> 20.7077726
C56: =Country_uncorrected!AH114 -> 2014-07-16 | D56: =Country_uncorrected!AK114 -> 50 | E56: =Country_uncorrected!AI114 -> 441 | F56: 12.48108422 | G56: 12.4810305 | H56: =G56*Country_uncorrected!D$14 -> 1.872154575 | I56: 386.3643829 | J56: =Country_uncorrected!AL114 -> 386.3637261 | K56: 27.71272758 | L56: =Country_uncorrected!AO114 -> 16.16569804 | M56: ='Entry cases beds'!I59 -> 196 | N56: ='Entry cases beds'!K59 -> 0 | P56: =calc2_updated_uncorrected!DP83 -> 20.99441303
C57: =Country_uncorrected!AH115 -> 2014-07-17 | D57: =Country_uncorrected!AK115 -> 51 | E57: =Country_uncorrected!AI115 -> 442 | F57: 12.63953053 | G57: 12.63947325 | H57: =G57*Country_uncorrected!D$14 -> 1.895920988 | I57: 399.0039134 | J57: =Country_uncorrected!AL115 -> 399.0031994 | K57: 28.08980857 | L57: =Country_uncorrected!AO115 -> 16.38565777 | M57: ='Entry cases beds'!I60 -> 196 | N57: ='Entry cases beds'!K60 -> 0 | P57: =calc2_updated_uncorrected!DP84 -> 21.28007502
C58: =Country_uncorrected!AH116 -> 2014-07-18 | D58: =Country_uncorrected!AK116 -> 52 | E58: =Country_uncorrected!AI116 -> 442 | F58: 12.8023285 | G58: 12.80226749 | H58: =G58*Country_uncorrected!D$14 -> 1.920340123 | I58: 411.8062419 | J58: =Country_uncorrected!AL116 -> 411.8054669 | K58: 28.46410959 | L58: =Country_uncorrected!AO116 -> 16.60399565 | M58: ='Entry cases beds'!I61 -> 196 | N58: ='Entry cases beds'!K61 -> 0 | P58: =calc2_updated_uncorrected!DP85 -> 21.56363072
C59: =Country_uncorrected!AH117 -> 2014-07-19 | D59: =Country_uncorrected!AK117 -> 53 | E59: =Country_uncorrected!AI117 -> 442 | F59: 12.96961601 | G59: 12.96955106 | H59: =G59*Country_uncorrected!D$14 -> 1.945432659 | I59: 424.7758579 | J59: =Country_uncorrected!AL117 -> 424.7750179 | K59: 28.83748154 | L59: =Country_uncorrected!AO117 -> 16.82179137 | M59: ='Entry cases beds'!I62 -> 196 | N59: ='Entry cases beds'!K62 -> 0 | P59: =calc2_updated_uncorrected!DP86 -> 21.8464823
C60: =Country_uncorrected!AH118 -> 2014-07-20 | D60: =Country_uncorrected!AK118 -> 54 | E60: =Country_uncorrected!AI118 -> 454 | F60: 13.14131649 | G60: 13.14124742 | H60: =G60*Country_uncorrected!D$14 -> 1.971187113 | I60: 437.9171744 | J60: =Country_uncorrected!AL118 -> 437.9162654 | K60: 29.21279712 | L60: =Country_uncorrected!AO118 -> 17.04072064 | M60: ='Entry cases beds'!I63 -> 200 | N60: ='Entry cases beds'!K63 -> 0 | P60: =calc2_updated_uncorrected!DP87 -> 22.13080603
C61: =Country_uncorrected!AH119 -> 2014-07-21 | D61: =Country_uncorrected!AK119 -> 55 | E61: =Country_uncorrected!AI119 -> 454 | F61: 13.31642398 | G61: 13.31635058 | H61: =G61*Country_uncorrected!D$14 -> 1.997452587 | I61: 451.2335984 | J61: =Country_uncorrected!AL119 -> 451.2326159 | K61: 29.59249813 | L61: =Country_uncorrected!AO119 -> 17.26220784 | M61: ='Entry cases beds'!I64 -> 200 | N61: ='Entry cases beds'!K64 -> 0 | P61: =calc2_updated_uncorrected!DP88 -> 22.41845175
C62: =Country_uncorrected!AH120 -> 2014-07-22 | D62: =Country_uncorrected!AK120 -> 56 | E62: =Country_uncorrected!AI120 -> 454 | F62: 13.49437167 | G62: 13.49429374 | H62: =G62*Country_uncorrected!D$14 -> 2.024144062 | I62: 464.72797 | J62: =Country_uncorrected!AL120 -> 464.7269097 | K62: 29.97874156 | L62: =Country_uncorrected!AO120 -> 17.4875112 | M62: ='Entry cases beds'!I65 -> 200 | N62: ='Entry cases beds'!K65 -> 0 | P62: =calc2_updated_uncorrected!DP89 -> 22.71105351
C63: =Country_uncorrected!AH121 -> 2014-07-23 | D63: =Country_uncorrected!AK121 -> 57 | E63: =Country_uncorrected!AI121 -> 525 | F63: 13.67441416 | G63: 13.6743315 | H63: =G63*Country_uncorrected!D$14 -> 2.051149725 | I63: 478.4023842 | J63: =Country_uncorrected!AL121 -> 478.4012412 | K63: 30.37254044 | L63: =Country_uncorrected!AO121 -> 17.71722165 | M63: ='Entry cases beds'!I66 -> 205 | N63: ='Entry cases beds'!K66 -> 0 | P63: =calc2_updated_uncorrected!DP90 -> 23.00937876
C64: =Country_uncorrected!AH122 -> 2014-07-24 | D64: =Country_uncorrected!AK122 -> 58 | E64: =Country_uncorrected!AI122 -> 525 | F64: 13.85599305 | G64: 13.85590545 | H64: =G64*Country_uncorrected!D$14 -> 2.078385817 | I64: 492.2583773 | J64: =Country_uncorrected!AL122 -> 492.2571466 | K64: 30.77397308 | L64: =Country_uncorrected!AO122 -> 17.95138484 | M64: ='Entry cases beds'!I67 -> 205 | N64: ='Entry cases beds'!K67 -> 0 | P64: =calc2_updated_uncorrected!DP91 -> 23.31348681
C65: =Country_uncorrected!AH123 -> 2014-07-25 | D65: =Country_uncorrected!AK123 -> 59 | E65: =Country_uncorrected!AI123 -> 525 | F65: 14.03919809 | G65: 14.03910533 | H65: =G65*Country_uncorrected!D$14 -> 2.1058658 | I65: 506.2975754 | J65: =Country_uncorrected!AL123 -> 506.296252 | K65: 31.18214004 | L65: =Country_uncorrected!AO123 -> 18.18947613 | M65: ='Entry cases beds'!I68 -> 204 | N65: ='Entry cases beds'!K68 -> 0 | P65: =calc2_updated_uncorrected!DP92 -> 23.62269627
C66: =Country_uncorrected!AH124 -> 2014-07-26 | D66: =Country_uncorrected!AK124 -> 60 | E66: =Country_uncorrected!AI124 -> 525 | F66: 14.22428489 | G66: 14.22418674 | H66: =G66*Country_uncorrected!D$14 -> 2.13362801 | I66: 520.5218602 | J66: =Country_uncorrected!AL124 -> 520.5204387 | K66: 31.59618077 | L66: =Country_uncorrected!AO124 -> 18.4309935 | M66: ='Entry cases beds'!I69 -> 204 | N66: ='Entry cases beds'!K69 -> 0 | P66: =calc2_updated_uncorrected!DP93 -> 23.93635519
C67: =Country_uncorrected!AH125 -> 2014-07-27 | D67: =Country_uncorrected!AK125 -> 61 | E67: =Country_uncorrected!AI125 -> 533 | F67: 14.41158875 | G67: 14.41148496 | H67: =G67*Country_uncorrected!D$19 -> 2.161722744 | I67: 534.933449 | J67: =Country_uncorrected!AL125 -> 534.9319237 | K67: 32.01537062 | L67: =Country_uncorrected!AO125 -> 18.67551422 | M67: ='Entry cases beds'!I70 -> 206 | N67: ='Entry cases beds'!K70 -> 0 | P67: =calc2_updated_uncorrected!DP94 -> 24.25391458
C68: =Country_uncorrected!AH126 -> 2014-07-28 | D68: =Country_uncorrected!AK126 -> 62 | E68: =Country_uncorrected!AI126 -> 533 | F68: 14.60136434 | G68: 14.60125466 | H68: =G68*Country_uncorrected!D$19 -> 2.1901882 | I68: 549.5348133 | J68: =Country_uncorrected!AL126 -> 549.5331783 | K68: 32.43940094 | L68: =Country_uncorrected!AO126 -> 18.92285826 | M68: ='Entry cases beds'!I71 -> 206 | N68: ='Entry cases beds'!K71 -> 0 | P68: =calc2_updated_uncorrected!DP95 -> 24.5751406
C69: =Country_uncorrected!AH127 -> 2014-07-29 | D69: =Country_uncorrected!AK127 -> 63 | E69: =Country_uncorrected!AI127 -> 557 | F69: 14.79384111 | G69: 14.79372529 | H69: =G69*Country_uncorrected!D$19 -> 2.219058794 | I69: 564.3286544 | J69: =Country_uncorrected!AL127 -> 564.3269036 | K69: 32.86822585 | L69: =Country_uncorrected!AO127 -> 19.17299883 | M69: ='Entry cases beds'!I72 -> 206 | N69: ='Entry cases beds'!K72 -> 0 | P69: =calc2_updated_uncorrected!DP96 -> 24.89999848
C70: =Country_uncorrected!AH128 -> 2014-07-30 | D70: =Country_uncorrected!AK128 -> 64 | E70: =Country_uncorrected!AI128 -> 557 | F70: 14.98906542 | G70: 14.98894319 | H70: =G70*Country_uncorrected!D$19 -> 2.248341479 | I70: 579.3177199 | J70: =Country_uncorrected!AL128 -> 579.3158468 | K70: 33.30206076 | L70: =Country_uncorrected!AO128 -> 19.42606158 | M70: ='Entry cases beds'!I73 -> 206 | N70: ='Entry cases beds'!K73 -> 0 | P70: =calc2_updated_uncorrected!DP97 -> 25.22865141
C71: =Country_uncorrected!AH129 -> 2014-07-31 | D71: =Country_uncorrected!AK129 -> 65 | E71: =Country_uncorrected!AI129 -> 593 | F71: 15.18707032 | G71: 15.1869414 | H71: =G71*Country_uncorrected!D$19 -> 2.27804121 | I71: 594.5047902 | J71: =Country_uncorrected!AL129 -> 594.5027882 | K71: 33.74131626 | L71: =Country_uncorrected!AO129 -> 19.682286 | M71: ='Entry cases beds'!I74 -> 208 | N71: ='Entry cases beds'!K74 -> 0 | P71: =calc2_updated_uncorrected!DP98 -> 25.56141039
C72: =Country_uncorrected!AH130 -> 2014-08-01 | D72: =Country_uncorrected!AK130 -> 66 | E72: =Country_uncorrected!AI130 -> 593 | F72: =I72-I71 -> 15.38782077 | G72: =J72-J71 -> 15.38768488 | H72: =G72*Country_uncorrected!D$19 -> 2.308152732 | I72: 609.892611 | J72: =Country_uncorrected!AL130 -> 609.8904731 | K72: 34.18636175 | L72: =Country_uncorrected!AO130 -> 19.94188757 | M72: ='Entry cases beds'!I75 -> 208 | N72: ='Entry cases beds'!K75 -> 0 | P72: =calc2_updated_uncorrected!DP99 -> 25.89855528
C73: =Country_uncorrected!AH131 -> 2014-08-02 | D73: =Country_uncorrected!AK131 -> 67 | E73: =Country_uncorrected!AI131 -> 646 | F73: 15.59126437 | G73: 15.59112121 | H73: =G73*Country_uncorrected!D$19 -> 2.338668181 | I73: 625.4838753 | J73: =Country_uncorrected!AL131 -> 625.4815943 | K73: 34.63746498 | L73: =Country_uncorrected!AO131 -> 20.20502245 | M73: ='Entry cases beds'!I76 -> 210 | N73: ='Entry cases beds'!K76 -> 0 | P73: =calc2_updated_uncorrected!DP100 -> 26.2402889
C74: =Country_uncorrected!AH132 -> 2014-08-03 | D74: =Country_uncorrected!AK132 -> 68 | E74: =Country_uncorrected!AI132 -> 646 | F74: 15.7973641 | G74: 15.79721336 | H74: =G74*Country_uncorrected!D$19 -> 2.369582004 | I74: 641.2812394 | J74: =Country_uncorrected!AL132 -> 641.2788077 | K74: 35.09477084 | L74: =Country_uncorrected!AO132 -> 20.47177517 | M74: ='Entry cases beds'!I77 -> 210 | N74: ='Entry cases beds'!K77 -> 0 | P74: =calc2_updated_uncorrected!DP101 -> 26.586721
C75: =Country_uncorrected!AH133 -> 2014-08-04 | D75: =Country_uncorrected!AK133 -> 69 | E75: =Country_uncorrected!AI133 -> 691 | F75: 16.00611506 | G75: 16.00595643 | H75: =G75*Country_uncorrected!D$19 -> 2.400893464 | I75: 657.2873545 | J75: =Country_uncorrected!AL133 -> 657.2847641 | K75: 35.55833858 | L75: =Country_uncorrected!AO133 -> 20.74218026 | M75: ='Entry cases beds'!I78 -> 194 | N75: ='Entry cases beds'!K78 -> 0 | P75: =calc2_updated_uncorrected!DP102 -> 26.93789644
C76: =Country_uncorrected!AH134 -> 2014-08-05 | D76: =Country_uncorrected!AK134 -> 70 | E76: =Country_uncorrected!AI134 -> 691 | F76: 16.21754581 | G76: 16.21737897 | H76: =G76*Country_uncorrected!D$19 -> 2.432606845 | I76: 673.5049003 | J76: =Country_uncorrected!AL134 -> 673.502143 | K76: 36.02816113 | L76: =Country_uncorrected!AO134 -> 21.01623359 | M76: ='Entry cases beds'!I79 -> 194 | N76: ='Entry cases beds'!K79 -> 0 | P76: =calc2_updated_uncorrected!DP103 -> 27.29380986
C77: =Country_uncorrected!AH135 -> 2014-08-06 | D77: =Country_uncorrected!AK135 -> 71 | E77: =Country_uncorrected!AI135 -> 691 | F77: 16.43170809 | G77: 16.43153269 | H77: =G77*Country_uncorrected!D$19 -> 2.464729904 | I77: 689.9366084 | J77: =Country_uncorrected!AL135 -> 689.9336757 | K77: 36.50423321 | L77: =Country_uncorrected!AO135 -> 21.29393207 | M77: ='Entry cases beds'!I80 -> 196 | N77: ='Entry cases beds'!K80 -> 0 | P77: =calc2_updated_uncorrected!DP104 -> 27.65445723
C78: =Country_uncorrected!AH136 -> 2014-08-07 | D78: =Country_uncorrected!AK136 -> 72 | E78: =Country_uncorrected!AI136 -> 717 | F78: 16.64866558 | G78: 16.64848128 | H78: =G78*Country_uncorrected!D$19 -> 2.497272191 | I78: 706.585274 | J78: =Country_uncorrected!AL136 -> 706.582157 | K78: 36.98655965 | L78: =Country_uncorrected!AO136 -> 21.5752785 | M78: ='Entry cases beds'!I81 -> 196 | N78: ='Entry cases beds'!K81 -> 0 | P78: =calc2_updated_uncorrected!DP105 -> 28.0198422
C79: =Country_uncorrected!AH137 -> 2014-08-08 | D79: =Country_uncorrected!AK137 -> 73 | E79: =Country_uncorrected!AI137 -> 717 | F79: 16.86847963 | G79: 16.86828607 | H79: =G79*Country_uncorrected!D$19 -> 2.53024291 | I79: 723.4537536 | J79: =Country_uncorrected!AL137 -> 723.4504431 | K79: 37.47517707 | L79: =Country_uncorrected!AO137 -> 21.86029422 | M79: ='Entry cases beds'!I82 -> 196 | N79: ='Entry cases beds'!K82 -> 0 | P79: =calc2_updated_uncorrected!DP106 -> 28.3899925
C80: =Country_uncorrected!AH138 -> 2014-08-09 | D80: =Country_uncorrected!AK138 -> 74 | E80: =Country_uncorrected!AI138 -> 717 | F80: 17.09120562 | G80: 17.09100242 | H80: =G80*Country_uncorrected!D$19 -> 2.563650362 | I80: 740.5449592 | J80: =Country_uncorrected!AL138 -> 740.5414455 | K80: 37.97015768 | L80: =Country_uncorrected!AO138 -> 22.14902136 | M80: ='Entry cases beds'!I83 -> 196 | N80: ='Entry cases beds'!K83 -> 0 | P80: =calc2_updated_uncorrected!DP107 -> 28.7649628
C81: =Country_uncorrected!AH139 -> 2014-08-10 | D81: =Country_uncorrected!AK139 -> 75 | E81: =Country_uncorrected!AI139 -> 717 | F81: 17.31689012 | G81: 17.31667689 | H81: =G81*Country_uncorrected!D$19 -> 2.597501534 | I81: 757.8618493 | J81: =Country_uncorrected!AL139 -> 757.8581224 | K81: 38.47160127 | L81: =Country_uncorrected!AO139 -> 22.44151809 | M81: ='Entry cases beds'!I84 -> 196 | N81: ='Entry cases beds'!K84 -> 0 | P81: =calc2_updated_uncorrected!DP108 -> 29.14482868
C82: =Country_uncorrected!AH140 -> 2014-08-11 | D82: =Country_uncorrected!AK140 -> 76 | E82: =Country_uncorrected!AI140 -> 759 | F82: 17.54557206 | G82: 17.54534842 | H82: =G82*Country_uncorrected!D$19 -> 2.631802262 | I82: 775.4074214 | J82: =Country_uncorrected!AL140 -> 775.4034708 | K82: 38.97962208 | L82: =Country_uncorrected!AO140 -> 22.73785104 | M82: ='Entry cases beds'!I85 -> 196 | N82: ='Entry cases beds'!K85 -> 0 | P82: =calc2_updated_uncorrected!DP109 -> 29.52967668
C83: =Country_uncorrected!AH141 -> 2014-08-12 | D83: =Country_uncorrected!AK141 -> 77 | E83: =Country_uncorrected!AI141 -> 759 | F83: 17.77728428 | G83: 17.7770498 | H83: =G83*Country_uncorrected!D$19 -> 2.66655747 | I83: 793.1847057 | J83: =Country_uncorrected!AL141 -> 793.1805206 | K83: 39.49433578 | L83: =Country_uncorrected!AO141 -> 23.03808768 | M83: ='Entry cases beds'!I86 -> 200 | N83: ='Entry cases beds'!K86 -> 0 | P83: =calc2_updated_uncorrected!DP110 -> 29.91959439
C84: =Country_uncorrected!AH142 -> 2014-08-13 | D84: =Country_uncorrected!AK142 -> 78 | E84: =Country_uncorrected!AI142 -> 812 | F84: 18.0120579 | G84: 18.01181216 | H84: =G84*Country_uncorrected!D$19 -> 2.701771823 | I84: 811.1967636 | J84: =Country_uncorrected!AL142 -> 811.1923328 | K84: 40.01585121 | L84: =Country_uncorrected!AO142 -> 23.34229148 | M84: ='Entry cases beds'!I87 -> 200 | N84: ='Entry cases beds'!K87 -> 0 | P84: =calc2_updated_uncorrected!DP111 -> 30.31466425
C85: =Country_uncorrected!AH143 -> 2014-08-14 | D85: =Country_uncorrected!AK143 -> 79 | E85: =Country_uncorrected!AI143 -> 810 | F85: 18.24992548 | G85: 18.24966804 | H85: =G85*Country_uncorrected!D$19 -> 2.737450206 | I85: 829.446689 | J85: =Country_uncorrected!AL143 -> 829.4420008 | K85: 40.54426698 | L85: =Country_uncorrected!AO143 -> 23.65051993 | M85: ='Entry cases beds'!I88 -> 200 | N85: ='Entry cases beds'!K88 -> 0 | P85: =calc2_updated_uncorrected!DP112 -> 30.71496094
C86: =Country_uncorrected!AH144 -> 2014-08-15 | D86: =Country_uncorrected!AK144 -> 80 | E86: =Country_uncorrected!AI144 -> 810 | F86: 18.49092273 | G86: 18.49065314 | H86: =G86*Country_uncorrected!D$19 -> 2.77359797 | I86: 847.9376118 | J86: =Country_uncorrected!AL144 -> 847.9326539 | K86: 41.0796732 | L86: =Country_uncorrected!AO144 -> 23.96282559 | M86: ='Entry cases beds'!I89 -> 205 | N86: ='Entry cases beds'!K89 -> 0 | P86: =calc2_updated_uncorrected!DP113 -> 31.12055271
C87: =Country_uncorrected!AH145 -> 2014-08-16 | D87: =Country_uncorrected!AK145 -> 81 | E87: =Country_uncorrected!AI145 -> 849 | F87: 18.73508912 | G87: 18.73480691 | H87: =G87*Country_uncorrected!D$19 -> 2.810221037 | I87: 866.6727009 | J87: =Country_uncorrected!AL145 -> 866.6674608 | K87: 41.62215475 | L87: =Country_uncorrected!AO145 -> 24.27925795 | M87: ='Entry cases beds'!I90 -> 205 | N87: ='Entry cases beds'!K90 -> 0 | P87: =calc2_updated_uncorrected!DP114 -> 31.53150384
C88: =Country_uncorrected!AH146 -> 2014-08-17 | D88: =Country_uncorrected!AK146 -> 82 | E88: =Country_uncorrected!AI146 -> 848 | F88: 18.98246715 | G88: 18.98217184 | H88: =G88*Country_uncorrected!D$19 -> 2.847325776 | I88: 885.655168 | J88: =Country_uncorrected!AL146 -> 885.6496327 | K88: 42.17179518 | L88: =Country_uncorrected!AO146 -> 24.59986573 | M88: ='Entry cases beds'!I91 -> 204 | N88: ='Entry cases beds'!K91 -> 0 | P88: =calc2_updated_uncorrected!DP115 -> 31.94787757
C89: =Country_uncorrected!AH147 -> 2014-08-18 | D89: =Country_uncorrected!AK147 -> 83 | E89: =Country_uncorrected!AI147 -> 848 | F89: 19.23310152 | G89: 19.2327926 | H89: =G89*Country_uncorrected!D$19 -> 2.884918889 | I89: 904.8882696 | J89: =Country_uncorrected!AL147 -> 904.8824253 | K89: 42.7286799 | L89: =Country_uncorrected!AO147 -> 24.92469874 | M89: ='Entry cases beds'!I92 -> 204 | N89: ='Entry cases beds'!K92 -> 0 | P89: =calc2_updated_uncorrected!DP116 -> 32.36973862
C90: =Country_uncorrected!AH148 -> 2014-08-19 | D90: =Country_uncorrected!AK148 -> 84 | E90: =Country_uncorrected!AI148 -> 848 | F90: 19.48703778 | G90: 19.48671474 | H90: =G90*Country_uncorrected!D$19 -> 2.923007211 | I90: 924.3753073 | J90: =Country_uncorrected!AL148 -> 924.36914 | K90: 43.29289855 | L90: =Country_uncorrected!AO148 -> 25.25380924 | M90: ='Entry cases beds'!I93 -> 194 | N90: ='Entry cases beds'!K93 -> 0 | P90: =calc2_updated_uncorrected!DP117 -> 32.79715485
C91: =Country_uncorrected!AH149 -> 2014-08-20 | D91: =Country_uncorrected!AK149 -> 85 | E91: =Country_uncorrected!AI149 -> 910 | F91: 19.74432163 | G91: 19.74398394 | H91: =G91*Country_uncorrected!D$19 -> 2.961597591 | I91: 944.119629 | J91: =Country_uncorrected!AL149 -> 944.113124 | K91: 43.86454559 | L91: =Country_uncorrected!AO149 -> 25.58725231 | M91: ='Entry cases beds'!I94 -> 194 | N91: ='Entry cases beds'!K94 -> 0 | P91: =calc2_updated_uncorrected!DP118 -> 33.2301978
C92: =Country_uncorrected!AH150 -> 2014-08-21 | D92: =Country_uncorrected!AK150 -> 86 | E92: =Country_uncorrected!AI150 -> 913 | F92: 20.00499828 | G92: 20.00464538 | H92: =G92*Country_uncorrected!D$19 -> 3.000696807 | I92: 964.1246273 | J92: =Country_uncorrected!AL150 -> 964.1177693 | K92: 44.44371961 | L92: =Country_uncorrected!AO150 -> 25.92508545 | M92: ='Entry cases beds'!I95 -> 196 | N92: ='Entry cases beds'!K95 -> 0 | P92: =calc2_updated_uncorrected!DP119 -> 33.66894214
C93: =Country_uncorrected!AH151 -> 2014-08-22 | D93: =Country_uncorrected!AK151 -> 87 | E93: =Country_uncorrected!AI151 -> 913 | F93: 20.2691125 | G93: 20.26874383 | H93: =G93*Country_uncorrected!D$19 -> 3.040311574 | I93: 984.3937398 | J93: =Country_uncorrected!AL151 -> 984.3865132 | K93: 45.03052224 | L93: =Country_uncorrected!AO151 -> 26.2673679 | M93: ='Entry cases beds'!I96 -> 196 | N93: ='Entry cases beds'!K96 -> 0 | P93: =calc2_updated_uncorrected!DP120 -> 34.11346481
C94: =Country_uncorrected!AH152 -> 2014-08-23 | D94: =Country_uncorrected!AK152 -> 88 | E94: =Country_uncorrected!AI152 -> 913 | F94: 20.53670885 | G94: 20.53632382 | H94: =G94*Country_uncorrected!D$19 -> 3.080448573 | I94: 1004.930449 | J94: =Country_uncorrected!AL152 -> 1004.922837 | K94: 45.62505675 | L94: =Country_uncorrected!AO152 -> 26.61415991 | M94: ='Entry cases beds'!I97 -> 196 | N94: ='Entry cases beds'!K97 -> 0 | P94: =calc2_updated_uncorrected!DP121 -> 34.56384404
C95: =Country_uncorrected!AH153 -> 2014-08-24 | D95: =Country_uncorrected!AK153 -> 89 | E95: =Country_uncorrected!AI153 -> 1025 | F95: 20.80783209 | G95: 20.80743009 | H95: =G95*Country_uncorrected!D$19 -> 3.121114514 | I95: 1025.738281 | J95: =Country_uncorrected!AL153 -> 1025.730267 | K95: 46.22742718 | L95: =Country_uncorrected!AO153 -> 26.96552212 | M95: ='Entry cases beds'!I98 -> 196 | N95: ='Entry cases beds'!K98 -> 0 | P95: =calc2_updated_uncorrected!DP122 -> 35.0201586
C96: =Country_uncorrected!AH154 -> 2014-08-25 | D96: =Country_uncorrected!AK154 -> 90 | E96: =Country_uncorrected!AI154 -> 1025 | F96: 21.08252758 | G96: 21.08210799 | H96: =G96*Country_uncorrected!D$19 -> 3.162316198 | I96: 1046.820808 | J96: =Country_uncorrected!AL154 -> 1046.812375 | K96: 46.83773778 | L96: =Country_uncorrected!AO154 -> 27.32151533 | M96: ='Entry cases beds'!I99 -> 196 | N96: ='Entry cases beds'!K99 -> 0 | P96: =calc2_updated_uncorrected!DP123 -> 35.48248745
C97: =Country_uncorrected!AH155 -> 2014-08-26 | D97: =Country_uncorrected!AK155 -> 91 | E97: =Country_uncorrected!AI155 -> 1057 | F97: 21.36084152 | G97: 21.36040369 | H97: =G97*Country_uncorrected!D$24 -> 3.204060554 | I97: 1068.18165 | J97: =Country_uncorrected!AL155 -> 1068.172779 | K97: 47.45609301 | L97: =Country_uncorrected!AO155 -> 27.68220046 | M97: ='Entry cases beds'!I100 -> 196 | N97: ='Entry cases beds'!K100 -> 0 | P97: =calc2_updated_uncorrected!DP124 -> 35.95090969
C98: =Country_uncorrected!AH156 -> 2014-08-27 | D98: =Country_uncorrected!AK156 -> 92 | E98: =Country_uncorrected!AI156 -> 1057 | F98: 21.6428211 | G98: 21.64236437 | H98: =G98*Country_uncorrected!D$24 -> 3.246354656 | I98: 1089.824471 | J98: =Country_uncorrected!AL156 -> 1089.815143 | K98: 48.08259784 | L98: =Country_uncorrected!AO156 -> 28.04763869 | M98: ='Entry cases beds'!I101 -> 200 | N98: ='Entry cases beds'!K101 -> 0 | P98: =calc2_updated_uncorrected!DP125 -> 36.4255048
C99: =Country_uncorrected!AH157 -> 2014-08-28 | D99: =Country_uncorrected!AK157 -> 93 | E99: =Country_uncorrected!AI157 -> 1117 | F99: 21.92851446 | G99: 21.92803815 | H99: =G99*Country_uncorrected!D$24 -> 3.289205722 | I99: 1111.752985 | J99: =Country_uncorrected!AL157 -> 1111.743181 | K99: 48.71735818 | L99: =Country_uncorrected!AO157 -> 28.4178918 | M99: ='Entry cases beds'!I102 -> 200 | N99: ='Entry cases beds'!K102 -> 0 | P99: =calc2_updated_uncorrected!DP126 -> 36.90635299
C100: =Country_uncorrected!AH158 -> 2014-08-29 | D100: =Country_uncorrected!AK158 -> 94 | E100: =Country_uncorrected!AI158 -> 0 | F100: 22.21797058 | G100: 22.21747397 | H100: =G100*Country_uncorrected!D$24 -> 3.332621096 | I100: 1133.970956 | J100: =Country_uncorrected!AL158 -> 1133.960655 | K100: 49.36048134 | L100: =Country_uncorrected!AO158 -> 28.79302235 | M100: ='Entry cases beds'!I103 -> 200 | N100: ='Entry cases beds'!K103 -> 0 | P100: =calc2_updated_uncorrected!DP127 -> 37.39353552
C101: =Country_uncorrected!AH159 -> 2014-08-30 | D101: =Country_uncorrected!AK159 -> 95 | E101: =Country_uncorrected!AI159 -> 0 | F101: 22.51123916 | G101: 22.51072152 | H101: =G101*Country_uncorrected!D$24 -> 3.376608228 | I101: 1156.482195 | J101: =Country_uncorrected!AL159 -> 1156.471377 | K101: 50.01207634 | L101: =Country_uncorrected!AO159 -> 29.17309391 | M101: ='Entry cases beds'!I104 -> 205 | N101: ='Entry cases beds'!K104 -> 0 | P101: =calc2_updated_uncorrected!DP128 -> 37.88713495
C102: =Country_uncorrected!AH160 -> 2014-08-31 | D102: =Country_uncorrected!AK160 -> 96 | E102: =Country_uncorrected!AI160 -> 0 | F102: 22.80837048 | G102: 22.80783106 | H102: =G102*Country_uncorrected!D$24 -> 3.42117466 | I102: 1179.290566 | J102: =Country_uncorrected!AL160 -> 1179.279208 | K102: 50.67225401 | L102: =Country_uncorrected!AO160 -> 29.5581711 | M102: ='Entry cases beds'!I105 -> 205 | N102: ='Entry cases beds'!K105 -> 0 | P102: =calc2_updated_uncorrected!DP129 -> 38.38723519
C103: =Country_uncorrected!AH161 -> 2014-09-01 | D103: =Country_uncorrected!AK161 -> 97 | E103: =Country_uncorrected!AI161 -> 0 | F103: 23.10941538 | G103: 23.1088534 | H103: =G103*Country_uncorrected!D$24 -> 3.466328011 | I103: 1202.399981 | J103: =Country_uncorrected!AL161 -> 1202.388061 | K103: 51.34112699 | L103: =Country_uncorrected!AO161 -> 29.94831959 | M103: ='Entry cases beds'!I106 -> 204 | N103: ='Entry cases beds'!K106 -> 0 | P103: =calc2_updated_uncorrected!DP130 -> 38.89392154
C104: =Country_uncorrected!AH162 -> 2014-09-02 | D104: =Country_uncorrected!AK162 -> 98 | E104: =Country_uncorrected!AI162 -> 0 | F104: 23.41442522 | G104: 23.41383988 | H104: =G104*Country_uncorrected!D$24 -> 3.512075981 | I104: 1225.814406 | J104: =Country_uncorrected!AL162 -> 1225.801901 | K104: 52.01880961 | L104: =Country_uncorrected!AO162 -> 30.34360605 | M104: ='Entry cases beds'!I107 -> 204 | N104: ='Entry cases beds'!K107 -> 0 | P104: =calc2_updated_uncorrected!DP131 -> 39.40728059
C105: =Country_uncorrected!AH163 -> 2014-09-03 | D105: =Country_uncorrected!AK163 -> 99 | E105: =Country_uncorrected!AI163 -> 0 | F105: 23.72345191 | G105: 23.72284238 | H105: =G105*Country_uncorrected!D$24 -> 3.558426357 | I105: 1249.537858 | J105: =Country_uncorrected!AL163 -> 1249.524744 | K105: 52.70541777 | L105: =Country_uncorrected!AO163 -> 30.74409807 | M105: ='Entry cases beds'!I108 -> 194 | N105: ='Entry cases beds'!K108 -> 0 | P105: =calc2_updated_uncorrected!DP132 -> 39.92740009
C106: =Country_uncorrected!AH164 -> 2014-09-04 | D106: =Country_uncorrected!AK164 -> 100 | E106: =Country_uncorrected!AI164 -> 0 | F106: 24.03654801 | G106: 24.03591343 | H106: =G106*Country_uncorrected!D$24 -> 3.605387015 | I106: 1273.574406 | J106: =Country_uncorrected!AL164 -> 1273.560657 | K106: 53.40106884 | L106: =Country_uncorrected!AO164 -> 31.14986406 | M106: ='Entry cases beds'!I109 -> 194 | N106: ='Entry cases beds'!K109 -> 0 | P106: =calc2_updated_uncorrected!DP133 -> 40.45436891
C107: =Country_uncorrected!AH165 -> 2014-09-05 | D107: =Country_uncorrected!AK165 -> 101 | E107: =Country_uncorrected!AI165 -> 0 | F107: 24.35376674 | G107: 24.35310624 | H107: =G107*Country_uncorrected!D$24 -> 3.652965936 | I107: 1297.928173 | J107: =Country_uncorrected!AL165 -> 1297.913763 | K107: 54.10588158 | L107: =Country_uncorrected!AO165 -> 31.56097327 | M107: ='Entry cases beds'!I110 -> 196 | N107: ='Entry cases beds'!K110 -> 0 | P107: =calc2_updated_uncorrected!DP134 -> 40.98827698
C108: =Country_uncorrected!AH166 -> 2014-09-06 | D108: =Country_uncorrected!AK166 -> 102 | E108: =Country_uncorrected!AI166 -> 1424 | F108: 24.67516204 | G108: 27.61447471 | H108: =G108*Country_uncorrected!D$24 -> 4.142171207 | I108: 1322.603335 | J108: =Country_uncorrected!AL166 -> 1325.528238 | K108: 54.81997613 | L108: =Country_uncorrected!AO166 -> 32.54344576 | M108: ='Entry cases beds'!I111 -> 196 | N108: ='Entry cases beds'!K111 -> 0 | P108: =calc2_updated_uncorrected!DP135 -> 42.26421528
C109: =Country_uncorrected!AH167 -> 2014-09-07 | D109: =Country_uncorrected!AK167 -> 103 | E109: =Country_uncorrected!AI167 -> 0 | F109: 25.00078862 | G109: 37.90007131 | H109: =G109*Country_uncorrected!D$24 -> 5.685010696 | I109: 1347.604124 | J109: =Country_uncorrected!AL167 -> 1363.428309 | K109: 55.54347411 | L109: =Country_uncorrected!AO167 -> 35.44870201 | M109: ='Entry cases beds'!I112 -> 196 | N109: ='Entry cases beds'!K112 -> 0 | P109: =calc2_updated_uncorrected!DP136 -> 46.03727534
C110: =Country_uncorrected!AH168 -> 2014-09-08 | D110: =Country_uncorrected!AK168 -> 104 | E110: =Country_uncorrected!AI168 -> 0 | F110: 25.3307019 | G110: 48.27994392 | H110: =G110*Country_uncorrected!D$24 -> 7.241991589 | I110: 1372.934825 | J110: =Country_uncorrected!AL168 -> 1411.708253 | K110: 56.27649866 | L110: =Country_uncorrected!AO168 -> 40.29413694 | M110: ='Entry cases beds'!I113 -> 196 | N110: ='Entry cases beds'!K113 -> 0 | P110: =calc2_updated_uncorrected!DP137 -> 52.33004797
C111: =Country_uncorrected!AH169 -> 2014-09-09 | D111: =Country_uncorrected!AK169 -> 105 | E111: =Country_uncorrected!AI169 -> 0 | F111: 25.66495809 | G111: 49.76511544 | H111: =G111*Country_uncorrected!D$24 -> 7.464767316 | I111: 1398.599784 | J111: =Country_uncorrected!AL169 -> 1461.473369 | K111: 57.01917451 | L111: =Country_uncorrected!AO169 -> 45.36675748 | M111: ='Entry cases beds'!I114 -> 196 | N111: ='Entry cases beds'!K114 -> 0 | P111: =calc2_updated_uncorrected!DP138 -> 58.91786686
C112: =Country_uncorrected!AH170 -> 2014-09-10 | D112: =Country_uncorrected!AK170 -> 106 | E112: =Country_uncorrected!AI170 -> 0 | F112: 26.00361409 | G112: 47.16999863 | H112: =G112*Country_uncorrected!D$24 -> 7.075499794 | I112: 1424.603398 | J112: =Country_uncorrected!AL170 -> 1508.643367 | K112: 57.77162803 | L112: =Country_uncorrected!AO170 -> 49.88033506 | M112: ='Entry cases beds'!I115 -> 196 | N112: ='Entry cases beds'!K115 -> 0 | P112: =calc2_updated_uncorrected!DP139 -> 64.77965592
C113: =Country_uncorrected!AH171 -> 2014-09-11 | D113: =Country_uncorrected!AK171 -> 107 | E113: =Country_uncorrected!AI171 -> 0 | F113: 26.34672759 | G113: 45.13563273 | H113: =G113*Country_uncorrected!D$24 -> 6.770344909 | I113: 1450.950125 | J113: =Country_uncorrected!AL171 -> 1553.779 | K113: 58.53398729 | L113: =Country_uncorrected!AO171 -> 53.94203102 | M113: ='Entry cases beds'!I116 -> 200 | N113: ='Entry cases beds'!K116 -> 0 | P113: =calc2_updated_uncorrected!DP140 -> 70.05458575
C114: =Country_uncorrected!AH172 -> 2014-09-12 | D114: =Country_uncorrected!AK172 -> 108 | E114: =Country_uncorrected!AI172 -> 0 | F114: 26.69435697 | G114: 40.98480594 | H114: =G114*Country_uncorrected!D$24 -> 6.147720891 | I114: 1477.644482 | J114: =Country_uncorrected!AL172 -> 1594.763806 | K114: 59.30638207 | L114: =Country_uncorrected!AO172 -> 57.14363322 | M114: ='Entry cases beds'!I117 -> 200 | N114: ='Entry cases beds'!K117 -> 0 | P114: =calc2_updated_uncorrected!DP141 -> 74.21251067
C115: =Country_uncorrected!AH173 -> 2014-09-13 | D115: =Country_uncorrected!AK173 -> 109 | E115: =Country_uncorrected!AI173 -> 1603 | F115: 27.04656136 | G115: 39.77252604 | H115: =G115*Country_uncorrected!D$24 -> 5.965878906 | I115: 1504.691044 | J115: =Country_uncorrected!AL173 -> 1634.536332 | K115: 60.08894384 | L115: =Country_uncorrected!AO173 -> 59.4840581 | M115: ='Entry cases beds'!I118 -> 200 | N115: ='Entry cases beds'!K118 -> 0 | P115: =calc2_updated_uncorrected!DP142 -> 77.2520235
C116: =Country_uncorrected!AH174 -> 2014-09-14 | D116: =Country_uncorrected!AK174 -> 110 | E116: =Country_uncorrected!AI174 -> 0 | F116: 27.40340066 | G116: 40.53349723 | H116: =G116*Country_uncorrected!D$24 -> 6.080024585 | I116: 1532.094444 | J116: =Country_uncorrected!AL174 -> 1675.069829 | K116: 60.88180582 | L116: =Country_uncorrected!AO174 -> 59.99099259 | M116: ='Entry cases beds'!I119 -> 205 | N116: ='Entry cases beds'!K119 -> 0 | P116: =calc2_updated_uncorrected!DP143 -> 77.91037998
C117: =Country_uncorrected!AH175 -> 2014-09-15 | D117: =Country_uncorrected!AK175 -> 111 | E117: =Country_uncorrected!AI175 -> 1603 | F117: 27.76493553 | G117: 40.74035172 | H117: =G117*Country_uncorrected!D$24 -> 6.111052759 | I117: 1559.85938 | J117: =Country_uncorrected!AL175 -> 1715.810181 | K117: 61.68510292 | L117: =Country_uncorrected!AO175 -> 58.53962109 | M117: ='Entry cases beds'!I120 -> 205 | N117: ='Entry cases beds'!K120 -> 0 | P117: =calc2_updated_uncorrected!DP144 -> 76.02548193
C118: =Country_uncorrected!AH176 -> 2014-09-16 | D118: =Country_uncorrected!AK176 -> 112 | E118: =Country_uncorrected!AI176 -> 1603 | F118: 28.13122742 | G118: 42.56130433 | H118: =G118*Country_uncorrected!D$24 -> 6.38419565 | I118: 1587.990607 | J118: =Country_uncorrected!AL176 -> 1758.371485 | K118: 62.4989718 | L118: =Country_uncorrected!AO176 -> 57.15288745 | M118: ='Entry cases beds'!I121 -> 204 | N118: ='Entry cases beds'!K121 -> 0 | P118: =calc2_updated_uncorrected!DP145 -> 74.22452916
C119: =Country_uncorrected!AH177 -> 2014-09-17 | D119: =Country_uncorrected!AK177 -> 113 | E119: =Country_uncorrected!AI177 -> 1735 | F119: 28.50233855 | G119: 44.04724061 | H119: =G119*Country_uncorrected!D$24 -> 6.607086092 | I119: 1616.492946 | J119: =Country_uncorrected!AL177 -> 1802.418726 | K119: 63.32355087 | L119: =Country_uncorrected!AO177 -> 56.55175653 | M119: ='Entry cases beds'!I122 -> 204 | N119: ='Entry cases beds'!K122 -> 0 | P119: =calc2_updated_uncorrected!DP146 -> 73.44383965
C120: =Country_uncorrected!AH178 -> 2014-09-18 | D120: =Country_uncorrected!AK178 -> 114 | E120: =Country_uncorrected!AI178 -> 1753 | F120: 28.878332 | G120: 46.11079927 | H120: =G120*Country_uncorrected!D$24 -> 6.916619891 | I120: 1645.371278 | J120: =Country_uncorrected!AL178 -> 1848.529525 | K120: 64.15898032 | L120: =Country_uncorrected!AO178 -> 56.73947609 | M120: ='Entry cases beds'!I123 -> 204 | N120: ='Entry cases beds'!K123 -> 0 | P120: =calc2_updated_uncorrected!DP147 -> 73.68763129
C121: =Country_uncorrected!AH179 -> 2014-09-19 | D121: =Country_uncorrected!AK179 -> 115 | E121: =Country_uncorrected!AI179 -> 1791 | F121: 29.25927163 | G121: 46.77062619 | H121: =G121*Country_uncorrected!D$24 -> 7.015593928 | I121: 1674.630549 | J121: =Country_uncorrected!AL179 -> 1895.300151 | K121: 65.00540216 | L121: =Country_uncorrected!AO179 -> 57.85324649 | M121: ='Entry cases beds'!I124 -> 201 | N121: ='Entry cases beds'!K124 -> 0 | P121: =calc2_updated_uncorrected!DP148 -> 75.13408635
C122: =Country_uncorrected!AH180 -> 2014-09-20 | D122: =Country_uncorrected!AK180 -> 116 | E122: =Country_uncorrected!AI180 -> 1813 | F122: 29.64522215 | G122: 47.45222827 | H122: =G122*Country_uncorrected!D$24 -> 7.117834241 | I122: 1704.275771 | J122: =Country_uncorrected!AL180 -> 1942.75238 | K122: 65.86296022 | L122: =Country_uncorrected!AO180 -> 59.33158917 | M122: ='Entry cases beds'!I125 -> 201 | N122: ='Entry cases beds'!K125 -> 0 | P122: =calc2_updated_uncorrected!DP149 -> 77.05401191
C123: =Country_uncorrected!AH181 -> 2014-09-21 | D123: =Country_uncorrected!AK181 -> 117 | E123: =Country_uncorrected!AI181 -> 1876 | F123: 30.03624909 | G123: 47.57165515 | H123: =G123*Country_uncorrected!D$24 -> 7.135748272 | I123: 1734.312021 | J123: =Country_uncorrected!AL181 -> 1990.324035 | K123: 66.73180021 | L123: =Country_uncorrected!AO181 -> 60.68643457 | M123: ='Entry cases beds'!I126 -> 201 | N123: ='Entry cases beds'!K126 -> 0 | P123: =calc2_updated_uncorrected!DP150 -> 78.81355139
C124: =Country_uncorrected!AH182 -> 2014-09-22 | D124: =Country_uncorrected!AK182 -> 118 | E124: =Country_uncorrected!AI182 -> 1940 | F124: 30.43241885 | G124: 47.97209426 | H124: =G124*Country_uncorrected!D$24 -> 7.195814139 | I124: 1764.744439 | J124: =Country_uncorrected!AL182 -> 2038.296129 | K124: 67.6120697 | L124: =Country_uncorrected!AO182 -> 62.07854501 | M124: ='Entry cases beds'!I127 -> 218 | N124: ='Entry cases beds'!K127 -> 0 | P124: =calc2_updated_uncorrected!DP151 -> 80.62148702
C125: =Country_uncorrected!AH183 -> 2014-09-23 | D125: =Country_uncorrected!AK183 -> 119 | E125: =Country_uncorrected!AI183 -> 1967 | F125: 30.83379868 | G125: 48.24384529 | H125: =G125*Country_uncorrected!D$24 -> 7.236576793 | I125: 1795.578238 | J125: =Country_uncorrected!AL183 -> 2086.539974 | K125: 68.50391822 | L125: =Country_uncorrected!AO183 -> 63.17243414 | M125: ='Entry cases beds'!I128 -> 218 | N125: ='Entry cases beds'!K128 -> 0 | P125: =calc2_updated_uncorrected!DP152 -> 82.04212226
C126: =Country_uncorrected!AH184 -> 2014-09-24 | D126: =Country_uncorrected!AK184 -> 120 | E126: =Country_uncorrected!AI184 -> 2021 | F126: 31.24045667 | G126: 48.54298373 | H126: =G126*Country_uncorrected!D$24 -> 7.281447559 | I126: 1826.818695 | J126: =Country_uncorrected!AL184 -> 2135.082958 | K126: 69.4074972 | L126: =Country_uncorrected!AO184 -> 64.03786469 | M126: ='Entry cases beds'!I129 -> 218 | N126: ='Entry cases beds'!K129 -> 0 | P126: =calc2_updated_uncorrected!DP153 -> 83.16605804
C127: =Country_uncorrected!AH185 -> 2014-09-25 | D127: =Country_uncorrected!AK185 -> 121 | E127: =Country_uncorrected!AI185 -> 2092 | F127: 31.65246183 | G127: 49.23609197 | H127: =G127*Country_uncorrected!D$29 -> 9.847218393 | I127: 1858.471157 | J127: =Country_uncorrected!AL185 -> 2184.31905 | K127: 70.32296004 | L127: =Country_uncorrected!AO185 -> 66.9781979 | M127: ='Entry cases beds'!I130 -> 218 | N127: ='Entry cases beds'!K130 -> 0 | P127: =calc2_updated_uncorrected!DP154 -> 76.56196742
C128: =Country_uncorrected!AH186 -> 2014-09-26 | D128: =Country_uncorrected!AK186 -> 122 | E128: =Country_uncorrected!AI186 -> 2120 | F128: 32.06988403 | G128: 49.99910325 | H128: =G128*Country_uncorrected!D$29 -> 9.99982065 | I128: 1890.541041 | J128: =Country_uncorrected!AL186 -> 2234.318153 | K128: 71.25046213 | L128: =Country_uncorrected!AO186 -> 69.97463714 | M128: ='Entry cases beds'!I131 -> 218 | N128: ='Entry cases beds'!K131 -> 0 | P128: =calc2_updated_uncorrected!DP155 -> 69.8692212
C129: =Country_uncorrected!AH187 -> 2014-09-27 | D129: =Country_uncorrected!AK187 -> 123 | E129: =Country_uncorrected!AI187 -> 2149 | F129: 32.49279405 | G129: 50.79522203 | H129: =G129*Country_uncorrected!D$29 -> 10.15904441 | I129: 1923.033835 | J129: =Country_uncorrected!AL187 -> 2285.113375 | K129: 72.19016086 | L129: =Country_uncorrected!AO187 -> 73.03093649 | M129: ='Entry cases beds'!I132 -> 218 | N129: ='Entry cases beds'!K132 -> 0 | P129: =calc2_updated_uncorrected!DP156 -> 63.08568633
C130: =Country_uncorrected!AH188 -> 2014-09-28 | D130: =Country_uncorrected!AK188 -> 124 | E130: =Country_uncorrected!AI188 -> 2208 | F130: 32.92126359 | G130: 51.57984693 | H130: =G130*Country_uncorrected!D$29 -> 10.31596939 | I130: 1955.955098 | J130: =Country_uncorrected!AL188 -> 2336.693222 | K130: 73.14221564 | L130: =Country_uncorrected!AO188 -> 76.25255614 | M130: ='Entry cases beds'!I133 -> 218 | N130: ='Entry cases beds'!K133 -> 0 | P130: =calc2_updated_uncorrected!DP157 -> 56.35075724
C131: =Country_uncorrected!AH189 -> 2014-09-29 | D131: =Country_uncorrected!AK189 -> 125 | E131: =Country_uncorrected!AI189 -> 2317 | F131: 33.35536527 | G131: 52.49022822 | H131: =G131*Country_uncorrected!D$29 -> 10.49804564 | I131: 1989.310464 | J131: =Country_uncorrected!AL189 -> 2389.18345 | K131: 74.10678796 | L131: =Country_uncorrected!AO189 -> 79.61558276 | M131: ='Entry cases beds'!I134 -> 218 | N131: ='Entry cases beds'!K134 -> 0 | P131: =calc2_updated_uncorrected!DP158 -> 49.60675649
C132: =Country_uncorrected!AH190 -> 2014-09-30 | D132: =Country_uncorrected!AK190 -> 126 | E132: =Country_uncorrected!AI190 -> 2317 | F132: 33.79517264 | G132: 53.51500226 | H132: =G132*Country_uncorrected!D$29 -> 10.70300045 | I132: 2023.105636 | J132: =Country_uncorrected!AL190 -> 2442.698453 | K132: 75.08404136 | L132: =Country_uncorrected!AO190 -> 83.17224309 | M132: ='Entry cases beds'!I135 -> 218 | N132: ='Entry cases beds'!K135 -> 0 | P132: =calc2_updated_uncorrected!DP159 -> 42.8972954
C133: =Country_uncorrected!AH191 -> 2014-10-01 | D133: =Country_uncorrected!AK191 -> 127 | E133: =Country_uncorrected!AI191 -> 2437 | F133: 34.24076021 | G133: 54.77283683 | H133: =G133*Country_uncorrected!D$29 -> 10.95456737 | I133: 2057.346396 | J133: =Country_uncorrected!AL191 -> 2497.471289 | K133: 76.07414153 | L133: =Country_uncorrected!AO191 -> 86.97319956 | M133: ='Entry cases beds'!I136 -> 218 | N133: ='Entry cases beds'!K136 -> 0 | P133: =calc2_updated_uncorrected!DP160 -> 36.23883315
C134: =Country_uncorrected!AH192 -> 2014-10-02 | D134: =Country_uncorrected!AK192 -> 128 | E134: =Country_uncorrected!AI192 -> 2480 | F134: 34.69220345 | G134: 56.19921866 | H134: =G134*Country_uncorrected!D$29 -> 11.23984373 | I134: 2092.0386 | J134: =Country_uncorrected!AL192 -> 2553.670508 | K134: 77.07725627 | L134: =Country_uncorrected!AO192 -> 88.64434996 | M134: ='Entry cases beds'!I137 -> 218 | N134: ='Entry cases beds'!K137 -> 0 | P134: =calc2_updated_uncorrected!DP161 -> 36.93514582
C135: =Country_uncorrected!AH193 -> 2014-10-03 | D135: =Country_uncorrected!AK193 -> 129 | E135: =Country_uncorrected!AI193 -> 2480 | F135: 35.14957879 | G135: 57.80036753 | H135: =G135*Country_uncorrected!D$29 -> 11.56007351 | I135: 2127.188179 | J135: =Country_uncorrected!AL193 -> 2611.470876 | K135: 78.09355554 | L135: =Country_uncorrected!AO193 -> 90.51665339 | M135: ='Entry cases beds'!I138 -> 218 | N135: ='Entry cases beds'!K138 -> 0 | P135: =calc2_updated_uncorrected!DP162 -> 37.71527225
C136: =Country_uncorrected!AH194 -> 2014-10-04 | D136: =Country_uncorrected!AK194 -> 130 | E136: =Country_uncorrected!AI194 -> 2480 | F136: =I136-I135 -> 35.61296365 | G136: =J136-J135 -> 59.53082733 | H136: =G136*Country_uncorrected!D$29 -> 11.90616547 | I136: 2162.801142 | J136: =Country_uncorrected!AL194 -> 2671.001703 | K136: 79.12321151 | L136: =Country_uncorrected!AO194 -> 92.61319866 | M136: ='Entry cases beds'!I139 -> 218 | N136: ='Entry cases beds'!K139 -> 0 | P136: =calc2_updated_uncorrected!DP163 -> 38.58883278
C137: =Country_uncorrected!AH195 -> 2014-10-05 | D137: =Country_uncorrected!AK195 -> 131 | E137: =Country_uncorrected!AI195 -> 2727 | F137: 36.08243645 | G137: 61.30273119 | H137: =G137*Country_uncorrected!D$29 -> 12.26054624 | I137: 2198.883579 | J137: =Country_uncorrected!AL195 -> 2732.304434 | K137: 80.16639855 | L137: =Country_uncorrected!AO195 -> 94.94669088 | M137: ='Entry cases beds'!I140 -> 218 | N137: ='Entry cases beds'!K140 -> 0 | P137: =calc2_updated_uncorrected!DP164 -> 39.5611212
C138: =Country_uncorrected!AH196 -> 2014-10-06 | D138: =Country_uncorrected!AK196 -> 132 | E138: =Country_uncorrected!AI196 -> 2784 | F138: 36.55807662 | G138: 63.03438904 | H138: =G138*Country_uncorrected!D$29 -> 12.60687781 | I138: 2235.441655 | J138: =Country_uncorrected!AL196 -> 2795.338823 | K138: 81.2232933 | L138: =Country_uncorrected!AO196 -> 97.47728948 | M138: ='Entry cases beds'!I141 -> 218 | N138: ='Entry cases beds'!K141 -> 0 | P138: =calc2_updated_uncorrected!DP165 -> 40.61553728
C139: =Country_uncorrected!AH197 -> 2014-10-07 | D139: =Country_uncorrected!AK197 -> 133 | E139: =Country_uncorrected!AI197 -> 2823 | F139: 37.0399646 | G139: 64.71102184 | H139: =G139*Country_uncorrected!D$29 -> 12.94220437 | I139: 2272.48162 | J139: =Country_uncorrected!AL197 -> 2860.049845 | K139: 82.29407465 | L139: =Country_uncorrected!AO197 -> 100.1643342 | M139: ='Entry cases beds'!I142 -> 218 | N139: ='Entry cases beds'!K142 -> 0 | P139: =calc2_updated_uncorrected!DP166 -> 41.73513924
C140: =Country_uncorrected!AH198 -> 2014-10-08 | D140: =Country_uncorrected!AK198 -> 134 | E140: =Country_uncorrected!AI198 -> 2937 | F140: 37.52818188 | G140: 66.36827144 | H140: =G140*Country_uncorrected!D$29 -> 13.27365429 | I140: 2310.009802 | J140: =Country_uncorrected!AL198 -> 2926.418116 | K140: 83.3789238 | L140: =Country_uncorrected!AO198 -> 102.9472385 | M140: ='Entry cases beds'!I143 -> 346 | N140: ='Entry cases beds'!K143 -> 0 | P140: =calc2_updated_uncorrected!DP167 -> 42.8946827
C141: =Country_uncorrected!AH199 -> 2014-10-09 | D141: =Country_uncorrected!AK199 -> 135 | E141: =Country_uncorrected!AI199 -> 0 | F141: 38.02281097 | G141: 68.03197358 | H141: =G141*Country_uncorrected!D$29 -> 13.60639472 | I141: 2348.032613 | J141: =Country_uncorrected!AL199 -> 2994.45009 | K141: 84.47802428 | L141: =Country_uncorrected!AO199 -> 105.7870997 | M141: ='Entry cases beds'!I144 -> 346 | N141: ='Entry cases beds'!K144 -> 0 | P141: =calc2_updated_uncorrected!DP168 -> 44.0779582
C142: =Country_uncorrected!AH200 -> 2014-10-10 | D142: =Country_uncorrected!AK200 -> 136 | E142: =Country_uncorrected!AI200 -> 0 | F142: 38.52393548 | G142: 69.7567608 | H142: =G142*Country_uncorrected!D$29 -> 13.95135216 | I142: 2386.556548 | J142: =Country_uncorrected!AL200 -> 3064.206851 | K142: 85.59156199 | L142: =Country_uncorrected!AO200 -> 108.6566341 | M142: ='Entry cases beds'!I145 -> 346 | N142: ='Entry cases beds'!K145 -> 0 | P142: =calc2_updated_uncorrected!DP169 -> 45.27359752
C143: =Country_uncorrected!AH201 -> 2014-10-11 | D143: =Country_uncorrected!AK201 -> 137 | E143: =Country_uncorrected!AI201 -> 0 | F143: 39.03164005 | G143: 71.55900636 | H143: =G143*Country_uncorrected!D$29 -> 14.31180127 | I143: 2425.588188 | J143: =Country_uncorrected!AL201 -> 3135.765857 | K143: 86.7197252 | L143: =Country_uncorrected!AO201 -> 111.543397 | M143: ='Entry cases beds'!I146 -> 346 | N143: ='Entry cases beds'!K146 -> 0 | P143: =calc2_updated_uncorrected!DP170 -> 46.47641542
C144: =Country_uncorrected!AH202 -> 2014-10-12 | D144: =Country_uncorrected!AK202 -> 138 | E144: =Country_uncorrected!AI202 -> 0 | F144: 39.54601045 | G144: 73.43874385 | H144: =G144*Country_uncorrected!D$29 -> 14.68774877 | I144: 2465.134199 | J144: =Country_uncorrected!AL202 -> 3209.204601 | K144: 87.86270462 | L144: =Country_uncorrected!AO202 -> 114.4560401 | M144: ='Entry cases beds'!I147 -> 346 | N144: ='Entry cases beds'!K147 -> 0 | P144: =calc2_updated_uncorrected!DP171 -> 47.69001669
C145: =Country_uncorrected!AH203 -> 2014-10-13 | D145: =Country_uncorrected!AK203 -> 139 | E145: =Country_uncorrected!AI203 -> 0 | F145: 40.06713351 | G145: 75.39514809 | H145: =G145*Country_uncorrected!D$29 -> 15.07902962 | I145: 2505.201332 | J145: =Country_uncorrected!AL203 -> 3284.599749 | K145: 89.02069339 | L145: =Country_uncorrected!AO203 -> 117.4226222 | M145: ='Entry cases beds'!I148 -> 346 | N145: ='Entry cases beds'!K148 -> 0 | P145: =calc2_updated_uncorrected!DP172 -> 48.9260926
C146: =Country_uncorrected!AH204 -> 2014-10-14 | D146: =Country_uncorrected!AK204 -> 140 | E146: =Country_uncorrected!AI204 -> 0 | F146: 40.59509721 | G146: 77.41720794 | H146: =G146*Country_uncorrected!D$29 -> 15.48344159 | I146: 2545.796429 | J146: =Country_uncorrected!AL204 -> 3362.016957 | K146: 90.19388715 | L146: =Country_uncorrected!AO204 -> 120.4721069 | M146: ='Entry cases beds'!I149 -> 346 | N146: ='Entry cases beds'!K149 -> 0 | P146: =calc2_updated_uncorrected!DP173 -> 50.19671121
C147: =Country_uncorrected!AH205 -> 2014-10-15 | D147: =Country_uncorrected!AK205 -> 141 | E147: =Country_uncorrected!AI205 -> 0 | F147: 41.12999062 | G147: 79.49537267 | H147: =G147*Country_uncorrected!D$29 -> 15.89907453 | I147: 2586.92642 | J147: =Country_uncorrected!AL205 -> 3441.51233 | K147: 91.38248404 | L147: =Country_uncorrected!AO205 -> 123.6226112 | M147: ='Entry cases beds'!I150 -> 346 | N147: ='Entry cases beds'!K150 -> 0 | P147: =calc2_updated_uncorrected!DP174 -> 51.50942133
C148: =Country_uncorrected!AH206 -> 2014-10-16 | D148: =Country_uncorrected!AK206 -> 142 | E148: =Country_uncorrected!AI206 -> 0 | F148: 41.67190399 | G148: 81.61536968 | H148: =G148*Country_uncorrected!D$29 -> 16.32307394 | I148: 2628.598324 | J148: =Country_uncorrected!AL206 -> 3523.127699 | K148: 92.58668473 | L148: =Country_uncorrected!AO206 -> 126.8826263 | M148: ='Entry cases beds'!I151 -> 346 | N148: ='Entry cases beds'!K151 -> 0 | P148: =calc2_updated_uncorrected!DP175 -> 52.86776094
C149: =Country_uncorrected!AH207 -> 2014-10-17 | D149: =Country_uncorrected!AK207 -> 143 | E149: =Country_uncorrected!AI207 -> 0 | F149: 42.22092869 | G149: 83.7789562 | H149: =G149*Country_uncorrected!D$29 -> 16.75579124 | I149: 2670.819253 | J149: =Country_uncorrected!AL207 -> 3606.906656 | K149: 93.80669249 | L149: =Country_uncorrected!AO207 -> 130.2479531 | M149: ='Entry cases beds'!I152 -> 346 | N149: ='Entry cases beds'!K152 -> 0 | P149: =calc2_updated_uncorrected!DP176 -> 54.26998048
C150: =Country_uncorrected!AH208 -> 2014-10-18 | D150: =Country_uncorrected!AK208 -> 144 | E150: =Country_uncorrected!AI208 -> 0 | F150: 42.77715728 | G150: 85.98830587 | H150: =G150*Country_uncorrected!D$29 -> 17.19766117 | I150: 2713.59641 | J150: =Country_uncorrected!AL208 -> 3692.894962 | K150: 95.04271318 | L150: =Country_uncorrected!AO208 -> 133.710985 | M150: ='Entry cases beds'!I153 -> 346 | N150: ='Entry cases beds'!K153 -> 0 | P150: =calc2_updated_uncorrected!DP177 -> 55.71291043
C151: =Country_uncorrected!AH209 -> 2014-10-19 | D151: =Country_uncorrected!AK209 -> 145 | E151: =Country_uncorrected!AI209 -> 0 | F151: 43.34068351 | G151: 88.25116414 | H151: =G151*Country_uncorrected!D$29 -> 17.65023283 | I151: 2756.937094 | J151: =Country_uncorrected!AL209 -> 3781.146126 | K151: 96.29495529 | L151: =Country_uncorrected!AO209 -> 137.2659659 | M151: ='Entry cases beds'!I154 -> 346 | N151: ='Entry cases beds'!K154 -> 0 | P151: =calc2_updated_uncorrected!DP178 -> 57.19415246
C152: =Country_uncorrected!AH210 -> 2014-10-20 | D152: =Country_uncorrected!AK210 -> 146 | E152: =Country_uncorrected!AI210 -> 0 | F152: 43.91160231 | G152: 90.57206549 | H152: =G152*Country_uncorrected!D$29 -> 18.1144131 | I152: 2800.848696 | J152: =Country_uncorrected!AL210 -> 3871.718191 | K152: 97.56362999 | L152: =Country_uncorrected!AO210 -> 140.9084261 | M152: ='Entry cases beds'!I155 -> 346 | N152: ='Entry cases beds'!K155 -> 0 | P152: =calc2_updated_uncorrected!DP179 -> 58.7118442
C153: =Country_uncorrected!AH211 -> 2014-10-21 | D153: =Country_uncorrected!AK211 -> 147 | E153: =Country_uncorrected!AI211 -> 0 | F153: 44.49000984 | G153: 92.9566277 | H153: =G153*Country_uncorrected!D$29 -> 18.59132554 | I153: 2845.338706 | J153: =Country_uncorrected!AL211 -> 3964.674819 | K153: 98.84895115 | L153: =Country_uncorrected!AO211 -> 144.6378868 | M153: ='Entry cases beds'!I156 -> 346 | N153: ='Entry cases beds'!K156 -> 0 | P153: =calc2_updated_uncorrected!DP180 -> 60.26578617
C154: =Country_uncorrected!AH212 -> 2014-10-22 | D154: =Country_uncorrected!AK212 -> 148 | E154: =Country_uncorrected!AI212 -> 0 | F154: 45.07600347 | G154: 95.40907401 | H154: =G154*Country_uncorrected!D$29 -> 19.0818148 | I154: 2890.414709 | J154: =Country_uncorrected!AL212 -> 4060.083893 | K154: 100.1511354 | L154: =Country_uncorrected!AO212 -> 148.4571751 | M154: ='Entry cases beds'!I157 -> 346 | N154: ='Entry cases beds'!K157 -> 0 | P154: =calc2_updated_uncorrected!DP181 -> 61.85715631
C155: =Country_uncorrected!AH213 -> 2014-10-23 | D155: =Country_uncorrected!AK213 -> 149 | E155: =Country_uncorrected!AI213 -> 0 | F155: 45.66968185 | G155: 97.93034133 | H155: =G155*Country_uncorrected!D$29 -> 19.58606827 | I155: 2936.084391 | J155: =Country_uncorrected!AL213 -> 4158.014234 | K155: 101.4704021 | L155: =Country_uncorrected!AO213 -> 152.3727683 | M155: ='Entry cases beds'!I158 -> 346 | N155: ='Entry cases beds'!K158 -> 60 | P155: =calc2_updated_uncorrected!DP182 -> 63.48865347
C156: =Country_uncorrected!AH214 -> 2014-10-24 | D156: =Country_uncorrected!AK214 -> 150 | E156: =Country_uncorrected!AI214 -> 0 | F156: 46.27114484 | G156: 100.5204679 | H156: =G156*Country_uncorrected!D$29 -> 20.10409358 | I156: 2982.355536 | J156: =Country_uncorrected!AL214 -> 4258.534702 | K156: 102.8069734 | L156: =Country_uncorrected!AO214 -> 156.3907312 | M156: ='Entry cases beds'!I159 -> 346 | N156: ='Entry cases beds'!K159 -> 60 | P156: =calc2_updated_uncorrected!DP183 -> 65.16280465
C157: =Country_uncorrected!AH215 -> 2014-10-25 | D157: =Country_uncorrected!AK215 -> 151 | E157: =Country_uncorrected!AI215 -> 0 | F157: 46.88049361 | G157: 103.1793854 | H157: =G157*Country_uncorrected!D$34 -> 25.79484635 | I157: 3029.236029 | J157: =Country_uncorrected!AL215 -> 4361.714087 | K157: 104.1610744 | L157: =Country_uncorrected!AO215 -> 165.417611 | M157: ='Entry cases beds'!I160 -> 346 | N157: ='Entry cases beds'!K160 -> 60 | P157: =calc2_updated_uncorrected!DP184 -> 66.8819126
C158: =Country_uncorrected!AH216 -> 2014-10-26 | D158: =Country_uncorrected!AK216 -> 152 | E158: =Country_uncorrected!AI216 -> 0 | F158: 47.49783061 | G158: 105.9076985 | H158: =G158*Country_uncorrected!D$34 -> 26.47692464 | I158: 3076.73386 | J158: =Country_uncorrected!AL216 -> 4467.621786 | K158: 105.532933 | L158: =Country_uncorrected!AO216 -> 174.685795 | M158: ='Entry cases beds'!I161 -> 346 | N158: ='Entry cases beds'!K161 -> 60 | P158: =calc2_updated_uncorrected!DP185 -> 68.64756604
C159: =Country_uncorrected!AH217 -> 2014-10-27 | D159: =Country_uncorrected!AK217 -> 153 | E159: =Country_uncorrected!AI217 -> 0 | F159: 48.1232596 | G159: 108.7063315 | H159: =G159*Country_uncorrected!D$34 -> 27.17658288 | I159: 3124.85712 | J159: =Country_uncorrected!AL217 -> 4576.328118 | K159: 106.9227799 | L159: =Country_uncorrected!AO217 -> 184.2015696 | M159: ='Entry cases beds'!I162 -> 444 | N159: ='Entry cases beds'!K162 -> 60 | P159: =calc2_updated_uncorrected!DP186 -> 70.46099264
C160: =Country_uncorrected!AH218 -> 2014-10-28 | D160: =Country_uncorrected!AK218 -> 154 | E160: =Country_uncorrected!AI218 -> 0 | F160: 48.75688565 | G160: 111.5490852 | H160: =G160*Country_uncorrected!D$34 -> 27.88727129 | I160: 3173.614005 | J160: =Country_uncorrected!AL218 -> 4687.877203 | K160: 108.3308489 | L160: =Country_uncorrected!AO218 -> 193.9623409 | M160: ='Entry cases beds'!I163 -> 444 | N160: ='Entry cases beds'!K163 -> 60 | P160: =calc2_updated_uncorrected!DP187 -> 72.32023839
C161: =Country_uncorrected!AH219 -> 2014-10-29 | D161: =Country_uncorrected!AK219 -> 155 | E161: =Country_uncorrected!AI219 -> 0 | F161: 49.39881518 | G161: 114.3415442 | H161: =G161*Country_uncorrected!D$34 -> 28.58538605 | I161: 3223.012821 | J161: =Country_uncorrected!AL219 -> 4802.218747 | K161: 109.7573767 | L161: =Country_uncorrected!AO219 -> 203.9373571 | M161: ='Entry cases beds'!I164 -> 444 | N161: ='Entry cases beds'!K164 -> 60 | P161: =calc2_updated_uncorrected!DP188 -> 74.21348541
C162: =Country_uncorrected!AH220 -> 2014-10-30 | D162: =Country_uncorrected!AK220 -> 156 | E162: =Country_uncorrected!AI220 -> 0 | F162: 50.04915596 | G162: 116.9862202 | H162: =G162*Country_uncorrected!D$34 -> 29.24655506 | I162: 3273.061976 | J162: =Country_uncorrected!AL220 -> 4919.204967 | K162: 111.2026032 | L162: =Country_uncorrected!AO220 -> 214.0676135 | M162: ='Entry cases beds'!I165 -> 444 | N162: ='Entry cases beds'!K165 -> 60 | P162: =calc2_updated_uncorrected!DP189 -> 76.1190733
C163: =Country_uncorrected!AH221 -> 2014-10-31 | D163: =Country_uncorrected!AK221 -> 157 | E163: =Country_uncorrected!AI221 -> 0 | F163: 50.70801713 | G163: 119.4686273 | H163: =G163*Country_uncorrected!D$34 -> 29.86715682 | I163: 3323.769994 | J163: =Country_uncorrected!AL221 -> 5038.673594 | K163: 112.6667711 | L163: =Country_uncorrected!AO221 -> 224.2899315 | M163: ='Entry cases beds'!I166 -> 444 | N163: ='Entry cases beds'!K166 -> 60 | P163: =calc2_updated_uncorrected!DP190 -> 78.01388923
C164: =Country_uncorrected!AH222 -> 2014-11-01 | D164: =Country_uncorrected!AK222 -> 158 | E164: =Country_uncorrected!AI222 -> 0 | F164: 51.37550921 | G164: 121.8129743 | H164: =G164*Country_uncorrected!D$34 -> 30.45324356 | I164: 3375.145503 | J164: =Country_uncorrected!AL222 -> 5160.486569 | K164: 114.1501262 | L164: =Country_uncorrected!AO222 -> 229.6470883 | M164: ='Entry cases beds'!I167 -> 444 | N164: ='Entry cases beds'!K167 -> 60 | P164: =calc2_updated_uncorrected!DP191 -> 79.87724812
C165: =Country_uncorrected!AH223 -> 2014-11-02 | D165: =Country_uncorrected!AK223 -> 159 | E165: =Country_uncorrected!AI223 -> 0 | F165: 52.05174415 | G165: 124.0383339 | H165: =G165*Country_uncorrected!D$34 -> 31.00958349 | I165: 3427.197247 | J165: =Country_uncorrected!AL223 -> 5284.524903 | K165: 115.6529177 | L165: =Country_uncorrected!AO223 -> 234.859646 | M165: ='Entry cases beds'!I168 -> 444 | N165: ='Entry cases beds'!K168 -> 60 | P165: =calc2_updated_uncorrected!DP192 -> 81.69031166
C166: =Country_uncorrected!AH224 -> 2014-11-03 | D166: =Country_uncorrected!AK224 -> 160 | E166: =Country_uncorrected!AI224 -> 0 | F166: 52.7368353 | G166: 126.2124563 | H166: =G166*Country_uncorrected!D$34 -> 31.55311409 | I166: 3479.934082 | J166: =Country_uncorrected!AL224 -> 5410.737359 | K166: 117.1753977 | L166: =Country_uncorrected!AO224 -> 239.8926569 | M166: ='Entry cases beds'!I169 -> 444 | N166: ='Entry cases beds'!K169 -> 60 | P166: =calc2_updated_uncorrected!DP193 -> 83.44092414
C167: =Country_uncorrected!AH225 -> 2014-11-04 | D167: =Country_uncorrected!AK225 -> 161 | E167: =Country_uncorrected!AI225 -> 0 | F167: 53.43089745 | G167: 128.443675 | H167: =G167*Country_uncorrected!D$34 -> 32.11091874 | I167: 3533.36498 | J167: =Country_uncorrected!AL225 -> 5539.181034 | K167: 118.7178215 | L167: =Country_uncorrected!AO225 -> 244.7498515 | M167: ='Entry cases beds'!I170 -> 444 | N167: ='Entry cases beds'!K170 -> 60 | P167: =calc2_updated_uncorrected!DP194 -> 85.13038312
C168: =Country_uncorrected!AH226 -> 2014-11-05 | D168: =Country_uncorrected!AK226 -> 162 | E168: =Country_uncorrected!AI226 -> 0 | F168: 54.13404685 | G168: 130.824707 | H168: =G168*Country_uncorrected!D$34 -> 32.70617675 | I168: 3587.499027 | J168: =Country_uncorrected!AL226 -> 5670.005741 | K168: 120.280448 | L168: =Country_uncorrected!AO226 -> 249.4887608 | M168: ='Entry cases beds'!I171 -> 444 | N168: ='Entry cases beds'!K171 -> 60 | P168: =calc2_updated_uncorrected!DP195 -> 86.7786994
C169: =Country_uncorrected!AH227 -> 2014-11-06 | D169: =Country_uncorrected!AK227 -> 163 | E169: =Country_uncorrected!AI227 -> 0 | F169: 54.84640122 | G169: 133.370263 | H169: =G169*Country_uncorrected!D$34 -> 33.34256574 | I169: 3642.345428 | J169: =Country_uncorrected!AL227 -> 5803.376004 | K169: 121.8635389 | L169: =Country_uncorrected!AO227 -> 254.1991731 | M169: ='Entry cases beds'!I172 -> 444 | N169: ='Entry cases beds'!K172 -> 60 | P169: =calc2_updated_uncorrected!DP196 -> 88.41710368
C170: =Country_uncorrected!AH228 -> 2014-11-07 | D170: =Country_uncorrected!AK228 -> 164 | E170: =Country_uncorrected!AI228 -> 0 | F170: 55.56807979 | G170: 136.0406617 | H170: =G170*Country_uncorrected!D$34 -> 34.01016542 | I170: 3697.913508 | J170: =Country_uncorrected!AL228 -> 5939.416666 | K170: 123.4673596 | L170: =Country_uncorrected!AO228 -> 258.963633 | M170: ='Entry cases beds'!I173 -> 444 | N170: ='Entry cases beds'!K173 -> 60 | P170: =calc2_updated_uncorrected!DP197 -> 90.07430712
C171: =Country_uncorrected!AH229 -> 2014-11-08 | D171: =Country_uncorrected!AK229 -> 165 | E171: =Country_uncorrected!AI229 -> 0 | F171: 56.29920327 | G171: 138.8041394 | H171: =G171*Country_uncorrected!D$34 -> 34.70103486 | I171: 3754.212711 | J171: =Country_uncorrected!AL229 -> 6078.220805 | K171: 125.0921786 | L171: =Country_uncorrected!AO229 -> 263.848593 | M171: ='Entry cases beds'!I174 -> 444 | N171: ='Entry cases beds'!K174 -> 60 | P171: =calc2_updated_uncorrected!DP198 -> 91.77342364
C172: =Country_uncorrected!AH230 -> 2014-11-09 | D172: =Country_uncorrected!AK230 -> 166 | E172: =Country_uncorrected!AI230 -> 0 | F172: 57.03989392 | G172: 141.6028346 | H172: =G172*Country_uncorrected!D$34 -> 35.40070865 | I172: 3811.252605 | J172: =Country_uncorrected!AL230 -> 6219.82364 | K172: 126.7382681 | L172: =Country_uncorrected!AO230 -> 268.8983869 | M172: ='Entry cases beds'!I175 -> 444 | N172: ='Entry cases beds'!K175 -> 60 | P172: =calc2_updated_uncorrected!DP199 -> 93.5298737
C173: =Country_uncorrected!AH231 -> 2014-11-10 | D173: =Country_uncorrected!AK231 -> 167 | E173: =Country_uncorrected!AI231 -> 0 | F173: 57.79027555 | G173: 144.4199196 | H173: =G173*Country_uncorrected!D$34 -> 36.1049799 | I173: 3869.04288 | J173: =Country_uncorrected!AL231 -> 6364.243559 | K173: 128.4059034 | L173: =Country_uncorrected!AO231 -> 274.1330326 | M173: ='Entry cases beds'!I176 -> 444 | N173: ='Entry cases beds'!K176 -> 60 | P173: =calc2_updated_uncorrected!DP200 -> 95.35062003
C174: =Country_uncorrected!AH232 -> 2014-11-11 | D174: =Country_uncorrected!AK232 -> 168 | E174: =Country_uncorrected!AI232 -> 0 | F174: 58.55047351 | G174: 147.2575226 | H174: =G174*Country_uncorrected!D$34 -> 36.81438066 | I174: 3927.593354 | J174: =Country_uncorrected!AL232 -> 6511.501082 | K174: 130.0953635 | L174: =Country_uncorrected!AO232 -> 279.5420138 | M174: ='Entry cases beds'!I177 -> 444 | N174: ='Entry cases beds'!K177 -> 60 | P174: =calc2_updated_uncorrected!DP201 -> 97.23200479
C175: =Country_uncorrected!AH233 -> 2014-11-12 | D175: =Country_uncorrected!AK233 -> 169 | E175: =Country_uncorrected!AI233 -> 0 | F175: 59.32061475 | G175: 150.118232 | H175: =G175*Country_uncorrected!D$34 -> 37.529558 | I175: 3986.913969 | J175: =Country_uncorrected!AL233 -> 6661.619314 | K175: 131.8069309 | L175: =Country_uncorrected!AO233 -> 285.0889022 | M175: ='Entry cases beds'!I178 -> 444 | N175: ='Entry cases beds'!K178 -> 60 | P175: =calc2_updated_uncorrected!DP202 -> 99.16135729
C176: =Country_uncorrected!AH234 -> 2014-11-13 | D176: =Country_uncorrected!AK234 -> 170 | E176: =Country_uncorrected!AI234 -> 0 | F176: 60.10082782 | G176: 153.0175067 | H176: =G176*Country_uncorrected!D$34 -> 38.25437667 | I176: 4047.014796 | J176: =Country_uncorrected!AL234 -> 6814.636821 | K176: 133.5408916 | L176: =Country_uncorrected!AO234 -> 290.7374848 | M176: ='Entry cases beds'!I179 -> 444 | N176: ='Entry cases beds'!K179 -> 60 | P176: =calc2_updated_uncorrected!DP203 -> 101.1260817
C177: =Country_uncorrected!AH235 -> 2014-11-14 | D177: =Country_uncorrected!AK235 -> 171 | E177: =Country_uncorrected!AI235 -> 0 | F177: 60.89124291 | G177: 155.9688736 | H177: =G177*Country_uncorrected!D$34 -> 38.9922184 | I177: 4107.906039 | J177: =Country_uncorrected!AL235 -> 6970.605694 | K177: 135.2975355 | L177: =Country_uncorrected!AO235 -> 296.4668457 | M177: ='Entry cases beds'!I180 -> 444 | N177: ='Entry cases beds'!K180 -> 60 | P177: =calc2_updated_uncorrected!DP204 -> 103.1189029
C178: =Country_uncorrected!AH236 -> 2014-11-15 | D178: =Country_uncorrected!AK236 -> 172 | E178: =Country_uncorrected!AI236 -> 0 | F178: 61.69199181 | G178: 158.9909721 | H178: =G178*Country_uncorrected!D$34 -> 39.74774303 | I178: 4169.598031 | J178: =Country_uncorrected!AL236 -> 7129.596666 | K178: 137.0771557 | L178: =Country_uncorrected!AO236 -> 302.2705601 | M178: ='Entry cases beds'!I181 -> 444 | N178: ='Entry cases beds'!K181 -> 60 | P178: =calc2_updated_uncorrected!DP205 -> 105.1375861
C179: =Country_uncorrected!AH237 -> 2014-11-16 | D179: =Country_uncorrected!AK237 -> 173 | E179: =Country_uncorrected!AI237 -> 0 | F179: 62.50320802 | G179: 162.0851119 | H179: =G179*Country_uncorrected!D$34 -> 40.52127797 | I179: 4232.101239 | J179: =Country_uncorrected!AL237 -> 7291.681778 | K179: 138.8800493 | L179: =Country_uncorrected!AO237 -> 308.1592148 | M179: ='Entry cases beds'!I182 -> 444 | N179: ='Entry cases beds'!K182 -> 60 | P179: =calc2_updated_uncorrected!DP206 -> 107.1858138
C180: =Country_uncorrected!AH238 -> 2014-11-17 | D180: =Country_uncorrected!AK238 -> 174 | E180: =Country_uncorrected!AI238 -> 0 | F180: 63.32502668 | G180: 165.2518252 | H180: =G180*Country_uncorrected!D$34 -> 41.31295629 | I180: 4295.426266 | J180: =Country_uncorrected!AL238 -> 7456.933603 | K180: 140.7065172 | L180: =Country_uncorrected!AO238 -> 314.1483877 | M180: ='Entry cases beds'!I183 -> 444 | N180: ='Entry cases beds'!K183 -> 60 | P180: =calc2_updated_uncorrected!DP207 -> 109.2690044
C181: =Country_uncorrected!AH239 -> 2014-11-18 | D181: =Country_uncorrected!AK239 -> 175 | E181: =Country_uncorrected!AI239 -> 0 | F181: 64.15758465 | G181: 168.4858472 | H181: =G181*Country_uncorrected!D$34 -> 42.1214618 | I181: 4359.58385 | J181: =Country_uncorrected!AL239 -> 7625.41945 | K181: 142.5568639 | L181: =Country_uncorrected!AO239 -> 320.251531 | M181: ='Entry cases beds'!I184 -> 444 | N181: ='Entry cases beds'!K184 -> 60 | P181: =calc2_updated_uncorrected!DP208 -> 111.3918369
C182: =Country_uncorrected!AH240 -> 2014-11-19 | D182: =Country_uncorrected!AK240 -> 176 | E182: =Country_uncorrected!AI240 -> 0 | F182: 65.00102051 | G182: 171.7849993 | H182: =G182*Country_uncorrected!D$34 -> 42.94624982 | I182: 4424.584871 | J182: =Country_uncorrected!AL240 -> 7797.20445 | K182: 144.4313978 | L182: =Country_uncorrected!AO240 -> 326.4807266 | M182: ='Entry cases beds'!I185 -> 444 | N182: ='Entry cases beds'!K185 -> 60 | P182: =calc2_updated_uncorrected!DP209 -> 113.5585136
C183: =Country_uncorrected!AH241 -> 2014-11-20 | D183: =Country_uncorrected!AK241 -> 177 | E183: =Country_uncorrected!AI241 -> 0 | F183: 65.85547457 | G183: 175.1459824 | H183: =G183*Country_uncorrected!D$34 -> 43.7864956 | I183: 4490.440346 | J183: =Country_uncorrected!AL241 -> 7972.350432 | K183: 146.3304312 | L183: =Country_uncorrected!AO241 -> 332.8426633 | M183: ='Entry cases beds'!I186 -> 444 | N183: ='Entry cases beds'!K186 -> 60 | P183: =calc2_updated_uncorrected!DP210 -> 115.7713612
C184: =Country_uncorrected!AH242 -> 2014-11-21 | D184: =Country_uncorrected!AK242 -> 178 | E184: =Country_uncorrected!AI242 -> 0 | F184: 66.72108893 | G184: 178.5668108 | H184: =G184*Country_uncorrected!D$34 -> 44.64170271 | I184: 4557.161434 | J184: =Country_uncorrected!AL242 -> 8150.917243 | K184: 148.2542804 | L184: =Country_uncorrected!AO242 -> 339.3395703 | M184: ='Entry cases beds'!I187 -> 444 | N184: ='Entry cases beds'!K187 -> 60 | P184: =calc2_updated_uncorrected!DP211 -> 118.0311549
C185: =Country_uncorrected!AH243 -> 2014-11-22 | D185: =Country_uncorrected!AK243 -> 179 | E185: =Country_uncorrected!AI243 -> 0 | F185: 67.59800744 | G185: 182.0492561 | H185: =G185*Country_uncorrected!D$34 -> 45.51231402 | I185: 4624.759442 | J185: =Country_uncorrected!AL243 -> 8332.966499 | K185: 150.2032656 | L185: =Country_uncorrected!AO243 -> 345.9688269 | M185: ='Entry cases beds'!I188 -> 444 | N185: ='Entry cases beds'!K188 -> 60 | P185: =calc2_updated_uncorrected!DP212 -> 120.3369833
C186: =Country_uncorrected!AH244 -> 2014-11-23 | D186: =Country_uncorrected!AK244 -> 180 | E186: =Country_uncorrected!AI244 -> 0 | F186: 68.48637577 | G186: 185.5961155 | H186: =G186*Country_uncorrected!D$34 -> 46.39902887 | I186: 4693.245818 | J186: =Country_uncorrected!AL244 -> 8518.562615 | K186: 152.1777109 | L186: =Country_uncorrected!AO244 -> 352.7282405 | M186: ='Entry cases beds'!I189 -> 444 | N186: ='Entry cases beds'!K189 -> 60 | P186: =calc2_updated_uncorrected!DP213 -> 122.6880836
C187: =Country_uncorrected!AH245 -> 2014-11-24 | D187: =Country_uncorrected!AK245 -> 181 | E187: =Country_uncorrected!AI245 -> 0 | F187: 69.38634142 | G187: 189.2105344 | H187: =G187*Country_uncorrected!D$39 -> 66.22368706 | I187: 4762.632159 | J187: =Country_uncorrected!AL245 -> 8707.773149 | K187: 154.1779448 | L187: =Country_uncorrected!AO245 -> 377.5913702 | M187: ='Entry cases beds'!I190 -> 444 | N187: ='Entry cases beds'!K190 -> 60 | P187: =calc2_updated_uncorrected!DP214 -> 125.0839546
C188: =Country_uncorrected!AH246 -> 2014-11-25 | D188: =Country_uncorrected!AK246 -> 182 | E188: =Country_uncorrected!AI246 -> 0 | F188: 70.29805371 | G188: 192.8951079 | H188: =G188*Country_uncorrected!D$39 -> 67.51328776 | I188: 4832.930213 | J188: =Country_uncorrected!AL246 -> 8900.668257 | K188: 156.2042996 | L188: =Country_uncorrected!AO246 -> 402.9340679 | M188: ='Entry cases beds'!I191 -> 444 | N188: ='Entry cases beds'!K191 -> 60 | P188: =calc2_updated_uncorrected!DP215 -> 127.5248806
C189: =Country_uncorrected!AH247 -> 2014-11-26 | D189: =Country_uncorrected!AK247 -> 183 | E189: =Country_uncorrected!AI247 -> 0 | F189: 71.22166387 | G189: 196.652243 | H189: =G189*Country_uncorrected!D$39 -> 68.82828505 | I189: 4904.151877 | J189: =Country_uncorrected!AL247 -> 9097.3205 | K189: 158.2571119 | L189: =Country_uncorrected!AO247 -> 428.7653635 | M189: ='Entry cases beds'!I192 -> 444 | N189: ='Entry cases beds'!K192 -> 60 | P189: =calc2_updated_uncorrected!DP216 -> 130.011605
C190: =Country_uncorrected!AH248 -> 2014-11-27 | D190: =Country_uncorrected!AK248 -> 184 | E190: =Country_uncorrected!AI248 -> 0 | F190: 72.15732499 | G190: 200.3795551 | H190: =G190*Country_uncorrected!D$39 -> 70.13284429 | I190: 4976.309202 | J190: =Country_uncorrected!AL248 -> 9297.700055 | K190: 160.3367225 | L190: =Country_uncorrected!AO248 -> 455.0560734 | M190: ='Entry cases beds'!I193 -> 444 | N190: ='Entry cases beds'!K193 -> 300 | P190: =calc2_updated_uncorrected!DP217 -> 132.5349623
C191: =Country_uncorrected!AH249 -> 2014-11-28 | D191: =Country_uncorrected!AK249 -> 185 | E191: =Country_uncorrected!AI249 -> 0 | F191: 73.10519208 | G191: 203.7250855 | H191: =G191*Country_uncorrected!D$39 -> 71.30377991 | I191: 5049.414394 | J191: =Country_uncorrected!AL249 -> 9501.42514 | K191: 162.4434766 | L191: =Country_uncorrected!AO249 -> 481.6429605 | M191: ='Entry cases beds'!I194 -> 444 | N191: ='Entry cases beds'!K194 -> 300 | P191: =calc2_updated_uncorrected!DP218 -> 135.0507897
C192: =Country_uncorrected!AH250 -> 2014-11-29 | D192: =Country_uncorrected!AK250 -> 186 | E192: =Country_uncorrected!AI250 -> 0 | F192: 74.06542209 | G192: 206.3264982 | H192: =G192*Country_uncorrected!D$39 -> 72.21427437 | I192: 5123.479816 | J192: =Country_uncorrected!AL250 -> 9707.751639 | K192: 164.5777234 | L192: =Country_uncorrected!AO250 -> 508.2236849 | M192: ='Entry cases beds'!I195 -> 444 | N192: ='Entry cases beds'!K195 -> 300 | P192: =calc2_updated_uncorrected!DP219 -> 137.478514
C193: =Country_uncorrected!AH251 -> 2014-11-30 | D193: =Country_uncorrected!AK251 -> 187 | E193: =Country_uncorrected!AI251 -> 0 | F193: 75.03817391 | G193: 208.1282034 | H193: =G193*Country_uncorrected!D$39 -> 72.84487121 | I193: 5198.51799 | J193: =Country_uncorrected!AL251 -> 9915.879842 | K193: 166.7398168 | L193: =Country_uncorrected!AO251 -> 534.4738395 | M193: ='Entry cases beds'!I196 -> 944 | N193: ='Entry cases beds'!K196 -> 300 | P193: =calc2_updated_uncorrected!DP220 -> 139.7317228
C194: =Country_uncorrected!AH252 -> 2014-12-01 | D194: =Country_uncorrected!AK252 -> 188 | E194: =Country_uncorrected!AI252 -> 0 | F194: 76.02360844 | G194: 209.2179481 | H194: =G194*Country_uncorrected!D$39 -> 73.22628182 | I194: 5274.541598 | J194: =Country_uncorrected!AL252 -> 10125.09779 | K194: 168.9301149 | L194: =Country_uncorrected!AO252 -> 542.1266753 | M194: ='Entry cases beds'!I197 -> 944 | N194: ='Entry cases beds'!K197 -> 300 | P194: =calc2_updated_uncorrected!DP221 -> 141.7324641
C195: =Country_uncorrected!AH253 -> 2014-12-02 | D195: =Country_uncorrected!AK253 -> 189 | E195: =Country_uncorrected!AI253 -> 0 | F195: 77.02188855 | G195: 209.6666327 | H195: =G195*Country_uncorrected!D$39 -> 73.38332143 | I195: 5351.563487 | J195: =Country_uncorrected!AL253 -> 10334.76442 | K195: 171.1489804 | L195: =Country_uncorrected!AO253 -> 548.5417835 | M195: ='Entry cases beds'!I198 -> 944 | N195: ='Entry cases beds'!K198 -> 300 | P195: =calc2_updated_uncorrected!DP222 -> 143.4096166
C196: =Country_uncorrected!AH254 -> 2014-12-03 | D196: =Country_uncorrected!AK254 -> 190 | E196: =Country_uncorrected!AI254 -> 0 | F196: 78.03317915 | G196: 209.726795 | H196: =G196*Country_uncorrected!D$39 -> 73.40437824 | I196: 5429.596666 | J196: =Country_uncorrected!AL254 -> 10544.49122 | K196: 173.3967804 | L196: =Country_uncorrected!AO254 -> 553.5427996 | M196: ='Entry cases beds'!I199 -> 944 | N196: ='Entry cases beds'!K199 -> 300 | P196: =calc2_updated_uncorrected!DP223 -> 144.7170718
C197: =Country_uncorrected!AH255 -> 2014-12-04 | D197: =Country_uncorrected!AK255 -> 191 | E197: =Country_uncorrected!AI255 -> 0 | F197: 79.05764722 | G197: 209.802083 | H197: =G197*Country_uncorrected!D$39 -> 73.43072905 | I197: 5508.654313 | J197: =Country_uncorrected!AL255 -> 10754.2933 | K197: 175.6738868 | L197: =Country_uncorrected!AO255 -> 557.1469165 | M197: ='Entry cases beds'!I200 -> 944 | N197: ='Entry cases beds'!K200 -> 300 | P197: =calc2_updated_uncorrected!DP224 -> 145.6593246
C198: =Country_uncorrected!AH256 -> 2014-12-05 | D198: =Country_uncorrected!AK256 -> 192 | E198: =Country_uncorrected!AI256 -> 0 | F198: 80.09546178 | G198: 210.2396132 | H198: =G198*Country_uncorrected!D$39 -> 73.58386462 | I198: 5588.749775 | J198: =Country_uncorrected!AL256 -> 10964.53291 | K198: 177.9806758 | L198: =Country_uncorrected!AO256 -> 559.6387234 | M198: ='Entry cases beds'!I201 -> 944 | N198: ='Entry cases beds'!K201 -> 300 | P198: =calc2_updated_uncorrected!DP225 -> 146.3107774
C199: =Country_uncorrected!AH257 -> 2014-12-06 | D199: =Country_uncorrected!AK257 -> 193 | E199: =Country_uncorrected!AI257 -> 0 | F199: 81.14679396 | G199: 211.1003903 | H199: =G199*Country_uncorrected!D$39 -> 73.88513661 | I199: 5669.896569 | J199: =Country_uncorrected!AL257 -> 11175.6333 | K199: 180.3175285 | L199: =Country_uncorrected!AO257 -> 561.4647371 | M199: ='Entry cases beds'!I202 -> 944 | N199: ='Entry cases beds'!K202 -> 300 | P199: =calc2_updated_uncorrected!DP226 -> 146.7881666
C200: =Country_uncorrected!AH258 -> 2014-12-07 | D200: =Country_uncorrected!AK258 -> 194 | E200: =Country_uncorrected!AI258 -> 0 | F200: =I200-I199 -> 82.21181703 | G200: =J200-J199 -> 212.2460347 | H200: =G200*Country_uncorrected!D$39 -> 74.28611213 | I200: 5752.108386 | J200: =Country_uncorrected!AL258 -> 11387.87934 | K200: 182.6848307 | L200: =Country_uncorrected!AO258 -> 563.0398076 | M200: ='Entry cases beds'!I203 -> 944 | N200: ='Entry cases beds'!K203 -> 300 | P200: =calc2_updated_uncorrected!DP227 -> 147.1999497
C201: =Country_uncorrected!AH259 -> 2014-12-08 | D201: =Country_uncorrected!AK259 -> 195 | E201: =Country_uncorrected!AI259 -> 0 | F201: 83.29070637 | G201: 213.5656616 | H201: =G201*Country_uncorrected!D$39 -> 74.74798155 | I201: 5835.399092 | J201: =Country_uncorrected!AL259 -> 11601.445 | K201: 185.082973 | L201: =Country_uncorrected!AO259 -> 564.702808 | M201: ='Entry cases beds'!I204 -> 944 | N201: ='Entry cases beds'!K204 -> 300 | P201: =calc2_updated_uncorrected!DP228 -> 147.634721
... 147 more rows

Sheet calc2_updated_uncorrected
B1: My comments in green | H1: CALCULATIONS SHEET: Do Not Change | T1: Imported cases (arrive newly infected - start incubating) | DU1: Liberia Cases
B2: 0-30 | C2: Category | D2: % Select | E2: R | F2: DAILY | T2: Day Arrive | V2: # arrive | CA2: CALCULATION SHEET - DO NOT ENTER/ ALTER | DT2: 1 | DU2: 8 | DV2: 8 | DW2: 2014-03-26 | DX2: =CC33 -> 0
C3: Hosp | D3: =Country_uncorrected!D9 -> 0.2 | E3: Rhos | F3: =Country_uncorrected!$F$9 -> 0.02 | T3: 10 | V3: =Country_uncorrected!R10 -> 25 | DT3: =DT2+(DW3-DW2) -> 2 | DU3: 8 | DV3: =IF(OR(DU3-DV2=0,DU3="",DV2="",""),DU3-DV2) ->  | DW3: 2014-03-27 | DX3: =CC34 -> 0
C4: Home Iso | D4: =Country_uncorrected!D10 -> 0.1 | E4: Rhq | F4: =Country_uncorrected!$F$10 -> 0.03 | T4: 20 | V4: =Country_uncorrected!R11 -> 0 | DT4: 3 | DU4: 8 | DV4: =IF(OR(DU4-DV3=0,DU4="",DV3="",""),DU4-DV3) ->  | DW4: 2014-03-28 | DX4: 0
C5: No Home Iso | D5: =Country_uncorrected!D11 -> 0.7 | E5: Rnhq | F5: =Country_uncorrected!$F$11 -> 0.3 | T5: 30 | V5: =Country_uncorrected!R12 -> 0 | DT5: 4 | DU5: 8 | DV5: =IF(DU5-DV4>0, DU5-DV5, "") ->  | DW5: 2014-03-29 | DX5: 0.588
D6: =SUM(D3:D5) -> 1 | T6: 40 | V6: =Country_uncorrected!R13 -> 0 | DT6: 5 | DU6: 8 | DW6: 2014-03-30 | DX6: 2.58
K7: Proportion of each category entering hospital | T7: 50 | V7: =Country_uncorrected!R14 -> 0 | DT7: 6 | DU7: 8 | DW7: 2014-03-31 | DX7: 4.59
B8: 31-60 | C8: Hosp | D8: =Country_uncorrected!D14 -> 0.15 | E8: Rhos | F8: =F3 -> 0.02 | G8: 0.03 | K8: Hosp | M8: =Country_beds!D8 -> 1 | T8: 60 | V8: =Country_uncorrected!R15 -> 0 | DT8: 7 | DU8: 10 | DW8: 2014-04-01 | DX8: 4.820500869
C9: Home Iso | D9: =Country_uncorrected!D15 -> 0.25 | E9: Rhq | F9: =F4 -> 0.03 | G9: 0.04 | K9: Home Iso | M9: =Country_beds!D9 -> 0.05 | T9: 70 | V9: =Country_uncorrected!R16 -> 0 | DT9: 8 | DU9: 14 | DW9: 2014-04-02 | DX9: 4.236447273
C10: No Home Iso | D10: =Country_uncorrected!D16 -> 0.6 | E10: Rnhq | F10: =F5 -> 0.3 | G10: 0.22 | K10: No Home Iso | M10: =Country_beds!D10 -> 0.05 | T10: 80 | V10: =Country_uncorrected!R17 -> 0 | DT10: 9 | DU10: 14 | DW10: 2014-04-03 | DX10: 3.771639176
D11: =SUM(D8:D10) -> 1 | T11: 90 | V11: =Country_uncorrected!R18 -> 0 | DT11: 10 | DU11: 18 | DW11: 2014-04-04 | DX11: 2.897949741
K12: DAYS Infectious | M12: =Population!K11 -> 6 | T12: 100 | V12: =Country_uncorrected!R19 -> 150 | AH12: Scenario | DT12: 11 | DU12: 18 | DW12: 2014-04-05 | DX12: 2.630147082
B13: 61-90 | C13: Hosp | D13: =Country_uncorrected!D19 -> 0.15 | E13: Rhos | F13: =F8 -> 0.02 | G13: 0.03 | T13: 110 | V13: =Country_uncorrected!R20 -> 0 | DT13: 12 | DU13: 18 | DW13: 2014-04-06 | DX13: 2.773425432
C14: Home Iso | D14: =Country_uncorrected!D20 -> 0.25 | E14: Rhq | F14: =F9 -> 0.03 | G14: 0.035 | K14: Population | M14: =Population!K5 -> 6092000 | T14: 120 | V14: =Country_uncorrected!R21 -> 0 | AM14: Data fromCQ (admissions), CB (days) | DT14: 13 | DU14: 21 | DW14: 2014-04-07 | DX14: 3.307376082
C15: No Home Iso | D15: =Country_uncorrected!D21 -> 0.6 | E15: Rnhq | F15: =F10 -> 0.3 | G15: 0.22 | K15: Initial Incubating | M15: =Population!K8 -> 30 | T15: 130 | V15: =Country_uncorrected!R22 -> 0 | DT15: 14 | DU15: 21 | DW15: 2014-04-08 | DX15: 5.338216722
D16: =SUM(D13:D15) -> 1 | T16: 140 | V16: =Country_uncorrected!R23 -> 0 | DT16: 15 | DU16: 22 | DW16: 2014-04-09 | DX16: 7.311558721
T17: 150 | V17: =Country_uncorrected!R24 -> 0 | DT17: =DT16+(DW17-DW16) -> 16 | DU17: 25 | DV17: =IF(DU17-DV16>0, DU17-DV17, "") ->  | DW17: 2014-04-10 | DX17: 7.904169303
B18: 91-120 | C18: Hosp | D18: =Country_uncorrected!D24 -> 0.15 | E18: Rhos | F18: =F13 -> 0.02 | G18: 0.03 | T18: 160 | V18: =Country_uncorrected!R25 -> 0 | DT18: 17 | DU18: 25 | DW18: 2014-04-11 | DX18: 7.521869685
C19: Home Iso | D19: =Country_uncorrected!D25 -> 0.25 | E19: Rhq | F19: =F14 -> 0.03 | G19: 0.035 | T19: 170 | V19: =Country_uncorrected!R26 -> 0 | DT19: 18 | DU19: 25 | DW19: 2014-04-12 | DX19: 7.232194359
C20: No Home Iso | D20: =Country_uncorrected!D26 -> 0.6 | E20: Rnhq | F20: =F15 -> 0.3 | G20: 0.22 | T20: 180 | V20: =Country_uncorrected!R27 -> 0 | CN20: switch for beds per day for home/BQ (set to 0 to replicate MMWR baseline)--> | DT20: 19 | DU20: 25 | DW20: 2014-04-13 | DX20: 6.486154845
D21: =SUM(D18:D20) -> 1 | T21: 190 | V21: =Country_uncorrected!R28 -> 0 | DT21: 20 | DU21: 25 | DW21: 2014-04-14 | DX21: 6.306157744
T22: 200 | V22: =Country_uncorrected!R29 -> 0 | CR22: 1 | DT22: 21 | DU22: 25 | DW22: 2014-04-15 | DX22: 6.453194502
B23: 121-150 | C23: Hosp | D23: =Country_uncorrected!D29 -> 0.2 | E23: Rhos | F23: =F18 -> 0.02 | G23: 0.03 | T23: 210 | V23: =Country_uncorrected!R30 -> 0 | CI23: Distributes new cases (col C) into three loc: cf AY&CD + 1,2,3: e.g., Day 3 hosp should = AY188 | DT23: 22 | DU23: 27 | DW23: 2014-04-16 | DX23: 6.533690582
C24: Home Iso | D24: =Country_uncorrected!D30 -> 0.1 | E24: Rhq | F24: =F19 -> 0.03 | G24: 0.035 | T24: 220 | V24: =Country_uncorrected!R31 -> 0 | AB24: Total admits: | AF24: =CR333 -> 10344.87732 | CN24: Calculates no. entering hosp. from each loc.; cf Table 3 | DT24: 23 | DU24: 27 | DW24: 2014-04-17 | DX24: 6.973460835
C25: No Home Iso | D25: =Country_uncorrected!D31 -> 0.7 | E25: Rnhq | F25: =F20 -> 0.3 | G25: 0.22 | T25: 230 | V25: =Country_uncorrected!R32 -> 0 | DT25: 24 | DU25: 27 | DW25: 2014-04-18 | DX25: 7.371318247
D26: =SUM(D23:D25) -> 1 | T26: 240 | V26: =Country_uncorrected!R33 -> 0 | DT26: 25 | DU26: 33 | DW26: 2014-04-19 | DX26: 7.861432149
T27: 250 | V27: =Country_uncorrected!R34 -> 0 | DT27: 26 | DU27: 33 | DW27: 2014-04-20 | DX27: 8.094892092
B28: 151-190 | C28: Hosp | D28: =Country_uncorrected!D34 -> 0.25 | E28: Rhos | F28: =F23 -> 0.02 | G28: 0.03 | T28: 260 | V28: =Country_uncorrected!R35 -> 0 | CC28: reads sum of new Is for day fr. col AY | CJ28: People Categorie | CN28: BEDS Per day | CU28: HOSPITAL Beds calcualtions | DT28: 27 | DU28: 33 | DW28: 2014-04-21 | DX28: 8.322034744
C29: Home Iso | D29: =Country_uncorrected!D35 -> 0.1 | E29: Rhq | F29: =F24 -> 0.03 | G29: 0.035 | T29: 270 | V29: =Country_uncorrected!R36 -> 0 | CO29: home iso low | CP29: home no iso low | DT29: 28 | DU29: 34 | DW29: 2014-04-22 | DX29: 8.43295663
C30: No Home Iso | D30: =Country_uncorrected!D36 -> 0.65 | E30: Rnhq | F30: =F25 -> 0.3 | G30: 0.22 | T30: 280 | V30: =Country_uncorrected!R37 -> 0 | CO30: 0.05 | CP30: 0.05 | CU30: Daily beds-in-use | DP30: assumes all home/isolation pts are in ECC: DFID scenario | DT30: 29 | DU30: 34 | DW30: 2014-04-23 | DX30: 8.598157689
D31: =SUM(D28:D30) -> 1 | T31: 290 | V31: =Country_uncorrected!R38 -> 0 | CL31: sum | CN31: Hospital | CO31: Home Iso | CP31: Home No Iso | CQ31: DAILY | CR31: Cumlative | CU31: Hopsital | CV31: Days stay | CY31: Home Iso | CZ31: Days stay | DC31: No Home Iso | DD31: Days stay | DG31: SUM | DI31: Scenario | DJ31: Day | DK31: current patients (infectious): 6-day running total from cols CI-CK | DT31: 30 | DU31: 35 | DW31: 2014-04-24 | DX31: 8.747262881
T32: 300 | V32: =Country_uncorrected!R39 -> 0 | CB32: Day | CC32: New cases/day | CD32: AY row for col CC | CE32: Cum cases | CF32: Cum cases | CI32: Hospital | CJ32: Home Iso | CK32: Home No Iso | CL32: Check | CN32: =M8 -> 1 | CO32: =M9 -> 0.05 | CP32: =M10 -> 0.05 | CQ32: ADMITS | CR32: total | CT32: Day | CU32: Per day | CV32: 10 | CW32: 12 | CX32: 7 | CY32: per day | CZ32: 5 | DA32: 7 | DC32: per day | DD32: 2 | DE32: 4 | DF32: 7 | DG32: 10+5+2 | DH32: 12+7+4 | DI32: 7+7+7 | DK32: Hosp | DL32: Home ISO | DM32: Home / No ISO | DN32: Total | DP32: ECC current patients (7 day stay) | DR32: Incubating | DT32: 31 | DU32: 35 | DW32: 2014-04-25 | DX32: 8.913055022
B33: 191-210 | C33: Hosp | D33: =Country_uncorrected!D39 -> 0.35 | E33: Rhos | F33: =F28 -> 0.02 | G33: 0.03 | BZ33: =CA33 -> 2014-05-27 | CA33: =Country_uncorrected!AJ64 -> 2014-05-27 | CB33: 0 | CC33: 0 | CD33: =CD34-36 -> 78 | CE33: =CC33 -> 0 | CF33: 0 | CL33: 0 | CM33: Factor | CN33: 0 | CO33: 0 | CP33: 0 | CQ33: 0 | CR33: 0 | CT33: 0 | CU33: =CN33 -> 0 | CV33: 0 | CW33: 0 | CX33: 0 | CY33: =CO33 -> 0 | CZ33: 0 | DA33: 0 | DC33: 0 | DD33: 0 | DE33: 0 | DF33: =SUM(DC27:DC33) -> 0 | DG33: =CV33+CZ33+DD33 -> 0 | DH33: =CW33+DA33+DE33 -> 0 | DI33: =CX33+DA33+DF33 -> 0 | DJ33: =CB33 -> 0 | DP33: =SUM(CJ27:CJ33) -> 0 | DT33: 32 | DU33: 35 | DW33: 2014-04-26 | DX33: 9.158191759
C34: Home Iso | D34: =Country_uncorrected!D40 -> 0.1 | E34: Rhq | F34: =F29 -> 0.03 | G34: 0.035 | BZ34: =CA34 -> 2014-05-28 | CA34: =Country_uncorrected!AJ65 -> 2014-05-28 | CB34: 1 | CC34: =INDIRECT("AY"&(114+(CB33*36))) -> 0 | CD34: 114 | CE34: =CE33+CC34 -> 0 | CF34: =CC34 -> 0 | CG34: =$C$3 -> Hosp | CH34: =D3 -> 0.2 | CI34: =CC34*$CH$34 -> 0 | CJ34: =CC34*$CH$35 -> 0 | CK34: =$CH$36*CC34 -> 0 | CL34: =SUM(CI34:CK34) -> 0 | CN34: =CI34*CN$32 -> 0 | CO34: =IF($CR$22=0,CJ34*CO$32, CJ34*CO$30) -> 0 | CP34: =IF($CR$22=0,CK34*CP$32, CK34*CP$30) -> 0 | CQ34: =SUM(CN34:CP34) -> 0 | CR34: =CQ34 -> 0 | CT34: 1 | CU34: =CN34 -> 0 | CV34: =SUM(CU25:CU34) -> 0 | CW34: =SUM(CU23:CU34) -> 0 | CX34: =SUM(CU28:CU34) -> 0 | CY34: =CO34 -> 0 | CZ34: =+SUM(CY30:CY34) -> 0 | DA34: =SUM(CY28:CY34) -> 0 | DC34: =CP34 -> 0 | DD34: =SUM(DC33:DC34) -> 0 | DE34: =SUM(DC31:DC34) -> 0 | DF34: 0 | DG34: =CV34+CZ34+DD34 -> 0 | DH34: 0 | DI34: =CX34+DA34+DF34 -> 0 | DJ34: =CB34 -> 1 | DP34: =SUM(CJ28:CJ34) -> 0 | DT34: 33 | DU34: 35 | DW34: 2014-04-27 | DX34: 9.427402961
C35: No Home Iso | D35: =Country_uncorrected!D41 -> 0.55 | E35: Rnhq | F35: =F30 -> 0.3 | G35: 0.22 | BZ35: 2014-05-29 | CA35: =Country_uncorrected!AJ66 -> 2014-05-29 | CB35: =1+CB34 -> 2 | CC35: =INDIRECT("AY"&(114+(CB34*36))) -> 0 | CD35: =CD34+36 -> 150 | CE35: =CE34+CC35 -> 0 | CF35: =CC35+CF34 -> 0 | CG35: =$C$4 -> Home Iso | CH35: =D4 -> 0.1 | CI35: =CC35*$CH$34 -> 0 | CJ35: =CC35*$CH$35 -> 0 | CK35: =$CH$36*CC35 -> 0 | CL35: =SUM(CI35:CK35) -> 0 | CN35: 0 | CO35: 0 | CP35: 0 | CQ35: =SUM(CN35:CP35) -> 0 | CR35: =CQ35+CR34 -> 0 | CT35: =1+CT34 -> 2 | CU35: =CN35 -> 0 | CV35: 0 | CW35: =SUM(CU24:CU35) -> 0 | CX35: =SUM(CU29:CU35) -> 0 | CY35: =CO35 -> 0 | CZ35: =+SUM(CY31:CY35) -> 0 | DA35: 0 | DC35: =CP35 -> 0 | DD35: 0 | DE35: =SUM(DC32:DC35) -> 0 | DF35: 0 | DG35: 0 | DH35: 0 | DI35: 0 | DJ35: 2 | DP35: 0 | DT35: =DT34+(DW35-DW34) -> 34 | DU35: 35 | DV35: =IF(DU35-DV34>0, DU35-DV35, "") ->  | DW35: 2014-04-28 | DX35: =CC66 -> 9.710446595
D36: =SUM(D33:D35) -> 1 | BZ36: 2014-05-30 | CA36: =Country_uncorrected!AJ67 -> 2014-05-30 | CB36: =1+CB35 -> 3 | CC36: =INDIRECT("AY"&(114+(CB35*36))) -> 0.588 | CD36: =CD35+36 -> 186 | CE36: 0.588 | CF36: =CC36+CF35 -> 0.588 | CG36: =$C$5 -> No Home Iso | CH36: =D5 -> 0.7 | CI36: 0.1176 | CJ36: 0.0588 | CK36: 0.4116 | CL36: 0.588 | CN36: 0.1176 | CO36: 0.00294 | CP36: 0.02058 | CQ36: =SUM(CN36:CP36) -> 0.14112 | CR36: =CQ36+CR35 -> 0.14112 | CT36: =1+CT35 -> 3 | CU36: 0.1176 | CV36: 0.1176 | CW36: 0.1176 | CX36: 0.1176 | CY36: 0.00294 | CZ36: =+SUM(CY32:CY36) -> 0.00294 | DA36: 0.00294 | DC36: 0.02058 | DD36: 0.02058 | DE36: =SUM(DC33:DC36) -> 0.02058 | DF36: 0.02058 | DG36: 0.14112 | DH36: 0.14112 | DI36: 0.14112 | DJ36: 3 | DP36: 0.0588 | DT36: =DT35+(DW36-DW35) -> 35 | DU36: 35 | DV36: =IF(DU36-DV35>0, DU36-DV36, "") ->  | DW36: 2014-04-29 | DX36: 9.986542698
R37: Data from CC (cases), CB (days) | BZ37: 2014-05-31 | CA37: =Country_uncorrected!AJ68 -> 2014-05-31 | CB37: 4 | CC37: 2.58 | CD37: 222 | CE37: 3.168 | CF37: 3.168 | CI37: 0.516 | CJ37: 0.258 | CK37: 1.806 | CL37: 2.58 | CN37: 0.516 | CO37: 0.0129 | CP37: 0.0903 | CQ37: 0.6192 | CR37: 0.76032 | CT37: 4 | CU37: 0.516 | CV37: =SUM(CU28:CU37) -> 0.6336 | CW37: 0.6336 | CX37: 0.6336 | CY37: 0.0129 | CZ37: =+SUM(CY33:CY37) -> 0.01584 | DA37: 0.01584 | DC37: 0.0903 | DD37: 0.11088 | DE37: =SUM(DC34:DC37) -> 0.11088 | DF37: 0.11088 | DG37: 0.76032 | DH37: 0.76032 | DI37: 0.76032 | DJ37: 4 | DP37: 0.3168 | DT37: =DT36+(DW37-DW36) -> 36 | DU37: 35 | DV37: =IF(DU37-DV36>0, DU37-DV37, "") ->  | DW37: 2014-04-30 | DX37: 10.24566528
B38: 211-240 | C38: Hosp | D38: =Country_uncorrected!D44 -> 0.45 | E38: Rhos | F38: =F33 -> 0.02 | G38: 0.03 | BZ38: 2014-06-01 | CA38: =Country_uncorrected!AJ69 -> 2014-06-01 | CB38: 5 | CC38: 4.59 | CD38: 258 | CE38: 7.758 | CF38: 7.758 | CI38: 0.918 | CJ38: 0.459 | CK38: 3.213 | CL38: 4.59 | CN38: 0.918 | CO38: 0.02295 | CP38: 0.16065 | CQ38: 1.1016 | CR38: 1.86192 | CT38: 5 | CU38: 0.918 | CV38: 1.5516 | CW38: 1.5516 | CX38: 1.5516 | CY38: 0.02295 | CZ38: =+SUM(CY34:CY38) -> 0.03879 | DA38: 0.03879 | DC38: 0.16065 | DD38: 0.25095 | DE38: =SUM(DC35:DC38) -> 0.27153 | DF38: 0.27153 | DG38: 1.84134 | DH38: 1.86192 | DI38: 1.86192 | DJ38: 5 | DK38: =SUM(CI33:CI38) -> 1.5516 | DL38: =SUM(CJ33:CJ38) -> 0.7758 | DM38: 5.4306 | DN38: =SUM(DK38:DM38) -> 7.758 | DP38: 0.7758 | DT38: 37 | DU38: 35 | DW38: 2014-05-01 | DX38: 10.45333176
C39: Home Iso | D39: =Country_uncorrected!D45 -> 0.1 | E39: Rhq | F39: =F34 -> 0.03 | G39: 0.035 | BZ39: 2014-06-02 | CA39: =Country_uncorrected!AJ70 -> 2014-06-02 | CB39: 6 | CC39: 4.820500869 | CD39: 294 | CE39: 12.57850087 | CF39: 12.57850087 | CI39: 0.9641001739 | CJ39: 0.4820500869 | CK39: 3.374350608 | CL39: 4.820500869 | CN39: 0.9641001739 | CO39: 0.02410250435 | CP39: 0.1687175304 | CQ39: 1.156920209 | CR39: 3.018840209 | CT39: 6 | CU39: 0.9641001739 | CV39: 2.515700174 | CW39: =SUM(CU28:CU39) -> 2.515700174 | CX39: 2.515700174 | CY39: 0.02410250435 | CZ39: =+SUM(CY35:CY39) -> 0.06289250435 | DA39: 0.06289250435 | DC39: 0.1687175304 | DD39: 0.3293675304 | DE39: 0.4402475304 | DF39: 0.4402475304 | DG39: 2.907960209 | DH39: 3.018840209 | DI39: 3.018840209 | DJ39: 6 | DK39: =SUM(CI34:CI39) -> 2.515700174 | DL39: =SUM(CJ34:CJ39) -> 1.257850087 | DM39: =SUM(CK34:CK39) -> 8.804950608 | DN39: =SUM(DK39:DM39) -> 12.57850087 | DP39: 1.257850087 | DT39: 38 | DU39: 13 | DW39: 2014-05-02 | DX39: 10.6258937
C40: No Home Iso | D40: =Country_uncorrected!D46 -> 0.45 | E40: Rnhq | F40: =F35 -> 0.3 | G40: 0.22 | BZ40: 2014-06-03 | CA40: =Country_uncorrected!AJ71 -> 2014-06-03 | CB40: 7 | CC40: 4.236447273 | CD40: 330 | CE40: 16.81494814 | CF40: 16.81494814 | CI40: 0.8472894546 | CJ40: 0.4236447273 | CK40: 2.965513091 | CL40: 4.236447273 | CN40: 0.8472894546 | CO40: 0.02118223636 | CP40: 0.1482756546 | CQ40: 1.016747346 | CR40: 4.035587554 | CT40: 7 | CU40: 0.8472894546 | CV40: 3.362989628 | CW40: 3.362989628 | CX40: 3.362989628 | CY40: 0.02118223636 | CZ40: 0.08407474071 | DA40: =SUM(CY34:CY40) -> 0.08407474071 | DC40: 0.1482756546 | DD40: 0.316993185 | DE40: 0.567943185 | DF40: 0.588523185 | DG40: 3.764057554 | DH40: 4.015007554 | DI40: 4.035587554 | DJ40: 7 | DK40: 3.362989628 | DL40: 1.681494814 | DM40: 11.7704637 | DN40: 16.81494814 | DP40: 1.681494814 | DT40: 39 | DU40: 13 | DW40: 2014-05-03 | DX40: 10.76167752
D41: =SUM(D38:D40) -> 1 | BZ41: 2014-06-04 | CA41: =Country_uncorrected!AJ72 -> 2014-06-04 | CB41: 8 | CC41: 3.771639176 | CD41: 366 | CE41: 20.58658732 | CF41: 20.58658732 | CI41: 0.7543278352 | CJ41: 0.3771639176 | CK41: 2.640147423 | CL41: 3.771639176 | CN41: 0.7543278352 | CO41: 0.01885819588 | CP41: 0.1320073712 | CQ41: 0.9051934022 | CR41: 4.940780956 | CT41: 8 | CU41: 0.7543278352 | CV41: 4.117317464 | CW41: 4.117317464 | CX41: 4.117317464 | CY41: 0.01885819588 | CZ41: 0.09999293659 | DA41: =SUM(CY35:CY41) -> 0.1029329366 | DC41: 0.1320073712 | DD41: 0.2802830257 | DE41: 0.6096505561 | DF41: 0.7205305561 | DG41: 4.497593426 | DH41: 4.829900956 | DI41: 4.940780956 | DJ41: 8 | DK41: 4.117317464 | DL41: 2.058658732 | DM41: 14.41061112 | DN41: 20.58658732 | DP41: 2.058658732 | DT41: 40 | DU41: 13 | DW41: 2014-05-04 | DX41: 10.86930106
BZ42: 2014-06-05 | CA42: =Country_uncorrected!AJ73 -> 2014-06-05 | CB42: 9 | CC42: 2.897949741 | CD42: 402 | CE42: 23.48453706 | CF42: 23.48453706 | CI42: 0.5795899481 | CJ42: 0.2897949741 | CK42: 2.028564818 | CL42: 2.897949741 | CN42: 0.5795899481 | CO42: 0.0144897487 | CP42: 0.1014282409 | CQ42: 0.6955079378 | CR42: 5.636288894 | CT42: 9 | CU42: 0.5795899481 | CV42: 4.696907412 | CW42: 4.696907412 | CX42: 4.696907412 | CY42: 0.0144897487 | CZ42: 0.1015826853 | DA42: 0.1174226853 | DC42: 0.1014282409 | DD42: 0.2334356121 | DE42: 0.5504287971 | DF42: 0.8219587971 | DG42: 5.031925709 | DH42: 5.364758894 | DI42: 5.636288894 | DJ42: 9 | DK42: 4.579307412 | DL42: 2.289653706 | DM42: 16.02757594 | DN42: 22.89653706 | DP42: 2.348453706 | DT42: 41 | DU42: 13 | DW42: 2014-05-05 | DX42: 10.96352621
B43: 241-270 | C43: Hosp | D43: =Country_uncorrected!D49 -> 0.55 | E43: Rhos | F43: =F38 -> 0.02 | G43: 0.03 | I43: Total cases: | L43: =SUM($CC$33:$CC$333) -> 25792.18185 | BZ43: 2014-06-06 | CA43: =Country_uncorrected!AJ74 -> 2014-06-06 | CB43: 10 | CC43: 2.630147082 | CD43: 438 | CE43: 26.11468414 | CF43: 26.11468414 | CI43: 0.5260294164 | CJ43: 0.2630147082 | CK43: 1.841102957 | CL43: 2.630147082 | CN43: 0.5260294164 | CO43: 0.01315073541 | CP43: 0.09205514787 | CQ43: 0.6312352997 | CR43: 6.267524194 | CT43: 10 | CU43: 0.5260294164 | CV43: =SUM(CU34:CU43) -> 5.222936828 | CW43: 5.222936828 | CX43: 5.105336828 | CY43: 0.01315073541 | CZ43: 0.0917834207 | DA43: 0.1276334207 | DC43: 0.09205514787 | DD43: 0.1934833888 | DE43: 0.4737664145 | DF43: 0.8934339449 | DG43: 5.508203638 | DH43: 5.824336663 | DI43: 6.126404194 | DJ43: 10 | DK43: 4.589336828 | DL43: 2.294668414 | DM43: 16.0626789 | DN43: 22.94668414 | DP43: 2.552668414 | DT43: 42 | DU43: 13 | DW43: 2014-05-06 | DX43: 11.06455722
C44: Home Iso | D44: =Country_uncorrected!D50 -> 0.1 | E44: Rhq | F44: =F39 -> 0.03 | G44: 0.035 | BZ44: 2014-06-07 | CA44: =Country_uncorrected!AJ75 -> 2014-06-07 | CB44: 11 | CC44: 2.773425432 | CD44: 474 | CE44: 28.88810957 | CF44: 28.88810957 | CI44: 0.5546850865 | CJ44: 0.2773425432 | CK44: 1.941397803 | CL44: 2.773425432 | CN44: 0.5546850865 | CO44: 0.01386712716 | CP44: 0.09706989013 | CQ44: 0.6656221037 | CR44: 6.933146298 | CT44: 11 | CU44: 0.5546850865 | CV44: =SUM(CU35:CU44) -> 5.777621915 | CW44: 5.777621915 | CX44: 5.144021915 | CY44: 0.01386712716 | CZ44: 0.08154804352 | DA44: 0.1286005479 | DC44: 0.09706989013 | DD44: 0.189125038 | DE44: 0.4225606501 | DF44: 0.9002038351 | DG44: 6.048294996 | DH44: 6.328783113 | DI44: 6.172826298 | DJ44: 11 | DK44: 4.226021915 | DL44: 2.113010957 | DM44: 14.7910767 | DN44: 21.13010957 | DP44: 2.572010957 | DT44: 43 | DU44: 13 | DW44: 2014-05-07 | DX44: 11.18780606
C45: No Home Iso | D45: =Country_uncorrected!D51 -> 0.35 | E45: Rnhq | F45: =F40 -> 0.3 | G45: 0.22 | I45: Total attack proportion: | L45: =L43/M14 -> 0.00423377903 | BZ45: 2014-06-08 | CA45: =Country_uncorrected!AJ76 -> 2014-06-08 | CB45: 12 | CC45: 3.307376082 | CD45: 510 | CE45: 32.19548565 | CF45: 32.19548565 | CI45: 0.6614752164 | CJ45: 0.3307376082 | CK45: 2.315163257 | CL45: 3.307376082 | CN45: 0.6614752164 | CO45: 0.01653688041 | CP45: 0.1157581629 | CQ45: 0.7937702596 | CR45: 7.726916557 | CT45: 12 | CU45: 0.6614752164 | CV45: 6.439097131 | CW45: =SUM(CU34:CU45) -> 6.439097131 | CX45: 4.887497131 | CY45: 0.01653688041 | CZ45: 0.07690268756 | DA45: 0.1221874283 | DC45: 0.1157581629 | DD45: 0.212828053 | DE45: 0.4063114418 | DF45: 0.8553119979 | DG45: 6.728827872 | DH45: 6.967596001 | DI45: 5.864996557 | DJ45: 12 | DK45: 3.923396957 | DL45: 1.961698479 | DM45: 13.73188935 | DN45: 19.61698479 | DP45: 2.443748565 | DT45: 44 | DU45: 13 | DW45: 2014-05-08 | DX45: 11.33446877
D46: =SUM(D43:D45) -> 1 | BW46: 0.230377926 | BZ46: 2014-06-09 | CA46: =Country_uncorrected!AJ77 -> 2014-06-09 | CB46: 13 | CC46: 5.338216722 | CD46: 546 | CE46: 37.53370238 | CF46: 37.53370238 | CI46: 1.067643344 | CJ46: 0.5338216722 | CK46: 3.736751705 | CL46: 5.338216722 | CN46: 1.067643344 | CO46: 0.02669108361 | CP46: 0.1868375853 | CQ46: 1.281172013 | CR46: 9.00808857 | CT46: 13 | CU46: 1.067643344 | CV46: 7.389140475 | CW46: =SUM(CU35:CU46) -> 7.506740475 | CX46: 4.991040301 | CY46: 0.02669108361 | CZ46: 0.08473557529 | DA46: 0.1247760075 | DC46: 0.1868375853 | DD46: 0.3025957481 | DE46: 0.4917207861 | DF46: 0.8734320528 | DG46: 7.776471799 | DH46: 8.123237269 | DI46: 5.989248362 | DJ46: 13 | DK46: 4.143750847 | DL46: 2.071875423 | DM46: 14.50312796 | DN46: 20.71875423 | DP46: 2.495520151 | DT46: 45 | DU46: 12 | DW46: 2014-05-09 | DX46: 11.4968253
K47: Cases | BW47: 4.377180593 | BZ47: 2014-06-10 | CA47: =Country_uncorrected!AJ78 -> 2014-06-10 | CB47: 14 | CC47: 7.311558721 | CD47: 582 | CE47: 44.8452611 | CF47: 44.8452611 | CI47: 1.462311744 | CJ47: 0.7311558721 | CK47: 5.118091105 | CL47: 7.311558721 | CN47: 1.462311744 | CO47: 0.0365577936 | CP47: 0.2559045552 | CQ47: 1.754774093 | CR47: 10.76286266 | CT47: 14 | CU47: 1.462311744 | CV47: 8.335452219 | CW47: 8.969052219 | CX47: 5.606062591 | CY47: 0.0365577936 | CZ47: 0.1068036202 | DA47: 0.1401515648 | DC47: 0.2559045552 | DD47: 0.4427421405 | DE47: 0.6555701935 | DF47: 0.9810609534 | DG47: 8.88499798 | DH47: 9.764773978 | DI47: 6.727275109 | DJ47: 14 | DK47: 4.851734756 | DL47: 2.425867378 | DM47: 16.98107165 | DN47: 24.25867378 | DP47: 2.803031296 | DT47: 46 | DU47: 13 | DW47: 2014-05-10 | DX47: 11.66804469
B48: 271-300 | C48: Hosp | D48: =Country_uncorrected!D54 -> 0.65 | E48: Rhos | F48: =F43 -> 0.02 | G48: 0.03 | K48: Model estimates | L48: Correct reported | BW48: 1.320051192 | BZ48: 2014-06-11 | CA48: =Country_uncorrected!AJ79 -> 2014-06-11 | CB48: 15 | CC48: 7.904169303 | CD48: 618 | CE48: 52.7494304 | CF48: 52.7494304 | CI48: 1.580833861 | CJ48: 0.7904169303 | CK48: 5.532918512 | CL48: 7.904169303 | CN48: 1.580833861 | CO48: 0.03952084652 | CP48: 0.2766459256 | CQ48: 1.897000633 | CR48: 12.6598633 | CT48: 15 | CU48: 1.580833861 | CV48: 8.99828608 | CW48: 10.43228608 | CX48: 6.432568616 | CY48: 0.03952084652 | CZ48: 0.1331737313 | DA48: 0.1608142154 | DC48: 0.2766459256 | DD48: 0.5325504808 | DE48: 0.835146229 | DF48: 1.125699508 | DG48: 9.664010292 | DH48: 11.42824652 | DI48: 7.71908234 | DJ48: 15 | DK48: 5.852978668 | DL48: 2.926489334 | DM48: 20.48542534 | DN48: 29.26489334 | DP48: 3.216284308 | DT48: 47 | DU48: 13 | DW48: 2014-05-11 | DX48: 11.83814473
C49: Home Iso | D49: =Country_uncorrected!D55 -> 0.1 | E49: Rhq | F49: =F44 -> 0.03 | G49: 0.035 | I49: Total cases: | K49: =Country_uncorrected!AL199 -> 2994.45009 | L49: =Country_uncorrected!AI199 -> 0 | AM49: Data from DG,DH (beds), CT (days) | BZ49: 2014-06-12 | CA49: =Country_uncorrected!AJ80 -> 2014-06-12 | CB49: 16 | CC49: 7.521869685 | CD49: 654 | CE49: 60.27130009 | CF49: 60.27130009 | CI49: 1.504373937 | CJ49: 0.7521869685 | CK49: 5.265308779 | CL49: 7.521869685 | CN49: 1.504373937 | CO49: 0.03760934842 | CP49: 0.263265439 | CQ49: 1.805248724 | CR49: 14.46511202 | CT49: 16 | CU49: 1.504373937 | CV49: 9.538559843 | CW49: 11.42066002 | CX49: 7.357352605 | CY49: 0.03760934842 | CZ49: 0.1569159526 | DA49: 0.1839338151 | DC49: 0.263265439 | DD49: 0.5399113646 | DE49: 0.9826535051 | DF49: 1.287536706 | DG49: 10.23538716 | DH49: 12.58724734 | DI49: 8.828823126 | DJ49: 16 | DK49: 6.831323189 | DL49: 3.415661594 | DM49: 23.90963116 | DN49: 34.15661594 | DP49: 3.678676303 | DT49: 48 | DU49: 12 | DW49: 2014-05-12 | DX49: 12.00395251
C50: No Home Iso | D50: =Country_uncorrected!D56 -> 0.25 | E50: Rnhq | F50: =F45 -> 0.3 | G50: 0.22 | BZ50: 2014-06-13 | CA50: =Country_uncorrected!AJ81 -> 2014-06-13 | CB50: 17 | CC50: 7.232194359 | CD50: 690 | CE50: 67.50349444 | CF50: 67.50349444 | CI50: 1.446438872 | CJ50: 0.7232194359 | CK50: 5.062536051 | CL50: 7.232194359 | CN50: 1.446438872 | CO50: 0.0361609718 | CP50: 0.2531268026 | CQ50: 1.735726646 | CR50: 16.20083867 | CT50: 17 | CU50: 1.446438872 | CV50: 10.13770926 | CW50: 11.94909889 | CX50: 8.277762061 | CY50: 0.0361609718 | CZ50: 0.1765400439 | DA50: 0.2069440515 | DC50: 0.2531268026 | DD50: 0.5163922415 | DE50: 1.048942722 | DF50: 1.448608361 | DG50: 10.83064155 | DH50: 13.20498566 | DI50: 9.933314473 | DJ50: 17 | DK50: 7.723076974 | DL50: 3.861538487 | DM50: 27.03076941 | DN50: 38.61538487 | DP50: 4.13888103 | DT50: 49 | DU50: 12 | DW50: 2014-05-13 | DX50: 12.16576771
D51: =SUM(D48:D50) -> 1 | BZ51: 2014-06-14 | CA51: =Country_uncorrected!AJ82 -> 2014-06-14 | CB51: 18 | CC51: 6.486154845 | CD51: 726 | CE51: 73.98964929 | CF51: 73.98964929 | CI51: 1.297230969 | CJ51: 0.6486154845 | CK51: 4.540308392 | CL51: 6.486154845 | CN51: 1.297230969 | CO51: 0.03243077423 | CP51: 0.2270154196 | CQ51: 1.556677163 | CR51: 17.75751583 | CT51: 18 | CU51: 1.297230969 | CV51: 10.68061239 | CW51: 12.28222968 | CX51: 9.020307943 | CY51: 0.03243077423 | CZ51: 0.1822797346 | DA51: 0.2255076986 | DC51: 0.2270154196 | DD51: 0.4801422222 | DE51: 1.020053587 | DF51: 1.57855389 | DG51: 11.34303435 | DH51: 13.52779097 | DI51: 10.82436953 | DJ51: 18 | DK51: 8.358832727 | DL51: 4.179416363 | DM51: 29.25591454 | DN51: 41.79416363 | DP51: 4.510153972 | DT51: 50 | DU51: 12 | DW51: 2014-05-14 | DX51: 12.32388669
BZ52: 2014-06-15 | CA52: =Country_uncorrected!AJ83 -> 2014-06-15 | CB52: 19 | CC52: 6.306157744 | CD52: 762 | CE52: 80.29580703 | CF52: 80.29580703 | CI52: 1.261231549 | CJ52: 0.6306157744 | CK52: 4.414310421 | CL52: 6.306157744 | CN52: 1.261231549 | CO52: 0.03153078872 | CP52: 0.2207155211 | CQ52: 1.513477859 | CR52: 19.27099369 | CT52: 19 | CU52: 1.261231549 | CV52: 11.36225399 | CW52: 12.69617178 | CX52: 9.620064276 | CY52: 0.03153078872 | CZ52: 0.1772527297 | DA52: 0.2405016069 | DC52: 0.2207155211 | DD52: 0.4477309406 | DE52: 0.9641231822 | DF52: 1.683511248 | DG52: 11.98723767 | DH52: 13.90079657 | DI52: 11.54407713 | DJ52: 19 | DK52: 8.552420931 | DL52: 4.276210466 | DM52: 29.93347326 | DN52: 42.76210466 | DP52: 4.810032138 | DT52: 51 | DU52: 12 | DW52: 2014-05-15 | DX52: 12.4810305
BZ53: 2014-06-16 | CA53: =Country_uncorrected!AJ84 -> 2014-06-16 | CB53: 20 | CC53: 6.453194502 | CD53: 798 | CE53: 86.74900154 | CF53: 86.74900154 | CI53: 1.2906389 | CJ53: 0.6453194502 | CK53: 4.517236151 | CL53: 6.453194502 | CN53: 1.2906389 | CO53: 0.03226597251 | CP53: 0.2258618076 | CQ53: 1.54876668 | CR53: 20.81976037 | CT53: 20 | CU53: 1.2906389 | CV53: 12.12686348 | CW53: 13.23248284 | CX53: 9.843059832 | CY53: 0.03226597251 | CZ53: 0.1699978557 | DA53: 0.2460764958 | DC53: 0.2258618076 | DD53: 0.4465773286 | DE53: 0.9267195508 | DF53: 1.722535471 | DG53: 12.74343866 | DH53: 14.40527889 | DI53: 11.8116718 | DJ53: 20 | DK53: 8.380748088 | DL53: 4.190374044 | DM53: 29.33261831 | DN53: 41.90374044 | DP53: 4.921529916 | DT53: 52 | DU53: 12 | DW53: 2014-05-16 | DX53: 12.63947325
BZ54: 2014-06-17 | CA54: =Country_uncorrected!AJ85 -> 2014-06-17 | CB54: 21 | CC54: 6.533690582 | CD54: 834 | CE54: 93.28269212 | CF54: 93.28269212 | CI54: 1.306738116 | CJ54: 0.6533690582 | CK54: 4.573583407 | CL54: 6.533690582 | CN54: 1.306738116 | CO54: 0.03266845291 | CP54: 0.2286791704 | CQ54: 1.56808574 | CR54: 22.38784611 | CT54: 21 | CU54: 1.306738116 | CV54: 12.87891651 | CW54: 13.95963101 | CX54: 9.687486204 | CY54: 0.03266845291 | CZ54: 0.1650569602 | DA54: 0.2421871551 | DC54: 0.2286791704 | DD54: 0.4545409779 | DE54: 0.9022719186 | DF54: 1.695310086 | DG54: 13.49851445 | DH54: 15.10409009 | DI54: 11.62498344 | DJ54: 21 | DK54: 8.106652343 | DL54: 4.053326172 | DM54: 28.3732832 | DN54: 40.53326172 | DP54: 4.843743102 | DT54: 53 | DU54: 12 | DW54: 2014-05-17 | DX54: 12.80226749
BZ55: 2014-06-18 | CA55: =Country_uncorrected!AJ86 -> 2014-06-18 | CB55: 22 | CC55: 6.973460835 | CD55: 870 | CE55: 100.256153 | CF55: 100.256153 | CI55: 1.394692167 | CJ55: 0.6973460835 | CK55: 4.881422585 | CL55: 6.973460835 | CN55: 1.394692167 | CO55: 0.03486730418 | CP55: 0.2440711292 | CQ55: 1.6736306 | CR55: 24.06147671 | CT55: 22 | CU55: 1.394692167 | CV55: 13.61213346 | CW55: 14.82829376 | CX55: 9.501344511 | CY55: 0.03486730418 | CZ55: 0.1637632925 | DA55: 0.2375336128 | DC55: 0.2440711292 | DD55: 0.4727502996 | DE55: 0.9193276282 | DF55: 1.662735289 | DG55: 14.24864705 | DH55: 15.985155 | DI55: 11.40161341 | DJ55: 22 | DK55: 7.996970574 | DL55: 3.998485287 | DM55: 27.98939701 | DN55: 39.98485287 | DP55: 4.750672255 | DT55: 54 | DU55: 12 | DW55: 2014-05-18 | DX55: 12.96955106
BZ56: 2014-06-19 | CA56: =Country_uncorrected!AJ87 -> 2014-06-19 | CB56: 23 | CC56: 7.371318247 | CD56: 906 | CE56: 107.6274712 | CF56: 107.6274712 | CI56: 1.474263649 | CJ56: 0.7371318247 | CK56: 5.159922773 | CL56: 7.371318247 | CN56: 1.474263649 | CO56: 0.03685659123 | CP56: 0.2579961386 | CQ56: 1.769116379 | CR56: 25.83059309 | CT56: 23 | CU56: 1.474263649 | CV56: 14.01875376 | CW56: 15.74787233 | CX56: 9.471234223 | CY56: 0.03685659123 | CZ56: 0.1681891096 | DA56: 0.2367808556 | DC56: 0.2579961386 | DD56: 0.5020672679 | DE56: 0.9566082458 | DF56: 1.657465989 | DG56: 14.68901014 | DH56: 16.94126143 | DI56: 11.36548107 | DJ56: 23 | DK56: 8.024795351 | DL56: 4.012397676 | DM56: 28.08678373 | DN56: 40.12397676 | DP56: 4.735617111 | DT56: 55 | DU56: 12 | DW56: 2014-05-19 | DX56: 13.14124742
BZ57: 2014-06-20 | CA57: =Country_uncorrected!AJ88 -> 2014-06-20 | CB57: 24 | CC57: 7.861432149 | CD57: 942 | CE57: 115.4889033 | CF57: 115.4889033 | CI57: 1.57228643 | CJ57: 0.7861432149 | CK57: 5.503002505 | CL57: 7.861432149 | CN57: 1.57228643 | CO57: 0.03930716075 | CP57: 0.2751501252 | CQ57: 1.886743716 | CR57: 27.7173368 | CT57: 24 | CU57: 1.57228643 | CV57: 14.12872845 | CW57: 16.65868354 | CX57: 9.597081781 | CY57: 0.03930716075 | CZ57: 0.1759654816 | DA57: 0.2399270445 | DC57: 0.2751501252 | DD57: 0.5331462639 | DE57: 1.005896563 | DF57: 1.679489312 | DG57: 14.8378402 | DH57: 17.90450715 | DI57: 11.51649814 | DJ57: 24 | DK57: 8.299850812 | DL57: 4.149925406 | DM57: 29.04947784 | DN57: 41.49925406 | DP57: 4.79854089 | DT57: 56 | DU57: 12 | DW57: 2014-05-20 | DX57: 13.31635058
BZ58: 2014-06-21 | CA58: =Country_uncorrected!AJ89 -> 2014-06-21 | CB58: 25 | CC58: 8.094892092 | CD58: 978 | CE58: 123.5837954 | CF58: 123.5837954 | CI58: 1.618978418 | CJ58: 0.8094892092 | CK58: 5.666424464 | CL58: 8.094892092 | CN58: 1.618978418 | CO58: 0.04047446046 | CP58: 0.2833212232 | CQ58: 1.942774102 | CR58: 29.66011091 | CT58: 25 | CU58: 1.618978418 | CV58: 14.16687301 | CW58: 17.21001861 | CX58: 9.91882923 | CY58: 0.04047446046 | CZ58: 0.1841739695 | DA58: 0.2479707308 | DC58: 0.2833212232 | DD58: 0.5584713484 | DE58: 1.060538616 | DF58: 1.735795115 | DG58: 14.90951833 | DH58: 18.51852796 | DI58: 11.90259508 | DJ58: 25 | DK58: 8.657597681 | DL58: 4.328798841 | DM58: 30.30159188 | DN58: 43.28798841 | DP58: 4.959414615 | DT58: 57 | DU58: 12 | DW58: 2014-05-21 | DX58: 13.49429374
BZ59: 2014-06-22 | CA59: =Country_uncorrected!AJ90 -> 2014-06-22 | CB59: 26 | CC59: 8.322034744 | CD59: 1014 | CE59: 131.9058302 | CF59: 131.9058302 | CI59: 1.664406949 | CJ59: 0.8322034744 | CK59: 5.825424321 | CL59: 8.322034744 | CN59: 1.664406949 | CO59: 0.04161017372 | CP59: 0.291271216 | CQ59: 1.997288339 | CR59: 31.65739924 | CT59: 26 | CU59: 1.664406949 | CV59: 14.32690602 | CW59: 17.41211382 | CX59: 10.32200463 | CY59: 0.04161017372 | CZ59: 0.1931156903 | DA59: 0.2580501158 | DC59: 0.291271216 | DD59: 0.5745924392 | DE59: 1.107738703 | DF59: 1.80635081 | DG59: 15.09461415 | DH59: 18.77790264 | DI59: 12.38640556 | DJ59: 26 | DK59: 9.03136573 | DL59: 4.515682865 | DM59: 31.60978005 | DN59: 45.15682865 | DP59: 5.161002315 | DT59: 58 | DU59: 12 | DW59: 2014-05-22 | DX59: 13.6743315
BZ60: 2014-06-23 | CA60: =Country_uncorrected!AJ91 -> 2014-06-23 | CB60: 27 | CC60: 8.43295663 | CD60: 1050 | CE60: 140.3387868 | CF60: 140.3387868 | CI60: 1.686591326 | CJ60: 0.843295663 | CK60: 5.903069641 | CL60: 8.43295663 | CN60: 1.686591326 | CO60: 0.04216478315 | CP60: 0.295153482 | CQ60: 2.023909591 | CR60: 33.68130884 | CT60: 27 | CU60: 1.686591326 | CV60: 14.56705847 | CW60: 17.51787128 | CX60: 10.71795706 | CY60: 0.04216478315 | CZ60: 0.2004131693 | DA60: 0.2679489264 | DC60: 0.295153482 | DD60: 0.5864246981 | DE60: 1.144896047 | DF60: 1.875642485 | DG60: 15.35389634 | DH60: 18.93071626 | DI60: 12.86154847 | DJ60: 27 | DK60: 9.411218939 | DL60: 4.70560947 | DM60: 32.93926629 | DN60: 47.0560947 | DP60: 5.358978528 | DT60: 59 | DU60: 12 | DW60: 2014-05-23 | DX60: 13.85590545
BZ61: 2014-06-24 | CA61: =Country_uncorrected!AJ92 -> 2014-06-24 | CB61: 28 | CC61: 8.598157689 | CD61: 1086 | CE61: 148.9369445 | CF61: 148.9369445 | CI61: 1.719631538 | CJ61: 0.8598157689 | CK61: 6.018710382 | CL61: 8.598157689 | CN61: 1.719631538 | CO61: 0.04299078844 | CP61: 0.3009355191 | CQ61: 2.063557845 | CR61: 35.74486668 | CT61: 28 | CU61: 1.719631538 | CV61: 14.98945904 | CW61: 17.73312888 | CX61: 11.13085048 | CY61: 0.04299078844 | CZ61: 0.2065473665 | DA61: 0.2782712619 | DC61: 0.3009355191 | DD61: 0.5960890012 | DE61: 1.17068144 | DF61: 1.947898834 | DG61: 15.79209541 | DH61: 19.18208159 | DI61: 13.35702057 | DJ61: 28 | DK61: 9.73615831 | DL61: 4.868079155 | DM61: 34.07655409 | DN61: 48.68079155 | DP61: 5.565425239 | DT61: 60 | DU61: 12 | DW61: 2014-05-24 | DX61: 14.03910533
BZ62: 2014-06-25 | CA62: =Country_uncorrected!AJ93 -> 2014-06-25 | CB62: 29 | CC62: 8.747262881 | CD62: 1122 | CE62: 157.6842074 | CF62: 157.6842074 | CI62: 1.749452576 | CJ62: 0.8747262881 | CK62: 6.123084017 | CL62: 8.747262881 | CN62: 1.749452576 | CO62: 0.04373631441 | CP62: 0.3061542008 | CQ62: 2.099343091 | CR62: 37.84420977 | CT62: 29 | CU62: 1.749452576 | CV62: 15.47768007 | CW62: 18.03614259 | CX62: 11.48561089 | CY62: 0.04373631441 | CZ62: 0.2109765202 | DA62: 0.2871402722 | DC62: 0.3061542008 | DD62: 0.6070897199 | DE62: 1.193514418 | DF62: 2.009981905 | DG62: 16.29574631 | DH62: 19.51679728 | DI62: 13.78273306 | DJ62: 29 | DK62: 10.01134724 | DL62: 5.005673618 | DM62: 35.03971533 | DN62: 50.05673618 | DP62: 5.742805443 | DT62: 61 | DU62: 12 | DW62: 2014-05-25 | DX62: 14.22418674
BZ63: 2014-06-26 | CA63: =Country_uncorrected!AJ94 -> 2014-06-26 | CB63: 30 | CC63: 8.913055022 | CD63: 1158 | CE63: 166.5972624 | CF63: 166.5972624 | CI63: 1.782611004 | CJ63: 0.8913055022 | CK63: 6.239138516 | CL63: 8.913055022 | CN63: 1.782611004 | CO63: 0.04456527511 | CP63: 0.3119569258 | CQ63: 2.139133205 | CR63: 39.98334298 | CT63: 30 | CU63: 1.782611004 | CV63: 15.96965217 | CW63: 18.52152262 | CX63: 11.79395824 | CY63: 0.04456527511 | CZ63: 0.2150673348 | DA63: 0.294848956 | DC63: 0.3119569258 | DD63: 0.6181111266 | DE63: 1.214200128 | DF63: 2.063942692 | DG63: 16.80283064 | DH63: 20.03057171 | DI63: 14.15274989 | DJ63: 30 | DK63: 10.22167181 | DL63: 5.110835906 | DM63: 35.77585134 | DN63: 51.10835906 | DP63: 5.896979121 | DT63: 62 | DU63: 12 | DW63: 2014-05-26 | DX63: 14.41148496
BZ64: 2014-06-27 | CA64: =Country_uncorrected!AJ95 -> 2014-06-27 | CB64: 31 | CC64: 9.158191759 | CD64: 1194 | CE64: 175.7554542 | CF64: 175.7554542 | CG64: =CG34 -> Hosp | CH64: =D8 -> 0.15 | CI64: =CC64*$CH$64 -> 1.373728764 | CJ64: =CC64*$CH$65 -> 2.28954794 | CK64: =CC64*$CH$66 -> 5.494915055 | CL64: =SUM(CI64:CK64) -> 9.158191759 | CN64: 1.373728764 | CO64: 0.114477397 | CP64: 0.2747457528 | CQ64: 1.762951914 | CR64: 41.74629489 | CT64: 31 | CU64: 1.373728764 | CV64: 16.03664282 | CW64: 18.63401984 | CX64: 11.59540058 | CY64: 0.114477397 | CZ64: 0.2879345581 | DA64: 0.3700191923 | DC64: 0.2747457528 | DD64: 0.5867026785 | DE64: 1.193792398 | DF64: 2.06353832 | DG64: 16.91128006 | DH64: 20.19783143 | DI64: 14.02895809 | DJ64: 31 | DK64: 9.976422157 | DL64: 6.590894636 | DM64: 35.60434193 | DN64: 52.17165872 | DP64: 7.400383845 | DT64: 63 | DU64: 12 | DW64: 2014-05-27 | DX64: 14.60125466
BZ65: 2014-06-28 | CA65: =Country_uncorrected!AJ96 -> 2014-06-28 | CB65: 32 | CC65: 9.427402961 | CD65: 1230 | CE65: 185.1828571 | CF65: 185.1828571 | CG65: =CG35 -> Home Iso | CH65: =D9 -> 0.25 | CI65: =CC65*$CH$64 -> 1.414110444 | CJ65: =CC65*$CH$65 -> 2.35685074 | CK65: =CC65*$CH$66 -> 5.656441777 | CL65: =SUM(CI65:CK65) -> 9.427402961 | CN65: 1.414110444 | CO65: 0.117842537 | CP65: 0.2828220888 | CQ65: 1.81477507 | CR65: 43.56106996 | CT65: 32 | CU65: 1.414110444 | CV65: 16.0560611 | CW65: 18.75749138 | CX65: 11.3905326 | CY65: 0.117842537 | CZ65: 0.363612312 | DA65: 0.4473872688 | DC65: 0.2828220888 | DD65: 0.5575678416 | DE65: 1.175678968 | DF65: 2.063039185 | DG65: 16.97724125 | DH65: 20.38055762 | DI65: 13.90095906 | DJ65: 32 | DK65: 9.726125652 | DL65: 8.115541902 | DM65: 35.43535939 | DN65: 53.27702694 | DP65: 8.947745377 | DT65: 64 | DU65: 12 | DW65: 2014-05-28 | DX65: 14.79372529
BZ66: 2014-06-29 | CA66: =Country_uncorrected!AJ97 -> 2014-06-29 | CB66: 33 | CC66: 9.710446595 | CD66: 1266 | CE66: 194.8933037 | CF66: 194.8933037 | CG66: =CG36 -> No Home Iso | CH66: =D10 -> 0.6 | CI66: 1.456566989 | CJ66: 2.427611649 | CK66: 5.826267957 | CL66: 9.710446595 | CN66: 1.456566989 | CO66: 0.1213805824 | CP66: 0.2913133978 | CQ66: 1.86926097 | CR66: 45.43033093 | CT66: 33 | CU66: 1.456566989 | CV66: 16.03836444 | CW66: 18.90732026 | CX66: 11.18269264 | CY66: 0.1213805824 | CZ66: 0.442002106 | DA66: 0.5271576775 | DC66: 0.2913133978 | DD66: 0.5741354867 | DE66: 1.160838165 | DF66: 2.063081367 | DG66: 17.05450203 | DH66: 20.5953161 | DI66: 13.77293169 | DJ66: 33 | DK66: 9.496101316 | DL66: 9.699857888 | DM66: 35.3585577 | DN66: 54.55451691 | DP66: 10.54315355 | DT66: 65 | DU66: 13 | DW66: 2014-05-29 | DX66: 14.98894319
BZ67: 2014-06-30 | CA67: =Country_uncorrected!AJ98 -> 2014-06-30 | CB67: 34 | CC67: 9.986542698 | CD67: 1302 | CE67: 204.8798464 | CF67: 204.8798464 | CI67: 1.497981405 | CJ67: 2.496635675 | CK67: 5.991925619 | CL67: 9.986542698 | CN67: 1.497981405 | CO67: 0.1248317837 | CP67: 0.299596281 | CQ67: 1.922409469 | CR67: 47.3527404 | CT67: 34 | CU67: 1.497981405 | CV67: 15.96405941 | CW67: 19.01060949 | CX67: 10.99408272 | CY67: 0.1248317837 | CZ67: 0.5230975753 | DA67: 0.6098246781 | DC67: 0.299596281 | DD67: 0.5909096788 | DE67: 1.14847752 | DF67: 2.067524166 | DG67: 17.07806667 | DH67: 20.76891169 | DI67: 13.67143156 | DJ67: 34 | DK67: 9.274451183 | DL67: 11.33667779 | DM67: 35.33177294 | DN67: 55.94290192 | DP67: 12.19649356 | DT67: =DT66+(DW67-DW66) -> 66 | DU67: 13 | DW67: 2014-05-30 | DX67: =CC98 -> 15.1869414
BZ68: 2014-07-01 | CA68: =Country_uncorrected!AJ99 -> 2014-07-01 | CB68: 35 | CC68: 10.24566528 | CD68: 1338 | CE68: 215.1255117 | CF68: 215.1255117 | CI68: 1.536849792 | CJ68: 2.56141632 | CK68: 6.147399168 | CL68: 10.24566528 | CN68: 1.536849792 | CO68: 0.128070816 | CP68: 0.3073699584 | CQ68: 1.972290566 | CR68: 49.32503097 | CT68: 35 | CU68: 1.536849792 | CV68: 15.88193079 | CW68: 19.07319564 | CX68: 10.81130097 | CY68: 0.128070816 | CZ68: 0.6066031162 | DA68: 0.6949047057 | DC68: 0.3073699584 | DD68: 0.6069662394 | DE68: 1.181101726 | DF68: 2.073958605 | DG68: 17.09550014 | DH68: 20.94920207 | DI68: 13.58016429 | DJ68: 35 | DK68: 9.061848398 | DL68: 13.02336783 | DM68: 35.35608809 | DN68: 57.44130432 | DP68: 13.89809411 | DT68: 67 | DU68: 13 | DW68: 2014-05-31 | DX68: 15.38768488
BZ69: 2014-07-02 | CA69: =Country_uncorrected!AJ100 -> 2014-07-02 | CB69: 36 | CC69: 10.45333176 | CD69: 1374 | CE69: 225.5788435 | CF69: 225.5788435 | CI69: 1.567999764 | CJ69: 2.613332941 | CK69: 6.271999058 | CL69: 10.45333176 | CN69: 1.567999764 | CO69: 0.130666647 | CP69: 0.3135999529 | CQ69: 2.012266364 | CR69: 51.33729733 | CT69: 36 | CU69: 1.567999764 | CV69: 15.7855236 | CW69: 19.06890897 | CX69: 10.62984816 | CY69: 0.130666647 | CZ69: 0.6227923662 | DA69: 0.7818350383 | DC69: 0.3135999529 | DD69: 0.6209699113 | DE69: 1.21187959 | DF69: 2.081404357 | DG69: 17.02928588 | DH69: 21.0626236 | DI69: 13.49308756 | DJ69: 36 | DK69: 8.847237159 | DL69: 14.74539526 | DM69: 35.38894863 | DN69: 58.98158106 | DP69: 15.63670077 | DT69: 68 | DU69: 13 | DV69: =IF(DU69-DV68>0, DU69-DV69, "") ->  | DW69: 2014-06-01 | DX69: 15.59112121
BZ70: 2014-07-03 | CA70: =Country_uncorrected!AJ101 -> 2014-07-03 | CB70: 37 | CC70: 10.6258937 | CD70: 1410 | CE70: 236.2047372 | CF70: 236.2047372 | CI70: 1.593884056 | CJ70: 2.656473426 | CK70: 6.375536223 | CL70: 10.6258937 | CN70: 1.593884056 | CO70: 0.1328236713 | CP70: 0.3187768111 | CQ70: 2.045484538 | CR70: 53.38278187 | CT70: 37 | CU70: 1.593884056 | CV70: 15.69281633 | CW70: 19.04381461 | CX70: 10.44112121 | CY70: 0.1328236713 | CZ70: 0.6377735005 | DA70: 0.8700934345 | DC70: 0.3187768111 | DD70: 0.632376764 | DE70: 1.239343003 | DF70: 2.088224243 | DG70: 16.9629666 | DH70: 21.15325105 | DI70: 13.39943889 | DJ70: 37 | DK70: 9.06739245 | DL70: 15.11232075 | DM70: 36.2695698 | DN70: 60.449283 | DP70: 17.40186869 | DT70: 69 | DU70: 13 | DW70: 2014-06-02 | DX70: 15.79721336
BZ71: 2014-07-04 | CA71: =Country_uncorrected!AJ102 -> 2014-07-04 | CB71: 38 | CC71: 10.76167752 | CD71: 1446 | CE71: 246.9664147 | CF71: 246.9664147 | CI71: 1.614251628 | CJ71: 2.69041938 | CK71: 6.457006513 | CL71: 10.76167752 | CN71: 1.614251628 | CO71: 0.134520969 | CP71: 0.3228503257 | CQ71: 2.071622923 | CR71: 55.45440479 | CT71: 38 | CU71: 1.614251628 | CV71: 15.58743642 | CW71: 18.99365929 | CX71: 10.68164408 | CY71: 0.134520969 | CZ71: 0.6509138871 | DA71: 0.8901370066 | DC71: 0.3228503257 | DD71: 0.6416271368 | DE71: 1.262597048 | DF71: 2.136328816 | DG71: 16.87997745 | DH71: 21.14639334 | DI71: 13.7081099 | DJ71: 38 | DK71: 9.267533635 | DL71: 15.44588939 | DM71: 37.07013454 | DN71: 61.78355756 | DP71: 17.80274013 | DT71: 70 | DU71: 13 | DW71: 2014-06-03 | DX71: 16.00595643
BZ72: 2014-07-05 | CA72: =Country_uncorrected!AJ103 -> 2014-07-05 | CB72: 39 | CC72: 10.86930106 | CD72: 1482 | CE72: 257.8357158 | CF72: 257.8357158 | CI72: 1.630395159 | CJ72: 2.717325266 | CK72: 6.521580638 | CL72: 10.86930106 | CN72: 1.630395159 | CO72: 0.1358662633 | CP72: 0.3260790319 | CQ72: 2.092340455 | CR72: 57.54674525 | CT72: 39 | CU72: 1.630395159 | CV72: 15.46837901 | CW72: 18.93746312 | CX72: 10.89792879 | CY72: 0.1358662633 | CZ72: 0.6619483667 | DA72: 0.9081607328 | DC72: 0.3260790319 | DD72: 0.6489293575 | DE72: 1.281306122 | DF72: 2.179585759 | DG72: 16.77925673 | DH72: 21.12692997 | DI72: 13.98567529 | DJ72: 39 | DK72: 9.441361805 | DL72: 15.73560301 | DM72: 37.76544722 | DN72: 62.94241203 | DP72: 18.16321466 | DT72: 71 | DU72: 13 | DW72: 2014-06-04 | DX72: 16.21737897
BZ73: 2014-07-06 | CA73: =Country_uncorrected!AJ104 -> 2014-07-06 | CB73: 40 | CC73: 10.96352621 | CD73: 1518 | CE73: 268.799242 | CF73: 268.799242 | CI73: 1.644528931 | CJ73: 2.740881552 | CK73: 6.578115724 | CL73: 10.96352621 | CN73: 1.644528931 | CO73: 0.1370440776 | CP73: 0.3289057862 | CQ73: 2.110478795 | CR73: 59.65722404 | CT73: 40 | CU73: 1.644528931 | CV73: 15.33029693 | CW73: 18.86236051 | CX73: 11.08589074 | CY73: 0.1370440776 | CZ73: 0.6709216282 | DA73: 0.923824228 | DC73: 0.3289057862 | DD73: 0.6549848181 | DE73: 1.296611955 | DF73: 2.217178147 | DG73: 16.65620338 | DH73: 21.0827967 | DI73: 14.22689311 | DJ73: 40 | DK73: 9.587909331 | DL73: 15.97984888 | DM73: 38.35163732 | DN73: 63.91939554 | DP73: 18.47648456 | DT73: 72 | DU73: 13 | DW73: 2014-06-05 | DX73: 16.43153269
BZ74: 2014-07-07 | CA74: =Country_uncorrected!AJ105 -> 2014-07-07 | CB74: 41 | CC74: 11.06455722 | CD74: 1554 | CE74: 279.8637992 | CF74: 279.8637992 | CI74: 1.659683582 | CJ74: 2.766139304 | CK74: 6.638734329 | CL74: 11.06455722 | CN74: 1.659683582 | CO74: 0.1383069652 | CP74: 0.3319367165 | CQ74: 2.129927264 | CR74: 61.78715131 | CT74: 41 | CU74: 1.659683582 | CV74: 15.61625175 | CW74: 18.77259152 | CX74: 11.24759291 | CY74: 0.1383069652 | CZ74: 0.6785619464 | DA74: 0.9372994094 | DC74: 0.3319367165 | DD74: 0.6608425026 | DE74: 1.30977186 | DF74: 2.249518583 | DG74: 16.9556562 | DH74: 21.01966279 | DI74: 14.43441091 | DJ74: 41 | DK74: 9.710743121 | DL74: 16.18457187 | DM74: 38.84297248 | DN74: 64.73828747 | DP74: 18.74598819 | DT74: 73 | DU74: 13 | DW74: 2014-06-06 | DX74: 16.64848128
BG75: Days | BH75: infectious | BI75: =M12 -> 6 | BJ75: linked from duration of infectiousness on population page | BZ75: 2014-07-08 | CA75: =Country_uncorrected!AJ106 -> 2014-07-08 | CB75: 42 | CC75: 11.18780606 | CD75: 1590 | CE75: 291.0516052 | CF75: 291.0516052 | CI75: 1.678170909 | CJ75: 2.796951515 | CK75: 6.712683637 | CL75: 11.18780606 | CN75: 1.678170909 | CO75: 0.1398475758 | CP75: 0.3356341818 | CQ75: 2.153652667 | CR75: 63.94080397 | CT75: 42 | CU75: 1.678170909 | CV75: 15.88031222 | CW75: 18.66815142 | CX75: 11.38891403 | CY75: 0.1398475758 | CZ75: 0.6855858508 | DA75: 0.9490761692 | DC75: 0.3356341818 | DD75: 0.6675708983 | DE75: 1.322555716 | DF75: 2.277782806 | DG75: 17.23346897 | DH75: 20.93978331 | DI75: 14.61577301 | DJ75: 42 | DK75: 9.820914266 | DL75: 16.36819044 | DM75: 39.28365706 | DN75: 65.47276177 | DP75: 18.98152338 | DT75: 74 | DU75: 13 | DW75: 2014-06-07 | DX75: 16.86828607
AY76: This col reads in new cases by days prior | BZ76: 2014-07-09 | CA76: =Country_uncorrected!AJ107 -> 2014-07-09 | CB76: 43 | CC76: 11.33446877 | CD76: 1626 | CE76: 302.386074 | CF76: 302.386074 | CI76: 1.700170316 | CJ76: 2.833617193 | CK76: 6.800681263 | CL76: 11.33446877 | CN76: 1.700170316 | CO76: 0.1416808596 | CP76: 0.3400340631 | CQ76: 2.181885239 | CR76: 66.12268921 | CT76: 43 | CU76: 1.700170316 | CV76: 16.12391554 | CW76: 18.99459298 | CX76: 11.52108458 | CY76: 0.1416808596 | CZ76: 0.6927457415 | DA76: 0.9600903818 | DC76: 0.3400340631 | DD76: 0.675668245 | DE76: 1.336510748 | DF76: 2.304216916 | DG76: 17.49232953 | DH76: 21.29119411 | DI76: 14.78539188 | DJ76: 43 | DK76: 9.927200526 | DL76: 16.54533421 | DM76: 39.7088021 | DN76: 66.18133684 | DP76: 19.20180764 | DT76: 75 | DU76: 13 | DW76: 2014-06-08 | DX76: 17.09100242
Z77: For each day's new cases, this range distributes them by days the incubation period will last (daily probs in row 80) | BZ77: 2014-07-10 | CA77: =Country_uncorrected!AJ108 -> 2014-07-10 | CB77: 44 | CC77: 11.4968253 | CD77: 1662 | CE77: 313.8828993 | CF77: 313.8828993 | CI77: 1.724523795 | CJ77: 2.874206325 | CK77: 6.89809518 | CL77: 11.4968253 | CN77: 1.724523795 | CO77: 0.1437103162 | CP77: 0.344904759 | CQ77: 2.21313887 | CR77: 68.33582808 | CT77: 44 | CU77: 1.724523795 | CV77: 16.35045793 | CW77: 19.30500633 | CX77: 11.65172432 | CY77: 0.1437103162 | CZ77: 0.7005897944 | DA77: 0.9709770267 | DC77: 0.344904759 | DD77: 0.6849388221 | DE77: 1.35250972 | DF77: 2.330344864 | DG77: 17.73598655 | DH77: 21.62849307 | DI77: 14.95304621 | DJ77: 44 | DK77: 10.03747269 | DL77: 16.72912115 | DM77: 40.14989077 | DN77: 66.91648462 | DP77: 19.41954053 | DT77: 76 | DU77: 13 | DW77: 2014-06-09 | DX77: 17.31667689
AH78: Incubation Probability | BZ78: 2014-07-11 | CA78: =Country_uncorrected!AJ109 -> 2014-07-11 | CB78: 45 | CC78: 11.66804469 | CD78: 1698 | CE78: 325.550944 | CF78: 325.550944 | CI78: 1.750206704 | CJ78: 2.917011173 | CK78: 7.000826815 | CL78: 11.66804469 | CN78: 1.750206704 | CO78: 0.1458505586 | CP78: 0.3500413408 | CQ78: 2.246098603 | CR78: 70.58192668 | CT78: 45 | CU78: 1.750206704 | CV78: 16.56381484 | CW78: 19.59864604 | CX78: 11.7876794 | CY78: 0.1458505586 | CZ78: 0.7093962755 | DA78: 0.9823066164 | DC78: 0.3500413408 | DD78: 0.6949460998 | DE78: 1.370614345 | DF78: 2.357535879 | DG78: 17.96815722 | DH78: 21.951567 | DI78: 15.12752189 | DJ78: 45 | DK78: 10.15728424 | DL78: 16.92880706 | DM78: 40.62913695 | DN78: 67.71522825 | DP78: 19.64613233 | DT78: 77 | DU78: 13 | DW78: 2014-06-10 | DX78: 17.54534842
Y79: 1 | Z79: 2 | AA79: 3 | AB79: 4 | AC79: 5 | AD79: 6 | AE79: 7 | AF79: 8 | AG79: 9 | AH79: 10 | AI79: 11 | AJ79: 12 | AK79: 13 | AL79: 14 | AM79: 15 | AN79: 16 | AO79: 17 | AP79: 18 | AQ79: 19 | AR79: 20 | AS79: 21 | AT79: 22 | AU79: 23 | AV79: 24 | AW79: 25 | AZ79: format here allows for flexibility of duration of infectious state of 1-15 days | BZ79: 2014-07-12 | CA79: =Country_uncorrected!AJ110 -> 2014-07-12 | CB79: 46 | CC79: 11.83814473 | CD79: 1734 | CE79: 337.3890887 | CF79: 337.3890887 | CI79: 1.77572171 | CJ79: 2.959536184 | CK79: 7.102886841 | CL79: 11.83814473 | CN79: 1.77572171 | CO79: 0.1479768092 | CP79: 0.355144342 | CQ79: 2.278842861 | CR79: 72.86076955 | CT79: 46 | CU79: 1.77572171 | CV79: 16.77153679 | CW79: 19.87638635 | CX79: 11.93300595 | CY79: 0.1479768092 | CZ79: 0.7190661195 | DA79: 0.9944171623 | DC79: 0.355144342 | DD79: 0.7051856828 | DE79: 1.390124505 | DF79: 2.386601189 | DG79: 18.19578859 | DH79: 22.26092801 | DI79: 15.3140243 | DJ79: 46 | DK79: 10.28847702 | DL79: 17.14746169 | DM79: 41.15390806 | DN79: 68.58984677 | DP79: 19.88834325 | DT79: 78 | DU79: 30 | DW79: 2014-06-11 | DX79: 17.7770498
X80: daily probability | Y80: =Incubation!A17 -> 0 | Z80: =Incubation!B17 -> 0.0196 | AA80: =Incubation!C17 -> 0.086 | AB80: =Incubation!D17 -> 0.153 | AC80: =Incubation!E17 -> 0.1606 | AD80: =Incubation!F17 -> 0.1404 | AE80: =Incubation!G17 -> 0.122 | AF80: =Incubation!H17 -> 0.0858 | AG80: =Incubation!I17 -> 0.0646 | AH80: =Incubation!J17 -> 0.0524 | AI80: =Incubation!K17 -> 0.0336 | AJ80: =Incubation!L17 -> 0.0246 | AK80: =Incubation!M17 -> 0.015 | AL80: =Incubation!N17 -> 0.0132 | AM80: =Incubation!O17 -> 0.007 | AN80: =Incubation!P17 -> 0.0054 | AO80: =Incubation!Q17 -> 0.003 | AP80: =Incubation!R17 -> 0.0036 | AQ80: =Incubation!S17 -> 0.003 | AR80: =Incubation!T17 -> 0.0016 | AS80: =Incubation!U17 -> 0.0018 | AT80: =Incubation!V17 -> 0.0016 | AU80: =Incubation!W17 -> 0.0012 | AV80: =Incubation!X17 -> 0.0006 | AW80: =Incubation!Y17 -> 0.0004 | BF80: Infectious: days forward | BZ80: 2014-07-13 | CA80: =Country_uncorrected!AJ111 -> 2014-07-13 | CB80: 47 | CC80: 12.00395251 | CD80: 1770 | CE80: 349.3930412 | CF80: 349.3930412 | CI80: 1.800592876 | CJ80: 3.000988127 | CK80: 7.202371505 | CL80: 12.00395251 | CN80: 1.800592876 | CO80: 0.1500494064 | CP80: 0.3601185753 | CQ80: 2.310760858 | CR80: 75.1715304 | CT80: 47 | CU80: 1.800592876 | CV80: 16.97824561 | CW80: 20.14012943 | CX80: 12.08906989 | CY80: 0.1500494064 | CZ80: 0.7292679501 | DA80: 1.007422491 | DC80: 0.3601185753 | DD80: 0.7152629173 | DE80: 1.410209017 | DF80: 2.417813978 | DG80: 18.42277648 | DH80: 22.55776094 | DI80: 15.51430636 | DJ80: 47 | DK80: 10.42938631 | DL80: 17.38231052 | DM80: 41.71754524 | DN80: 69.52924207 | DP80: 20.14844982 | DT80: 79 | DU80: 30 | DW80: 2014-06-12 | DX80: 18.01181216
H81: Number infected prior days; numbers in rows H-V are t-i; e.g., col N shows number infected 7 days prior to day in col F | X81: cumulative prob | Y81: =Y80 -> 0 | Z81: =Y81+Z80 -> 0.0196 | AA81: 0.1056 | AB81: 0.2586 | AC81: 0.4192 | AD81: 0.5596 | AE81: 0.6816 | AF81: 0.7674 | AG81: 0.832 | AH81: 0.8844 | AI81: 0.918 | AJ81: 0.9426 | AK81: 0.9576 | AL81: 0.9708 | AM81: 0.9778 | AN81: 0.9832 | AO81: 0.9862 | AP81: 0.9898 | AQ81: 0.9928 | AR81: 0.9944 | AS81: 0.9962 | AT81: 0.9978 | AU81: 0.999 | AV81: 0.9996 | AW81: 1 | BZ81: 2014-07-14 | CA81: =Country_uncorrected!AJ112 -> 2014-07-14 | CB81: 48 | CC81: 12.16576771 | CD81: 1806 | CE81: 361.558809 | CF81: 361.558809 | CI81: 1.824865157 | CJ81: 3.041441928 | CK81: 7.299460628 | CL81: 12.16576771 | CN81: 1.824865157 | CO81: 0.1520720964 | CP81: 0.3649730314 | CQ81: 2.341910285 | CR81: 77.51344069 | CT81: 48 | CU81: 1.824865157 | CV81: 17.18885914 | CW81: 20.39699482 | CX81: 12.25425147 | CY81: 0.1520720964 | CZ81: 0.7396591868 | DA81: 1.021187622 | DC81: 0.3649730314 | DD81: 0.7250916066 | DE81: 1.430277289 | DF81: 2.450850293 | DG81: 18.65360993 | DH81: 22.84845974 | DI81: 15.72628938 | DJ81: 48 | DK81: 10.57608056 | DL81: 17.62680093 | DM81: 42.30432223 | DN81: 70.50720372 | DP81: 20.42375245 | DT81: 80 | DU81: 30 | DW81: 2014-06-13 | DX81: 18.24966804
N82: Newly Infected: sum of days prior | AK82: When start Incubation Day | AX82: Days prior to day in col F | AY82: =IF(AY83<=$BI$75,1,0) -> 1 | AZ82: =IF(AZ83<=$BI$75,1,0) -> 1 | BA82: 1 | BB82: 1 | BC82: 1 | BD82: 1 | BE82: =IF(BE83<=$BI$75,1,0) -> 0 | BF82: 0 | BG82: 0 | BH82: 0 | BI82: 0 | BJ82: 0 | BK82: 0 | BL82: 0 | BM82: 0 | BZ82: 2014-07-15 | CA82: =Country_uncorrected!AJ113 -> 2014-07-15 | CB82: 49 | CC82: 12.32388669 | CD82: 1842 | CE82: 373.8826956 | CF82: 373.8826956 | CI82: 1.848583003 | CJ82: 3.080971672 | CK82: 7.394332012 | CL82: 12.32388669 | CN82: 1.848583003 | CO82: 0.1540485836 | CP82: 0.3697166006 | CQ82: 2.372348187 | CR82: 79.88578888 | CT82: 49 | CU82: 1.848583003 | CV82: 17.40704698 | CW82: 20.65169377 | CX82: 12.42466356 | CY82: 0.1540485836 | CZ82: 0.7499974542 | DA82: 1.03538863 | DC82: 0.3697166006 | DD82: 0.734689632 | DE82: 1.449952549 | DF82: 2.484932712 | DG82: 18.89173407 | DH82: 23.13703495 | DI82: 15.9449849 | DJ82: 49 | DK82: 10.72449325 | DL82: 17.87415541 | DM82: 42.89797298 | DN82: 71.49662163 | DP82: 20.7077726 | DT82: 81 | DU82: 30 | DW82: 2014-06-14 | DX82: 18.49065314
F83: Day | G83: 2 days prior | H83: 1 | I83: 2 | J83: 3 | K83: 4 | L83: 5 | M83: 6 | N83: 7 | O83: 8 | P83: 9 | Q83: 10 | R83: 11 | S83: 12 | T83: 13 | U83: 14 | V83: 15 | W83: outsider | X83: Total | Y83: 1 | Z83: 2 | AA83: 3 | AB83: 4 | AC83: 5 | AD83: 6 | AE83: 7 | AF83: 8 | AG83: 9 | AH83: 10 | AI83: 11 | AJ83: 12 | AK83: 13 | AL83: 14 | AM83: 15 | AN83: 16 | AO83: 17 | AP83: 18 | AQ83: 19 | AR83: 20 | AS83: 21 | AT83: 22 | AU83: 23 | AV83: 24 | AW83: 25 | AY83: 1 | AZ83: 2 | BA83: 3 | BB83: 4 | BC83: 5 | BD83: 6 | BE83: 7 | BF83: 8 | BG83: 9 | BH83: 10 | BI83: 11 | BJ83: 12 | BK83: 13 | BL83: 14 | BM83: 15 | BZ83: 2014-07-16 | CA83: =Country_uncorrected!AJ114 -> 2014-07-16 | CB83: 50 | CC83: 12.4810305 | CD83: 1878 | CE83: 386.3637261 | CF83: 386.3637261 | CI83: 1.872154575 | CJ83: 3.120257625 | CK83: 7.488618299 | CL83: 12.4810305 | CN83: 1.872154575 | CO83: 0.1560128812 | CP83: 0.374430915 | CQ83: 2.402598371 | CR83: 82.28838725 | CT83: 50 | CU83: 1.872154575 | CV83: 17.63467263 | CW83: 20.90959672 | CX83: 12.59664782 | CY83: 0.1560128812 | CZ83: 0.7601597768 | DA83: 1.049720652 | DC83: 0.374430915 | DD83: 0.7441475156 | DE83: 1.469239122 | DF83: 2.519329564 | DG83: 19.13897992 | DH83: 23.42855649 | DI83: 16.16569804 | DJ83: 50 | DK83: 10.87212403 | DL83: 18.12020671 | DM83: 43.4884961 | DN83: 72.48082683 | DP83: 20.99441303 | DT83: 82 | DU83: 30 | DW83: 2014-06-15 | DX83: 18.73480691
F84: 1 | G84: 1 | H84: =M15 -> 30 | X84: =SUM(H84:W84) -> 30 | Y84: =$X84*Y$80 -> 0 | Z84: =$X84*Z$80 -> 0.588 | AA84: 2.58 | AB84: 4.59 | AC84: 4.818 | AD84: 4.212 | AE84: 3.66 | AF84: 2.574 | AG84: 1.938 | AH84: 1.572 | AI84: 1.008 | AJ84: 0.738 | AK84: 0.45 | AL84: 0.396 | AM84: 0.21 | AN84: 0.162 | AO84: 0.09 | AP84: 0.108 | AQ84: 0.09 | AR84: 0.048 | AS84: 0.054 | AT84: 0.048 | AU84: 0.036 | AV84: 0.018 | AW84: 0.012 | AX84: 1 | BZ84: 2014-07-17 | CA84: =Country_uncorrected!AJ115 -> 2014-07-17 | CB84: 51 | CC84: 12.63947325 | CD84: 1914 | CE84: 399.0031994 | CF84: 399.0031994 | CI84: 1.895920988 | CJ84: 3.159868313 | CK84: 7.583683951 | CL84: 12.63947325 | CN84: 1.895920988 | CO84: 0.1579934156 | CP84: 0.3791841976 | CQ84: 2.433098601 | CR84: 84.72148585 | CT84: 51 | CU84: 1.895920988 | CV84: 17.87091003 | CW84: 21.17512255 | CX84: 12.76804501 | CY84: 0.1579934156 | CZ84: 0.7701763832 | DA84: 1.064003751 | DC84: 0.3791841976 | DD84: 0.7536151125 | DE84: 1.488304745 | DF84: 2.553609003 | DG84: 19.39470153 | DH84: 23.72743104 | DI84: 16.38565777 | DJ84: 51 | DK84: 11.01783831 | DL84: 18.36306385 | DM84: 44.07135324 | DN84: 73.45225539 | DP84: 21.28007502 | DT84: 83 | DU84: 30 | DW84: 2014-06-16 | DX84: 18.98217184
F85: 1 | G85: 2 | X85: =X84 -> 30 | AX85: 2 | BZ85: 2014-07-18 | CA85: =Country_uncorrected!AJ116 -> 2014-07-18 | CB85: 52 | CC85: 12.80226749 | CD85: 1950 | CE85: 411.8054669 | CF85: 411.8054669 | CI85: 1.920340123 | CJ85: 3.200566871 | CK85: 7.681360491 | CL85: 12.80226749 | CN85: 1.920340123 | CO85: 0.1600283436 | CP85: 0.3840680246 | CQ85: 2.464436491 | CR85: 87.18592234 | CT85: 52 | CU85: 1.920340123 | CV85: 18.11307925 | CW85: 21.45093374 | CX85: 12.93817843 | CY85: 0.1600283436 | CZ85: =+SUM(CY81:CY85) -> 0.7801553204 | DA85: 1.078181536 | DC85: 0.3840680246 | DD85: 0.7632522221 | DE85: 1.507399738 | DF85: 2.587635686 | DG85: 19.65648679 | DH85: 24.03651501 | DI85: 16.60399565 | DJ85: 52 | DK85: 11.16245672 | DL85: 18.60409454 | DM85: 44.64982689 | DN85: 74.41637814 | DP85: 21.56363072 | DT85: 84 | DU85: 30 | DW85: 2014-06-17 | DX85: 19.2327926
F86: 1 | G86: 3 | AX86: 3 | BZ86: 2014-07-19 | CA86: =Country_uncorrected!AJ117 -> 2014-07-19 | CB86: 53 | CC86: 12.96955106 | CD86: 1986 | CE86: 424.7750179 | CF86: 424.7750179 | CI86: 1.945432659 | CJ86: 3.242387765 | CK86: 7.781730637 | CL86: 12.96955106 | CN86: 1.945432659 | CO86: 0.1621193883 | CP86: 0.3890865319 | CQ86: 2.496638579 | CR86: 89.68256092 | CT86: 53 | CU86: 1.945432659 | CV86: 18.35834159 | CW86: 21.73668281 | CX86: 13.10788938 | CY86: 0.1621193883 | CZ86: 0.7902026123 | DA86: 1.092324115 | DC86: 0.3890865319 | DD86: 0.7731545564 | DE86: 1.526769669 | DF86: 2.621577876 | DG86: 19.92169876 | DH86: 24.3557766 | DI86: 16.82179137 | DJ86: 53 | DK86: 11.3072965 | DL86: 18.84549417 | DM86: 45.22918602 | DN86: 75.3819767 | DP86: 21.8464823 | DT86: 85 | DU86: 34 | DW86: 2014-06-18 | DX86: 19.48671474
F87: 1 | G87: 4 | X87: ^day's new infections (top); cum infect (bot) | AX87: 4 | BZ87: 2014-07-20 | CA87: =Country_uncorrected!AJ118 -> 2014-07-20 | CB87: 54 | CC87: 13.14124742 | CD87: 2022 | CE87: 437.9162654 | CF87: 437.9162654 | CI87: 1.971187113 | CJ87: 3.285311854 | CK87: 7.884748451 | CL87: 13.14124742 | CN87: 1.971187113 | CO87: 0.1642655927 | CP87: 0.3942374225 | CQ87: 2.529690128 | CR87: 92.21225105 | CT87: 54 | CU87: 1.971187113 | CV87: 18.60500491 | CW87: 22.02969902 | CX87: 13.27848362 | CY87: 0.1642655927 | CZ87: 0.8004196215 | DA87: 1.106540301 | DC87: 0.3942374225 | DD87: 0.7833239544 | DE87: 1.546576177 | DF87: 2.655696723 | DG87: 20.18874848 | DH87: 24.6828155 | DI87: 17.04072064 | DJ87: 54 | DK87: 11.45361846 | DL87: 19.0893641 | DM87: 45.81447384 | DN87: 76.3574564 | DP87: 22.13080603 | DT87: 86 | DU87: 41 | DW87: 2014-06-19 | DX87: 19.74398394
F88: 1 | G88: 5 | AX88: 5 | BZ88: 2014-07-21 | CA88: =Country_uncorrected!AJ119 -> 2014-07-21 | CB88: 55 | CC88: 13.31635058 | CD88: 2058 | CE88: 451.2326159 | CF88: 451.2326159 | CI88: 1.997452587 | CJ88: 3.329087645 | CK88: 7.989810347 | CL88: 13.31635058 | CN88: 1.997452587 | CO88: 0.1664543822 | CP88: 0.3994905173 | CQ88: 2.563397486 | CR88: 94.77564853 | CT88: 55 | CU88: 1.997452587 | CV88: 18.85225079 | CW88: 22.32698129 | CX88: 13.45107105 | CY88: 0.1664543822 | CZ88: 0.8108611224 | DA88: 1.120922587 | DC88: 0.3994905173 | DD88: 0.7937279399 | DE88: 1.566882496 | DF88: 2.690214209 | DG88: 20.45683985 | DH88: 25.01478637 | DI88: 17.26220784 | DJ88: 55 | DK88: 11.60248804 | DL88: 19.33748007 | DM88: 46.40995218 | DN88: 77.34992029 | DP88: 22.41845175 | DT88: 87 | DU88: 51 | DW88: 2014-06-20 | DX88: 20.00464538
F89: 1 | G89: 6 | AX89: 6 | BZ89: 2014-07-22 | CA89: =Country_uncorrected!AJ120 -> 2014-07-22 | CB89: 56 | CC89: 13.49429374 | CD89: 2094 | CE89: 464.7269097 | CF89: 464.7269097 | CI89: 2.024144062 | CJ89: 3.373573436 | CK89: 8.096576247 | CL89: 13.49429374 | CN89: 2.024144062 | CO89: 0.1686786718 | CP89: 0.4048288123 | CQ89: 2.597651546 | CR89: 97.37330008 | CT89: 56 | CU89: 2.024144062 | CV89: 19.10067314 | CW89: 22.62660156 | CX89: 13.62663211 | CY89: 0.1686786718 | CZ89: 0.8215463786 | DA89: 1.135552675 | DC89: 0.4048288123 | DD89: 0.8043193297 | DE89: 1.587643284 | DF89: 2.725326421 | DG89: 20.72653885 | DH89: 25.34979752 | DI89: 17.4875112 | DJ89: 56 | DK89: 11.75447753 | DL89: 19.59079588 | DM89: 47.01791012 | DN89: 78.36318354 | DP89: 22.71105351 | DT89: 88 | DU89: 51 | DW89: 2014-06-21 | DX89: 20.26874383
F90: 1 | G90: 7 | AX90: 7 | BZ90: 2014-07-23 | CA90: =Country_uncorrected!AJ121 -> 2014-07-23 | CB90: 57 | CC90: 13.6743315 | CD90: 2130 | CE90: 478.4012412 | CF90: 478.4012412 | CI90: 2.051149725 | CJ90: 3.418582876 | CK90: 8.204598902 | CL90: 13.6743315 | CN90: 2.051149725 | CO90: 0.1709291438 | CP90: 0.4102299451 | CQ90: 2.632308814 | CR90: 100.0056089 | CT90: 57 | CU90: 2.051149725 | CV90: 19.35122999 | CW90: 22.92754458 | CX90: 13.80562726 | CY90: 0.1709291438 | CZ90: 0.8324471788 | DA90: 1.150468938 | DC90: 0.4102299451 | DD90: 0.8150587574 | DE90: 1.608786697 | DF90: 2.761125451 | DG90: 20.99873593 | DH90: 25.68680021 | DI90: 17.71722165 | DJ90: 57 | DK90: 11.90970627 | DL90: 19.84951045 | DM90: 47.63882507 | DN90: 79.39804179 | DP90: 23.00937876 | DT90: 89 | DU90: 51 | DW90: 2014-06-22 | DX90: 20.53632382
F91: 1 | G91: 8 | AX91: 8 | BZ91: 2014-07-24 | CA91: =Country_uncorrected!AJ122 -> 2014-07-24 | CB91: 58 | CC91: 13.85590545 | CD91: 2166 | CE91: 492.2571466 | CF91: 492.2571466 | CI91: 2.078385817 | CJ91: 3.463976362 | CK91: 8.31354327 | CL91: 13.85590545 | CN91: 2.078385817 | CO91: 0.1731988181 | CP91: 0.4156771635 | CQ91: 2.667261799 | CR91: 102.6728707 | CT91: 58 | CU91: 2.078385817 | CV91: 19.60475065 | CW91: 23.23020868 | CX91: 13.98809209 | CY91: 0.1731988181 | CZ91: 0.8435266087 | DA91: 1.16567434 | DC91: 0.4156771635 | DD91: 0.8259071086 | DE91: 1.630226438 | DF91: 2.797618417 | DG91: 21.27418437 | DH91: 26.02610946 | DI91: 17.95138484 | DJ91: 58 | DK91: 12.06775196 | DL91: 20.11291994 | DM91: 48.27100785 | DN91: 80.45167975 | DP91: 23.31348681 | DT91: 90 | DU91: 62 | DW91: 2014-06-23 | DX91: 20.80743009
F92: 1 | G92: 9 | AX92: 9 | BZ92: 2014-07-25 | CA92: =Country_uncorrected!AJ123 -> 2014-07-25 | CB92: 59 | CC92: 14.03910533 | CD92: 2202 | CE92: 506.296252 | CF92: 506.296252 | CI92: 2.1058658 | CJ92: 3.509776333 | CK92: 8.423463198 | CL92: 14.03910533 | CN92: 2.1058658 | CO92: 0.1754888166 | CP92: 0.4211731599 | CQ92: 2.702527776 | CR92: 105.3753985 | CT92: 59 | CU92: 2.1058658 | CV92: 19.86203345 | CW92: 23.53548161 | CX92: 14.17361776 | CY92: 0.1754888166 | CZ92: 0.8547498326 | DA92: 1.181134814 | DC92: 0.4211731599 | DD92: 0.8368503234 | DE92: 1.651909081 | DF92: 2.834723553 | DG92: 21.5536336 | DH92: 26.3685255 | DI92: 18.18947613 | DJ92: 59 | DK92: 12.2281851 | DL92: 20.38030851 | DM92: 48.91274041 | DN92: 81.52123402 | DP92: 23.62269627 | DT92: 91 | DU92: 63 | DW92: 2014-06-24 | DX92: 21.08210799
F93: 1 | G93: 10 | AX93: 10 | BZ93: 2014-07-26 | CA93: =Country_uncorrected!AJ124 -> 2014-07-26 | CB93: 60 | CC93: 14.22418674 | CD93: 2238 | CE93: 520.5204387 | CF93: 520.5204387 | CI93: 2.13362801 | CJ93: 3.556046684 | CK93: 8.534512041 | CL93: 14.22418674 | CN93: 2.13362801 | CO93: 0.1778023342 | CP93: 0.4267256021 | CQ93: 2.738155947 | CR93: 108.1135544 | CT93: 60 | CU93: 2.13362801 | CV93: 20.12350688 | CW93: 23.84424446 | CX93: 14.36181311 | CY93: 0.1778023342 | CZ93: 0.8660977845 | DA93: 1.196817759 | DC93: 0.4267256021 | DD93: 0.847898762 | DE93: 1.673805871 | DF93: 2.872362623 | DG93: 21.83750343 | DH93: 26.71486809 | DI93: 18.4309935 | DJ93: 60 | DK93: 12.390626 | DL93: 20.65104334 | DM93: 49.562504 | DN93: 82.60417334 | DP93: 23.93635519 | DT93: 92 | DU93: 63 | DW93: 2014-06-25 | DX93: 21.36040369
F94: 1 | G94: 11 | AX94: 11 | BZ94: 2014-07-27 | CA94: =Country_uncorrected!AJ125 -> 2014-07-27 | CB94: 61 | CC94: 14.41148496 | CD94: 2274 | CE94: 534.9319237 | CF94: 534.9319237 | CG94: =CG64 -> Hosp | CH94: =D13 -> 0.15 | CI94: =CC94*$CH$94 -> 2.161722744 | CJ94: =CC94*$CH$95 -> 3.602871241 | CK94: =CC94*$CH$96 -> 8.646890977 | CL94: =SUM(CI94:CK94) -> 14.41148496 | CN94: 2.161722744 | CO94: 0.180143562 | CP94: 0.4323445489 | CQ94: 2.774210855 | CR94: 110.8877653 | CT94: 61 | CU94: 2.161722744 | CV94: 20.38930864 | CW94: 24.1573842 | CX94: 14.55234875 | CY94: 0.180143562 | CZ94: 0.8775626747 | DA94: 1.212695729 | DC94: 0.4323445489 | DD94: 0.8590701509 | DE94: 1.695920474 | DF94: 2.910469749 | DG94: 22.12594147 | DH94: 27.06600041 | DI94: 18.67551422 | DJ94: 61 | DK94: 12.55489616 | DL94: 20.92482693 | DM94: 50.21958463 | DN94: 83.69930772 | DP94: 24.25391458 | DT94: 93 | DU94: 63 | DW94: 2014-06-26 | DX94: 21.64236437
F95: 1 | G95: 12 | AX95: 12 | BZ95: 2014-07-28 | CA95: =Country_uncorrected!AJ126 -> 2014-07-28 | CB95: 62 | CC95: 14.60125466 | CD95: 2310 | CE95: 549.5331783 | CF95: 549.5331783 | CG95: =CG65 -> Home Iso | CH95: =D14 -> 0.25 | CI95: =CC95*$CH$94 -> 2.1901882 | CJ95: =CC95*$CH$95 -> 3.650313666 | CK95: =CC95*$CH$96 -> 8.760752798 | CL95: 14.60125466 | CN95: 2.1901882 | CO95: 0.1825156833 | CP95: 0.4380376399 | CQ95: 2.810741523 | CR95: 113.6985068 | CT95: 62 | CU95: 2.1901882 | CV95: 20.65915672 | CW95: 24.47541783 | CX95: 14.74508436 | CY95: 0.1825156833 | CZ95: 0.8891492143 | DA95: 1.22875703 | DC95: 0.4380376399 | DD95: 0.8703821888 | DE95: 1.718280951 | DF95: 2.949016872 | DG95: 22.41868812 | DH95: 27.42245581 | DI95: 18.92285826 | DJ95: 62 | DK95: 12.7209403 | DL95: 21.20156716 | DM95: 50.88376119 | DN95: 84.80626864 | DP95: 24.5751406 | DT95: 94 | DU95: 63 | DW95: 2014-06-27 | DX95: 21.92803815
F96: 1 | G96: 13 | AX96: 13 | BZ96: 2014-07-29 | CA96: =Country_uncorrected!AJ127 -> 2014-07-29 | CB96: 63 | CC96: 14.79372529 | CD96: 2346 | CE96: 564.3269036 | CF96: 564.3269036 | CG96: =CG66 -> No Home Iso | CH96: =D15 -> 0.6 | CI96: 2.219058794 | CJ96: 3.698431323 | CK96: 8.876235174 | CL96: 14.79372529 | CN96: 2.219058794 | CO96: 0.1849215661 | CP96: 0.4438117587 | CQ96: 2.847792118 | CR96: 116.5462989 | CT96: 63 | CU96: 2.219058794 | CV96: 20.93278285 | CW96: 24.79855563 | CX96: 14.93999909 | CY96: 0.1849215661 | CZ96: 0.9008719623 | DA96: 1.244999924 | DC96: 0.4438117587 | DD96: 0.8818493986 | DE96: 1.74091955 | DF96: 2.987999818 | DG96: 22.71550421 | DH96: 27.78447511 | DI96: 19.17299883 | DJ96: 63 | DK96: 12.88884936 | DL96: 21.48141561 | DM96: 51.55539746 | DN96: 85.92566243 | DP96: 24.89999848 | DT96: 95 | DU96: 63 | DW96: 2014-06-28 | DX96: 22.21747397
F97: 1 | G97: 14 | AX97: 14 | BZ97: 2014-07-30 | CA97: =Country_uncorrected!AJ128 -> 2014-07-30 | CB97: 64 | CC97: 14.98894319 | CD97: 2382 | CE97: 579.3158468 | CF97: 579.3158468 | CI97: 2.248341479 | CJ97: 3.747235798 | CK97: 8.993365916 | CL97: 14.98894319 | CN97: 2.248341479 | CO97: 0.1873617899 | CP97: 0.4496682958 | CQ97: 2.885371565 | CR97: 119.4316705 | CT97: 64 | CU97: 2.248341479 | CV97: 21.20993722 | CW97: 25.12655699 | CX97: 15.13719084 | CY97: 0.1873617899 | CZ97: 0.9127449356 | DA97: 1.26143257 | DC97: 0.4496682958 | DD97: 0.8934800545 | DE97: 1.763862243 | DF97: =SUM(DC91:DC97) -> 3.027438169 | DG97: 23.01616221 | DH97: 28.1518518 | DI97: 19.42606158 | DJ97: 64 | DK97: 13.05880503 | DL97: 21.76467504 | DM97: 52.23522011 | DN97: 87.05870018 | DP97: 25.22865141 | DT97: 96 | DU97: 90 | DW97: 2014-06-29 | DX97: 22.51072152
F98: 1 | G98: 15 | AX98: 15 | BZ98: =CA98 -> 2014-07-31 | CA98: =Country_uncorrected!AJ129 -> 2014-07-31 | CB98: 65 | CC98: 15.1869414 | CD98: 2418 | CE98: 594.5027882 | CF98: 594.5027882 | CI98: 2.27804121 | CJ98: 3.79673535 | CK98: 9.112164841 | CL98: 15.1869414 | CN98: =CI98*CN$32 -> 2.27804121 | CO98: =IF($CR$22=0,CJ98*CO$32, CJ98*CO$30) -> 0.1898367675 | CP98: =IF($CR$22=0,CK98*CP$32, CK98*CP$30) -> 0.455608242 | CQ98: 2.92348622 | CR98: 122.3551567 | CT98: 65 | CU98: 2.27804121 | CV98: 21.49052584 | CW98: 25.45916554 | CX98: 15.33684624 | CY98: 0.1898367675 | CZ98: 0.9247793689 | DA98: 1.27807052 | DC98: 0.455608242 | DD98: =SUM(DC97:DC98) -> 0.9052765378 | DE98: 1.787125936 | DF98: 3.067369247 | DG98: =CV98+CZ98+DD98 -> 23.32058175 | DH98: 28.524362 | DI98: =CX98+DA98+DF98 -> 19.682286 | DJ98: =CB98 -> 65 | DK98: 13.23098044 | DL98: 22.05163406 | DM98: 52.92392175 | DN98: 88.20653625 | DP98: =SUM(CJ92:CJ98) -> 25.56141039 | DT98: 97 | DU98: 96 | DW98: 2014-06-30 | DX98: 22.80783106
F99: 1 | G99: 16 | AX99: 16 | BZ99: 2014-08-01 | CA99: =Country_uncorrected!AJ130 -> 2014-08-01 | CB99: 66 | CC99: 15.38768488 | CD99: 2454 | CE99: =CE98+CC99 -> 609.8904731 | CF99: 609.8904731 | CI99: 2.308152732 | CJ99: 3.846921219 | CK99: 9.232610927 | CL99: 15.38768488 | CN99: 2.308152732 | CO99: 0.192346061 | CP99: 0.4616305463 | CQ99: 2.962129339 | CR99: 125.317286 | CT99: 66 | CU99: =CN99 -> 2.308152732 | CV99: 21.77453451 | CW99: 25.79613116 | CX99: =SUM(CU93:CU99) -> 15.53913317 | CY99: =CO99 -> 0.192346061 | CZ99: 0.9369818678 | DA99: 1.294927764 | DC99: =CP99 -> 0.4616305463 | DD99: 0.9172387884 | DE99: 1.810718843 | DF99: 3.107826634 | DG99: 23.62875517 | DH99: 28.90177777 | DI99: 19.94188757 | DJ99: 66 | DK99: 13.40550516 | DL99: 22.3425086 | DM99: 53.62202063 | DN99: 89.37003439 | DP99: 25.89855528 | DT99: =DT98+(DW99-DW98) -> 98 | DU99: 100 | DW99: 2014-07-01 | DX99: 23.1088534
F100: 1 | G100: 17 | AX100: 17 | BZ100: 2014-08-02 | CA100: =Country_uncorrected!AJ131 -> 2014-08-02 | CB100: =1+CB99 -> 67 | CC100: =INDIRECT("AY"&(114+(CB99*36))) -> 15.59112121 | CD100: =CD99+36 -> 2490 | CE100: 625.4815943 | CF100: =CC100+CF99 -> 625.4815943 | CI100: 2.338668181 | CJ100: 3.897780301 | CK100: 9.354672723 | CL100: 15.59112121 | CN100: 2.338668181 | CO100: 0.1948890151 | CP100: 0.4677336362 | CQ100: =SUM(CN100:CP100) -> 3.001290832 | CR100: =CQ100+CR99 -> 128.3185769 | CT100: =1+CT99 -> 67 | CU100: 2.338668181 | CV100: 22.06205297 | CW100: 26.13734675 | CX100: 15.74417334 | CY100: 0.1948890151 | CZ100: 0.9493551996 | DA100: 1.312014445 | DC100: 0.4677336362 | DD100: 0.9293641825 | DE100: 1.83464072 | DF100: 3.148834668 | DG100: 23.94077235 | DH100: 29.28400192 | DI100: 20.20502245 | DJ100: 67 | DK100: 13.58245059 | DL100: 22.63741766 | DM100: 54.32980238 | DN100: 90.54967063 | DP100: 26.2402889 | DT100: 99 | DU100: 112 | DW100: 2014-07-02 | DX100: 23.41383988
F101: 1 | G101: 18 | AX101: 18 | BZ101: 2014-08-03 | CA101: =Country_uncorrected!AJ132 -> 2014-08-03 | CB101: 68 | CC101: 15.79721336 | CD101: 2526 | CE101: 641.2788077 | CF101: 641.2788077 | CI101: 2.369582004 | CJ101: 3.949303341 | CK101: 9.478328017 | CL101: 15.79721336 | CN101: 2.369582004 | CO101: 0.197465167 | CP101: 0.4739164009 | CQ101: 3.040963572 | CR101: 131.3595404 | CT101: 68 | CU101: 2.369582004 | CV101: 22.35324915 | CW101: 26.4827847 | CX101: 15.9520326 | CY101: 0.197465167 | CZ101: 0.9618988005 | DA101: 1.32933605 | DC101: 0.4739164009 | DD101: 0.941650037 | DE101: 1.858888825 | DF101: 3.19040652 | DG101: 24.25679799 | DH101: 29.67100957 | DI101: 20.47177517 | DJ101: 68 | DK101: 13.7618444 | DL101: 22.93640733 | DM101: 55.0473776 | DN101: 91.74562933 | DP101: 26.586721 | DT101: 100 | DU101: 116 | DV101: =IF(DU101-DV100>0, DU101-DV101, "") ->  | DW101: 2014-07-03 | DX101: 23.72284238
F102: 1 | G102: 19 | AX102: 19 | BZ102: 2014-08-04 | CA102: =Country_uncorrected!AJ133 -> 2014-08-04 | CB102: 69 | CC102: 16.00595643 | CD102: 2562 | CE102: 657.2847641 | CF102: 657.2847641 | CI102: 2.400893464 | CJ102: 4.001489106 | CK102: 9.603573855 | CL102: 16.00595643 | CN102: 2.400893464 | CO102: 0.2000744553 | CP102: 0.4801786928 | CQ102: 3.081146612 | CR102: 134.440687 | CT102: 69 | CU102: 2.400893464 | CV102: 22.64827682 | CW102: 26.83252843 | CX102: 16.16273786 | CY102: 0.2000744553 | CZ102: 0.9746114659 | DA102: 1.346894822 | DC102: 0.4801786928 | DD102: 0.9540950936 | DE102: =SUM(DC99:DC102) -> 1.883459276 | DF102: 3.232547573 | DG102: 24.57698338 | DH102: 30.06288253 | DI102: 20.74218026 | DJ102: 69 | DK102: 13.94367907 | DL102: 23.23946512 | DM102: 55.77471628 | DN102: 92.95786047 | DP102: 26.93789644 | DT102: 101 | DU102: 122 | DW102: 2014-07-04 | DX102: 24.03591343
F103: 1 | G103: 20 | AX103: 20 | BZ103: 2014-08-05 | CA103: =Country_uncorrected!AJ134 -> 2014-08-05 | CB103: 70 | CC103: 16.21737897 | CD103: 2598 | CE103: 673.502143 | CF103: 673.502143 | CI103: 2.432606845 | CJ103: 4.054344742 | CK103: 9.73042738 | CL103: 16.21737897 | CN103: 2.432606845 | CO103: 0.2027172371 | CP103: 0.486521369 | CQ103: 3.121845451 | CR103: 137.5625325 | CT103: 70 | CU103: 2.432606845 | CV103: 22.94725565 | CW103: 27.18674946 | CX103: 16.37628591 | CY103: 0.2027172371 | CZ103: =+SUM(CY99:CY103) -> 0.9874919355 | DA103: 1.364690493 | DC103: 0.486521369 | DD103: 0.9667000618 | DE103: 1.908350099 | DF103: 3.275257183 | DG103: 24.90144765 | DH103: 30.45979005 | DI103: 21.01623359 | DJ103: 70 | DK103: =SUM(CI98:CI103) -> 14.12794444 | DL103: =SUM(CJ98:CJ103) -> 23.54657406 | DM103: =SUM(CK98:CK103) -> 56.51177774 | DN103: =SUM(DK103:DM103) -> 94.18629624 | DP103: 27.29380986 | DT103: 102 | DU103: 126 | DW103: 2014-07-05 | DX103: 24.35310624
F104: 1 | G104: 21 | AX104: 21 | BZ104: 2014-08-06 | CA104: =Country_uncorrected!AJ135 -> 2014-08-06 | CB104: 71 | CC104: 16.43153269 | CD104: 2634 | CE104: 689.9336757 | CF104: 689.9336757 | CI104: 2.464729904 | CJ104: 4.107883174 | CK104: 9.858919617 | CL104: 16.43153269 | CN104: 2.464729904 | CO104: 0.2053941587 | CP104: 0.4929459808 | CQ104: 3.163070044 | CR104: 140.7256025 | CT104: 71 | CU104: 2.464729904 | CV104: 23.25026281 | CW104: 27.54561357 | CX104: 16.59267434 | CY104: 0.2053941587 | CZ104: 1.000540033 | DA104: 1.382722862 | DC104: 0.4929459808 | DD104: 0.9794673499 | DE104: 1.933562443 | DF104: 3.318534868 | DG104: 25.2302702 | DH104: 30.86189887 | DI104: 21.29393207 | DJ104: 71 | DK104: 14.31463313 | DL104: 23.85772188 | DM104: 57.25853252 | DN104: 95.43088753 | DP104: 27.65445723 | DT104: 103 | DU104: 131 | DW104: 2014-07-06 | DX104: 27.61447471
F105: 1 | G105: 22 | AX105: 22 | BZ105: 2014-08-07 | CA105: =Country_uncorrected!AJ136 -> 2014-08-07 | CB105: 72 | CC105: 16.64848128 | CD105: 2670 | CE105: 706.582157 | CF105: 706.582157 | CI105: 2.497272191 | CJ105: 4.162120319 | CK105: 9.989088765 | CL105: 16.64848128 | CN105: 2.497272191 | CO105: 0.2081060159 | CP105: 0.4994544383 | CQ105: 3.204832646 | CR105: 143.9304352 | CT105: 72 | CU105: 2.497272191 | CV105: 23.5573468 | CW105: 27.90925775 | CX105: 16.81190532 | CY105: 0.2081060159 | CZ105: 1.013757034 | DA105: =SUM(CY99:CY105) -> 1.40099211 | DC105: 0.4994544383 | DD105: 0.9924004191 | DE105: 1.959100481 | DF105: 3.362381064 | DG105: 25.56350426 | DH105: 31.26935034 | DI105: 21.5752785 | DJ105: 72 | DK105: 14.50375259 | DL105: 24.17292098 | DM105: 58.01501036 | DN105: 96.69168393 | DP105: 28.0198422 | DT105: 104 | DU105: 138 | DW105: 2014-07-07 | DX105: 37.90007131
F106: 1 | G106: 23 | AX106: 23 | BZ106: 2014-08-08 | CA106: =Country_uncorrected!AJ137 -> 2014-08-08 | CB106: 73 | CC106: 16.86828607 | CD106: 2706 | CE106: 723.4504431 | CF106: 723.4504431 | CI106: 2.53024291 | CJ106: 4.217071516 | CK106: 10.12097164 | CL106: 16.86828607 | CN106: 2.53024291 | CO106: 0.2108535758 | CP106: 0.506048582 | CQ106: 3.247145068 | CR106: 147.1775803 | CT106: 73 | CU106: 2.53024291 | CV106: 23.86853092 | CW106: 28.27777791 | CX106: 17.0339955 | CY106: 0.2108535758 | CZ106: 1.027145443 | DA106: 1.419499625 | DC106: 0.506048582 | DD106: 1.00550302 | DE106: 1.98497037 | DF106: 3.4067991 | DG106: 25.90117938 | DH106: 31.68224791 | DI106: 21.86029422 | DJ106: 73 | DK106: 14.69532732 | DL106: 24.4922122 | DM106: 58.78130927 | DN106: 97.96884879 | DP106: 28.3899925 | DT106: 105 | DU106: 138 | DW106: 2014-07-08 | DX106: 48.27994392
F107: 1 | G107: 24 | AX107: 24 | BZ107: 2014-08-09 | CA107: =Country_uncorrected!AJ138 -> 2014-08-09 | CB107: 74 | CC107: 17.09100242 | CD107: 2742 | CE107: 740.5414455 | CF107: 740.5414455 | CI107: 2.563650362 | CJ107: 4.272750604 | CK107: 10.25460145 | CL107: 17.09100242 | CN107: 2.563650362 | CO107: 0.2136375302 | CP107: 0.5127300725 | CQ107: 3.290017965 | CR107: 150.4675982 | CT107: 74 | CU107: 2.563650362 | CV107: 24.1838398 | CW107: 28.65124008 | CX107: 17.25897768 | CY107: 0.2136375302 | CZ107: 1.040708518 | DA107: 1.43824814 | DC107: 0.5127300725 | DD107: 1.018778654 | DE107: 2.011179074 | DF107: 3.451795536 | DG107: 26.24332698 | DH107: 32.10066729 | DI107: 22.14902136 | DJ107: 74 | DK107: 14.88939568 | DL107: 24.81565946 | DM107: 59.55758271 | DN107: 99.26263784 | DP107: 28.7649628 | DT107: 106 | DU107: 142 | DW107: 2014-07-09 | DX107: 49.76511544
F108: 1 | G108: 25 | AX108: 25 | BZ108: 2014-08-10 | CA108: =Country_uncorrected!AJ139 -> 2014-08-10 | CB108: 75 | CC108: 17.31667689 | CD108: 2778 | CE108: 757.8581224 | CF108: 757.8581224 | CI108: 2.597501534 | CJ108: 4.329169223 | CK108: 10.39000614 | CL108: 17.31667689 | CN108: 2.597501534 | CO108: 0.2164584612 | CP108: 0.5195003068 | CQ108: 3.333460302 | CR108: 153.8010585 | CT108: 75 | CU108: 2.597501534 | CV108: =SUM(CU99:CU108) -> 24.50330013 | CW108: 29.02968282 | CX108: 17.48689721 | CY108: 0.2164584612 | CZ108: 1.054449742 | DA108: 1.457241434 | DC108: 0.5195003068 | DD108: 1.032230379 | DE108: 2.037733399 | DF108: 3.497379442 | DG108: 26.58998025 | DH108: 32.52465765 | DI108: 22.44151809 | DJ108: 75 | DK108: 15.08600375 | DL108: 25.14333958 | DM108: 60.34401499 | DN108: 100.5733583 | DP108: 29.14482868 | DT108: 107 | DU108: 145 | DW108: 2014-07-10 | DX108: 47.16999863
F109: 1 | G109: 26 | BZ109: 2014-08-11 | CA109: =Country_uncorrected!AJ140 -> 2014-08-11 | CB109: 76 | CC109: 17.54534842 | CD109: 2814 | CE109: 775.4034708 | CF109: 775.4034708 | CI109: 2.631802262 | CJ109: 4.386337104 | CK109: 10.52720905 | CL109: 17.54534842 | CN109: 2.631802262 | CO109: 0.2193168552 | CP109: 0.5263604525 | CQ109: 3.37747957 | CR109: 157.1785381 | CT109: 76 | CU109: 2.631802262 | CV109: 24.82694966 | CW109: 29.4131436 | CX109: 17.71780601 | CY109: 0.2193168552 | CZ109: 1.068372438 | DA109: 1.476483834 | DC109: 0.5263604525 | DD109: 1.045860759 | DE109: 2.064639414 | DF109: 3.543561202 | DG109: 26.94118286 | DH109: 32.95426685 | DI109: 22.73785104 | DJ109: 76 | DK109: 15.28519916 | DL109: 25.47533194 | DM109: 61.14079666 | DN109: 101.9013278 | DP109: 29.52967668 | DT109: 108 | DU109: 145 | DW109: 2014-07-11 | DX109: 45.13563273
F110: 1 | G110: 27 | BZ110: 2014-08-12 | CA110: =Country_uncorrected!AJ141 -> 2014-08-12 | CB110: 77 | CC110: 17.7770498 | CD110: 2850 | CE110: 793.1805206 | CF110: 793.1805206 | CI110: 2.66655747 | CJ110: 4.44426245 | CK110: 10.66622988 | CL110: 17.7770498 | CN110: 2.66655747 | CO110: 0.2222131225 | CP110: 0.533311494 | CQ110: 3.422082086 | CR110: 160.6006202 | CT110: 77 | CU110: 2.66655747 | CV110: 25.15483895 | CW110: =SUM(CU99:CU110) -> 29.80165986 | CX110: 17.95175663 | CY110: 0.2222131225 | CZ110: 1.082479545 | DA110: 1.495979719 | DC110: 0.533311494 | DD110: 1.059671946 | DE110: 2.091902326 | DF110: 3.590351327 | DG110: 27.29699044 | DH110: 33.3895419 | DI110: 23.03808768 | DJ110: 77 | DK110: 15.48702673 | DL110: 25.81171122 | DM110: 61.94810692 | DN110: 103.2468449 | DP110: 29.91959439 | DT110: 109 | DU110: 172 | DW110: 2014-07-12 | DX110: 40.98480594
F111: 1 | G111: 28 | BZ111: 2014-08-13 | CA111: =Country_uncorrected!AJ142 -> 2014-08-13 | CB111: 78 | CC111: 18.01181216 | CD111: 2886 | CE111: 811.1923328 | CF111: 811.1923328 | CI111: 2.701771823 | CJ111: 4.502953039 | CK111: 10.80708729 | CL111: 18.01181216 | CN111: 2.701771823 | CO111: 0.2251476519 | CP111: 0.5403543647 | CQ111: 3.46727384 | CR111: 164.067894 | CT111: 78 | CU111: 2.701771823 | CV111: 25.48702877 | CW111: 30.19527895 | CX111: 18.18879855 | CY111: 0.2251476519 | CZ111: 1.096773621 | DA111: 1.515733213 | DC111: 0.5403543647 | DD111: 1.073665859 | DE111: 2.119526618 | DF111: 3.637759711 | DG111: 27.65746825 | DH111: 33.83053878 | DI111: 23.34229148 | DJ111: 78 | DK111: 15.69152636 | DL111: 26.15254394 | DM111: 62.76610545 | DN111: 104.6101757 | DP111: 30.31466425 | DT111: 110 | DU111: 173 | DW111: 2014-07-13 | DX111: 39.77252604
F112: 1 | G112: 29 | BZ112: 2014-08-14 | CA112: =Country_uncorrected!AJ143 -> 2014-08-14 | CB112: 79 | CC112: 18.24966804 | CD112: 2922 | CE112: 829.4420008 | CF112: 829.4420008 | CI112: 2.737450206 | CJ112: 4.562417009 | CK112: 10.94980082 | CL112: 18.24966804 | CN112: 2.737450206 | CO112: 0.2281208505 | CP112: 0.5474900411 | CQ112: 3.513061097 | CR112: 167.5809551 | CT112: 79 | CU112: 2.737450206 | CV112: 25.82358551 | CW112: 30.59406098 | CX112: 18.42897657 | CY112: 0.2281208505 | CZ112: 1.111256941 | DA112: 1.535748047 | DC112: 0.5474900411 | DD112: 1.087844406 | DE112: 2.147516352 | DF112: 3.685795313 | DG112: 28.02268685 | DH112: 34.27732538 | DI112: 23.65051993 | DJ112: 79 | DK112: 15.89873366 | DL112: 26.49788943 | DM112: 63.59493463 | DN112: 105.9915577 | DP112: 30.71496094 | DT112: 111 | DU112: 174 | DW112: 2014-07-14 | DX112: 40.53349723
F113: 1 | G113: 30 | AX113: sum of new Is for today--> | BZ113: 2014-08-15 | CA113: =Country_uncorrected!AJ144 -> 2014-08-15 | CB113: 80 | CC113: 18.49065314 | CD113: 2958 | CE113: 847.9326539 | CF113: 847.9326539 | CI113: 2.77359797 | CJ113: 4.622663284 | CK113: 11.09439188 | CL113: 18.49065314 | CN113: 2.77359797 | CO113: 0.2311331642 | CP113: 0.5547195941 | CQ113: 3.559450729 | CR113: 171.1404058 | CT113: 80 | CU113: 2.77359797 | CV113: 26.16457663 | CW113: 30.99807694 | CX113: 18.67233163 | CY113: 0.2311331642 | CZ113: 1.125931644 | DA113: 1.556027636 | DC113: 0.5547195941 | DD113: 1.102209635 | DE113: 2.175875494 | DF113: 3.734466326 | DG113: 28.39271791 | DH113: 34.72998007 | DI113: 23.96282559 | DJ113: 80 | DK113: 16.10868127 | DL113: 26.84780211 | DM113: 64.43472506 | DN113: 107.3912084 | DP113: 31.12055271 | DT113: 112 | DU113: 174 | DW113: 2014-07-15 | DX113: 40.74035172
F114: sum a1 to a25 | AY114: =SUM(AY84:AY113) -> 0 | AZ114: =SUM(AZ84:AZ113) -> 0 | BA114: 0 | BB114: 0 | BC114: 0 | BD114: 0 | BE114: 0 | BF114: 0 | BG114: 0 | BH114: 0 | BI114: 0 | BJ114: 0 | BK114: 0 | BL114: 0 | BM114: 0 | BZ114: 2014-08-16 | CA114: =Country_uncorrected!AJ145 -> 2014-08-16 | CB114: 81 | CC114: 18.73480691 | CD114: 2994 | CE114: 866.6674608 | CF114: 866.6674608 | CI114: 2.810221037 | CJ114: 4.683701728 | CK114: 11.24088415 | CL114: 18.73480691 | CN114: 2.810221037 | CO114: 0.2341850864 | CP114: 0.5620442074 | CQ114: 3.606450331 | CR114: 174.7468562 | CT114: 81 | CU114: 2.810221037 | CV114: 26.51006777 | CW114: 31.40740451 | CX114: 18.9189023 | CY114: 0.2341850864 | CZ114: 1.140799876 | DA114: 1.576575192 | DC114: 0.5620442074 | DD114: 1.116763801 | DE114: 2.204608207 | DF114: 3.78378046 | DG114: 28.76763144 | DH114: 35.18858791 | DI114: 24.27925795 | DJ114: 81 | DK114: 16.32140077 | DL114: 27.20233461 | DM114: 65.28560307 | DN114: 108.8093385 | DP114: 31.53150384 | DT114: 113 | DU114: 187 | DW114: 2014-07-16 | DX114: 42.56130433
F115: distribute to | BZ115: 2014-08-17 | CA115: =Country_uncorrected!AJ146 -> 2014-08-17 | CB115: 82 | CC115: 18.98217184 | CD115: 3030 | CE115: 885.6496327 | CF115: 885.6496327 | CI115: 2.847325776 | CJ115: 4.74554296 | CK115: 11.3893031 | CL115: 18.98217184 | CN115: 2.847325776 | CO115: 0.237277148 | CP115: 0.5694651552 | CQ115: 3.654068079 | CR115: 178.4009243 | CT115: 82 | CU115: 2.847325776 | CV115: 26.86012135 | CW115: 31.82212345 | CX115: 19.16872654 | CY115: 0.237277148 | CZ115: 1.155863901 | DA115: 1.597393879 | DC115: 0.5694651552 | DD115: 1.131509363 | DE115: 2.233718998 | DF115: 3.833745309 | DG115: 29.14749461 | DH115: 35.65323632 | DI115: 24.59986573 | DJ115: 82 | DK115: 16.53692428 | DL115: 27.56154047 | DM115: 66.14769713 | DN115: 110.2461619 | DP115: 31.94787757 | DT115: 114 | DU115: 196 | DW115: 2014-07-17 | DX115: 44.04724061
F116: hopital | AX116: Hosp | AY116: =AY114*$D$3 -> 0 | AZ116: 0 | BA116: 0 | BB116: 0 | BC116: 0 | BD116: 0 | BE116: 0 | BF116: 0 | BG116: 0 | BH116: 0 | BI116: 0 | BJ116: 0 | BK116: 0 | BL116: 0 | BM116: 0 | BZ116: 2014-08-18 | CA116: =Country_uncorrected!AJ147 -> 2014-08-18 | CB116: 83 | CC116: 19.2327926 | CD116: 3066 | CE116: 904.8824253 | CF116: 904.8824253 | CI116: 2.884918889 | CJ116: 4.808198149 | CK116: 11.53967556 | CL116: 19.2327926 | CN116: 2.884918889 | CO116: 0.2404099074 | CP116: 0.5769837779 | CQ116: 3.702312575 | CR116: 182.1032368 | CT116: 83 | CU116: 2.884918889 | CV116: 27.21479733 | CW116: 32.24231243 | CX116: 19.42184317 | CY116: 0.2404099074 | CZ116: 1.171126157 | DA116: 1.618486931 | DC116: 0.5769837779 | DD116: 1.146448933 | DE116: 2.263212735 | DF116: 3.884368634 | DG116: 29.53237242 | DH116: 36.1240121 | DI116: 24.92469874 | DJ116: 83 | DK116: 16.7552857 | DL116: 27.92547617 | DM116: 67.02114281 | DN116: 111.7019047 | DP116: 32.36973862 | DT116: 115 | DU116: 196 | DW116: 2014-07-18 | DX116: 46.11079927
F117: home q | H117: Number infected prior days; numbers in rows H-V are t-i; e.g., col N shows number infected 7 days prior to day in col F | AX117: Home Iso | AY117: =AY114*$D$4 -> 0 | AZ117: 0 | BA117: 0 | BB117: 0 | BC117: 0 | BD117: 0 | BE117: 0 | BF117: 0 | BG117: 0 | BH117: 0 | BI117: 0 | BJ117: 0 | BK117: 0 | BL117: 0 | BM117: 0 | BZ117: 2014-08-19 | CA117: =Country_uncorrected!AJ148 -> 2014-08-19 | CB117: 84 | CC117: 19.48671474 | CD117: 3102 | CE117: 924.36914 | CF117: 924.36914 | CI117: 2.923007211 | CJ117: 4.871678686 | CK117: 11.69202885 | CL117: 19.48671474 | CN117: 2.923007211 | CO117: 0.2435839343 | CP117: 0.5846014423 | CQ117: 3.751192588 | CR117: 185.8544294 | CT117: 84 | CU117: 2.923007211 | CV117: 27.57415418 | CW117: 32.66804745 | CX117: 19.67829291 | CY117: 0.2435839343 | CZ117: 1.18658924 | DA117: 1.639857743 | DC117: 0.5846014423 | DD117: 1.16158522 | DE117: 2.293094583 | DF117: 3.935658583 | DG117: 29.92232864 | DH117: 36.60099978 | DI117: 25.25380924 | DJ117: 84 | DK117: 16.97652109 | DL117: 28.29420182 | DM117: 67.90608436 | DN117: 113.1768073 | DP117: 32.79715485 | DT117: 116 | DU117: 219 | DW117: 2014-07-19 | DX117: 46.77062619
F118: home non Q | Z118: For each day's new cases, this range distributes them by days the incubation period will last (daily probs in row 80) | AX118: No Home Iso | AY118: =AY114*$D$5 -> 0 | AZ118: 0 | BA118: 0 | BB118: 0 | BC118: 0 | BD118: 0 | BE118: 0 | BF118: 0 | BG118: 0 | BH118: 0 | BI118: 0 | BJ118: 0 | BK118: 0 | BL118: 0 | BM118: 0 | BZ118: 2014-08-20 | CA118: =Country_uncorrected!AJ149 -> 2014-08-20 | CB118: 85 | CC118: 19.74398394 | CD118: 3138 | CE118: 944.113124 | CF118: 944.113124 | CI118: 2.961597591 | CJ118: 4.935995985 | CK118: 11.84639036 | CL118: 19.74398394 | CN118: 2.961597591 | CO118: 0.2467997992 | CP118: 0.5923195181 | CQ118: 3.800716908 | CR118: 189.6551463 | CT118: 85 | CU118: 2.961597591 | CV118: 27.93825024 | CW118: 33.09940213 | CX118: 19.93811868 | CY118: 0.2467997992 | CZ118: 1.202255875 | DA118: 1.66150989 | DC118: 0.5923195181 | DD118: 1.17692096 | DE118: 2.323369893 | DF118: 3.987623736 | DG118: 30.31742707 | DH118: 37.08428192 | DI118: 25.58725231 | DJ118: 85 | DK118: 17.20066847 | DL118: 28.66778079 | DM118: 68.8026739 | DN118: 114.6711232 | DP118: 33.2301978 | DT118: 117 | DU118: 224 | DW118: 2014-07-20 | DX118: 47.45222827
F119: I1 | G119: I+2 | H119: 1 | I119: 2 | J119: 3 | K119: 4 | L119: 5 | M119: 6 | N119: 7 | O119: 8 | P119: 9 | Q119: 10 | R119: 11 | S119: 12 | T119: 13 | U119: 14 | V119: 15 | AX119: Days prior to day in col F | AY119: =MIN(((AY116*$F$3)+(AY117*$F$4)+(AY118*$F$5))*AY$82*((IF($M$14-$X85<0,0,$M$14-$X85))/$M$14), $M$14-$X85) -> 0 | AZ119: 0 | BA119: 0 | BB119: 0 | BC119: 0 | BD119: 0 | BE119: 0 | BF119: 0 | BG119: 0 | BH119: 0 | BI119: 0 | BJ119: 0 | BK119: 0 | BL119: 0 | BM119: 0 | BO119: <--governor + check that trans<S | BZ119: 2014-08-21 | CA119: =Country_uncorrected!AJ150 -> 2014-08-21 | CB119: 86 | CC119: 20.00464538 | CD119: 3174 | CE119: 964.1177693 | CF119: 964.1177693 | CI119: 3.000696807 | CJ119: 5.001161345 | CK119: 12.00278723 | CL119: 20.00464538 | CN119: 3.000696807 | CO119: 0.2500580673 | CP119: 0.6001393614 | CQ119: 3.850894236 | CR119: 193.5060406 | CT119: 86 | CU119: 3.000696807 | CV119: 28.30714478 | CW119: 33.53644858 | CX119: 20.20136528 | CY119: 0.2500580673 | CZ119: 1.218128856 | DA119: 1.683447107 | DC119: 0.6001393614 | DD119: 1.19245888 | DE119: 2.3540441 | DF119: 4.040273056 | DG119: 30.71773252 | DH119: 37.57393978 | DI119: 25.92508545 | DJ119: 86 | DK119: 17.42776731 | DL119: 29.04627885 | DM119: 69.71106925 | DN119: 116.1851154 | DP119: 33.66894214 | DT119: 118 | DU119: 230 | DW119: 2014-07-21 | DX119: 47.57165515
F120: 2 | G120: 1 | H120: =AY119 -> 0 | X120: =MIN(SUM(H120:W120),$M$14-$X85) -> 0 | Y120: =$X120*Y$80 -> 0 | Z120: =$X120*Z$80 -> 0 | AA120: 0 | AB120: 0 | AC120: 0 | AD120: 0 | AE120: 0 | AF120: 0 | AG120: 0 | AH120: 0 | AI120: 0 | AJ120: 0 | AK120: 0 | AL120: 0 | AM120: 0 | AN120: 0 | AO120: 0 | AP120: 0 | AQ120: 0 | AR120: 0 | AS120: 0 | AT120: 0 | AU120: 0 | AV120: 0 | AW120: 0 | AX120: 1 | AY120: =Y84 -> 0 | AZ120: =AY120*AZ$82 -> 0 | BA120: 0 | BB120: 0 | BC120: 0 | BD120: 0 | BE120: 0 | BF120: 0 | BG120: 0 | BH120: 0 | BI120: 0 | BJ120: 0 | BK120: 0 | BL120: 0 | BM120: 0 | BZ120: 2014-08-22 | CA120: =Country_uncorrected!AJ151 -> 2014-08-22 | CB120: 87 | CC120: 20.26874383 | CD120: 3210 | CE120: 984.3865132 | CF120: 984.3865132 | CI120: 3.040311574 | CJ120: 5.067185957 | CK120: 12.1612463 | CL120: 20.26874383 | CN120: 3.040311574 | CO120: 0.2533592979 | CP120: 0.6080623149 | CQ120: 3.901733187 | CR120: 197.4077738 | CT120: 87 | CU120: 3.040311574 | CV120: 28.68089889 | CW120: 33.97925862 | CX120: 20.46807889 | CY120: 0.2533592979 | CZ120: 1.234211006 | DA120: 1.70567324 | DC120: 0.6080623149 | DD120: 1.208201676 | DE120: 2.385122637 | DF120: 4.093615777 | DG120: 31.12331157 | DH120: 38.07005449 | DI120: 26.2673679 | DJ120: 87 | DK120: 17.65785785 | DL120: 29.42976308 | DM120: 70.6314314 | DN120: 117.7190523 | DP120: 34.11346481 | DT120: 119 | DU120: 249 | DW120: 2014-07-22 | DX120: 47.97209426
F121: 2 | G121: 2 | X121: =X120+X84 -> 30 | AX121: 2 | BZ121: 2014-08-23 | CA121: =Country_uncorrected!AJ152 -> 2014-08-23 | CB121: 88 | CC121: 20.53632382 | CD121: 3246 | CE121: 1004.922837 | CF121: 1004.922837 | CI121: 3.080448573 | CJ121: 5.134080955 | CK121: 12.32179429 | CL121: 20.53632382 | CN121: 3.080448573 | CO121: 0.2567040477 | CP121: 0.6160897146 | CQ121: 3.953242335 | CR121: 201.3610161 | CT121: 88 | CU121: 3.080448573 | CV121: 29.05957563 | CW121: 34.42790493 | CX121: 20.73830642 | CY121: 0.2567040477 | CZ121: 1.250505146 | DA121: 1.728192202 | DC121: 0.6160897146 | DD121: 1.224152029 | DE121: 2.416610909 | DF121: 4.147661284 | DG121: 31.53423281 | DH121: 38.57270804 | DI121: 26.61415991 | DJ121: 88 | DK121: 17.89098065 | DL121: 29.81830108 | DM121: 71.56392258 | DN121: 119.2732043 | DP121: 34.56384404 | DT121: 120 | DU121: 266 | DW121: 2014-07-23 | DX121: 48.24384529
F122: 2 | G122: 3 | AX122: 3 | BZ122: 2014-08-24 | CA122: =Country_uncorrected!AJ153 -> 2014-08-24 | CB122: 89 | CC122: 20.80743009 | CD122: 3282 | CE122: 1025.730267 | CF122: 1025.730267 | CI122: 3.121114514 | CJ122: 5.201857523 | CK122: 12.48445806 | CL122: 20.80743009 | CN122: 3.121114514 | CO122: 0.2600928762 | CP122: 0.6242229028 | CQ122: 4.005430293 | CR122: 205.3664464 | CT122: 89 | CU122: 3.121114514 | CV122: 29.44323994 | CW122: 34.88246197 | CX122: 21.01209516 | CY122: 0.2600928762 | CZ122: 1.267014088 | DA122: 1.75100793 | DC122: 0.6242229028 | DD122: 1.240312617 | DE122: 2.448514294 | DF122: 4.202419032 | DG122: 31.95056665 | DH122: 39.0819842 | DI122: 26.96552212 | DJ122: 89 | DK122: 18.12717627 | DL122: 30.21196045 | DM122: 72.50870508 | DN122: 120.8478418 | DP122: 35.0201586 | DT122: 121 | DU122: 296 | DW122: 2014-07-24 | DX122: 48.54298373
F123: 2 | G123: 4 | X123: ^day's new infections (top); cum infect (bot) | AX123: 4 | BZ123: 2014-08-25 | CA123: =Country_uncorrected!AJ154 -> 2014-08-25 | CB123: 90 | CC123: 21.08210799 | CD123: 3318 | CE123: 1046.812375 | CF123: 1046.812375 | CI123: 3.162316198 | CJ123: 5.270526997 | CK123: 12.64926479 | CL123: 21.08210799 | CN123: 3.162316198 | CO123: 0.2635263499 | CP123: 0.6324632397 | CQ123: 4.058305788 | CR123: 209.4247522 | CT123: 90 | CU123: 3.162316198 | CV123: 29.83195817 | CW123: 35.34300635 | CX123: 21.28949247 | CY123: 0.2635263499 | CZ123: 1.283740639 | DA123: 1.774124372 | DC123: 0.6324632397 | DD123: 1.256686142 | DE123: 2.480838172 | DF123: 4.257898494 | DG123: 32.37238495 | DH123: 39.59796889 | DI123: 27.32151533 | DJ123: 90 | DK123: 18.36648526 | DL123: 30.61080876 | DM123: 73.46594103 | DN123: 122.443235 | DP123: 35.48248745 | DT123: 122 | DW123: 2014-07-25 | DX123: 49.23609197
F124: 2 | G124: 5 | AX124: 5 | BZ124: 2014-08-26 | CA124: =Country_uncorrected!AJ155 -> 2014-08-26 | CB124: 91 | CC124: 21.36040369 | CD124: 3354 | CE124: 1068.172779 | CF124: 1068.172779 | CG124: =CG94 -> Hosp | CH124: =D18 -> 0.15 | CI124: =CC124*$CH$124 -> 3.204060554 | CJ124: =CC124*$CH$125 -> 5.340100924 | CK124: =CC124*$CH$126 -> 12.81624222 | CL124: =SUM(CI124:CK124) -> 21.36040369 | CN124: 3.204060554 | CO124: 0.2670050462 | CP124: 0.6408121108 | CQ124: 4.111877711 | CR124: 213.5366299 | CT124: 91 | CU124: 3.204060554 | CV124: 30.22579769 | CW124: 35.8096167 | CX124: 21.57054581 | CY124: 0.2670050462 | CZ124: 1.300687618 | DA124: 1.797545484 | DC124: 0.6408121108 | DD124: 1.273275351 | DE124: 2.513587968 | DF124: 4.314109162 | DG124: 32.79976066 | DH124: 40.12075015 | DI124: 27.68220046 | DJ124: 91 | DK124: 18.60894822 | DL124: 31.0149137 | DM124: 74.43579288 | DN124: 124.0596548 | DP124: 35.95090969 | DT124: 123 | DU124: 315 | DW124: 2014-07-26 | DX124: 49.99910325
F125: 2 | G125: 6 | AX125: 6 | BZ125: 2014-08-27 | CA125: =Country_uncorrected!AJ156 -> 2014-08-27 | CB125: 92 | CC125: 21.64236437 | CD125: 3390 | CE125: 1089.815143 | CF125: 1089.815143 | CG125: =CG95 -> Home Iso | CH125: =D19 -> 0.25 | CI125: =CC125*$CH$124 -> 3.246354656 | CJ125: =CC125*$CH$125 -> 5.410591094 | CK125: =CC125*$CH$126 -> 12.98541862 | CL125: 21.64236437 | CN125: 3.246354656 | CO125: 0.2705295547 | CP125: 0.6492709312 | CQ125: 4.166155142 | CR125: 217.702785 | CT125: 92 | CU125: 3.246354656 | CV125: 30.62482657 | CW125: 36.28237338 | CX125: 21.85530288 | CY125: 0.2705295547 | CZ125: 1.317857875 | DA125: 1.82127524 | DC125: 0.6492709312 | DD125: 1.290083042 | DE125: 2.546769185 | DF125: 4.371060575 | DG125: 33.23276749 | DH125: 40.65041781 | DI125: 28.04763869 | DJ125: 92 | DK125: 18.85460607 | DL125: 31.42434345 | DM125: 75.41842428 | DN125: 125.6973738 | DP125: 36.4255048 | DT125: 124 | DW125: 2014-07-27 | DX125: 50.79522203
F126: 2 | G126: 7 | AX126: 7 | BZ126: 2014-08-28 | CA126: =Country_uncorrected!AJ157 -> 2014-08-28 | CB126: 93 | CC126: 21.92803815 | CD126: 3426 | CE126: 1111.743181 | CF126: 1111.743181 | CG126: =CG96 -> No Home Iso | CH126: =D20 -> 0.6 | CI126: 3.289205722 | CJ126: 5.482009536 | CK126: 13.15682289 | CL126: 21.92803815 | CN126: 3.289205722 | CO126: 0.2741004768 | CP126: 0.6578411444 | CQ126: 4.221147343 | CR126: 221.9239324 | CT126: 93 | CU126: 3.289205722 | CV126: 31.0291134 | CW126: 36.76135807 | CX126: 22.14381179 | CY126: 0.2741004768 | CZ126: 1.335254304 | DA126: 1.845317649 | DC126: 0.6578411444 | DD126: 1.307112076 | DE126: 2.580387426 | DF126: 4.428762358 | DG126: 33.67147978 | DH126: 41.18706314 | DI126: 28.4178918 | DJ126: 93 | DK126: 19.10350022 | DL126: 31.83916703 | DM126: 76.41400087 | DN126: 127.3566681 | DP126: 36.90635299 | DT126: 125 | DU126: 360 | DW126: 2014-07-28 | DX126: 51.57984693
F127: 2 | G127: 8 | AX127: 8 | BZ127: 2014-08-29 | CA127: =Country_uncorrected!AJ158 -> 2014-08-29 | CB127: 94 | CC127: 22.21747397 | CD127: 3462 | CE127: 1133.960655 | CF127: 1133.960655 | CI127: 3.332621096 | CJ127: 5.554368493 | CK127: 13.33048438 | CL127: 22.21747397 | CN127: 3.332621096 | CO127: 0.2777184246 | CP127: 0.6665242191 | CQ127: 4.276863739 | CR127: 226.2007961 | CT127: 94 | CU127: 3.332621096 | CV127: 31.43872729 | CW127: 37.24665339 | CX127: 22.43612131 | CY127: 0.2777184246 | CZ127: 1.352879852 | DA127: 1.869676776 | DC127: 0.6665242191 | DD127: 1.324365364 | DE127: 2.614448406 | DF127: 4.487224263 | DG127: 34.1159725 | DH127: 41.73077857 | DI127: 28.79302235 | DJ127: 94 | DK127: 19.35567274 | DL127: 32.25945457 | DM127: 77.42269096 | DN127: 129.0378183 | DP127: 37.39353552 | DT127: 126 | DW127: 2014-07-29 | DX127: 52.49022822
F128: 2 | G128: 9 | AX128: 9 | BZ128: 2014-08-30 | CA128: =Country_uncorrected!AJ159 -> 2014-08-30 | CB128: 95 | CC128: 22.51072152 | CD128: 3498 | CE128: 1156.471377 | CF128: 1156.471377 | CI128: 3.376608228 | CJ128: 5.62768038 | CK128: 13.50643291 | CL128: 22.51072152 | CN128: 3.376608228 | CO128: 0.281384019 | CP128: 0.6753216456 | CQ128: 4.333313893 | CR128: 230.53411 | CT128: 95 | CU128: 3.376608228 | CV128: 31.85373792 | CW128: 37.73834272 | CX128: 22.73228097 | CY128: 0.281384019 | CZ128: 1.370737521 | DA128: 1.894356747 | DC128: 0.6753216456 | DD128: 1.341845865 | DE128: 2.64895794 | DF128: 4.546456194 | DG128: 34.56632131 | DH128: 42.28165741 | DI128: 29.17309391 | DJ128: 95 | DK128: 19.61116645 | DL128: 32.68527742 | DM128: 78.44466582 | DN128: 130.7411097 | DP128: 37.88713495 | DT128: 127 | DW128: 2014-07-30 | DX128: 53.51500226
F129: 2 | G129: 10 | AX129: 10 | BZ129: 2014-08-31 | CA129: =Country_uncorrected!AJ160 -> 2014-08-31 | CB129: 96 | CC129: 22.80783106 | CD129: 3534 | CE129: 1179.279208 | CF129: 1179.279208 | CI129: 3.42117466 | CJ129: 5.701957766 | CK129: 13.68469864 | CL129: 22.80783106 | CN129: 3.42117466 | CO129: 0.2850978883 | CP129: 0.6842349319 | CQ129: 4.39050748 | CR129: 234.9246175 | CT129: 96 | CU129: 3.42117466 | CV129: 32.27421578 | CW129: 38.23651017 | CX129: 23.03234111 | CY129: 0.2850978883 | CZ129: 1.388830363 | DA129: 1.91936176 | DC129: 0.6842349319 | DD129: 1.359556578 | DE129: 2.683921941 | DF129: 4.606468223 | DG129: 35.02260272 | DH129: 42.83979387 | DI129: 29.5581711 | DJ129: 96 | DK129: 19.87002492 | DL129: 33.11670819 | DM129: 79.48009966 | DN129: 132.4668328 | DP129: 38.38723519 | DT129: 128 | DU129: 434 | DW129: 2014-07-31 | DX129: 54.77283683
F130: 2 | G130: 11 | AX130: 11 | BZ130: 2014-09-01 | CA130: =Country_uncorrected!AJ161 -> 2014-09-01 | CB130: 97 | CC130: 23.1088534 | CD130: 3570 | CE130: 1202.388061 | CF130: 1202.388061 | CI130: 3.466328011 | CJ130: 5.777213351 | CK130: 13.86531204 | CL130: 23.1088534 | CN130: 3.466328011 | CO130: 0.2888606676 | CP130: 0.6932656021 | CQ130: 4.44845428 | CR130: 239.3730718 | CT130: 97 | CU130: 3.466328011 | CV130: 32.70023221 | CW130: 38.74124059 | CX130: 23.33635293 | CY130: 0.2888606676 | CZ130: 1.407161476 | DA130: 1.944696077 | DC130: 0.6932656021 | DD130: 1.377500534 | DE130: 2.719346399 | DF130: 4.667270585 | DG130: 35.48489422 | DH130: 43.40528307 | DI130: 29.94831959 | DJ130: 97 | DK130: 20.13229237 | DL130: 33.55382062 | DM130: 80.52916949 | DN130: 134.2152825 | DP130: 38.89392154 | DT130: 129 | DU130: 468 | DW130: 2014-08-01 | DX130: 56.19921866
F131: 2 | G131: 12 | AX131: 12 | BZ131: 2014-09-02 | CA131: =Country_uncorrected!AJ162 -> 2014-09-02 | CB131: 98 | CC131: 23.41383988 | CD131: 3606 | CE131: 1225.801901 | CF131: 1225.801901 | CI131: 3.512075981 | CJ131: 5.853459969 | CK131: 14.04830393 | CL131: 23.41383988 | CN131: 3.512075981 | CO131: 0.2926729984 | CP131: 0.7024151963 | CQ131: 4.507164176 | CR131: 243.8802359 | CT131: 98 | CU131: 3.512075981 | CV131: 33.13185962 | CW131: 39.25261977 | CX131: 23.64436835 | CY131: 0.2926729984 | CZ131: 1.425733998 | DA131: 1.970364029 | DC131: 0.7024151963 | DD131: 1.395680798 | DE131: 2.755237376 | DF131: 4.728873671 | DG131: 35.95327442 | DH131: 43.97822117 | DI131: 30.34360605 | DJ131: 98 | DK131: 20.3980137 | DL131: 33.9966895 | DM131: 81.59205479 | DN131: 135.986758 | DP131: 39.40728059 | DT131: =DT130+(DW131-DW130) -> 130 | DU131: 479 | DW131: 2014-08-02 | DX131: =CC162 -> 57.80036753
F132: 2 | G132: 13 | AX132: 13 | BZ132: 2014-09-03 | CA132: =Country_uncorrected!AJ163 -> 2014-09-03 | CB132: 99 | CC132: 23.72284238 | CD132: 3642 | CE132: 1249.524744 | CF132: 1249.524744 | CI132: 3.558426357 | CJ132: 5.930710595 | CK132: 14.23370543 | CL132: 23.72284238 | CN132: 3.558426357 | CO132: 0.2965355297 | CP132: 0.7116852713 | CQ132: 4.566647158 | CR132: 248.4468831 | CT132: 99 | CU132: 3.558426357 | CV132: 33.56917146 | CW132: 39.77073455 | CX132: 23.95644005 | CY132: 0.2965355297 | CZ132: 1.444551103 | DA132: 1.996370005 | DC132: 0.7116852713 | DD132: 1.414100468 | DE132: 2.791601002 | DF132: 4.791288011 | DG132: 36.42782303 | DH132: 44.55870556 | DI132: 30.74409807 | DJ132: 99 | DK132: 20.66723433 | DL132: 34.44539055 | DM132: 82.66893733 | DN132: 137.7815622 | DP132: 39.92740009 | DT132: 131 | DW132: 2014-08-03 | DX132: 59.53082733
F133: 2 | G133: 14 | AX133: 14 | BZ133: 2014-09-04 | CA133: =Country_uncorrected!AJ164 -> 2014-09-04 | CB133: 100 | CC133: 24.03591343 | CD133: 3678 | CE133: 1273.560657 | CF133: 1273.560657 | CI133: 3.605387015 | CJ133: 6.008978358 | CK133: 14.42154806 | CL133: 24.03591343 | CN133: 3.605387015 | CO133: 0.3004489179 | CP133: 0.721077403 | CQ133: 4.626913336 | CR133: 253.0737964 | CT133: 100 | CU133: 3.605387015 | CV133: 34.01224228 | CW133: 40.29567299 | CX133: 24.27262135 | CY133: 0.3004489179 | CZ133: 1.463616002 | DA133: 2.022718446 | DC133: 0.721077403 | DD133: 1.432762674 | DE133: 2.828443473 | DF133: 4.854524269 | DG133: 36.90862096 | DH133: 45.14683491 | DI133: 31.14986406 | DJ133: 100 | DK133: 20.94000025 | DL133: 34.90000042 | DM133: 83.76000101 | DN133: 139.6000017 | DP133: 40.45436891 | DT133: 132 | DU133: 516 | DV133: =IF(DU133-DV132>0, DU133-DV133, "") ->  | DW133: 2014-08-04 | DX133: 61.30273119
F134: 2 | G134: 15 | AX134: 15 | BZ134: 2014-09-05 | CA134: =Country_uncorrected!AJ165 -> 2014-09-05 | CB134: 101 | CC134: 24.35310624 | CD134: 3714 | CE134: 1297.913763 | CF134: 1297.913763 | CI134: 3.652965936 | CJ134: 6.08827656 | CK134: 14.61186374 | CL134: 24.35310624 | CN134: 3.652965936 | CO134: 0.304413828 | CP134: 0.7305931871 | CQ134: 4.687972951 | CR134: 257.7617694 | CT134: 101 | CU134: 3.652965936 | CV134: 34.46114766 | CW134: 40.82752441 | CX134: 24.59296619 | CY134: 0.304413828 | CZ134: 1.482931942 | DA134: 2.049413849 | DC134: 0.7305931871 | DD134: 1.45167059 | DE134: 2.865771058 | DF134: 4.918593237 | DG134: 37.39575019 | DH134: 45.74270932 | DI134: 31.56097327 | DJ134: 101 | DK134: 21.21635796 | DL134: 35.3605966 | DM134: 84.86543184 | DN134: 141.4423864 | DP134: 40.98827698 | DT134: 133 | DW134: 2014-08-05 | DX134: 63.03438904
F135: 2 | G135: 16 | AX135: 16 | BZ135: 2014-09-06 | CA135: =Country_uncorrected!AJ166 -> 2014-09-06 | CB135: 102 | CC135: 27.61447471 | CD135: 3750 | CE135: 1325.528238 | CF135: 1325.528238 | CI135: 4.142171207 | CJ135: 6.903618678 | CK135: 16.56868483 | CL135: 27.61447471 | CN135: 4.142171207 | CO135: 0.3451809339 | CP135: 0.8284342414 | CQ135: 5.315786382 | CR135: 263.0775558 | CT135: 102 | CU135: 4.142171207 | CV135: 35.35696421 | CW135: 41.80737942 | CX135: 25.35852917 | CY135: 0.3451809339 | CZ135: 1.539252208 | DA135: 2.113210764 | DC135: 0.8284342414 | DD135: 1.559027429 | DE135: 2.991790103 | DF135: 5.071705833 | DG135: 38.45524385 | DH135: 46.91238029 | DI135: 32.54344576 | DJ135: 102 | DK135: 21.93735451 | DL135: 36.56225751 | DM135: 87.74941803 | DN135: 146.24903 | DP135: 42.26421528 | DT135: 134 | DU135: 554 | DW135: 2014-08-06 | DX135: 64.71102184
F136: 2 | G136: 17 | AX136: 17 | BZ136: 2014-09-07 | CA136: =Country_uncorrected!AJ167 -> 2014-09-07 | CB136: 103 | CC136: 37.90007131 | CD136: 3786 | CE136: 1363.428309 | CF136: 1363.428309 | CI136: 5.685010696 | CJ136: 9.475017827 | CK136: 22.74004279 | CL136: 37.90007131 | CN136: 5.685010696 | CO136: 0.4737508914 | CP136: 1.137002139 | CQ136: 7.295763727 | CR136: 270.3733195 | CT136: 103 | CU136: 5.685010696 | CV136: 37.75276919 | CW136: 44.28832956 | CX136: 27.6223652 | CY136: 0.4737508914 | CZ136: 1.720330101 | DA136: 2.301863767 | DC136: 1.137002139 | DD136: 1.965436381 | DE136: 3.417106971 | DF136: 5.524473041 | DG136: 41.43853567 | DH136: 50.0073003 | DI136: 35.44870201 | DJ136: 103 | DK136: 24.15603719 | DL136: 40.26006199 | DM136: 96.62414877 | DN136: 161.0402479 | DP136: 46.03727534 | DT136: 135 | DU136: 587 | DW136: 2014-08-07 | DX136: 66.36827144
F137: 2 | G137: 18 | AX137: 18 | BZ137: 2014-09-08 | CA137: =Country_uncorrected!AJ168 -> 2014-09-08 | CB137: 104 | CC137: 48.27994392 | CD137: 3822 | CE137: 1411.708253 | CF137: 1411.708253 | CI137: 7.241991589 | CJ137: 12.06998598 | CK137: 28.96796635 | CL137: 48.27994392 | CN137: 7.241991589 | CO137: 0.6034992991 | CP137: 1.448398318 | CQ137: 9.293889206 | CR137: 279.6672087 | CT137: 104 | CU137: 7.241991589 | CV137: 41.66213968 | CW137: 48.2839665 | CX137: 31.39802878 | CY137: 0.6034992991 | CZ137: 2.02729387 | DA137: 2.616502398 | DC137: 1.448398318 | DD137: 2.585400457 | DE137: 4.144427886 | DF137: 6.279605756 | DG137: 46.27483401 | DH137: 55.04489678 | DI137: 40.29413694 | DJ137: 104 | DK137: 27.8859528 | DL137: 46.476588 | DM137: 111.5438112 | DN137: 185.906352 | DP137: 52.33004797 | DT137: 136 | DU137: 599 | DW137: 2014-08-08 | DX137: 68.03197358
F138: 2 | G138: 19 | AX138: 19 | BZ138: 2014-09-09 | CA138: =Country_uncorrected!AJ169 -> 2014-09-09 | CB138: 105 | CC138: 49.76511544 | CD138: 3858 | CE138: 1461.473369 | CF138: 1461.473369 | CI138: 7.464767316 | CJ138: 12.44127886 | CK138: 29.85906927 | CL138: 49.76511544 | CN138: 7.464767316 | CO138: 0.622063943 | CP138: 1.492953463 | CQ138: 9.579784723 | CR138: 289.2469934 | CT138: 105 | CU138: 7.464767316 | CV138: 45.75029877 | CW138: 52.45952809 | CX138: 35.35072012 | CY138: 0.622063943 | CZ138: 2.348908895 | DA138: 2.945893343 | DC138: 1.492953463 | DD138: 2.941351781 | DE138: 4.906788162 | DF138: 7.070144023 | DG138: 51.04055944 | DH138: 60.3122096 | DI138: 45.36675748 | DJ138: 105 | DK138: 31.79229376 | DL138: 52.98715627 | DM138: 127.169175 | DN138: 211.9486251 | DP138: 58.91786686 | DT138: 137 | DU138: 599 | DW138: 2014-08-09 | DX138: 69.7567608
F139: 2 | G139: 20 | AX139: 20 | BZ139: 2014-09-10 | CA139: =Country_uncorrected!AJ170 -> 2014-09-10 | CB139: 106 | CC139: 47.16999863 | CD139: 3894 | CE139: 1508.643367 | CF139: 1508.643367 | CI139: 7.075499794 | CJ139: 11.79249966 | CK139: 28.30199918 | CL139: 47.16999863 | CN139: 7.075499794 | CO139: 0.5896249828 | CP139: 1.415099959 | CQ139: 9.080224736 | CR139: 298.3272181 | CT139: 106 | CU139: 7.075499794 | CV139: 49.4046239 | CW139: 56.20240679 | CX139: 38.86779355 | CY139: 0.5896249828 | CZ139: 2.63412005 | DA139: 3.238982796 | DC139: 1.415099959 | DD139: 2.908053422 | DE139: 5.493453879 | DF139: 7.773558711 | DG139: 54.94679737 | DH139: 64.93484346 | DI139: 49.88033506 | DJ139: 106 | DK139: 35.26240654 | DL139: 58.77067756 | DM139: 141.0496262 | DN139: 235.0827103 | DP139: 64.77965592
F140: 2 | G140: 21 | AX140: 21 | BZ140: 2014-09-11 | CA140: =Country_uncorrected!AJ171 -> 2014-09-11 | CB140: 107 | CC140: 45.13563273 | CD140: 3930 | CE140: 1553.779 | CF140: 1553.779 | CI140: 6.770344909 | CJ140: 11.28390818 | CK140: 27.08137964 | CL140: 45.13563273 | CN140: 6.770344909 | CO140: 0.5641954091 | CP140: 1.354068982 | CQ140: 8.6886093 | CR140: 307.0158274 | CT140: 107 | CU140: 6.770344909 | CV140: 52.7086408 | CW140: 59.59614347 | CX140: 42.03275145 | CY140: 0.5641954091 | CZ140: 2.853134525 | DA140: 3.502729287 | DC140: 1.354068982 | DD140: 2.769168941 | DE140: 5.710520722 | DF140: 8.406550289 | DG140: 58.33094427 | DH140: 68.80939348 | DI140: 53.94203102 | DJ140: 107 | DK140: 38.37978551 | DL140: 63.96630919 | DM140: 153.519142 | DN140: 255.8652367 | DP140: 70.05458575
F141: 2 | G141: 22 | AX141: 22 | BZ141: 2014-09-12 | CA141: =Country_uncorrected!AJ172 -> 2014-09-12 | CB141: 108 | CC141: 40.98480594 | CD141: 3966 | CE141: 1594.763806 | CF141: 1594.763806 | CI141: 6.147720891 | CJ141: 10.24620148 | CK141: 24.59088356 | CL141: 40.98480594 | CN141: 6.147720891 | CO141: 0.5123100742 | CP141: 1.229544178 | CQ141: 7.889575143 | CR141: 314.9054026 | CT141: 108 | CU141: 6.147720891 | CV141: 55.34428571 | CW141: 62.3226897 | CX141: 44.5275064 | CY141: 0.5123100742 | CZ141: 2.891693708 | DA141: 3.710625534 | DC141: 1.229544178 | DD141: 2.58361316 | DE141: 5.491666582 | DF141: 8.90550128 | DG141: 60.81959258 | DH141: 71.52498182 | DI141: 57.14363322 | DJ141: 108 | DK141: 40.3853352 | DL141: 67.30889199 | DM141: 161.5413408 | DN141: 269.235568 | DP141: 74.21251067
F142: 2 | G142: 23 | AX142: 23 | BZ142: 2014-09-13 | CA142: =Country_uncorrected!AJ173 -> 2014-09-13 | CB142: 109 | CC142: 39.77252604 | CD142: 4002 | CE142: 1634.536332 | CF142: 1634.536332 | CI142: 5.965878906 | CJ142: 9.94313151 | CK142: 23.86351562 | CL142: 39.77252604 | CN142: 5.965878906 | CO142: 0.4971565755 | CP142: 1.193175781 | CQ142: 7.656211263 | CR142: 322.5616139 | CT142: 109 | CU142: 5.965878906 | CV142: 57.75173826 | CW142: 64.8222406 | CX142: 46.3512141 | CY142: 0.4971565755 | CZ142: 2.785350985 | DA142: 3.862601175 | DC142: 1.193175781 | DD142: 2.422719959 | DE142: 5.1918889 | DF142: 9.27024282 | DG142: 62.9598092 | DH142: 73.87673067 | DI142: 59.4840581 | DJ142: 109 | DK142: 40.6662034 | DL142: 67.77700567 | DM142: 162.6648136 | DN142: 271.1080227 | DP142: 77.2520235
F143: 2 | G143: 24 | AX143: 24 | BZ143: 2014-09-14 | CA143: =Country_uncorrected!AJ174 -> 2014-09-14 | CB143: 110 | CC143: 40.53349723 | CD143: 4038 | CE143: 1675.069829 | CF143: 1675.069829 | CI143: 6.080024585 | CJ143: 10.13337431 | CK143: 24.32009834 | CL143: 40.53349723 | CN143: 6.080024585 | CO143: 0.5066687154 | CP143: 1.216004917 | CQ143: 7.802698218 | CR143: 330.3643121 | CT143: 110 | CU143: 6.080024585 | CV143: 60.22637583 | CW143: 67.3901892 | CX143: 46.74622799 | CY143: 0.5066687154 | CZ143: 2.669955757 | DA143: 3.895518999 | DC143: 1.216004917 | DD143: 2.409180698 | DE143: 4.992793858 | DF143: 9.349245598 | DG143: 65.30551228 | DH143: 76.27850206 | DI143: 59.99099259 | DJ143: 110 | DK143: 39.5042364 | DL143: 65.840394 | DM143: 158.0169456 | DN143: 263.361576 | DP143: 77.91037998
F144: 2 | G144: 25 | AX144: 25 | BZ144: 2014-09-15 | CA144: =Country_uncorrected!AJ175 -> 2014-09-15 | CB144: 111 | CC144: 40.74035172 | CD144: 4074 | CE144: 1715.810181 | CF144: 1715.810181 | CI144: 6.111052759 | CJ144: 10.18508793 | CK144: 24.44421103 | CL144: 40.74035172 | CN144: 6.111052759 | CO144: 0.5092543966 | CP144: 1.222210552 | CQ144: 7.842517707 | CR144: 338.2068298 | CT144: 111 | CU144: 6.111052759 | CV144: 62.68446265 | CW144: 69.9428156 | CX144: 45.61528916 | CY144: 0.5092543966 | CZ144: 2.589585171 | DA144: 3.801274097 | DC144: 1.222210552 | DD144: 2.438215469 | DE144: 4.860935428 | DF144: 9.123057832 | DG144: 67.71226329 | DH144: 78.60502513 | DI144: 58.53962109 | DJ144: 111 | DK144: 38.15052184 | DL144: 63.58420307 | DM144: 152.6020874 | DN144: 254.3368123 | DP144: 76.02548193
F145: 2 | G145: 26 | BZ145: 2014-09-16 | CA145: =Country_uncorrected!AJ176 -> 2014-09-16 | CB145: 112 | CC145: 42.56130433 | CD145: 4110 | CE145: 1758.371485 | CF145: 1758.371485 | CI145: 6.38419565 | CJ145: 10.64032608 | CK145: 25.5367826 | CL145: 42.56130433 | CN145: 6.38419565 | CO145: 0.5320163042 | CP145: 1.27683913 | CQ145: 8.193051084 | CR145: 346.3998809 | CT145: 112 | CU145: 6.38419565 | CV145: 64.92648709 | CW145: 72.72162424 | CX145: 44.53471749 | CY145: 0.5320163042 | CZ145: 2.557406066 | DA145: 3.711226458 | DC145: 1.27683913 | DD145: 2.499049682 | DE145: 4.90823038 | DF145: 8.906943499 | DG145: 69.98294284 | DH145: 81.34108108 | DI145: 57.15288745 | DJ145: 112 | DK145: 37.4592177 | DL145: 62.4320295 | DM145: 149.8368708 | DN145: 249.728118 | DP145: 74.22452916
F146: 2 | G146: 27 | BZ146: 2014-09-17 | CA146: =Country_uncorrected!AJ177 -> 2014-09-17 | CB146: 113 | CC146: 44.04724061 | CD146: 4146 | CE146: 1802.418726 | CF146: 1802.418726 | CI146: 6.607086092 | CJ146: 11.01181015 | CK146: 26.42834437 | CL146: 44.04724061 | CN146: 6.607086092 | CO146: 0.5505905077 | CP146: 1.321417218 | CQ146: 8.479093818 | CR146: 354.8789747 | CT146: 113 | CU146: 6.607086092 | CV146: 65.84856249 | CW146: 75.67574439 | CX146: 44.06630379 | CY146: 0.5505905077 | CZ146: 2.595686499 | DA146: 3.672191983 | DC146: 1.321417218 | DD146: 2.598256348 | DE146: 5.036471817 | DF146: 8.813260758 | DG146: 71.04250534 | DH146: 84.38440819 | DI146: 56.55175653 | DJ146: 113 | DK146: 37.29595888 | DL146: 62.15993147 | DM146: 149.1838355 | DN146: 248.6397259 | DP146: 73.44383965
F147: 2 | G147: 28 | BZ147: 2014-09-18 | CA147: =Country_uncorrected!AJ178 -> 2014-09-18 | CB147: 114 | CC147: 46.11079927 | CD147: 4182 | CE147: 1848.529525 | CF147: 1848.529525 | CI147: 6.916619891 | CJ147: 11.52769982 | CK147: 27.66647956 | CL147: 46.11079927 | CN147: 6.916619891 | CO147: 0.5763849909 | CP147: 1.383323978 | CQ147: 8.87632886 | CR147: 363.7553035 | CT147: 114 | CU147: 6.916619891 | CV147: 65.52319079 | CW147: 78.45019308 | CX147: 44.21257877 | CY147: 0.5763849909 | CZ147: 2.674914915 | DA147: 3.684381564 | DC147: 1.383323978 | DD147: 2.704741197 | DE147: 5.203790878 | DF147: 8.842515755 | DG147: 70.9028469 | DH147: 87.33836552 | DI147: 56.73947609 | DJ147: 114 | DK147: 38.06485788 | DL147: 63.4414298 | DM147: 152.2594315 | DN147: 253.7657192 | DP147: 73.68763129
F148: 2 | G148: 29 | BZ148: 2014-09-19 | CA148: =Country_uncorrected!AJ179 -> 2014-09-19 | CB148: 115 | CC148: 46.77062619 | CD148: 4218 | CE148: 1895.300151 | CF148: 1895.300151 | CI148: 7.015593928 | CJ148: 11.69265655 | CK148: 28.06237571 | CL148: 46.77062619 | CN148: 7.015593928 | CO148: 0.5846328273 | CP148: 1.403118786 | CQ148: 9.003345541 | CR148: 372.7586491 | CT148: 115 | CU148: 7.015593928 | CV148: 65.0740174 | CW148: 79.78077631 | CX148: 45.08045181 | CY148: 0.5846328273 | CZ148: 2.752879027 | DA148: 3.756704318 | DC148: 1.403118786 | DD148: 2.786442764 | DE148: 5.384699112 | DF148: 9.016090362 | DG148: 70.61333919 | DH148: 88.92217974 | DI148: 57.85324649 | DJ148: 115 | DK148: 39.1145729 | DL148: 65.19095484 | DM148: 156.4582916 | DN148: 260.7638194 | DP148: 75.13408635
F149: 2 | G149: 30 | AX149: sum of new Is for today--> | BZ149: 2014-09-20 | CA149: =Country_uncorrected!AJ180 -> 2014-09-20 | CB149: 116 | CC149: 47.45222827 | CD149: 4254 | CE149: 1942.75238 | CF149: 1942.75238 | CI149: 7.117834241 | CJ149: 11.86305707 | CK149: 28.47133696 | CL149: 47.45222827 | CN149: 7.117834241 | CO149: 0.5931528534 | CP149: 1.423566848 | CQ149: 9.134553943 | CR149: 381.893203 | CT149: 116 | CU149: 7.117834241 | CV149: 65.11635185 | CW149: 79.65661896 | CX149: 46.23240715 | CY149: 0.5931528534 | CZ149: 2.836777484 | DA149: 3.852700595 | DC149: 1.423566848 | DD149: 2.826685634 | DE149: 5.53142683 | DF149: 9.246481429 | DG149: 70.77981497 | DH149: 89.04074639 | DI149: 59.33158917 | DJ149: 116 | DK149: 40.15238256 | DL149: 66.9206376 | DM149: 160.6095302 | DN149: 267.6825504 | DP149: 77.05401191
F150: sum a1 to a25 | AY150: =SUM(AY120:AY149) -> 0 | AZ150: =SUM(AZ120:AZ149) -> 0 | BA150: 0 | BB150: 0 | BC150: 0 | BD150: 0 | BE150: 0 | BF150: 0 | BG150: 0 | BH150: 0 | BI150: 0 | BJ150: 0 | BK150: 0 | BL150: 0 | BM150: 0 | BZ150: 2014-09-21 | CA150: =Country_uncorrected!AJ181 -> 2014-09-21 | CB150: 117 | CC150: 47.57165515 | CD150: 4290 | CE150: 1990.324035 | CF150: 1990.324035 | CI150: 7.135748272 | CJ150: 11.89291379 | CK150: 28.54299309 | CL150: 47.57165515 | CN150: 7.135748272 | CO150: 0.5946456893 | CP150: 1.427149654 | CQ150: 9.157543615 | CR150: 391.0507466 | CT150: 117 | CU150: 7.135748272 | CV150: 65.48175521 | CW150: 79.32759992 | CX150: 47.28813083 | CY150: 0.5946456893 | CZ150: 2.899406869 | DA150: 3.940677569 | DC150: 1.427149654 | DD150: 2.850716503 | DE150: 5.637159266 | DF150: 9.457626167 | DG150: 71.23187859 | DH150: 88.90543675 | DI150: 60.68643457 | DJ150: 117 | DK150: 41.17707807 | DL150: 68.62846346 | DM150: 164.7083123 | DN150: 274.5138538 | DP150: 78.81355139
F151: distrubte to | BZ151: 2014-09-22 | CA151: =Country_uncorrected!AJ182 -> 2014-09-22 | CB151: 118 | CC151: 47.97209426 | CD151: 4326 | CE151: 2038.296129 | CF151: 2038.296129 | CI151: 7.195814139 | CJ151: 11.99302357 | CK151: 28.78325656 | CL151: 47.97209426 | CN151: 7.195814139 | CO151: 0.5996511783 | CP151: 1.439162828 | CQ151: 9.234628145 | CR151: 400.2853748 | CT151: 118 | CU151: 7.195814139 | CV151: 66.52984846 | CW151: 79.44791426 | CX151: 48.37289221 | CY151: 0.5996511783 | CZ151: 2.948467539 | DA151: 4.031074351 | DC151: 1.439162828 | DD151: 2.866312482 | DE151: 5.692998116 | DF151: 9.674578443 | DG151: 72.34462848 | DH151: 89.17198673 | DI151: 62.07854501 | DJ151: 118 | DK151: 41.98869656 | DL151: 69.98116094 | DM151: 167.9547863 | DN151: 279.9246438 | DP151: 80.62148702
